Workbook

Sheet GUIDE
C1: CDM Energy Efficiency Cost Effectiveness Tool
A4: BEFORE YOU BEGIN: ENABLE MACROS WITHIN EXCEL (Option 1: Click the security warning at the top of your worksheet and click "Enable Content", if this warning does not appear click "File" > "Options" > "Trust Center" > "Trust Center Settings" > "Macro Settings" and finally select "Enable all macros" Each section of the tool is grouped, linked, and colour coded for easy navigation. Simply click on the hyperlink to reach the worksheet you are looking for. Module worksheet dividers (i.e., the black tabs) provide high-level instructions for that module. Some tabs are locked or hidden where standard assumptions or key calculations are housed. Instructions are embedded throughout the Tool. Detailed instructions and procedures can be found in the User Guide that accompanies this Tool.
A7: Tool Structure: (click hyperlinks for easy navigation)
B8: Module | C8: Section | D8: Section Description | E8: Worksheet Name | F8: Worksheet Permissions
C9: Consolidated Summary | D9: Contains a summary of the results of a 2015-2020 portfolio designed within the "Program Design" section of the Tool for input into CDM plans | E9: CDM Plan Summary | F9: Tool Output
E10: Detailed CDM Plan Summary | F10: Tool Output
B11: PROGRAM DESIGN MODULE
C12: Program Design (User Inputs) | D12: Main input worksheets for the average user for program design purposes. Users create and select measures associated with programs, and input budgets | E12: Custom Measure Input | F12: User Input
E13: Measure Selection & CE Results | F13: User Input
E14: Program Budget Input | F14: User Input
E15: External Inputs | F15: User Input
B16: RESULTS MODULE
C17: Results | D17: Contains the results of the cost effectiveness analysis for the inputs specified by the user in the Program Design module. | E17: Program Portfolio CE Results | F17: Tool Output
E18: Measure Savings Results | F18: Tool Output
E19: Summary CE Results | F19: Tool Output
B20: ADMIN INPUT MODULE
C21: IESO/Admin Inputs | D21: Administrative users input assumptions within these worksheets, the average user does not need to interact with this module | E21: ADMIN OPTIONS | F21: Administrative Use only
E22: CE Parameters | F22: Administrative Use only
E23: Rates Table | F23: Administrative Use only
E24: Avoided Cost Table | F24: Administrative Use only
B25: DEFINED INPUTS MODULE
C26: Custom Input | D26: Users can create custom load profiles that can be used when creating a new measure. | E26: Custom Load Profile Input | F26: User Input
C27: Repositories | D27: Repository worksheets with consolidated load profile and measure data, provides the available building blocks for the program design module. | E27: Formatted Measure List | F27: Tool Output
E28: Formatted Load Profiles | F28: Tool Output
B30: CALCULATION ENGINE
C31: Calculation Engine | D31: The worksheets in this module are required to calculate the cost effectiveness outputs and contain detailed calculations and reference information. Users do not need to interact with these worksheets. | E31: Measure CE Results | F31: Reference Only
E32: VBA References | F32: Reference Only
E33: Levelized Avoided Cost Table | F33: Reference Only
E34: Levelized Rates Table | F34: Reference Only
A37: Legend: (cells within the Tool are formatted according to the table below)
B38: Code | C38: Code Definition | D38: Description
B39: Blue Text | C39: User input (mandatory) | D39: These cells or columns provide the model with key user inputs required to complete the cost effectiveness calculations. If these cells are not populated, the Tool may return an error or the results will be incomplete.
B40: Black Text | C40: User input (optional) | D40: These cells or columns provide the Tool with parameters that may be populated through a user input form. However, the user can choose to manually override the information provided from the input form within these cells or columns.
B41: Black Text, Italics | C41: Description or Instructions | D41: These cells or columns contain information for the user to better understand the procedures and/or purpose associated with a particular worksheet.
B42: Black Text | C42: Calculated cell | D42: These cells or columns contain formulas that are essential to the calculation of the tool, in most cases these cells are locked and cannot be modified by the user.
B43: White Text | C43: Calculated columns
B44: Red Text | C44: Caution | D44: These instructions indicate a step that is critical or a mistake that is common that may result in an error in the Tool. Special care should be taken when these instructions are encountered.
A46: Cost Effectiveness Acronyms Used in the Tool:
B48: CDM | C48: Conservation And Demand Management
B49: CE | C49: Cost Effectiveness
B50: DR | C50: Demand Response
B51: Dx | C51: Distribution System
B52: EE | C52: Energy Efficiency
B53: EUL | C53: Effective Useful Life
B54: kW | C54: Kilowatt
B55: kWh | C55: Kilowatt Hour
B56: LC | C56: Levelized Delivery Cost
B57: MW | C57: Megawatt
B58: MWh | C58: Megawatt Hour
B59: NPV | C59: Net Present Value
B60: O&M | C60: Operations And Maintenance
B61: PAC | C61: Program Administrator Cost
B62: PV | C62: Present Value
B63: RIM | C63: Rate Impact Measure
B64: RUL | C64: Remaining Useful Life
B65: SC | C65: Societal Cost
B66: TRC | C66: Total Resource Cost
B68: Disclaimer: This Tool is provided solely for informational purposes and based on information currently available to the IESO. The Independent Electricity System Operator (“IESO”) expressly disclaims any responsibility or liability for any other use of the information in the Tool or any methods described. In particular, the information and outputs of the Tool are not meant to be relied on to determine actual electricity or cost savings. The IESO does not warrant the accuracy, reliability, completeness or timeliness of any of the information contained in the Tool, and undertakes no obligation to revise or update the Tool. Users of this Tool rely on the information contained therein at their own risk and remain responsible for seeking appropriate legal, technical or other professional advice with regard to their particular circumstances. The IESO and its respective officers, directors, employees, consultants, agents and subcontractors assume no liability or responsibility whatsoever to any person for damages of whatever kind and nature, which may occur or be suffered as a result of the use of this Tool or reliance on the information therein.

Sheet ARCHITECTURE (hidden)

Sheet CDM Plan Summary
A2: CDM Portfolio Summary for Inclusion in CDM Plans
A4: TABLE 1
A5: SUMMARY OF CDM PORTFOLIO COST EFFECTIVENESS
A6: Plan Cost Effectiveness | B6: Program Year | C6: TRC | F6: PACT | I6: Levelized Cost
C7: Benefits ($) | D7: Costs ($) | E7: Ratio | F7: Benefits ($) | G7: Costs ($) | H7: Ratio | I7: Benefits (Energy) | J7: Costs ($) | K7: ($/kWh)
B8: 2015 | C8: =SUMIFS('Measure Selection & CE Results'!U:U,'Measure Selection & CE Results'!$J:$J,$B8) -> 2197867.575 | D8: =SUMIFS('Measure Selection & CE Results'!V:V,'Measure Selection & CE Results'!$J:$J,$B8)+IFERROR(SUMIFS(INDEX(OFFSET('Program Budget Input'!$A$1,6,1,2000,560),0,MATCH(CONCATENATE($B8," Sub-Total"),OFFSET('Program Budget Input'!$A$1,6,1,1,560),0)),OFFSET('Program Budget Input'!$A$1,6,1,2000,1),"Total")*INDEX(OFFSET('Levelized Avoided Cost Table'!$A$1,7,1,900,20),MATCH(CONCATENATE($B8,"_",1),OFFSET('Levelized Avoided Cost Table'!$A$1,7,1,900,1),0),MATCH("Discount Factor",OFFSET('Levelized Avoided Cost Table'!$A$1,7,1,1,20),0)),0) -> 578243.7672 | E8: =IF(C8=0,"",C8/D8) -> 3.80093604 | F8: =SUMIFS('Measure Selection & CE Results'!AC:AC,'Measure Selection & CE Results'!$J:$J,$B8) -> 1818153.137 | G8: =SUMIFS('Measure Selection & CE Results'!AD:AD,'Measure Selection & CE Results'!$J:$J,$B8)+IFERROR(SUMIFS(INDEX(OFFSET('Program Budget Input'!$A$1,6,1,2000,560),0,MATCH(CONCATENATE($B8," Sub-Total"),OFFSET('Program Budget Input'!$A$1,6,1,1,560),0)),OFFSET('Program Budget Input'!$A$1,6,1,2000,1),"Total")*INDEX(OFFSET('Levelized Avoided Cost Table'!$A$1,7,1,900,20),MATCH(CONCATENATE($B8,"_",1),OFFSET('Levelized Avoided Cost Table'!$A$1,7,1,900,1),0),MATCH("Discount Factor",OFFSET('Levelized Avoided Cost Table'!$A$1,7,1,1,20),0)),0) -> 0.01 | H8: =IF(F8=0,"",F8/G8) -> 181815313.7 | I8: =SUMIFS('Measure Selection & CE Results'!AP:AP,'Measure Selection & CE Results'!$J:$J,$B8) -> 31482775.52 | J8: =IFERROR(SUMIFS('Measure Selection & CE Results'!AQ:AQ,'Measure Selection & CE Results'!$J:$J,$B8)+(SUMIFS(INDEX(OFFSET('Program Budget Input'!$A$1,6,1,2000,560),0,MATCH(CONCATENATE($B8," Sub-Total"),OFFSET('Program Budget Input'!$A$1,6,1,1,560),0)),OFFSET('Program Budget Input'!$A$1,6,1,2000,1),"Total")*INDEX(OFFSET('Levelized Avoided Cost Table'!$A$1,7,1,900,20),MATCH(CONCATENATE($B8,"_",1),OFFSET('Levelized Avoided Cost Table'!$A$1,7,1,900,1),0),MATCH("Discount Factor",OFFSET('Levelized Avoided Cost Table'!$A$1,7,1,1,20),0))),0) -> 0.01 | K8: =IF(I8=0,"",J8/I8) -> 3.176340025e-10
B9: 2016 | C9: =SUMIFS('Measure Selection & CE Results'!U:U,'Measure Selection & CE Results'!$J:$J,$B9) -> 11212520.88 | D9: =SUMIFS('Measure Selection & CE Results'!V:V,'Measure Selection & CE Results'!$J:$J,$B9)+IFERROR(SUMIFS(INDEX(OFFSET('Program Budget Input'!$A$1,6,1,2000,560),0,MATCH(CONCATENATE($B9," Sub-Total"),OFFSET('Program Budget Input'!$A$1,6,1,1,560),0)),OFFSET('Program Budget Input'!$A$1,6,1,2000,1),"Total")*INDEX(OFFSET('Levelized Avoided Cost Table'!$A$1,7,1,900,20),MATCH(CONCATENATE($B9,"_",1),OFFSET('Levelized Avoided Cost Table'!$A$1,7,1,900,1),0),MATCH("Discount Factor",OFFSET('Levelized Avoided Cost Table'!$A$1,7,1,1,20),0)),0) -> 5014755.431 | E9: 2.235905825 | F9: =SUMIFS('Measure Selection & CE Results'!AC:AC,'Measure Selection & CE Results'!$J:$J,$B9) -> 9651725.837 | G9: =SUMIFS('Measure Selection & CE Results'!AD:AD,'Measure Selection & CE Results'!$J:$J,$B9)+IFERROR(SUMIFS(INDEX(OFFSET('Program Budget Input'!$A$1,6,1,2000,560),0,MATCH(CONCATENATE($B9," Sub-Total"),OFFSET('Program Budget Input'!$A$1,6,1,1,560),0)),OFFSET('Program Budget Input'!$A$1,6,1,2000,1),"Total")*INDEX(OFFSET('Levelized Avoided Cost Table'!$A$1,7,1,900,20),MATCH(CONCATENATE($B9,"_",1),OFFSET('Levelized Avoided Cost Table'!$A$1,7,1,900,1),0),MATCH("Discount Factor",OFFSET('Levelized Avoided Cost Table'!$A$1,7,1,1,20),0)),0) -> 1682598.782 | H9: 5.736201607 | I9: =SUMIFS('Measure Selection & CE Results'!AP:AP,'Measure Selection & CE Results'!$J:$J,$B9) -> 141637862.3 | J9: =IFERROR(SUMIFS('Measure Selection & CE Results'!AQ:AQ,'Measure Selection & CE Results'!$J:$J,$B9)+(SUMIFS(INDEX(OFFSET('Program Budget Input'!$A$1,6,1,2000,560),0,MATCH(CONCATENATE($B9," Sub-Total"),OFFSET('Program Budget Input'!$A$1,6,1,1,560),0)),OFFSET('Program Budget Input'!$A$1,6,1,2000,1),"Total")*INDEX(OFFSET('Levelized Avoided Cost Table'!$A$1,7,1,900,20),MATCH(CONCATENATE($B9,"_",1),OFFSET('Levelized Avoided Cost Table'!$A$1,7,1,900,1),0),MATCH("Discount Factor",OFFSET('Levelized Avoided Cost Table'!$A$1,7,1,1,20),0))),0) -> 1682598.782 | K9: 0.01187958329
B10: 2017 | C10: =SUMIFS('Measure Selection & CE Results'!U:U,'Measure Selection & CE Results'!$J:$J,$B10) -> 6496408.203 | D10: =SUMIFS('Measure Selection & CE Results'!V:V,'Measure Selection & CE Results'!$J:$J,$B10)+IFERROR(SUMIFS(INDEX(OFFSET('Program Budget Input'!$A$1,6,1,2000,560),0,MATCH(CONCATENATE($B10," Sub-Total"),OFFSET('Program Budget Input'!$A$1,6,1,1,560),0)),OFFSET('Program Budget Input'!$A$1,6,1,2000,1),"Total")*INDEX(OFFSET('Levelized Avoided Cost Table'!$A$1,7,1,900,20),MATCH(CONCATENATE($B10,"_",1),OFFSET('Levelized Avoided Cost Table'!$A$1,7,1,900,1),0),MATCH("Discount Factor",OFFSET('Levelized Avoided Cost Table'!$A$1,7,1,1,20),0)),0) -> 5087529.941 | E10: 1.276927758 | F10: =SUMIFS('Measure Selection & CE Results'!AC:AC,'Measure Selection & CE Results'!$J:$J,$B10) -> 5545016.908 | G10: =SUMIFS('Measure Selection & CE Results'!AD:AD,'Measure Selection & CE Results'!$J:$J,$B10)+IFERROR(SUMIFS(INDEX(OFFSET('Program Budget Input'!$A$1,6,1,2000,560),0,MATCH(CONCATENATE($B10," Sub-Total"),OFFSET('Program Budget Input'!$A$1,6,1,1,560),0)),OFFSET('Program Budget Input'!$A$1,6,1,2000,1),"Total")*INDEX(OFFSET('Levelized Avoided Cost Table'!$A$1,7,1,900,20),MATCH(CONCATENATE($B10,"_",1),OFFSET('Levelized Avoided Cost Table'!$A$1,7,1,900,1),0),MATCH("Discount Factor",OFFSET('Levelized Avoided Cost Table'!$A$1,7,1,1,20),0)),0) -> 1693141.251 | H10: 3.274987782 | I10: =SUMIFS('Measure Selection & CE Results'!AP:AP,'Measure Selection & CE Results'!$J:$J,$B10) -> 78366006.28 | J10: =IFERROR(SUMIFS('Measure Selection & CE Results'!AQ:AQ,'Measure Selection & CE Results'!$J:$J,$B10)+(SUMIFS(INDEX(OFFSET('Program Budget Input'!$A$1,6,1,2000,560),0,MATCH(CONCATENATE($B10," Sub-Total"),OFFSET('Program Budget Input'!$A$1,6,1,1,560),0)),OFFSET('Program Budget Input'!$A$1,6,1,2000,1),"Total")*INDEX(OFFSET('Levelized Avoided Cost Table'!$A$1,7,1,900,20),MATCH(CONCATENATE($B10,"_",1),OFFSET('Levelized Avoided Cost Table'!$A$1,7,1,900,1),0),MATCH("Discount Factor",OFFSET('Levelized Avoided Cost Table'!$A$1,7,1,1,20),0))),0) -> 1693141.251 | K10: 0.02160555745
B11: 2018 | C11: =SUMIFS('Measure Selection & CE Results'!U:U,'Measure Selection & CE Results'!$J:$J,$B11) -> 4816863.766 | D11: =SUMIFS('Measure Selection & CE Results'!V:V,'Measure Selection & CE Results'!$J:$J,$B11)+IFERROR(SUMIFS(INDEX(OFFSET('Program Budget Input'!$A$1,6,1,2000,560),0,MATCH(CONCATENATE($B11," Sub-Total"),OFFSET('Program Budget Input'!$A$1,6,1,1,560),0)),OFFSET('Program Budget Input'!$A$1,6,1,2000,1),"Total")*INDEX(OFFSET('Levelized Avoided Cost Table'!$A$1,7,1,900,20),MATCH(CONCATENATE($B11,"_",1),OFFSET('Levelized Avoided Cost Table'!$A$1,7,1,900,1),0),MATCH("Discount Factor",OFFSET('Levelized Avoided Cost Table'!$A$1,7,1,1,20),0)),0) -> 4743963.101 | E11: 1.015367039 | F11: =SUMIFS('Measure Selection & CE Results'!AC:AC,'Measure Selection & CE Results'!$J:$J,$B11) -> 4075763.054 | G11: =SUMIFS('Measure Selection & CE Results'!AD:AD,'Measure Selection & CE Results'!$J:$J,$B11)+IFERROR(SUMIFS(INDEX(OFFSET('Program Budget Input'!$A$1,6,1,2000,560),0,MATCH(CONCATENATE($B11," Sub-Total"),OFFSET('Program Budget Input'!$A$1,6,1,1,560),0)),OFFSET('Program Budget Input'!$A$1,6,1,2000,1),"Total")*INDEX(OFFSET('Levelized Avoided Cost Table'!$A$1,7,1,900,20),MATCH(CONCATENATE($B11,"_",1),OFFSET('Levelized Avoided Cost Table'!$A$1,7,1,900,1),0),MATCH("Discount Factor",OFFSET('Levelized Avoided Cost Table'!$A$1,7,1,1,20),0)),0) -> 1519956.593 | H11: 2.681499639 | I11: =SUMIFS('Measure Selection & CE Results'!AP:AP,'Measure Selection & CE Results'!$J:$J,$B11) -> 56624548.17 | J11: =IFERROR(SUMIFS('Measure Selection & CE Results'!AQ:AQ,'Measure Selection & CE Results'!$J:$J,$B11)+(SUMIFS(INDEX(OFFSET('Program Budget Input'!$A$1,6,1,2000,560),0,MATCH(CONCATENATE($B11," Sub-Total"),OFFSET('Program Budget Input'!$A$1,6,1,1,560),0)),OFFSET('Program Budget Input'!$A$1,6,1,2000,1),"Total")*INDEX(OFFSET('Levelized Avoided Cost Table'!$A$1,7,1,900,20),MATCH(CONCATENATE($B11,"_",1),OFFSET('Levelized Avoided Cost Table'!$A$1,7,1,900,1),0),MATCH("Discount Factor",OFFSET('Levelized Avoided Cost Table'!$A$1,7,1,1,20),0))),0) -> 1519956.593 | K11: 0.02684271472
B12: 2019 | C12: =SUMIFS('Measure Selection & CE Results'!U:U,'Measure Selection & CE Results'!$J:$J,$B12) -> 5058676.288 | D12: =SUMIFS('Measure Selection & CE Results'!V:V,'Measure Selection & CE Results'!$J:$J,$B12)+IFERROR(SUMIFS(INDEX(OFFSET('Program Budget Input'!$A$1,6,1,2000,560),0,MATCH(CONCATENATE($B12," Sub-Total"),OFFSET('Program Budget Input'!$A$1,6,1,1,560),0)),OFFSET('Program Budget Input'!$A$1,6,1,2000,1),"Total")*INDEX(OFFSET('Levelized Avoided Cost Table'!$A$1,7,1,900,20),MATCH(CONCATENATE($B12,"_",1),OFFSET('Levelized Avoided Cost Table'!$A$1,7,1,900,1),0),MATCH("Discount Factor",OFFSET('Levelized Avoided Cost Table'!$A$1,7,1,1,20),0)),0) -> 4563514.527 | E12: 1.108504478 | F12: =SUMIFS('Measure Selection & CE Results'!AC:AC,'Measure Selection & CE Results'!$J:$J,$B12) -> 4277254.383 | G12: =SUMIFS('Measure Selection & CE Results'!AD:AD,'Measure Selection & CE Results'!$J:$J,$B12)+IFERROR(SUMIFS(INDEX(OFFSET('Program Budget Input'!$A$1,6,1,2000,560),0,MATCH(CONCATENATE($B12," Sub-Total"),OFFSET('Program Budget Input'!$A$1,6,1,1,560),0)),OFFSET('Program Budget Input'!$A$1,6,1,2000,1),"Total")*INDEX(OFFSET('Levelized Avoided Cost Table'!$A$1,7,1,900,20),MATCH(CONCATENATE($B12,"_",1),OFFSET('Levelized Avoided Cost Table'!$A$1,7,1,900,1),0),MATCH("Discount Factor",OFFSET('Levelized Avoided Cost Table'!$A$1,7,1,1,20),0)),0) -> 1587659.669 | H12: 2.694062504 | I12: =SUMIFS('Measure Selection & CE Results'!AP:AP,'Measure Selection & CE Results'!$J:$J,$B12) -> 60199202.58 | J12: =IFERROR(SUMIFS('Measure Selection & CE Results'!AQ:AQ,'Measure Selection & CE Results'!$J:$J,$B12)+(SUMIFS(INDEX(OFFSET('Program Budget Input'!$A$1,6,1,2000,560),0,MATCH(CONCATENATE($B12," Sub-Total"),OFFSET('Program Budget Input'!$A$1,6,1,1,560),0)),OFFSET('Program Budget Input'!$A$1,6,1,2000,1),"Total")*INDEX(OFFSET('Levelized Avoided Cost Table'!$A$1,7,1,900,20),MATCH(CONCATENATE($B12,"_",1),OFFSET('Levelized Avoided Cost Table'!$A$1,7,1,900,1),0),MATCH("Discount Factor",OFFSET('Levelized Avoided Cost Table'!$A$1,7,1,1,20),0))),0) -> 1587659.669 | K12: 0.02637343355
B13: 2020 | C13: =SUMIFS('Measure Selection & CE Results'!U:U,'Measure Selection & CE Results'!$J:$J,$B13) -> 5509459.244 | D13: =SUMIFS('Measure Selection & CE Results'!V:V,'Measure Selection & CE Results'!$J:$J,$B13)+IFERROR(SUMIFS(INDEX(OFFSET('Program Budget Input'!$A$1,6,1,2000,560),0,MATCH(CONCATENATE($B13," Sub-Total"),OFFSET('Program Budget Input'!$A$1,6,1,1,560),0)),OFFSET('Program Budget Input'!$A$1,6,1,2000,1),"Total")*INDEX(OFFSET('Levelized Avoided Cost Table'!$A$1,7,1,900,20),MATCH(CONCATENATE($B13,"_",1),OFFSET('Levelized Avoided Cost Table'!$A$1,7,1,900,1),0),MATCH("Discount Factor",OFFSET('Levelized Avoided Cost Table'!$A$1,7,1,1,20),0)),0) -> 4740173.451 | E13: 1.162290642 | F13: =SUMIFS('Measure Selection & CE Results'!AC:AC,'Measure Selection & CE Results'!$J:$J,$B13) -> 4660459.132 | G13: =SUMIFS('Measure Selection & CE Results'!AD:AD,'Measure Selection & CE Results'!$J:$J,$B13)+IFERROR(SUMIFS(INDEX(OFFSET('Program Budget Input'!$A$1,6,1,2000,560),0,MATCH(CONCATENATE($B13," Sub-Total"),OFFSET('Program Budget Input'!$A$1,6,1,1,560),0)),OFFSET('Program Budget Input'!$A$1,6,1,2000,1),"Total")*INDEX(OFFSET('Levelized Avoided Cost Table'!$A$1,7,1,900,20),MATCH(CONCATENATE($B13,"_",1),OFFSET('Levelized Avoided Cost Table'!$A$1,7,1,900,1),0),MATCH("Discount Factor",OFFSET('Levelized Avoided Cost Table'!$A$1,7,1,1,20),0)),0) -> 1650743.315 | H13: 2.823248831 | I13: =SUMIFS('Measure Selection & CE Results'!AP:AP,'Measure Selection & CE Results'!$J:$J,$B13) -> 64740302.68 | J13: =IFERROR(SUMIFS('Measure Selection & CE Results'!AQ:AQ,'Measure Selection & CE Results'!$J:$J,$B13)+(SUMIFS(INDEX(OFFSET('Program Budget Input'!$A$1,6,1,2000,560),0,MATCH(CONCATENATE($B13," Sub-Total"),OFFSET('Program Budget Input'!$A$1,6,1,1,560),0)),OFFSET('Program Budget Input'!$A$1,6,1,2000,1),"Total")*INDEX(OFFSET('Levelized Avoided Cost Table'!$A$1,7,1,900,20),MATCH(CONCATENATE($B13,"_",1),OFFSET('Levelized Avoided Cost Table'!$A$1,7,1,900,1),0),MATCH("Discount Factor",OFFSET('Levelized Avoided Cost Table'!$A$1,7,1,1,20),0))),0) -> 1650743.315 | K13: 0.02549792396
B14: Plan Total | C14: =SUM(C8:C13) -> 35291795.96 | D14: =SUM(D8:D13) -> 24728180.22 | E14: =IF(C14="","",C14/D14) -> 1.42718937 | F14: =SUM(F8:F13) -> 30028372.45 | G14: =SUM(G8:G13) -> 8134099.619 | H14: =IF(F14="","",F14/G14) -> 3.691665195 | I14: =SUM(I8:I13) -> 433050697.6 | J14: =SUM(J8:J13) -> 8134099.619 | K14: =IF(I14="","",J14/I14) -> 0.01878325024
A16: TABLE 2
A17: SUMMARY OF PERSISTING CDM PORTFOLIO SAVINGS
A18: Plan Persisting Savings (end-user level) | C18: MW | D18: MWh
B19: 2015 | C19: =SUMIFS(OFFSET('Measure Savings Results'!$A$1,6,15+2020-MIN('Measure Selection & CE Results'!J:J),2000),OFFSET('Measure Savings Results'!$A$1,6,5,2000),'CDM Plan Summary'!$B19,OFFSET('Measure Savings Results'!$A$1,6,4,2000),"Dx")/(1/(1-SUM('CE Parameters'!$F$10:$F$11)))/1000 -> 0.5617528232 | D19: =SUMIFS(OFFSET('Measure Savings Results'!$A$1,6,15+2020-MIN('Measure Selection & CE Results'!J:J)+2020 -MIN('Measure Selection & CE Results'!J:J)+ MAX('Measure Savings Results'!I:I),2000),OFFSET('Measure Savings Results'!$A$1,6,5,2000),'CDM Plan Summary'!$B19,OFFSET('Measure Savings Results'!$A$1,6,4,2000),"Dx")/(1/(1-SUM('CE Parameters'!$F$10:$F$11)))/1000 -> 2740.400169
B20: 2016 | C20: =SUMIFS(OFFSET('Measure Savings Results'!$A$1,6,15+2020-MIN('Measure Selection & CE Results'!J:J),2000),OFFSET('Measure Savings Results'!$A$1,6,5,2000),'CDM Plan Summary'!$B20,OFFSET('Measure Savings Results'!$A$1,6,4,2000),"Dx")/(1/(1-SUM('CE Parameters'!$F$10:$F$11)))/1000 -> 1.826588259 | D20: =SUMIFS(OFFSET('Measure Savings Results'!$A$1,6,15+2020-MIN('Measure Selection & CE Results'!J:J)+2020 -MIN('Measure Selection & CE Results'!J:J)+ MAX('Measure Savings Results'!I:I),2000),OFFSET('Measure Savings Results'!$A$1,6,5,2000),'CDM Plan Summary'!$B20,OFFSET('Measure Savings Results'!$A$1,6,4,2000),"Dx")/(1/(1-SUM('CE Parameters'!$F$10:$F$11)))/1000 -> 11465.76809
B21: 2017 | C21: =SUMIFS(OFFSET('Measure Savings Results'!$A$1,6,15+2020-MIN('Measure Selection & CE Results'!J:J),2000),OFFSET('Measure Savings Results'!$A$1,6,5,2000),'CDM Plan Summary'!$B21,OFFSET('Measure Savings Results'!$A$1,6,4,2000),"Dx")/(1/(1-SUM('CE Parameters'!$F$10:$F$11)))/1000 -> 1.333013114 | D21: =SUMIFS(OFFSET('Measure Savings Results'!$A$1,6,15+2020-MIN('Measure Selection & CE Results'!J:J)+2020 -MIN('Measure Selection & CE Results'!J:J)+ MAX('Measure Savings Results'!I:I),2000),OFFSET('Measure Savings Results'!$A$1,6,5,2000),'CDM Plan Summary'!$B21,OFFSET('Measure Savings Results'!$A$1,6,4,2000),"Dx")/(1/(1-SUM('CE Parameters'!$F$10:$F$11)))/1000 -> 7034.716363
B22: 2018 | C22: =SUMIFS(OFFSET('Measure Savings Results'!$A$1,6,15+2020-MIN('Measure Selection & CE Results'!J:J),2000),OFFSET('Measure Savings Results'!$A$1,6,5,2000),'CDM Plan Summary'!$B22,OFFSET('Measure Savings Results'!$A$1,6,4,2000),"Dx")/(1/(1-SUM('CE Parameters'!$F$10:$F$11)))/1000 -> 1.124668446 | D22: =SUMIFS(OFFSET('Measure Savings Results'!$A$1,6,15+2020-MIN('Measure Selection & CE Results'!J:J)+2020 -MIN('Measure Selection & CE Results'!J:J)+ MAX('Measure Savings Results'!I:I),2000),OFFSET('Measure Savings Results'!$A$1,6,5,2000),'CDM Plan Summary'!$B22,OFFSET('Measure Savings Results'!$A$1,6,4,2000),"Dx")/(1/(1-SUM('CE Parameters'!$F$10:$F$11)))/1000 -> 4893.695993
B23: 2019 | C23: =SUMIFS(OFFSET('Measure Savings Results'!$A$1,6,15+2020-MIN('Measure Selection & CE Results'!J:J),2000),OFFSET('Measure Savings Results'!$A$1,6,5,2000),'CDM Plan Summary'!$B23,OFFSET('Measure Savings Results'!$A$1,6,4,2000),"Dx")/(1/(1-SUM('CE Parameters'!$F$10:$F$11)))/1000 -> 1.159066575 | D23: =SUMIFS(OFFSET('Measure Savings Results'!$A$1,6,15+2020-MIN('Measure Selection & CE Results'!J:J)+2020 -MIN('Measure Selection & CE Results'!J:J)+ MAX('Measure Savings Results'!I:I),2000),OFFSET('Measure Savings Results'!$A$1,6,5,2000),'CDM Plan Summary'!$B23,OFFSET('Measure Savings Results'!$A$1,6,4,2000),"Dx")/(1/(1-SUM('CE Parameters'!$F$10:$F$11)))/1000 -> 5280.675623
B24: 2020 | C24: =SUMIFS(OFFSET('Measure Savings Results'!$A$1,6,15+2020-MIN('Measure Selection & CE Results'!J:J),2000),OFFSET('Measure Savings Results'!$A$1,6,5,2000),'CDM Plan Summary'!$B24,OFFSET('Measure Savings Results'!$A$1,6,4,2000),"Dx")/(1/(1-SUM('CE Parameters'!$F$10:$F$11)))/1000 -> 1.249902235 | D24: =SUMIFS(OFFSET('Measure Savings Results'!$A$1,6,15+2020-MIN('Measure Selection & CE Results'!J:J)+2020 -MIN('Measure Selection & CE Results'!J:J)+ MAX('Measure Savings Results'!I:I),2000),OFFSET('Measure Savings Results'!$A$1,6,5,2000),'CDM Plan Summary'!$B24,OFFSET('Measure Savings Results'!$A$1,6,4,2000),"Dx")/(1/(1-SUM('CE Parameters'!$F$10:$F$11)))/1000 -> 5767.655253
B25: Plan Total | C25: =SUM(C19:C24) -> 7.254991454 | D25: =SUM(D19:D24) -> 37182.91149
A27: TABLE 3
A28: PROGRAM ROLL OUT SCHEDULE (ANNUAL ANTICIPATED BUDGET & INCREMENTAL ANNUAL ENERGY SAVINGS BY PROGRAM)
C29: 2015 | E29: 2016 | G29: 2017 | I29: 2018 | K29: 2019 | M29: 2020 | O29: Total 2015 - 2020
A31: Sector | B31: Program | C31: Anticipated Annual Budget ($) | D31: Energy Savings (MWh) | E31: Anticipated Annual Budget ($) | F31: Energy Savings (MWh) | G31: Anticipated Annual Budget ($) | H31: Energy Savings (MWh) | I31: Anticipated Annual Budget ($) | J31: Energy Savings (MWh) | K31: Anticipated Annual Budget ($) | L31: Energy Savings (MWh) | M31: Anticipated Annual Budget ($) | N31: Energy Savings (MWh) | O31: Total Plan Budget ($) | P31: Total Persisting Energy Savings in 2020 (MWh)
A32: IESO - ARCHETYPE | B32: Retrofit | C32: =IFERROR(SUMIFS('Measure Selection & CE Results'!$S:$S,'Measure Selection & CE Results'!$C:$C,$A32,'Measure Selection & CE Results'!$D:$D,$B32,'Measure Selection & CE Results'!$J:$J,C$29)+SUMIFS('Measure Selection & CE Results'!$T:$T,'Measure Selection & CE Results'!$C:$C,$A32,'Measure Selection & CE Results'!$D:$D,$B32,'Measure Selection & CE Results'!$J:$J,C$29)+SUMIFS(INDEX(OFFSET('Program Budget Input'!$A$1,6,1,2000,560),0,MATCH(CONCATENATE(C$29," Sub-Total"),OFFSET('Program Budget Input'!$A$1,6,1,1,560),0)),OFFSET('Program Budget Input'!$A$1,6,1,2000,1),$A32,OFFSET('Program Budget Input'!$A$1,6,2,2000,1),$B32),0) -> 0 | D32: =(SUMIFS(OFFSET('Measure Savings Results'!$A$1,6,15 +MAX('Measure Savings Results'!$F:$F)-MIN('Measure Savings Results'!$F:$F)+MAX('Measure Savings Results'!$I:$I)+C$29-MIN('Measure Savings Results'!$F:$F),2000),OFFSET('Measure Savings Results'!$A$1,6,5,2000),C$29,OFFSET('Measure Savings Results'!$A$1,6,4,2000),"Dx",OFFSET('Measure Savings Results'!$A$1,6,1,2000),$A32,OFFSET('Measure Savings Results'!$A$1,6,2,2000),$B32)/(1/(1-SUM('CE Parameters'!$F$10:$F$11))))/1000 -> 2219.854 | E32: =IFERROR(SUMIFS('Measure Selection & CE Results'!$S:$S,'Measure Selection & CE Results'!$C:$C,$A32,'Measure Selection & CE Results'!$D:$D,$B32,'Measure Selection & CE Results'!$J:$J,E$29)+SUMIFS('Measure Selection & CE Results'!$T:$T,'Measure Selection & CE Results'!$C:$C,$A32,'Measure Selection & CE Results'!$D:$D,$B32,'Measure Selection & CE Results'!$J:$J,E$29)+SUMIFS(INDEX(OFFSET('Program Budget Input'!$A$1,6,1,2000,560),0,MATCH(CONCATENATE(E$29," Sub-Total"),OFFSET('Program Budget Input'!$A$1,6,1,1,560),0)),OFFSET('Program Budget Input'!$A$1,6,1,2000,1),$A32,OFFSET('Program Budget Input'!$A$1,6,2,2000,1),$B32),0) -> 681199.3144 | F32: =(SUMIFS(OFFSET('Measure Savings Results'!$A$1,6,15 +MAX('Measure Savings Results'!$F:$F)-MIN('Measure Savings Results'!$F:$F)+MAX('Measure Savings Results'!$I:$I)+E$29-MIN('Measure Savings Results'!$F:$F),2000),OFFSET('Measure Savings Results'!$A$1,6,5,2000),E$29,OFFSET('Measure Savings Results'!$A$1,6,4,2000),"Dx",OFFSET('Measure Savings Results'!$A$1,6,1,2000),$A32,OFFSET('Measure Savings Results'!$A$1,6,2,2000),$B32)/(1/(1-SUM('CE Parameters'!$F$10:$F$11))))/1000 -> 2891.58739 | G32: =IFERROR(SUMIFS('Measure Selection & CE Results'!$S:$S,'Measure Selection & CE Results'!$C:$C,$A32,'Measure Selection & CE Results'!$D:$D,$B32,'Measure Selection & CE Results'!$J:$J,G$29)+SUMIFS('Measure Selection & CE Results'!$T:$T,'Measure Selection & CE Results'!$C:$C,$A32,'Measure Selection & CE Results'!$D:$D,$B32,'Measure Selection & CE Results'!$J:$J,G$29)+SUMIFS(INDEX(OFFSET('Program Budget Input'!$A$1,6,1,2000,560),0,MATCH(CONCATENATE(G$29," Sub-Total"),OFFSET('Program Budget Input'!$A$1,6,1,1,560),0)),OFFSET('Program Budget Input'!$A$1,6,1,2000,1),$A32,OFFSET('Program Budget Input'!$A$1,6,2,2000,1),$B32),0) -> 761752.0043 | H32: =(SUMIFS(OFFSET('Measure Savings Results'!$A$1,6,15 +MAX('Measure Savings Results'!$F:$F)-MIN('Measure Savings Results'!$F:$F)+MAX('Measure Savings Results'!$I:$I)+G$29-MIN('Measure Savings Results'!$F:$F),2000),OFFSET('Measure Savings Results'!$A$1,6,5,2000),G$29,OFFSET('Measure Savings Results'!$A$1,6,4,2000),"Dx",OFFSET('Measure Savings Results'!$A$1,6,1,2000),$A32,OFFSET('Measure Savings Results'!$A$1,6,2,2000),$B32)/(1/(1-SUM('CE Parameters'!$F$10:$F$11))))/1000 -> 3257.168912 | I32: =IFERROR(SUMIFS('Measure Selection & CE Results'!$S:$S,'Measure Selection & CE Results'!$C:$C,$A32,'Measure Selection & CE Results'!$D:$D,$B32,'Measure Selection & CE Results'!$J:$J,I$29)+SUMIFS('Measure Selection & CE Results'!$T:$T,'Measure Selection & CE Results'!$C:$C,$A32,'Measure Selection & CE Results'!$D:$D,$B32,'Measure Selection & CE Results'!$J:$J,I$29)+SUMIFS(INDEX(OFFSET('Program Budget Input'!$A$1,6,1,2000,560),0,MATCH(CONCATENATE(I$29," Sub-Total"),OFFSET('Program Budget Input'!$A$1,6,1,1,560),0)),OFFSET('Program Budget Input'!$A$1,6,1,2000,1),$A32,OFFSET('Program Budget Input'!$A$1,6,2,2000,1),$B32),0) -> 837038.579 | J32: =(SUMIFS(OFFSET('Measure Savings Results'!$A$1,6,15 +MAX('Measure Savings Results'!$F:$F)-MIN('Measure Savings Results'!$F:$F)+MAX('Measure Savings Results'!$I:$I)+I$29-MIN('Measure Savings Results'!$F:$F),2000),OFFSET('Measure Savings Results'!$A$1,6,5,2000),I$29,OFFSET('Measure Savings Results'!$A$1,6,4,2000),"Dx",OFFSET('Measure Savings Results'!$A$1,6,1,2000),$A32,OFFSET('Measure Savings Results'!$A$1,6,2,2000),$B32)/(1/(1-SUM('CE Parameters'!$F$10:$F$11))))/1000 -> 3708.129434 | K32: =IFERROR(SUMIFS('Measure Selection & CE Results'!$S:$S,'Measure Selection & CE Results'!$C:$C,$A32,'Measure Selection & CE Results'!$D:$D,$B32,'Measure Selection & CE Results'!$J:$J,K$29)+SUMIFS('Measure Selection & CE Results'!$T:$T,'Measure Selection & CE Results'!$C:$C,$A32,'Measure Selection & CE Results'!$D:$D,$B32,'Measure Selection & CE Results'!$J:$J,K$29)+SUMIFS(INDEX(OFFSET('Program Budget Input'!$A$1,6,1,2000,560),0,MATCH(CONCATENATE(K$29," Sub-Total"),OFFSET('Program Budget Input'!$A$1,6,1,1,560),0)),OFFSET('Program Budget Input'!$A$1,6,1,2000,1),$A32,OFFSET('Program Budget Input'!$A$1,6,2,2000,1),$B32),0) -> 928349.6162 | L32: =(SUMIFS(OFFSET('Measure Savings Results'!$A$1,6,15 +MAX('Measure Savings Results'!$F:$F)-MIN('Measure Savings Results'!$F:$F)+MAX('Measure Savings Results'!$I:$I)+K$29-MIN('Measure Savings Results'!$F:$F),2000),OFFSET('Measure Savings Results'!$A$1,6,5,2000),K$29,OFFSET('Measure Savings Results'!$A$1,6,4,2000),"Dx",OFFSET('Measure Savings Results'!$A$1,6,1,2000),$A32,OFFSET('Measure Savings Results'!$A$1,6,2,2000),$B32)/(1/(1-SUM('CE Parameters'!$F$10:$F$11))))/1000 -> 4159.089956 | M32: =IFERROR(SUMIFS('Measure Selection & CE Results'!$S:$S,'Measure Selection & CE Results'!$C:$C,$A32,'Measure Selection & CE Results'!$D:$D,$B32,'Measure Selection & CE Results'!$J:$J,M$29)+SUMIFS('Measure Selection & CE Results'!$T:$T,'Measure Selection & CE Results'!$C:$C,$A32,'Measure Selection & CE Results'!$D:$D,$B32,'Measure Selection & CE Results'!$J:$J,M$29)+SUMIFS(INDEX(OFFSET('Program Budget Input'!$A$1,6,1,2000,560),0,MATCH(CONCATENATE(M$29," Sub-Total"),OFFSET('Program Budget Input'!$A$1,6,1,1,560),0)),OFFSET('Program Budget Input'!$A$1,6,1,2000,1),$A32,OFFSET('Program Budget Input'!$A$1,6,2,2000,1),$B32),0) -> 1016779.736 | N32: =(SUMIFS(OFFSET('Measure Savings Results'!$A$1,6,15 +MAX('Measure Savings Results'!$F:$F)-MIN('Measure Savings Results'!$F:$F)+MAX('Measure Savings Results'!$I:$I)+M$29-MIN('Measure Savings Results'!$F:$F),2000),OFFSET('Measure Savings Results'!$A$1,6,5,2000),M$29,OFFSET('Measure Savings Results'!$A$1,6,4,2000),"Dx",OFFSET('Measure Savings Results'!$A$1,6,1,2000),$A32,OFFSET('Measure Savings Results'!$A$1,6,2,2000),$B32)/(1/(1-SUM('CE Parameters'!$F$10:$F$11))))/1000 -> 4610.050478 | O32: =IFERROR(SUMIFS('Measure Selection & CE Results'!$S:$S,'Measure Selection & CE Results'!$C:$C,$A32,'Measure Selection & CE Results'!$D:$D,$B32)+SUMIFS('Measure Selection & CE Results'!$T:$T,'Measure Selection & CE Results'!$C:$C,$A32,'Measure Selection & CE Results'!$D:$D,$B32)+SUMIFS(INDEX(OFFSET('Program Budget Input'!$A$1,6,1,2000,560),0,MATCH("Total",OFFSET('Program Budget Input'!$A$1,6,1,1,560),0)),OFFSET('Program Budget Input'!$A$1,6,1,2000,1),$A32,OFFSET('Program Budget Input'!$A$1,6,2,2000,1),$B32),0) -> 4225119.25 | P32: =(SUMIFS(OFFSET('Measure Savings Results'!$A$1,6,15+2020-MIN('Measure Selection & CE Results'!J:J)+2020 -MIN('Measure Selection & CE Results'!J:J)+ MAX('Measure Savings Results'!I:I),2000),OFFSET('Measure Savings Results'!$A$1,6,4,2000),"Dx",OFFSET('Measure Savings Results'!$A$1,6,1,2000),$A32,OFFSET('Measure Savings Results'!$A$1,6,2,2000),$B32)/(1/(1-SUM('CE Parameters'!$F$10:$F$11))))/1000 -> 20845.88017
A33: IESO - ARCHETYPE | B33: Heating and Cooling | C33: =IFERROR(SUMIFS('Measure Selection & CE Results'!$S:$S,'Measure Selection & CE Results'!$C:$C,$A33,'Measure Selection & CE Results'!$D:$D,$B33,'Measure Selection & CE Results'!$J:$J,C$29)+SUMIFS('Measure Selection & CE Results'!$T:$T,'Measure Selection & CE Results'!$C:$C,$A33,'Measure Selection & CE Results'!$D:$D,$B33,'Measure Selection & CE Results'!$J:$J,C$29)+SUMIFS(INDEX(OFFSET('Program Budget Input'!$A$1,6,1,2000,560),0,MATCH(CONCATENATE(C$29," Sub-Total"),OFFSET('Program Budget Input'!$A$1,6,1,1,560),0)),OFFSET('Program Budget Input'!$A$1,6,1,2000,1),$A33,OFFSET('Program Budget Input'!$A$1,6,2,2000,1),$B33),0) -> 0 | D33: =(SUMIFS(OFFSET('Measure Savings Results'!$A$1,6,15 +MAX('Measure Savings Results'!$F:$F)-MIN('Measure Savings Results'!$F:$F)+MAX('Measure Savings Results'!$I:$I)+C$29-MIN('Measure Savings Results'!$F:$F),2000),OFFSET('Measure Savings Results'!$A$1,6,5,2000),C$29,OFFSET('Measure Savings Results'!$A$1,6,4,2000),"Dx",OFFSET('Measure Savings Results'!$A$1,6,1,2000),$A33,OFFSET('Measure Savings Results'!$A$1,6,2,2000),$B33)/(1/(1-SUM('CE Parameters'!$F$10:$F$11))))/1000 -> 100.4162067 | E33: =IFERROR(SUMIFS('Measure Selection & CE Results'!$S:$S,'Measure Selection & CE Results'!$C:$C,$A33,'Measure Selection & CE Results'!$D:$D,$B33,'Measure Selection & CE Results'!$J:$J,E$29)+SUMIFS('Measure Selection & CE Results'!$T:$T,'Measure Selection & CE Results'!$C:$C,$A33,'Measure Selection & CE Results'!$D:$D,$B33,'Measure Selection & CE Results'!$J:$J,E$29)+SUMIFS(INDEX(OFFSET('Program Budget Input'!$A$1,6,1,2000,560),0,MATCH(CONCATENATE(E$29," Sub-Total"),OFFSET('Program Budget Input'!$A$1,6,1,1,560),0)),OFFSET('Program Budget Input'!$A$1,6,1,2000,1),$A33,OFFSET('Program Budget Input'!$A$1,6,2,2000,1),$B33),0) -> 246743.1439 | F33: =(SUMIFS(OFFSET('Measure Savings Results'!$A$1,6,15 +MAX('Measure Savings Results'!$F:$F)-MIN('Measure Savings Results'!$F:$F)+MAX('Measure Savings Results'!$I:$I)+E$29-MIN('Measure Savings Results'!$F:$F),2000),OFFSET('Measure Savings Results'!$A$1,6,5,2000),E$29,OFFSET('Measure Savings Results'!$A$1,6,4,2000),"Dx",OFFSET('Measure Savings Results'!$A$1,6,1,2000),$A33,OFFSET('Measure Savings Results'!$A$1,6,2,2000),$B33)/(1/(1-SUM('CE Parameters'!$F$10:$F$11))))/1000 -> 103.4587806 | G33: =IFERROR(SUMIFS('Measure Selection & CE Results'!$S:$S,'Measure Selection & CE Results'!$C:$C,$A33,'Measure Selection & CE Results'!$D:$D,$B33,'Measure Selection & CE Results'!$J:$J,G$29)+SUMIFS('Measure Selection & CE Results'!$T:$T,'Measure Selection & CE Results'!$C:$C,$A33,'Measure Selection & CE Results'!$D:$D,$B33,'Measure Selection & CE Results'!$J:$J,G$29)+SUMIFS(INDEX(OFFSET('Program Budget Input'!$A$1,6,1,2000,560),0,MATCH(CONCATENATE(G$29," Sub-Total"),OFFSET('Program Budget Input'!$A$1,6,1,1,560),0)),OFFSET('Program Budget Input'!$A$1,6,1,2000,1),$A33,OFFSET('Program Budget Input'!$A$1,6,2,2000,1),$B33),0) -> 206833.0707 | H33: =(SUMIFS(OFFSET('Measure Savings Results'!$A$1,6,15 +MAX('Measure Savings Results'!$F:$F)-MIN('Measure Savings Results'!$F:$F)+MAX('Measure Savings Results'!$I:$I)+G$29-MIN('Measure Savings Results'!$F:$F),2000),OFFSET('Measure Savings Results'!$A$1,6,5,2000),G$29,OFFSET('Measure Savings Results'!$A$1,6,4,2000),"Dx",OFFSET('Measure Savings Results'!$A$1,6,1,2000),$A33,OFFSET('Measure Savings Results'!$A$1,6,2,2000),$B33)/(1/(1-SUM('CE Parameters'!$F$10:$F$11))))/1000 -> 11.55936269 | I33: =IFERROR(SUMIFS('Measure Selection & CE Results'!$S:$S,'Measure Selection & CE Results'!$C:$C,$A33,'Measure Selection & CE Results'!$D:$D,$B33,'Measure Selection & CE Results'!$J:$J,I$29)+SUMIFS('Measure Selection & CE Results'!$T:$T,'Measure Selection & CE Results'!$C:$C,$A33,'Measure Selection & CE Results'!$D:$D,$B33,'Measure Selection & CE Results'!$J:$J,I$29)+SUMIFS(INDEX(OFFSET('Program Budget Input'!$A$1,6,1,2000,560),0,MATCH(CONCATENATE(I$29," Sub-Total"),OFFSET('Program Budget Input'!$A$1,6,1,1,560),0)),OFFSET('Program Budget Input'!$A$1,6,1,2000,1),$A33,OFFSET('Program Budget Input'!$A$1,6,2,2000,1),$B33),0) -> 192375.1709 | J33: =(SUMIFS(OFFSET('Measure Savings Results'!$A$1,6,15 +MAX('Measure Savings Results'!$F:$F)-MIN('Measure Savings Results'!$F:$F)+MAX('Measure Savings Results'!$I:$I)+I$29-MIN('Measure Savings Results'!$F:$F),2000),OFFSET('Measure Savings Results'!$A$1,6,5,2000),I$29,OFFSET('Measure Savings Results'!$A$1,6,4,2000),"Dx",OFFSET('Measure Savings Results'!$A$1,6,1,2000),$A33,OFFSET('Measure Savings Results'!$A$1,6,2,2000),$B33)/(1/(1-SUM('CE Parameters'!$F$10:$F$11))))/1000 -> 11.55936269 | K33: =IFERROR(SUMIFS('Measure Selection & CE Results'!$S:$S,'Measure Selection & CE Results'!$C:$C,$A33,'Measure Selection & CE Results'!$D:$D,$B33,'Measure Selection & CE Results'!$J:$J,K$29)+SUMIFS('Measure Selection & CE Results'!$T:$T,'Measure Selection & CE Results'!$C:$C,$A33,'Measure Selection & CE Results'!$D:$D,$B33,'Measure Selection & CE Results'!$J:$J,K$29)+SUMIFS(INDEX(OFFSET('Program Budget Input'!$A$1,6,1,2000,560),0,MATCH(CONCATENATE(K$29," Sub-Total"),OFFSET('Program Budget Input'!$A$1,6,1,1,560),0)),OFFSET('Program Budget Input'!$A$1,6,1,2000,1),$A33,OFFSET('Program Budget Input'!$A$1,6,2,2000,1),$B33),0) -> 195544.1798 | L33: =(SUMIFS(OFFSET('Measure Savings Results'!$A$1,6,15 +MAX('Measure Savings Results'!$F:$F)-MIN('Measure Savings Results'!$F:$F)+MAX('Measure Savings Results'!$I:$I)+K$29-MIN('Measure Savings Results'!$F:$F),2000),OFFSET('Measure Savings Results'!$A$1,6,5,2000),K$29,OFFSET('Measure Savings Results'!$A$1,6,4,2000),"Dx",OFFSET('Measure Savings Results'!$A$1,6,1,2000),$A33,OFFSET('Measure Savings Results'!$A$1,6,2,2000),$B33)/(1/(1-SUM('CE Parameters'!$F$10:$F$11))))/1000 -> 11.55936269 | M33: =IFERROR(SUMIFS('Measure Selection & CE Results'!$S:$S,'Measure Selection & CE Results'!$C:$C,$A33,'Measure Selection & CE Results'!$D:$D,$B33,'Measure Selection & CE Results'!$J:$J,M$29)+SUMIFS('Measure Selection & CE Results'!$T:$T,'Measure Selection & CE Results'!$C:$C,$A33,'Measure Selection & CE Results'!$D:$D,$B33,'Measure Selection & CE Results'!$J:$J,M$29)+SUMIFS(INDEX(OFFSET('Program Budget Input'!$A$1,6,1,2000,560),0,MATCH(CONCATENATE(M$29," Sub-Total"),OFFSET('Program Budget Input'!$A$1,6,1,1,560),0)),OFFSET('Program Budget Input'!$A$1,6,1,2000,1),$A33,OFFSET('Program Budget Input'!$A$1,6,2,2000,1),$B33),0) -> 195544.1798 | N33: =(SUMIFS(OFFSET('Measure Savings Results'!$A$1,6,15 +MAX('Measure Savings Results'!$F:$F)-MIN('Measure Savings Results'!$F:$F)+MAX('Measure Savings Results'!$I:$I)+M$29-MIN('Measure Savings Results'!$F:$F),2000),OFFSET('Measure Savings Results'!$A$1,6,5,2000),M$29,OFFSET('Measure Savings Results'!$A$1,6,4,2000),"Dx",OFFSET('Measure Savings Results'!$A$1,6,1,2000),$A33,OFFSET('Measure Savings Results'!$A$1,6,2,2000),$B33)/(1/(1-SUM('CE Parameters'!$F$10:$F$11))))/1000 -> 11.55936269 | O33: =IFERROR(SUMIFS('Measure Selection & CE Results'!$S:$S,'Measure Selection & CE Results'!$C:$C,$A33,'Measure Selection & CE Results'!$D:$D,$B33)+SUMIFS('Measure Selection & CE Results'!$T:$T,'Measure Selection & CE Results'!$C:$C,$A33,'Measure Selection & CE Results'!$D:$D,$B33)+SUMIFS(INDEX(OFFSET('Program Budget Input'!$A$1,6,1,2000,560),0,MATCH("Total",OFFSET('Program Budget Input'!$A$1,6,1,1,560),0)),OFFSET('Program Budget Input'!$A$1,6,1,2000,1),$A33,OFFSET('Program Budget Input'!$A$1,6,2,2000,1),$B33),0) -> 1037039.745 | P33: =(SUMIFS(OFFSET('Measure Savings Results'!$A$1,6,15+2020-MIN('Measure Selection & CE Results'!J:J)+2020 -MIN('Measure Selection & CE Results'!J:J)+ MAX('Measure Savings Results'!I:I),2000),OFFSET('Measure Savings Results'!$A$1,6,4,2000),"Dx",OFFSET('Measure Savings Results'!$A$1,6,1,2000),$A33,OFFSET('Measure Savings Results'!$A$1,6,2,2000),$B33)/(1/(1-SUM('CE Parameters'!$F$10:$F$11))))/1000 -> 250.112438
A34: IESO - ARCHETYPE | B34: Appliance Retirement | C34: =IFERROR(SUMIFS('Measure Selection & CE Results'!$S:$S,'Measure Selection & CE Results'!$C:$C,$A34,'Measure Selection & CE Results'!$D:$D,$B34,'Measure Selection & CE Results'!$J:$J,C$29)+SUMIFS('Measure Selection & CE Results'!$T:$T,'Measure Selection & CE Results'!$C:$C,$A34,'Measure Selection & CE Results'!$D:$D,$B34,'Measure Selection & CE Results'!$J:$J,C$29)+SUMIFS(INDEX(OFFSET('Program Budget Input'!$A$1,6,1,2000,560),0,MATCH(CONCATENATE(C$29," Sub-Total"),OFFSET('Program Budget Input'!$A$1,6,1,1,560),0)),OFFSET('Program Budget Input'!$A$1,6,1,2000,1),$A34,OFFSET('Program Budget Input'!$A$1,6,2,2000,1),$B34),0) -> 0 | D34: =(SUMIFS(OFFSET('Measure Savings Results'!$A$1,6,15 +MAX('Measure Savings Results'!$F:$F)-MIN('Measure Savings Results'!$F:$F)+MAX('Measure Savings Results'!$I:$I)+C$29-MIN('Measure Savings Results'!$F:$F),2000),OFFSET('Measure Savings Results'!$A$1,6,5,2000),C$29,OFFSET('Measure Savings Results'!$A$1,6,4,2000),"Dx",OFFSET('Measure Savings Results'!$A$1,6,1,2000),$A34,OFFSET('Measure Savings Results'!$A$1,6,2,2000),$B34)/(1/(1-SUM('CE Parameters'!$F$10:$F$11))))/1000 -> 0 | E34: =IFERROR(SUMIFS('Measure Selection & CE Results'!$S:$S,'Measure Selection & CE Results'!$C:$C,$A34,'Measure Selection & CE Results'!$D:$D,$B34,'Measure Selection & CE Results'!$J:$J,E$29)+SUMIFS('Measure Selection & CE Results'!$T:$T,'Measure Selection & CE Results'!$C:$C,$A34,'Measure Selection & CE Results'!$D:$D,$B34,'Measure Selection & CE Results'!$J:$J,E$29)+SUMIFS(INDEX(OFFSET('Program Budget Input'!$A$1,6,1,2000,560),0,MATCH(CONCATENATE(E$29," Sub-Total"),OFFSET('Program Budget Input'!$A$1,6,1,1,560),0)),OFFSET('Program Budget Input'!$A$1,6,1,2000,1),$A34,OFFSET('Program Budget Input'!$A$1,6,2,2000,1),$B34),0) -> 0 | F34: =(SUMIFS(OFFSET('Measure Savings Results'!$A$1,6,15 +MAX('Measure Savings Results'!$F:$F)-MIN('Measure Savings Results'!$F:$F)+MAX('Measure Savings Results'!$I:$I)+E$29-MIN('Measure Savings Results'!$F:$F),2000),OFFSET('Measure Savings Results'!$A$1,6,5,2000),E$29,OFFSET('Measure Savings Results'!$A$1,6,4,2000),"Dx",OFFSET('Measure Savings Results'!$A$1,6,1,2000),$A34,OFFSET('Measure Savings Results'!$A$1,6,2,2000),$B34)/(1/(1-SUM('CE Parameters'!$F$10:$F$11))))/1000 -> 0 | G34: =IFERROR(SUMIFS('Measure Selection & CE Results'!$S:$S,'Measure Selection & CE Results'!$C:$C,$A34,'Measure Selection & CE Results'!$D:$D,$B34,'Measure Selection & CE Results'!$J:$J,G$29)+SUMIFS('Measure Selection & CE Results'!$T:$T,'Measure Selection & CE Results'!$C:$C,$A34,'Measure Selection & CE Results'!$D:$D,$B34,'Measure Selection & CE Results'!$J:$J,G$29)+SUMIFS(INDEX(OFFSET('Program Budget Input'!$A$1,6,1,2000,560),0,MATCH(CONCATENATE(G$29," Sub-Total"),OFFSET('Program Budget Input'!$A$1,6,1,1,560),0)),OFFSET('Program Budget Input'!$A$1,6,1,2000,1),$A34,OFFSET('Program Budget Input'!$A$1,6,2,2000,1),$B34),0) -> 0 | H34: =(SUMIFS(OFFSET('Measure Savings Results'!$A$1,6,15 +MAX('Measure Savings Results'!$F:$F)-MIN('Measure Savings Results'!$F:$F)+MAX('Measure Savings Results'!$I:$I)+G$29-MIN('Measure Savings Results'!$F:$F),2000),OFFSET('Measure Savings Results'!$A$1,6,5,2000),G$29,OFFSET('Measure Savings Results'!$A$1,6,4,2000),"Dx",OFFSET('Measure Savings Results'!$A$1,6,1,2000),$A34,OFFSET('Measure Savings Results'!$A$1,6,2,2000),$B34)/(1/(1-SUM('CE Parameters'!$F$10:$F$11))))/1000 -> 0 | I34: =IFERROR(SUMIFS('Measure Selection & CE Results'!$S:$S,'Measure Selection & CE Results'!$C:$C,$A34,'Measure Selection & CE Results'!$D:$D,$B34,'Measure Selection & CE Results'!$J:$J,I$29)+SUMIFS('Measure Selection & CE Results'!$T:$T,'Measure Selection & CE Results'!$C:$C,$A34,'Measure Selection & CE Results'!$D:$D,$B34,'Measure Selection & CE Results'!$J:$J,I$29)+SUMIFS(INDEX(OFFSET('Program Budget Input'!$A$1,6,1,2000,560),0,MATCH(CONCATENATE(I$29," Sub-Total"),OFFSET('Program Budget Input'!$A$1,6,1,1,560),0)),OFFSET('Program Budget Input'!$A$1,6,1,2000,1),$A34,OFFSET('Program Budget Input'!$A$1,6,2,2000,1),$B34),0) -> 0 | J34: =(SUMIFS(OFFSET('Measure Savings Results'!$A$1,6,15 +MAX('Measure Savings Results'!$F:$F)-MIN('Measure Savings Results'!$F:$F)+MAX('Measure Savings Results'!$I:$I)+I$29-MIN('Measure Savings Results'!$F:$F),2000),OFFSET('Measure Savings Results'!$A$1,6,5,2000),I$29,OFFSET('Measure Savings Results'!$A$1,6,4,2000),"Dx",OFFSET('Measure Savings Results'!$A$1,6,1,2000),$A34,OFFSET('Measure Savings Results'!$A$1,6,2,2000),$B34)/(1/(1-SUM('CE Parameters'!$F$10:$F$11))))/1000 -> 0 | K34: =IFERROR(SUMIFS('Measure Selection & CE Results'!$S:$S,'Measure Selection & CE Results'!$C:$C,$A34,'Measure Selection & CE Results'!$D:$D,$B34,'Measure Selection & CE Results'!$J:$J,K$29)+SUMIFS('Measure Selection & CE Results'!$T:$T,'Measure Selection & CE Results'!$C:$C,$A34,'Measure Selection & CE Results'!$D:$D,$B34,'Measure Selection & CE Results'!$J:$J,K$29)+SUMIFS(INDEX(OFFSET('Program Budget Input'!$A$1,6,1,2000,560),0,MATCH(CONCATENATE(K$29," Sub-Total"),OFFSET('Program Budget Input'!$A$1,6,1,1,560),0)),OFFSET('Program Budget Input'!$A$1,6,1,2000,1),$A34,OFFSET('Program Budget Input'!$A$1,6,2,2000,1),$B34),0) -> 0 | L34: =(SUMIFS(OFFSET('Measure Savings Results'!$A$1,6,15 +MAX('Measure Savings Results'!$F:$F)-MIN('Measure Savings Results'!$F:$F)+MAX('Measure Savings Results'!$I:$I)+K$29-MIN('Measure Savings Results'!$F:$F),2000),OFFSET('Measure Savings Results'!$A$1,6,5,2000),K$29,OFFSET('Measure Savings Results'!$A$1,6,4,2000),"Dx",OFFSET('Measure Savings Results'!$A$1,6,1,2000),$A34,OFFSET('Measure Savings Results'!$A$1,6,2,2000),$B34)/(1/(1-SUM('CE Parameters'!$F$10:$F$11))))/1000 -> 0 | M34: =IFERROR(SUMIFS('Measure Selection & CE Results'!$S:$S,'Measure Selection & CE Results'!$C:$C,$A34,'Measure Selection & CE Results'!$D:$D,$B34,'Measure Selection & CE Results'!$J:$J,M$29)+SUMIFS('Measure Selection & CE Results'!$T:$T,'Measure Selection & CE Results'!$C:$C,$A34,'Measure Selection & CE Results'!$D:$D,$B34,'Measure Selection & CE Results'!$J:$J,M$29)+SUMIFS(INDEX(OFFSET('Program Budget Input'!$A$1,6,1,2000,560),0,MATCH(CONCATENATE(M$29," Sub-Total"),OFFSET('Program Budget Input'!$A$1,6,1,1,560),0)),OFFSET('Program Budget Input'!$A$1,6,1,2000,1),$A34,OFFSET('Program Budget Input'!$A$1,6,2,2000,1),$B34),0) -> 0 | N34: =(SUMIFS(OFFSET('Measure Savings Results'!$A$1,6,15 +MAX('Measure Savings Results'!$F:$F)-MIN('Measure Savings Results'!$F:$F)+MAX('Measure Savings Results'!$I:$I)+M$29-MIN('Measure Savings Results'!$F:$F),2000),OFFSET('Measure Savings Results'!$A$1,6,5,2000),M$29,OFFSET('Measure Savings Results'!$A$1,6,4,2000),"Dx",OFFSET('Measure Savings Results'!$A$1,6,1,2000),$A34,OFFSET('Measure Savings Results'!$A$1,6,2,2000),$B34)/(1/(1-SUM('CE Parameters'!$F$10:$F$11))))/1000 -> 0 | O34: =IFERROR(SUMIFS('Measure Selection & CE Results'!$S:$S,'Measure Selection & CE Results'!$C:$C,$A34,'Measure Selection & CE Results'!$D:$D,$B34)+SUMIFS('Measure Selection & CE Results'!$T:$T,'Measure Selection & CE Results'!$C:$C,$A34,'Measure Selection & CE Results'!$D:$D,$B34)+SUMIFS(INDEX(OFFSET('Program Budget Input'!$A$1,6,1,2000,560),0,MATCH("Total",OFFSET('Program Budget Input'!$A$1,6,1,1,560),0)),OFFSET('Program Budget Input'!$A$1,6,1,2000,1),$A34,OFFSET('Program Budget Input'!$A$1,6,2,2000,1),$B34),0) -> 0 | P34: =(SUMIFS(OFFSET('Measure Savings Results'!$A$1,6,15+2020-MIN('Measure Selection & CE Results'!J:J)+2020 -MIN('Measure Selection & CE Results'!J:J)+ MAX('Measure Savings Results'!I:I),2000),OFFSET('Measure Savings Results'!$A$1,6,4,2000),"Dx",OFFSET('Measure Savings Results'!$A$1,6,1,2000),$A34,OFFSET('Measure Savings Results'!$A$1,6,2,2000),$B34)/(1/(1-SUM('CE Parameters'!$F$10:$F$11))))/1000 -> 0
A35: IESO - ARCHETYPE | B35: Coupon | C35: =IFERROR(SUMIFS('Measure Selection & CE Results'!$S:$S,'Measure Selection & CE Results'!$C:$C,$A35,'Measure Selection & CE Results'!$D:$D,$B35,'Measure Selection & CE Results'!$J:$J,C$29)+SUMIFS('Measure Selection & CE Results'!$T:$T,'Measure Selection & CE Results'!$C:$C,$A35,'Measure Selection & CE Results'!$D:$D,$B35,'Measure Selection & CE Results'!$J:$J,C$29)+SUMIFS(INDEX(OFFSET('Program Budget Input'!$A$1,6,1,2000,560),0,MATCH(CONCATENATE(C$29," Sub-Total"),OFFSET('Program Budget Input'!$A$1,6,1,1,560),0)),OFFSET('Program Budget Input'!$A$1,6,1,2000,1),$A35,OFFSET('Program Budget Input'!$A$1,6,2,2000,1),$B35),0) -> 0 | D35: =(SUMIFS(OFFSET('Measure Savings Results'!$A$1,6,15 +MAX('Measure Savings Results'!$F:$F)-MIN('Measure Savings Results'!$F:$F)+MAX('Measure Savings Results'!$I:$I)+C$29-MIN('Measure Savings Results'!$F:$F),2000),OFFSET('Measure Savings Results'!$A$1,6,5,2000),C$29,OFFSET('Measure Savings Results'!$A$1,6,4,2000),"Dx",OFFSET('Measure Savings Results'!$A$1,6,1,2000),$A35,OFFSET('Measure Savings Results'!$A$1,6,2,2000),$B35)/(1/(1-SUM('CE Parameters'!$F$10:$F$11))))/1000 -> 260.28 | E35: =IFERROR(SUMIFS('Measure Selection & CE Results'!$S:$S,'Measure Selection & CE Results'!$C:$C,$A35,'Measure Selection & CE Results'!$D:$D,$B35,'Measure Selection & CE Results'!$J:$J,E$29)+SUMIFS('Measure Selection & CE Results'!$T:$T,'Measure Selection & CE Results'!$C:$C,$A35,'Measure Selection & CE Results'!$D:$D,$B35,'Measure Selection & CE Results'!$J:$J,E$29)+SUMIFS(INDEX(OFFSET('Program Budget Input'!$A$1,6,1,2000,560),0,MATCH(CONCATENATE(E$29," Sub-Total"),OFFSET('Program Budget Input'!$A$1,6,1,1,560),0)),OFFSET('Program Budget Input'!$A$1,6,1,2000,1),$A35,OFFSET('Program Budget Input'!$A$1,6,2,2000,1),$B35),0) -> 72551.59777 | F35: =(SUMIFS(OFFSET('Measure Savings Results'!$A$1,6,15 +MAX('Measure Savings Results'!$F:$F)-MIN('Measure Savings Results'!$F:$F)+MAX('Measure Savings Results'!$I:$I)+E$29-MIN('Measure Savings Results'!$F:$F),2000),OFFSET('Measure Savings Results'!$A$1,6,5,2000),E$29,OFFSET('Measure Savings Results'!$A$1,6,4,2000),"Dx",OFFSET('Measure Savings Results'!$A$1,6,1,2000),$A35,OFFSET('Measure Savings Results'!$A$1,6,2,2000),$B35)/(1/(1-SUM('CE Parameters'!$F$10:$F$11))))/1000 -> 8.676 | G35: =IFERROR(SUMIFS('Measure Selection & CE Results'!$S:$S,'Measure Selection & CE Results'!$C:$C,$A35,'Measure Selection & CE Results'!$D:$D,$B35,'Measure Selection & CE Results'!$J:$J,G$29)+SUMIFS('Measure Selection & CE Results'!$T:$T,'Measure Selection & CE Results'!$C:$C,$A35,'Measure Selection & CE Results'!$D:$D,$B35,'Measure Selection & CE Results'!$J:$J,G$29)+SUMIFS(INDEX(OFFSET('Program Budget Input'!$A$1,6,1,2000,560),0,MATCH(CONCATENATE(G$29," Sub-Total"),OFFSET('Program Budget Input'!$A$1,6,1,1,560),0)),OFFSET('Program Budget Input'!$A$1,6,1,2000,1),$A35,OFFSET('Program Budget Input'!$A$1,6,2,2000,1),$B35),0) -> 73617.02571 | H35: =(SUMIFS(OFFSET('Measure Savings Results'!$A$1,6,15 +MAX('Measure Savings Results'!$F:$F)-MIN('Measure Savings Results'!$F:$F)+MAX('Measure Savings Results'!$I:$I)+G$29-MIN('Measure Savings Results'!$F:$F),2000),OFFSET('Measure Savings Results'!$A$1,6,5,2000),G$29,OFFSET('Measure Savings Results'!$A$1,6,4,2000),"Dx",OFFSET('Measure Savings Results'!$A$1,6,1,2000),$A35,OFFSET('Measure Savings Results'!$A$1,6,2,2000),$B35)/(1/(1-SUM('CE Parameters'!$F$10:$F$11))))/1000 -> 8.676 | I35: =IFERROR(SUMIFS('Measure Selection & CE Results'!$S:$S,'Measure Selection & CE Results'!$C:$C,$A35,'Measure Selection & CE Results'!$D:$D,$B35,'Measure Selection & CE Results'!$J:$J,I$29)+SUMIFS('Measure Selection & CE Results'!$T:$T,'Measure Selection & CE Results'!$C:$C,$A35,'Measure Selection & CE Results'!$D:$D,$B35,'Measure Selection & CE Results'!$J:$J,I$29)+SUMIFS(INDEX(OFFSET('Program Budget Input'!$A$1,6,1,2000,560),0,MATCH(CONCATENATE(I$29," Sub-Total"),OFFSET('Program Budget Input'!$A$1,6,1,1,560),0)),OFFSET('Program Budget Input'!$A$1,6,1,2000,1),$A35,OFFSET('Program Budget Input'!$A$1,6,2,2000,1),$B35),0) -> 68359.6076 | J35: =(SUMIFS(OFFSET('Measure Savings Results'!$A$1,6,15 +MAX('Measure Savings Results'!$F:$F)-MIN('Measure Savings Results'!$F:$F)+MAX('Measure Savings Results'!$I:$I)+I$29-MIN('Measure Savings Results'!$F:$F),2000),OFFSET('Measure Savings Results'!$A$1,6,5,2000),I$29,OFFSET('Measure Savings Results'!$A$1,6,4,2000),"Dx",OFFSET('Measure Savings Results'!$A$1,6,1,2000),$A35,OFFSET('Measure Savings Results'!$A$1,6,2,2000),$B35)/(1/(1-SUM('CE Parameters'!$F$10:$F$11))))/1000 -> 8.676 | K35: =IFERROR(SUMIFS('Measure Selection & CE Results'!$S:$S,'Measure Selection & CE Results'!$C:$C,$A35,'Measure Selection & CE Results'!$D:$D,$B35,'Measure Selection & CE Results'!$J:$J,K$29)+SUMIFS('Measure Selection & CE Results'!$T:$T,'Measure Selection & CE Results'!$C:$C,$A35,'Measure Selection & CE Results'!$D:$D,$B35,'Measure Selection & CE Results'!$J:$J,K$29)+SUMIFS(INDEX(OFFSET('Program Budget Input'!$A$1,6,1,2000,560),0,MATCH(CONCATENATE(K$29," Sub-Total"),OFFSET('Program Budget Input'!$A$1,6,1,1,560),0)),OFFSET('Program Budget Input'!$A$1,6,1,2000,1),$A35,OFFSET('Program Budget Input'!$A$1,6,2,2000,1),$B35),0) -> 69511.97446 | L35: =(SUMIFS(OFFSET('Measure Savings Results'!$A$1,6,15 +MAX('Measure Savings Results'!$F:$F)-MIN('Measure Savings Results'!$F:$F)+MAX('Measure Savings Results'!$I:$I)+K$29-MIN('Measure Savings Results'!$F:$F),2000),OFFSET('Measure Savings Results'!$A$1,6,5,2000),K$29,OFFSET('Measure Savings Results'!$A$1,6,4,2000),"Dx",OFFSET('Measure Savings Results'!$A$1,6,1,2000),$A35,OFFSET('Measure Savings Results'!$A$1,6,2,2000),$B35)/(1/(1-SUM('CE Parameters'!$F$10:$F$11))))/1000 -> 8.676 | M35: =IFERROR(SUMIFS('Measure Selection & CE Results'!$S:$S,'Measure Selection & CE Results'!$C:$C,$A35,'Measure Selection & CE Results'!$D:$D,$B35,'Measure Selection & CE Results'!$J:$J,M$29)+SUMIFS('Measure Selection & CE Results'!$T:$T,'Measure Selection & CE Results'!$C:$C,$A35,'Measure Selection & CE Results'!$D:$D,$B35,'Measure Selection & CE Results'!$J:$J,M$29)+SUMIFS(INDEX(OFFSET('Program Budget Input'!$A$1,6,1,2000,560),0,MATCH(CONCATENATE(M$29," Sub-Total"),OFFSET('Program Budget Input'!$A$1,6,1,1,560),0)),OFFSET('Program Budget Input'!$A$1,6,1,2000,1),$A35,OFFSET('Program Budget Input'!$A$1,6,2,2000,1),$B35),0) -> 69511.97446 | N35: =(SUMIFS(OFFSET('Measure Savings Results'!$A$1,6,15 +MAX('Measure Savings Results'!$F:$F)-MIN('Measure Savings Results'!$F:$F)+MAX('Measure Savings Results'!$I:$I)+M$29-MIN('Measure Savings Results'!$F:$F),2000),OFFSET('Measure Savings Results'!$A$1,6,5,2000),M$29,OFFSET('Measure Savings Results'!$A$1,6,4,2000),"Dx",OFFSET('Measure Savings Results'!$A$1,6,1,2000),$A35,OFFSET('Measure Savings Results'!$A$1,6,2,2000),$B35)/(1/(1-SUM('CE Parameters'!$F$10:$F$11))))/1000 -> 8.676 | O35: =IFERROR(SUMIFS('Measure Selection & CE Results'!$S:$S,'Measure Selection & CE Results'!$C:$C,$A35,'Measure Selection & CE Results'!$D:$D,$B35)+SUMIFS('Measure Selection & CE Results'!$T:$T,'Measure Selection & CE Results'!$C:$C,$A35,'Measure Selection & CE Results'!$D:$D,$B35)+SUMIFS(INDEX(OFFSET('Program Budget Input'!$A$1,6,1,2000,560),0,MATCH("Total",OFFSET('Program Budget Input'!$A$1,6,1,1,560),0)),OFFSET('Program Budget Input'!$A$1,6,1,2000,1),$A35,OFFSET('Program Budget Input'!$A$1,6,2,2000,1),$B35),0) -> 353552.18 | P35: =(SUMIFS(OFFSET('Measure Savings Results'!$A$1,6,15+2020-MIN('Measure Selection & CE Results'!J:J)+2020 -MIN('Measure Selection & CE Results'!J:J)+ MAX('Measure Savings Results'!I:I),2000),OFFSET('Measure Savings Results'!$A$1,6,4,2000),"Dx",OFFSET('Measure Savings Results'!$A$1,6,1,2000),$A35,OFFSET('Measure Savings Results'!$A$1,6,2,2000),$B35)/(1/(1-SUM('CE Parameters'!$F$10:$F$11))))/1000 -> 303.66
A36: IESO - ARCHETYPE | B36: New Construction | C36: =IFERROR(SUMIFS('Measure Selection & CE Results'!$S:$S,'Measure Selection & CE Results'!$C:$C,$A36,'Measure Selection & CE Results'!$D:$D,$B36,'Measure Selection & CE Results'!$J:$J,C$29)+SUMIFS('Measure Selection & CE Results'!$T:$T,'Measure Selection & CE Results'!$C:$C,$A36,'Measure Selection & CE Results'!$D:$D,$B36,'Measure Selection & CE Results'!$J:$J,C$29)+SUMIFS(INDEX(OFFSET('Program Budget Input'!$A$1,6,1,2000,560),0,MATCH(CONCATENATE(C$29," Sub-Total"),OFFSET('Program Budget Input'!$A$1,6,1,1,560),0)),OFFSET('Program Budget Input'!$A$1,6,1,2000,1),$A36,OFFSET('Program Budget Input'!$A$1,6,2,2000,1),$B36),0) -> 0 | D36: =(SUMIFS(OFFSET('Measure Savings Results'!$A$1,6,15 +MAX('Measure Savings Results'!$F:$F)-MIN('Measure Savings Results'!$F:$F)+MAX('Measure Savings Results'!$I:$I)+C$29-MIN('Measure Savings Results'!$F:$F),2000),OFFSET('Measure Savings Results'!$A$1,6,5,2000),C$29,OFFSET('Measure Savings Results'!$A$1,6,4,2000),"Dx",OFFSET('Measure Savings Results'!$A$1,6,1,2000),$A36,OFFSET('Measure Savings Results'!$A$1,6,2,2000),$B36)/(1/(1-SUM('CE Parameters'!$F$10:$F$11))))/1000 -> 0 | E36: =IFERROR(SUMIFS('Measure Selection & CE Results'!$S:$S,'Measure Selection & CE Results'!$C:$C,$A36,'Measure Selection & CE Results'!$D:$D,$B36,'Measure Selection & CE Results'!$J:$J,E$29)+SUMIFS('Measure Selection & CE Results'!$T:$T,'Measure Selection & CE Results'!$C:$C,$A36,'Measure Selection & CE Results'!$D:$D,$B36,'Measure Selection & CE Results'!$J:$J,E$29)+SUMIFS(INDEX(OFFSET('Program Budget Input'!$A$1,6,1,2000,560),0,MATCH(CONCATENATE(E$29," Sub-Total"),OFFSET('Program Budget Input'!$A$1,6,1,1,560),0)),OFFSET('Program Budget Input'!$A$1,6,1,2000,1),$A36,OFFSET('Program Budget Input'!$A$1,6,2,2000,1),$B36),0) -> 0 | F36: =(SUMIFS(OFFSET('Measure Savings Results'!$A$1,6,15 +MAX('Measure Savings Results'!$F:$F)-MIN('Measure Savings Results'!$F:$F)+MAX('Measure Savings Results'!$I:$I)+E$29-MIN('Measure Savings Results'!$F:$F),2000),OFFSET('Measure Savings Results'!$A$1,6,5,2000),E$29,OFFSET('Measure Savings Results'!$A$1,6,4,2000),"Dx",OFFSET('Measure Savings Results'!$A$1,6,1,2000),$A36,OFFSET('Measure Savings Results'!$A$1,6,2,2000),$B36)/(1/(1-SUM('CE Parameters'!$F$10:$F$11))))/1000 -> 0 | G36: =IFERROR(SUMIFS('Measure Selection & CE Results'!$S:$S,'Measure Selection & CE Results'!$C:$C,$A36,'Measure Selection & CE Results'!$D:$D,$B36,'Measure Selection & CE Results'!$J:$J,G$29)+SUMIFS('Measure Selection & CE Results'!$T:$T,'Measure Selection & CE Results'!$C:$C,$A36,'Measure Selection & CE Results'!$D:$D,$B36,'Measure Selection & CE Results'!$J:$J,G$29)+SUMIFS(INDEX(OFFSET('Program Budget Input'!$A$1,6,1,2000,560),0,MATCH(CONCATENATE(G$29," Sub-Total"),OFFSET('Program Budget Input'!$A$1,6,1,1,560),0)),OFFSET('Program Budget Input'!$A$1,6,1,2000,1),$A36,OFFSET('Program Budget Input'!$A$1,6,2,2000,1),$B36),0) -> 0 | H36: =(SUMIFS(OFFSET('Measure Savings Results'!$A$1,6,15 +MAX('Measure Savings Results'!$F:$F)-MIN('Measure Savings Results'!$F:$F)+MAX('Measure Savings Results'!$I:$I)+G$29-MIN('Measure Savings Results'!$F:$F),2000),OFFSET('Measure Savings Results'!$A$1,6,5,2000),G$29,OFFSET('Measure Savings Results'!$A$1,6,4,2000),"Dx",OFFSET('Measure Savings Results'!$A$1,6,1,2000),$A36,OFFSET('Measure Savings Results'!$A$1,6,2,2000),$B36)/(1/(1-SUM('CE Parameters'!$F$10:$F$11))))/1000 -> 0 | I36: =IFERROR(SUMIFS('Measure Selection & CE Results'!$S:$S,'Measure Selection & CE Results'!$C:$C,$A36,'Measure Selection & CE Results'!$D:$D,$B36,'Measure Selection & CE Results'!$J:$J,I$29)+SUMIFS('Measure Selection & CE Results'!$T:$T,'Measure Selection & CE Results'!$C:$C,$A36,'Measure Selection & CE Results'!$D:$D,$B36,'Measure Selection & CE Results'!$J:$J,I$29)+SUMIFS(INDEX(OFFSET('Program Budget Input'!$A$1,6,1,2000,560),0,MATCH(CONCATENATE(I$29," Sub-Total"),OFFSET('Program Budget Input'!$A$1,6,1,1,560),0)),OFFSET('Program Budget Input'!$A$1,6,1,2000,1),$A36,OFFSET('Program Budget Input'!$A$1,6,2,2000,1),$B36),0) -> 0 | J36: =(SUMIFS(OFFSET('Measure Savings Results'!$A$1,6,15 +MAX('Measure Savings Results'!$F:$F)-MIN('Measure Savings Results'!$F:$F)+MAX('Measure Savings Results'!$I:$I)+I$29-MIN('Measure Savings Results'!$F:$F),2000),OFFSET('Measure Savings Results'!$A$1,6,5,2000),I$29,OFFSET('Measure Savings Results'!$A$1,6,4,2000),"Dx",OFFSET('Measure Savings Results'!$A$1,6,1,2000),$A36,OFFSET('Measure Savings Results'!$A$1,6,2,2000),$B36)/(1/(1-SUM('CE Parameters'!$F$10:$F$11))))/1000 -> 0 | K36: =IFERROR(SUMIFS('Measure Selection & CE Results'!$S:$S,'Measure Selection & CE Results'!$C:$C,$A36,'Measure Selection & CE Results'!$D:$D,$B36,'Measure Selection & CE Results'!$J:$J,K$29)+SUMIFS('Measure Selection & CE Results'!$T:$T,'Measure Selection & CE Results'!$C:$C,$A36,'Measure Selection & CE Results'!$D:$D,$B36,'Measure Selection & CE Results'!$J:$J,K$29)+SUMIFS(INDEX(OFFSET('Program Budget Input'!$A$1,6,1,2000,560),0,MATCH(CONCATENATE(K$29," Sub-Total"),OFFSET('Program Budget Input'!$A$1,6,1,1,560),0)),OFFSET('Program Budget Input'!$A$1,6,1,2000,1),$A36,OFFSET('Program Budget Input'!$A$1,6,2,2000,1),$B36),0) -> 0 | L36: =(SUMIFS(OFFSET('Measure Savings Results'!$A$1,6,15 +MAX('Measure Savings Results'!$F:$F)-MIN('Measure Savings Results'!$F:$F)+MAX('Measure Savings Results'!$I:$I)+K$29-MIN('Measure Savings Results'!$F:$F),2000),OFFSET('Measure Savings Results'!$A$1,6,5,2000),K$29,OFFSET('Measure Savings Results'!$A$1,6,4,2000),"Dx",OFFSET('Measure Savings Results'!$A$1,6,1,2000),$A36,OFFSET('Measure Savings Results'!$A$1,6,2,2000),$B36)/(1/(1-SUM('CE Parameters'!$F$10:$F$11))))/1000 -> 0 | M36: =IFERROR(SUMIFS('Measure Selection & CE Results'!$S:$S,'Measure Selection & CE Results'!$C:$C,$A36,'Measure Selection & CE Results'!$D:$D,$B36,'Measure Selection & CE Results'!$J:$J,M$29)+SUMIFS('Measure Selection & CE Results'!$T:$T,'Measure Selection & CE Results'!$C:$C,$A36,'Measure Selection & CE Results'!$D:$D,$B36,'Measure Selection & CE Results'!$J:$J,M$29)+SUMIFS(INDEX(OFFSET('Program Budget Input'!$A$1,6,1,2000,560),0,MATCH(CONCATENATE(M$29," Sub-Total"),OFFSET('Program Budget Input'!$A$1,6,1,1,560),0)),OFFSET('Program Budget Input'!$A$1,6,1,2000,1),$A36,OFFSET('Program Budget Input'!$A$1,6,2,2000,1),$B36),0) -> 0 | N36: =(SUMIFS(OFFSET('Measure Savings Results'!$A$1,6,15 +MAX('Measure Savings Results'!$F:$F)-MIN('Measure Savings Results'!$F:$F)+MAX('Measure Savings Results'!$I:$I)+M$29-MIN('Measure Savings Results'!$F:$F),2000),OFFSET('Measure Savings Results'!$A$1,6,5,2000),M$29,OFFSET('Measure Savings Results'!$A$1,6,4,2000),"Dx",OFFSET('Measure Savings Results'!$A$1,6,1,2000),$A36,OFFSET('Measure Savings Results'!$A$1,6,2,2000),$B36)/(1/(1-SUM('CE Parameters'!$F$10:$F$11))))/1000 -> 0 | O36: =IFERROR(SUMIFS('Measure Selection & CE Results'!$S:$S,'Measure Selection & CE Results'!$C:$C,$A36,'Measure Selection & CE Results'!$D:$D,$B36)+SUMIFS('Measure Selection & CE Results'!$T:$T,'Measure Selection & CE Results'!$C:$C,$A36,'Measure Selection & CE Results'!$D:$D,$B36)+SUMIFS(INDEX(OFFSET('Program Budget Input'!$A$1,6,1,2000,560),0,MATCH("Total",OFFSET('Program Budget Input'!$A$1,6,1,1,560),0)),OFFSET('Program Budget Input'!$A$1,6,1,2000,1),$A36,OFFSET('Program Budget Input'!$A$1,6,2,2000,1),$B36),0) -> 0 | P36: =(SUMIFS(OFFSET('Measure Savings Results'!$A$1,6,15+2020-MIN('Measure Selection & CE Results'!J:J)+2020 -MIN('Measure Selection & CE Results'!J:J)+ MAX('Measure Savings Results'!I:I),2000),OFFSET('Measure Savings Results'!$A$1,6,4,2000),"Dx",OFFSET('Measure Savings Results'!$A$1,6,1,2000),$A36,OFFSET('Measure Savings Results'!$A$1,6,2,2000),$B36)/(1/(1-SUM('CE Parameters'!$F$10:$F$11))))/1000 -> 0
A37: IESO - ARCHETYPE | B37: Home Assistance Program | C37: =IFERROR(SUMIFS('Measure Selection & CE Results'!$S:$S,'Measure Selection & CE Results'!$C:$C,$A37,'Measure Selection & CE Results'!$D:$D,$B37,'Measure Selection & CE Results'!$J:$J,C$29)+SUMIFS('Measure Selection & CE Results'!$T:$T,'Measure Selection & CE Results'!$C:$C,$A37,'Measure Selection & CE Results'!$D:$D,$B37,'Measure Selection & CE Results'!$J:$J,C$29)+SUMIFS(INDEX(OFFSET('Program Budget Input'!$A$1,6,1,2000,560),0,MATCH(CONCATENATE(C$29," Sub-Total"),OFFSET('Program Budget Input'!$A$1,6,1,1,560),0)),OFFSET('Program Budget Input'!$A$1,6,1,2000,1),$A37,OFFSET('Program Budget Input'!$A$1,6,2,2000,1),$B37),0) -> 0 | D37: =(SUMIFS(OFFSET('Measure Savings Results'!$A$1,6,15 +MAX('Measure Savings Results'!$F:$F)-MIN('Measure Savings Results'!$F:$F)+MAX('Measure Savings Results'!$I:$I)+C$29-MIN('Measure Savings Results'!$F:$F),2000),OFFSET('Measure Savings Results'!$A$1,6,5,2000),C$29,OFFSET('Measure Savings Results'!$A$1,6,4,2000),"Dx",OFFSET('Measure Savings Results'!$A$1,6,1,2000),$A37,OFFSET('Measure Savings Results'!$A$1,6,2,2000),$B37)/(1/(1-SUM('CE Parameters'!$F$10:$F$11))))/1000 -> 0 | E37: =IFERROR(SUMIFS('Measure Selection & CE Results'!$S:$S,'Measure Selection & CE Results'!$C:$C,$A37,'Measure Selection & CE Results'!$D:$D,$B37,'Measure Selection & CE Results'!$J:$J,E$29)+SUMIFS('Measure Selection & CE Results'!$T:$T,'Measure Selection & CE Results'!$C:$C,$A37,'Measure Selection & CE Results'!$D:$D,$B37,'Measure Selection & CE Results'!$J:$J,E$29)+SUMIFS(INDEX(OFFSET('Program Budget Input'!$A$1,6,1,2000,560),0,MATCH(CONCATENATE(E$29," Sub-Total"),OFFSET('Program Budget Input'!$A$1,6,1,1,560),0)),OFFSET('Program Budget Input'!$A$1,6,1,2000,1),$A37,OFFSET('Program Budget Input'!$A$1,6,2,2000,1),$B37),0) -> 107158.2472 | F37: =(SUMIFS(OFFSET('Measure Savings Results'!$A$1,6,15 +MAX('Measure Savings Results'!$F:$F)-MIN('Measure Savings Results'!$F:$F)+MAX('Measure Savings Results'!$I:$I)+E$29-MIN('Measure Savings Results'!$F:$F),2000),OFFSET('Measure Savings Results'!$A$1,6,5,2000),E$29,OFFSET('Measure Savings Results'!$A$1,6,4,2000),"Dx",OFFSET('Measure Savings Results'!$A$1,6,1,2000),$A37,OFFSET('Measure Savings Results'!$A$1,6,2,2000),$B37)/(1/(1-SUM('CE Parameters'!$F$10:$F$11))))/1000 -> 31.37580333 | G37: =IFERROR(SUMIFS('Measure Selection & CE Results'!$S:$S,'Measure Selection & CE Results'!$C:$C,$A37,'Measure Selection & CE Results'!$D:$D,$B37,'Measure Selection & CE Results'!$J:$J,G$29)+SUMIFS('Measure Selection & CE Results'!$T:$T,'Measure Selection & CE Results'!$C:$C,$A37,'Measure Selection & CE Results'!$D:$D,$B37,'Measure Selection & CE Results'!$J:$J,G$29)+SUMIFS(INDEX(OFFSET('Program Budget Input'!$A$1,6,1,2000,560),0,MATCH(CONCATENATE(G$29," Sub-Total"),OFFSET('Program Budget Input'!$A$1,6,1,1,560),0)),OFFSET('Program Budget Input'!$A$1,6,1,2000,1),$A37,OFFSET('Program Budget Input'!$A$1,6,2,2000,1),$B37),0) -> 108490.0321 | H37: =(SUMIFS(OFFSET('Measure Savings Results'!$A$1,6,15 +MAX('Measure Savings Results'!$F:$F)-MIN('Measure Savings Results'!$F:$F)+MAX('Measure Savings Results'!$I:$I)+G$29-MIN('Measure Savings Results'!$F:$F),2000),OFFSET('Measure Savings Results'!$A$1,6,5,2000),G$29,OFFSET('Measure Savings Results'!$A$1,6,4,2000),"Dx",OFFSET('Measure Savings Results'!$A$1,6,1,2000),$A37,OFFSET('Measure Savings Results'!$A$1,6,2,2000),$B37)/(1/(1-SUM('CE Parameters'!$F$10:$F$11))))/1000 -> 31.37580333 | I37: =IFERROR(SUMIFS('Measure Selection & CE Results'!$S:$S,'Measure Selection & CE Results'!$C:$C,$A37,'Measure Selection & CE Results'!$D:$D,$B37,'Measure Selection & CE Results'!$J:$J,I$29)+SUMIFS('Measure Selection & CE Results'!$T:$T,'Measure Selection & CE Results'!$C:$C,$A37,'Measure Selection & CE Results'!$D:$D,$B37,'Measure Selection & CE Results'!$J:$J,I$29)+SUMIFS(INDEX(OFFSET('Program Budget Input'!$A$1,6,1,2000,560),0,MATCH(CONCATENATE(I$29," Sub-Total"),OFFSET('Program Budget Input'!$A$1,6,1,1,560),0)),OFFSET('Program Budget Input'!$A$1,6,1,2000,1),$A37,OFFSET('Program Budget Input'!$A$1,6,2,2000,1),$B37),0) -> 101918.2595 | J37: =(SUMIFS(OFFSET('Measure Savings Results'!$A$1,6,15 +MAX('Measure Savings Results'!$F:$F)-MIN('Measure Savings Results'!$F:$F)+MAX('Measure Savings Results'!$I:$I)+I$29-MIN('Measure Savings Results'!$F:$F),2000),OFFSET('Measure Savings Results'!$A$1,6,5,2000),I$29,OFFSET('Measure Savings Results'!$A$1,6,4,2000),"Dx",OFFSET('Measure Savings Results'!$A$1,6,1,2000),$A37,OFFSET('Measure Savings Results'!$A$1,6,2,2000),$B37)/(1/(1-SUM('CE Parameters'!$F$10:$F$11))))/1000 -> 31.37580333 | K37: =IFERROR(SUMIFS('Measure Selection & CE Results'!$S:$S,'Measure Selection & CE Results'!$C:$C,$A37,'Measure Selection & CE Results'!$D:$D,$B37,'Measure Selection & CE Results'!$J:$J,K$29)+SUMIFS('Measure Selection & CE Results'!$T:$T,'Measure Selection & CE Results'!$C:$C,$A37,'Measure Selection & CE Results'!$D:$D,$B37,'Measure Selection & CE Results'!$J:$J,K$29)+SUMIFS(INDEX(OFFSET('Program Budget Input'!$A$1,6,1,2000,560),0,MATCH(CONCATENATE(K$29," Sub-Total"),OFFSET('Program Budget Input'!$A$1,6,1,1,560),0)),OFFSET('Program Budget Input'!$A$1,6,1,2000,1),$A37,OFFSET('Program Budget Input'!$A$1,6,2,2000,1),$B37),0) -> 103358.7181 | L37: =(SUMIFS(OFFSET('Measure Savings Results'!$A$1,6,15 +MAX('Measure Savings Results'!$F:$F)-MIN('Measure Savings Results'!$F:$F)+MAX('Measure Savings Results'!$I:$I)+K$29-MIN('Measure Savings Results'!$F:$F),2000),OFFSET('Measure Savings Results'!$A$1,6,5,2000),K$29,OFFSET('Measure Savings Results'!$A$1,6,4,2000),"Dx",OFFSET('Measure Savings Results'!$A$1,6,1,2000),$A37,OFFSET('Measure Savings Results'!$A$1,6,2,2000),$B37)/(1/(1-SUM('CE Parameters'!$F$10:$F$11))))/1000 -> 31.37580333 | M37: =IFERROR(SUMIFS('Measure Selection & CE Results'!$S:$S,'Measure Selection & CE Results'!$C:$C,$A37,'Measure Selection & CE Results'!$D:$D,$B37,'Measure Selection & CE Results'!$J:$J,M$29)+SUMIFS('Measure Selection & CE Results'!$T:$T,'Measure Selection & CE Results'!$C:$C,$A37,'Measure Selection & CE Results'!$D:$D,$B37,'Measure Selection & CE Results'!$J:$J,M$29)+SUMIFS(INDEX(OFFSET('Program Budget Input'!$A$1,6,1,2000,560),0,MATCH(CONCATENATE(M$29," Sub-Total"),OFFSET('Program Budget Input'!$A$1,6,1,1,560),0)),OFFSET('Program Budget Input'!$A$1,6,1,2000,1),$A37,OFFSET('Program Budget Input'!$A$1,6,2,2000,1),$B37),0) -> 103358.7181 | N37: =(SUMIFS(OFFSET('Measure Savings Results'!$A$1,6,15 +MAX('Measure Savings Results'!$F:$F)-MIN('Measure Savings Results'!$F:$F)+MAX('Measure Savings Results'!$I:$I)+M$29-MIN('Measure Savings Results'!$F:$F),2000),OFFSET('Measure Savings Results'!$A$1,6,5,2000),M$29,OFFSET('Measure Savings Results'!$A$1,6,4,2000),"Dx",OFFSET('Measure Savings Results'!$A$1,6,1,2000),$A37,OFFSET('Measure Savings Results'!$A$1,6,2,2000),$B37)/(1/(1-SUM('CE Parameters'!$F$10:$F$11))))/1000 -> 31.37580333 | O37: =IFERROR(SUMIFS('Measure Selection & CE Results'!$S:$S,'Measure Selection & CE Results'!$C:$C,$A37,'Measure Selection & CE Results'!$D:$D,$B37)+SUMIFS('Measure Selection & CE Results'!$T:$T,'Measure Selection & CE Results'!$C:$C,$A37,'Measure Selection & CE Results'!$D:$D,$B37)+SUMIFS(INDEX(OFFSET('Program Budget Input'!$A$1,6,1,2000,560),0,MATCH("Total",OFFSET('Program Budget Input'!$A$1,6,1,1,560),0)),OFFSET('Program Budget Input'!$A$1,6,1,2000,1),$A37,OFFSET('Program Budget Input'!$A$1,6,2,2000,1),$B37),0) -> 524283.975 | P37: =(SUMIFS(OFFSET('Measure Savings Results'!$A$1,6,15+2020-MIN('Measure Selection & CE Results'!J:J)+2020 -MIN('Measure Selection & CE Results'!J:J)+ MAX('Measure Savings Results'!I:I),2000),OFFSET('Measure Savings Results'!$A$1,6,4,2000),"Dx",OFFSET('Measure Savings Results'!$A$1,6,1,2000),$A37,OFFSET('Measure Savings Results'!$A$1,6,2,2000),$B37)/(1/(1-SUM('CE Parameters'!$F$10:$F$11))))/1000 -> 156.8790167
A38: IESO - ARCHETYPE | B38: Direct Install Lighting | C38: =IFERROR(SUMIFS('Measure Selection & CE Results'!$S:$S,'Measure Selection & CE Results'!$C:$C,$A38,'Measure Selection & CE Results'!$D:$D,$B38,'Measure Selection & CE Results'!$J:$J,C$29)+SUMIFS('Measure Selection & CE Results'!$T:$T,'Measure Selection & CE Results'!$C:$C,$A38,'Measure Selection & CE Results'!$D:$D,$B38,'Measure Selection & CE Results'!$J:$J,C$29)+SUMIFS(INDEX(OFFSET('Program Budget Input'!$A$1,6,1,2000,560),0,MATCH(CONCATENATE(C$29," Sub-Total"),OFFSET('Program Budget Input'!$A$1,6,1,1,560),0)),OFFSET('Program Budget Input'!$A$1,6,1,2000,1),$A38,OFFSET('Program Budget Input'!$A$1,6,2,2000,1),$B38),0) -> 0 | D38: =(SUMIFS(OFFSET('Measure Savings Results'!$A$1,6,15 +MAX('Measure Savings Results'!$F:$F)-MIN('Measure Savings Results'!$F:$F)+MAX('Measure Savings Results'!$I:$I)+C$29-MIN('Measure Savings Results'!$F:$F),2000),OFFSET('Measure Savings Results'!$A$1,6,5,2000),C$29,OFFSET('Measure Savings Results'!$A$1,6,4,2000),"Dx",OFFSET('Measure Savings Results'!$A$1,6,1,2000),$A38,OFFSET('Measure Savings Results'!$A$1,6,2,2000),$B38)/(1/(1-SUM('CE Parameters'!$F$10:$F$11))))/1000 -> 0 | E38: =IFERROR(SUMIFS('Measure Selection & CE Results'!$S:$S,'Measure Selection & CE Results'!$C:$C,$A38,'Measure Selection & CE Results'!$D:$D,$B38,'Measure Selection & CE Results'!$J:$J,E$29)+SUMIFS('Measure Selection & CE Results'!$T:$T,'Measure Selection & CE Results'!$C:$C,$A38,'Measure Selection & CE Results'!$D:$D,$B38,'Measure Selection & CE Results'!$J:$J,E$29)+SUMIFS(INDEX(OFFSET('Program Budget Input'!$A$1,6,1,2000,560),0,MATCH(CONCATENATE(E$29," Sub-Total"),OFFSET('Program Budget Input'!$A$1,6,1,1,560),0)),OFFSET('Program Budget Input'!$A$1,6,1,2000,1),$A38,OFFSET('Program Budget Input'!$A$1,6,2,2000,1),$B38),0) -> 224697.1658 | F38: =(SUMIFS(OFFSET('Measure Savings Results'!$A$1,6,15 +MAX('Measure Savings Results'!$F:$F)-MIN('Measure Savings Results'!$F:$F)+MAX('Measure Savings Results'!$I:$I)+E$29-MIN('Measure Savings Results'!$F:$F),2000),OFFSET('Measure Savings Results'!$A$1,6,5,2000),E$29,OFFSET('Measure Savings Results'!$A$1,6,4,2000),"Dx",OFFSET('Measure Savings Results'!$A$1,6,1,2000),$A38,OFFSET('Measure Savings Results'!$A$1,6,2,2000),$B38)/(1/(1-SUM('CE Parameters'!$F$10:$F$11))))/1000 -> 396.210188 | G38: =IFERROR(SUMIFS('Measure Selection & CE Results'!$S:$S,'Measure Selection & CE Results'!$C:$C,$A38,'Measure Selection & CE Results'!$D:$D,$B38,'Measure Selection & CE Results'!$J:$J,G$29)+SUMIFS('Measure Selection & CE Results'!$T:$T,'Measure Selection & CE Results'!$C:$C,$A38,'Measure Selection & CE Results'!$D:$D,$B38,'Measure Selection & CE Results'!$J:$J,G$29)+SUMIFS(INDEX(OFFSET('Program Budget Input'!$A$1,6,1,2000,560),0,MATCH(CONCATENATE(G$29," Sub-Total"),OFFSET('Program Budget Input'!$A$1,6,1,1,560),0)),OFFSET('Program Budget Input'!$A$1,6,1,2000,1),$A38,OFFSET('Program Budget Input'!$A$1,6,2,2000,1),$B38),0) -> 241352.5937 | H38: =(SUMIFS(OFFSET('Measure Savings Results'!$A$1,6,15 +MAX('Measure Savings Results'!$F:$F)-MIN('Measure Savings Results'!$F:$F)+MAX('Measure Savings Results'!$I:$I)+G$29-MIN('Measure Savings Results'!$F:$F),2000),OFFSET('Measure Savings Results'!$A$1,6,5,2000),G$29,OFFSET('Measure Savings Results'!$A$1,6,4,2000),"Dx",OFFSET('Measure Savings Results'!$A$1,6,1,2000),$A38,OFFSET('Measure Savings Results'!$A$1,6,2,2000),$B38)/(1/(1-SUM('CE Parameters'!$F$10:$F$11))))/1000 -> 432.229296 | I38: =IFERROR(SUMIFS('Measure Selection & CE Results'!$S:$S,'Measure Selection & CE Results'!$C:$C,$A38,'Measure Selection & CE Results'!$D:$D,$B38,'Measure Selection & CE Results'!$J:$J,I$29)+SUMIFS('Measure Selection & CE Results'!$T:$T,'Measure Selection & CE Results'!$C:$C,$A38,'Measure Selection & CE Results'!$D:$D,$B38,'Measure Selection & CE Results'!$J:$J,I$29)+SUMIFS(INDEX(OFFSET('Program Budget Input'!$A$1,6,1,2000,560),0,MATCH(CONCATENATE(I$29," Sub-Total"),OFFSET('Program Budget Input'!$A$1,6,1,1,560),0)),OFFSET('Program Budget Input'!$A$1,6,1,2000,1),$A38,OFFSET('Program Budget Input'!$A$1,6,2,2000,1),$B38),0) -> 251685.1756 | J38: =(SUMIFS(OFFSET('Measure Savings Results'!$A$1,6,15 +MAX('Measure Savings Results'!$F:$F)-MIN('Measure Savings Results'!$F:$F)+MAX('Measure Savings Results'!$I:$I)+I$29-MIN('Measure Savings Results'!$F:$F),2000),OFFSET('Measure Savings Results'!$A$1,6,5,2000),I$29,OFFSET('Measure Savings Results'!$A$1,6,4,2000),"Dx",OFFSET('Measure Savings Results'!$A$1,6,1,2000),$A38,OFFSET('Measure Savings Results'!$A$1,6,2,2000),$B38)/(1/(1-SUM('CE Parameters'!$F$10:$F$11))))/1000 -> 468.248404 | K38: =IFERROR(SUMIFS('Measure Selection & CE Results'!$S:$S,'Measure Selection & CE Results'!$C:$C,$A38,'Measure Selection & CE Results'!$D:$D,$B38,'Measure Selection & CE Results'!$J:$J,K$29)+SUMIFS('Measure Selection & CE Results'!$T:$T,'Measure Selection & CE Results'!$C:$C,$A38,'Measure Selection & CE Results'!$D:$D,$B38,'Measure Selection & CE Results'!$J:$J,K$29)+SUMIFS(INDEX(OFFSET('Program Budget Input'!$A$1,6,1,2000,560),0,MATCH(CONCATENATE(K$29," Sub-Total"),OFFSET('Program Budget Input'!$A$1,6,1,1,560),0)),OFFSET('Program Budget Input'!$A$1,6,1,2000,1),$A38,OFFSET('Program Budget Input'!$A$1,6,2,2000,1),$B38),0) -> 268427.5425 | L38: =(SUMIFS(OFFSET('Measure Savings Results'!$A$1,6,15 +MAX('Measure Savings Results'!$F:$F)-MIN('Measure Savings Results'!$F:$F)+MAX('Measure Savings Results'!$I:$I)+K$29-MIN('Measure Savings Results'!$F:$F),2000),OFFSET('Measure Savings Results'!$A$1,6,5,2000),K$29,OFFSET('Measure Savings Results'!$A$1,6,4,2000),"Dx",OFFSET('Measure Savings Results'!$A$1,6,1,2000),$A38,OFFSET('Measure Savings Results'!$A$1,6,2,2000),$B38)/(1/(1-SUM('CE Parameters'!$F$10:$F$11))))/1000 -> 504.267512 | M38: =IFERROR(SUMIFS('Measure Selection & CE Results'!$S:$S,'Measure Selection & CE Results'!$C:$C,$A38,'Measure Selection & CE Results'!$D:$D,$B38,'Measure Selection & CE Results'!$J:$J,M$29)+SUMIFS('Measure Selection & CE Results'!$T:$T,'Measure Selection & CE Results'!$C:$C,$A38,'Measure Selection & CE Results'!$D:$D,$B38,'Measure Selection & CE Results'!$J:$J,M$29)+SUMIFS(INDEX(OFFSET('Program Budget Input'!$A$1,6,1,2000,560),0,MATCH(CONCATENATE(M$29," Sub-Total"),OFFSET('Program Budget Input'!$A$1,6,1,1,560),0)),OFFSET('Program Budget Input'!$A$1,6,1,2000,1),$A38,OFFSET('Program Budget Input'!$A$1,6,2,2000,1),$B38),0) -> 284017.5425 | N38: =(SUMIFS(OFFSET('Measure Savings Results'!$A$1,6,15 +MAX('Measure Savings Results'!$F:$F)-MIN('Measure Savings Results'!$F:$F)+MAX('Measure Savings Results'!$I:$I)+M$29-MIN('Measure Savings Results'!$F:$F),2000),OFFSET('Measure Savings Results'!$A$1,6,5,2000),M$29,OFFSET('Measure Savings Results'!$A$1,6,4,2000),"Dx",OFFSET('Measure Savings Results'!$A$1,6,1,2000),$A38,OFFSET('Measure Savings Results'!$A$1,6,2,2000),$B38)/(1/(1-SUM('CE Parameters'!$F$10:$F$11))))/1000 -> 540.28662 | O38: =IFERROR(SUMIFS('Measure Selection & CE Results'!$S:$S,'Measure Selection & CE Results'!$C:$C,$A38,'Measure Selection & CE Results'!$D:$D,$B38)+SUMIFS('Measure Selection & CE Results'!$T:$T,'Measure Selection & CE Results'!$C:$C,$A38,'Measure Selection & CE Results'!$D:$D,$B38)+SUMIFS(INDEX(OFFSET('Program Budget Input'!$A$1,6,1,2000,560),0,MATCH("Total",OFFSET('Program Budget Input'!$A$1,6,1,1,560),0)),OFFSET('Program Budget Input'!$A$1,6,1,2000,1),$A38,OFFSET('Program Budget Input'!$A$1,6,2,2000,1),$B38),0) -> 1270180.02 | P38: =(SUMIFS(OFFSET('Measure Savings Results'!$A$1,6,15+2020-MIN('Measure Selection & CE Results'!J:J)+2020 -MIN('Measure Selection & CE Results'!J:J)+ MAX('Measure Savings Results'!I:I),2000),OFFSET('Measure Savings Results'!$A$1,6,4,2000),"Dx",OFFSET('Measure Savings Results'!$A$1,6,1,2000),$A38,OFFSET('Measure Savings Results'!$A$1,6,2,2000),$B38)/(1/(1-SUM('CE Parameters'!$F$10:$F$11))))/1000 -> 2341.24202
A39: IESO - ARCHETYPE | B39: High Performance New Construction (HPNC) | C39: =IFERROR(SUMIFS('Measure Selection & CE Results'!$S:$S,'Measure Selection & CE Results'!$C:$C,$A39,'Measure Selection & CE Results'!$D:$D,$B39,'Measure Selection & CE Results'!$J:$J,C$29)+SUMIFS('Measure Selection & CE Results'!$T:$T,'Measure Selection & CE Results'!$C:$C,$A39,'Measure Selection & CE Results'!$D:$D,$B39,'Measure Selection & CE Results'!$J:$J,C$29)+SUMIFS(INDEX(OFFSET('Program Budget Input'!$A$1,6,1,2000,560),0,MATCH(CONCATENATE(C$29," Sub-Total"),OFFSET('Program Budget Input'!$A$1,6,1,1,560),0)),OFFSET('Program Budget Input'!$A$1,6,1,2000,1),$A39,OFFSET('Program Budget Input'!$A$1,6,2,2000,1),$B39),0) -> 0 | D39: =(SUMIFS(OFFSET('Measure Savings Results'!$A$1,6,15 +MAX('Measure Savings Results'!$F:$F)-MIN('Measure Savings Results'!$F:$F)+MAX('Measure Savings Results'!$I:$I)+C$29-MIN('Measure Savings Results'!$F:$F),2000),OFFSET('Measure Savings Results'!$A$1,6,5,2000),C$29,OFFSET('Measure Savings Results'!$A$1,6,4,2000),"Dx",OFFSET('Measure Savings Results'!$A$1,6,1,2000),$A39,OFFSET('Measure Savings Results'!$A$1,6,2,2000),$B39)/(1/(1-SUM('CE Parameters'!$F$10:$F$11))))/1000 -> 59.84996283 | E39: =IFERROR(SUMIFS('Measure Selection & CE Results'!$S:$S,'Measure Selection & CE Results'!$C:$C,$A39,'Measure Selection & CE Results'!$D:$D,$B39,'Measure Selection & CE Results'!$J:$J,E$29)+SUMIFS('Measure Selection & CE Results'!$T:$T,'Measure Selection & CE Results'!$C:$C,$A39,'Measure Selection & CE Results'!$D:$D,$B39,'Measure Selection & CE Results'!$J:$J,E$29)+SUMIFS(INDEX(OFFSET('Program Budget Input'!$A$1,6,1,2000,560),0,MATCH(CONCATENATE(E$29," Sub-Total"),OFFSET('Program Budget Input'!$A$1,6,1,1,560),0)),OFFSET('Program Budget Input'!$A$1,6,1,2000,1),$A39,OFFSET('Program Budget Input'!$A$1,6,2,2000,1),$B39),0) -> 50737.79144 | F39: =(SUMIFS(OFFSET('Measure Savings Results'!$A$1,6,15 +MAX('Measure Savings Results'!$F:$F)-MIN('Measure Savings Results'!$F:$F)+MAX('Measure Savings Results'!$I:$I)+E$29-MIN('Measure Savings Results'!$F:$F),2000),OFFSET('Measure Savings Results'!$A$1,6,5,2000),E$29,OFFSET('Measure Savings Results'!$A$1,6,4,2000),"Dx",OFFSET('Measure Savings Results'!$A$1,6,1,2000),$A39,OFFSET('Measure Savings Results'!$A$1,6,2,2000),$B39)/(1/(1-SUM('CE Parameters'!$F$10:$F$11))))/1000 -> 113.9999292 | G39: =IFERROR(SUMIFS('Measure Selection & CE Results'!$S:$S,'Measure Selection & CE Results'!$C:$C,$A39,'Measure Selection & CE Results'!$D:$D,$B39,'Measure Selection & CE Results'!$J:$J,G$29)+SUMIFS('Measure Selection & CE Results'!$T:$T,'Measure Selection & CE Results'!$C:$C,$A39,'Measure Selection & CE Results'!$D:$D,$B39,'Measure Selection & CE Results'!$J:$J,G$29)+SUMIFS(INDEX(OFFSET('Program Budget Input'!$A$1,6,1,2000,560),0,MATCH(CONCATENATE(G$29," Sub-Total"),OFFSET('Program Budget Input'!$A$1,6,1,1,560),0)),OFFSET('Program Budget Input'!$A$1,6,1,2000,1),$A39,OFFSET('Program Budget Input'!$A$1,6,2,2000,1),$B39),0) -> 51004.14843 | H39: =(SUMIFS(OFFSET('Measure Savings Results'!$A$1,6,15 +MAX('Measure Savings Results'!$F:$F)-MIN('Measure Savings Results'!$F:$F)+MAX('Measure Savings Results'!$I:$I)+G$29-MIN('Measure Savings Results'!$F:$F),2000),OFFSET('Measure Savings Results'!$A$1,6,5,2000),G$29,OFFSET('Measure Savings Results'!$A$1,6,4,2000),"Dx",OFFSET('Measure Savings Results'!$A$1,6,1,2000),$A39,OFFSET('Measure Savings Results'!$A$1,6,2,2000),$B39)/(1/(1-SUM('CE Parameters'!$F$10:$F$11))))/1000 -> 113.9999292 | I39: =IFERROR(SUMIFS('Measure Selection & CE Results'!$S:$S,'Measure Selection & CE Results'!$C:$C,$A39,'Measure Selection & CE Results'!$D:$D,$B39,'Measure Selection & CE Results'!$J:$J,I$29)+SUMIFS('Measure Selection & CE Results'!$T:$T,'Measure Selection & CE Results'!$C:$C,$A39,'Measure Selection & CE Results'!$D:$D,$B39,'Measure Selection & CE Results'!$J:$J,I$29)+SUMIFS(INDEX(OFFSET('Program Budget Input'!$A$1,6,1,2000,560),0,MATCH(CONCATENATE(I$29," Sub-Total"),OFFSET('Program Budget Input'!$A$1,6,1,1,560),0)),OFFSET('Program Budget Input'!$A$1,6,1,2000,1),$A39,OFFSET('Program Budget Input'!$A$1,6,2,2000,1),$B39),0) -> 49689.7939 | J39: =(SUMIFS(OFFSET('Measure Savings Results'!$A$1,6,15 +MAX('Measure Savings Results'!$F:$F)-MIN('Measure Savings Results'!$F:$F)+MAX('Measure Savings Results'!$I:$I)+I$29-MIN('Measure Savings Results'!$F:$F),2000),OFFSET('Measure Savings Results'!$A$1,6,5,2000),I$29,OFFSET('Measure Savings Results'!$A$1,6,4,2000),"Dx",OFFSET('Measure Savings Results'!$A$1,6,1,2000),$A39,OFFSET('Measure Savings Results'!$A$1,6,2,2000),$B39)/(1/(1-SUM('CE Parameters'!$F$10:$F$11))))/1000 -> 113.9999292 | K39: =IFERROR(SUMIFS('Measure Selection & CE Results'!$S:$S,'Measure Selection & CE Results'!$C:$C,$A39,'Measure Selection & CE Results'!$D:$D,$B39,'Measure Selection & CE Results'!$J:$J,K$29)+SUMIFS('Measure Selection & CE Results'!$T:$T,'Measure Selection & CE Results'!$C:$C,$A39,'Measure Selection & CE Results'!$D:$D,$B39,'Measure Selection & CE Results'!$J:$J,K$29)+SUMIFS(INDEX(OFFSET('Program Budget Input'!$A$1,6,1,2000,560),0,MATCH(CONCATENATE(K$29," Sub-Total"),OFFSET('Program Budget Input'!$A$1,6,1,1,560),0)),OFFSET('Program Budget Input'!$A$1,6,1,2000,1),$A39,OFFSET('Program Budget Input'!$A$1,6,2,2000,1),$B39),0) -> 49977.88562 | L39: =(SUMIFS(OFFSET('Measure Savings Results'!$A$1,6,15 +MAX('Measure Savings Results'!$F:$F)-MIN('Measure Savings Results'!$F:$F)+MAX('Measure Savings Results'!$I:$I)+K$29-MIN('Measure Savings Results'!$F:$F),2000),OFFSET('Measure Savings Results'!$A$1,6,5,2000),K$29,OFFSET('Measure Savings Results'!$A$1,6,4,2000),"Dx",OFFSET('Measure Savings Results'!$A$1,6,1,2000),$A39,OFFSET('Measure Savings Results'!$A$1,6,2,2000),$B39)/(1/(1-SUM('CE Parameters'!$F$10:$F$11))))/1000 -> 113.9999292 | M39: =IFERROR(SUMIFS('Measure Selection & CE Results'!$S:$S,'Measure Selection & CE Results'!$C:$C,$A39,'Measure Selection & CE Results'!$D:$D,$B39,'Measure Selection & CE Results'!$J:$J,M$29)+SUMIFS('Measure Selection & CE Results'!$T:$T,'Measure Selection & CE Results'!$C:$C,$A39,'Measure Selection & CE Results'!$D:$D,$B39,'Measure Selection & CE Results'!$J:$J,M$29)+SUMIFS(INDEX(OFFSET('Program Budget Input'!$A$1,6,1,2000,560),0,MATCH(CONCATENATE(M$29," Sub-Total"),OFFSET('Program Budget Input'!$A$1,6,1,1,560),0)),OFFSET('Program Budget Input'!$A$1,6,1,2000,1),$A39,OFFSET('Program Budget Input'!$A$1,6,2,2000,1),$B39),0) -> 49977.88562 | N39: =(SUMIFS(OFFSET('Measure Savings Results'!$A$1,6,15 +MAX('Measure Savings Results'!$F:$F)-MIN('Measure Savings Results'!$F:$F)+MAX('Measure Savings Results'!$I:$I)+M$29-MIN('Measure Savings Results'!$F:$F),2000),OFFSET('Measure Savings Results'!$A$1,6,5,2000),M$29,OFFSET('Measure Savings Results'!$A$1,6,4,2000),"Dx",OFFSET('Measure Savings Results'!$A$1,6,1,2000),$A39,OFFSET('Measure Savings Results'!$A$1,6,2,2000),$B39)/(1/(1-SUM('CE Parameters'!$F$10:$F$11))))/1000 -> 113.9999292 | O39: =IFERROR(SUMIFS('Measure Selection & CE Results'!$S:$S,'Measure Selection & CE Results'!$C:$C,$A39,'Measure Selection & CE Results'!$D:$D,$B39)+SUMIFS('Measure Selection & CE Results'!$T:$T,'Measure Selection & CE Results'!$C:$C,$A39,'Measure Selection & CE Results'!$D:$D,$B39)+SUMIFS(INDEX(OFFSET('Program Budget Input'!$A$1,6,1,2000,560),0,MATCH("Total",OFFSET('Program Budget Input'!$A$1,6,1,1,560),0)),OFFSET('Program Budget Input'!$A$1,6,1,2000,1),$A39,OFFSET('Program Budget Input'!$A$1,6,2,2000,1),$B39),0) -> 251387.505 | P39: =(SUMIFS(OFFSET('Measure Savings Results'!$A$1,6,15+2020-MIN('Measure Selection & CE Results'!J:J)+2020 -MIN('Measure Selection & CE Results'!J:J)+ MAX('Measure Savings Results'!I:I),2000),OFFSET('Measure Savings Results'!$A$1,6,4,2000),"Dx",OFFSET('Measure Savings Results'!$A$1,6,1,2000),$A39,OFFSET('Measure Savings Results'!$A$1,6,2,2000),$B39)/(1/(1-SUM('CE Parameters'!$F$10:$F$11))))/1000 -> 629.8496088
A40: IESO - ARCHETYPE | B40: Audit Funding | C40: =IFERROR(SUMIFS('Measure Selection & CE Results'!$S:$S,'Measure Selection & CE Results'!$C:$C,$A40,'Measure Selection & CE Results'!$D:$D,$B40,'Measure Selection & CE Results'!$J:$J,C$29)+SUMIFS('Measure Selection & CE Results'!$T:$T,'Measure Selection & CE Results'!$C:$C,$A40,'Measure Selection & CE Results'!$D:$D,$B40,'Measure Selection & CE Results'!$J:$J,C$29)+SUMIFS(INDEX(OFFSET('Program Budget Input'!$A$1,6,1,2000,560),0,MATCH(CONCATENATE(C$29," Sub-Total"),OFFSET('Program Budget Input'!$A$1,6,1,1,560),0)),OFFSET('Program Budget Input'!$A$1,6,1,2000,1),$A40,OFFSET('Program Budget Input'!$A$1,6,2,2000,1),$B40),0) -> 0 | D40: =(SUMIFS(OFFSET('Measure Savings Results'!$A$1,6,15 +MAX('Measure Savings Results'!$F:$F)-MIN('Measure Savings Results'!$F:$F)+MAX('Measure Savings Results'!$I:$I)+C$29-MIN('Measure Savings Results'!$F:$F),2000),OFFSET('Measure Savings Results'!$A$1,6,5,2000),C$29,OFFSET('Measure Savings Results'!$A$1,6,4,2000),"Dx",OFFSET('Measure Savings Results'!$A$1,6,1,2000),$A40,OFFSET('Measure Savings Results'!$A$1,6,2,2000),$B40)/(1/(1-SUM('CE Parameters'!$F$10:$F$11))))/1000 -> 100.1266596 | E40: =IFERROR(SUMIFS('Measure Selection & CE Results'!$S:$S,'Measure Selection & CE Results'!$C:$C,$A40,'Measure Selection & CE Results'!$D:$D,$B40,'Measure Selection & CE Results'!$J:$J,E$29)+SUMIFS('Measure Selection & CE Results'!$T:$T,'Measure Selection & CE Results'!$C:$C,$A40,'Measure Selection & CE Results'!$D:$D,$B40,'Measure Selection & CE Results'!$J:$J,E$29)+SUMIFS(INDEX(OFFSET('Program Budget Input'!$A$1,6,1,2000,560),0,MATCH(CONCATENATE(E$29," Sub-Total"),OFFSET('Program Budget Input'!$A$1,6,1,1,560),0)),OFFSET('Program Budget Input'!$A$1,6,1,2000,1),$A40,OFFSET('Program Budget Input'!$A$1,6,2,2000,1),$B40),0) -> 23956.33144 | F40: =(SUMIFS(OFFSET('Measure Savings Results'!$A$1,6,15 +MAX('Measure Savings Results'!$F:$F)-MIN('Measure Savings Results'!$F:$F)+MAX('Measure Savings Results'!$I:$I)+E$29-MIN('Measure Savings Results'!$F:$F),2000),OFFSET('Measure Savings Results'!$A$1,6,5,2000),E$29,OFFSET('Measure Savings Results'!$A$1,6,4,2000),"Dx",OFFSET('Measure Savings Results'!$A$1,6,1,2000),$A40,OFFSET('Measure Savings Results'!$A$1,6,2,2000),$B40)/(1/(1-SUM('CE Parameters'!$F$10:$F$11))))/1000 -> 151.70706 | G40: =IFERROR(SUMIFS('Measure Selection & CE Results'!$S:$S,'Measure Selection & CE Results'!$C:$C,$A40,'Measure Selection & CE Results'!$D:$D,$B40,'Measure Selection & CE Results'!$J:$J,G$29)+SUMIFS('Measure Selection & CE Results'!$T:$T,'Measure Selection & CE Results'!$C:$C,$A40,'Measure Selection & CE Results'!$D:$D,$B40,'Measure Selection & CE Results'!$J:$J,G$29)+SUMIFS(INDEX(OFFSET('Program Budget Input'!$A$1,6,1,2000,560),0,MATCH(CONCATENATE(G$29," Sub-Total"),OFFSET('Program Budget Input'!$A$1,6,1,1,560),0)),OFFSET('Program Budget Input'!$A$1,6,1,2000,1),$A40,OFFSET('Program Budget Input'!$A$1,6,2,2000,1),$B40),0) -> 24222.68843 | H40: =(SUMIFS(OFFSET('Measure Savings Results'!$A$1,6,15 +MAX('Measure Savings Results'!$F:$F)-MIN('Measure Savings Results'!$F:$F)+MAX('Measure Savings Results'!$I:$I)+G$29-MIN('Measure Savings Results'!$F:$F),2000),OFFSET('Measure Savings Results'!$A$1,6,5,2000),G$29,OFFSET('Measure Savings Results'!$A$1,6,4,2000),"Dx",OFFSET('Measure Savings Results'!$A$1,6,1,2000),$A40,OFFSET('Measure Savings Results'!$A$1,6,2,2000),$B40)/(1/(1-SUM('CE Parameters'!$F$10:$F$11))))/1000 -> 151.70706 | I40: =IFERROR(SUMIFS('Measure Selection & CE Results'!$S:$S,'Measure Selection & CE Results'!$C:$C,$A40,'Measure Selection & CE Results'!$D:$D,$B40,'Measure Selection & CE Results'!$J:$J,I$29)+SUMIFS('Measure Selection & CE Results'!$T:$T,'Measure Selection & CE Results'!$C:$C,$A40,'Measure Selection & CE Results'!$D:$D,$B40,'Measure Selection & CE Results'!$J:$J,I$29)+SUMIFS(INDEX(OFFSET('Program Budget Input'!$A$1,6,1,2000,560),0,MATCH(CONCATENATE(I$29," Sub-Total"),OFFSET('Program Budget Input'!$A$1,6,1,1,560),0)),OFFSET('Program Budget Input'!$A$1,6,1,2000,1),$A40,OFFSET('Program Budget Input'!$A$1,6,2,2000,1),$B40),0) -> 22908.3339 | J40: =(SUMIFS(OFFSET('Measure Savings Results'!$A$1,6,15 +MAX('Measure Savings Results'!$F:$F)-MIN('Measure Savings Results'!$F:$F)+MAX('Measure Savings Results'!$I:$I)+I$29-MIN('Measure Savings Results'!$F:$F),2000),OFFSET('Measure Savings Results'!$A$1,6,5,2000),I$29,OFFSET('Measure Savings Results'!$A$1,6,4,2000),"Dx",OFFSET('Measure Savings Results'!$A$1,6,1,2000),$A40,OFFSET('Measure Savings Results'!$A$1,6,2,2000),$B40)/(1/(1-SUM('CE Parameters'!$F$10:$F$11))))/1000 -> 151.70706 | K40: =IFERROR(SUMIFS('Measure Selection & CE Results'!$S:$S,'Measure Selection & CE Results'!$C:$C,$A40,'Measure Selection & CE Results'!$D:$D,$B40,'Measure Selection & CE Results'!$J:$J,K$29)+SUMIFS('Measure Selection & CE Results'!$T:$T,'Measure Selection & CE Results'!$C:$C,$A40,'Measure Selection & CE Results'!$D:$D,$B40,'Measure Selection & CE Results'!$J:$J,K$29)+SUMIFS(INDEX(OFFSET('Program Budget Input'!$A$1,6,1,2000,560),0,MATCH(CONCATENATE(K$29," Sub-Total"),OFFSET('Program Budget Input'!$A$1,6,1,1,560),0)),OFFSET('Program Budget Input'!$A$1,6,1,2000,1),$A40,OFFSET('Program Budget Input'!$A$1,6,2,2000,1),$B40),0) -> 23196.42562 | L40: =(SUMIFS(OFFSET('Measure Savings Results'!$A$1,6,15 +MAX('Measure Savings Results'!$F:$F)-MIN('Measure Savings Results'!$F:$F)+MAX('Measure Savings Results'!$I:$I)+K$29-MIN('Measure Savings Results'!$F:$F),2000),OFFSET('Measure Savings Results'!$A$1,6,5,2000),K$29,OFFSET('Measure Savings Results'!$A$1,6,4,2000),"Dx",OFFSET('Measure Savings Results'!$A$1,6,1,2000),$A40,OFFSET('Measure Savings Results'!$A$1,6,2,2000),$B40)/(1/(1-SUM('CE Parameters'!$F$10:$F$11))))/1000 -> 151.70706 | M40: =IFERROR(SUMIFS('Measure Selection & CE Results'!$S:$S,'Measure Selection & CE Results'!$C:$C,$A40,'Measure Selection & CE Results'!$D:$D,$B40,'Measure Selection & CE Results'!$J:$J,M$29)+SUMIFS('Measure Selection & CE Results'!$T:$T,'Measure Selection & CE Results'!$C:$C,$A40,'Measure Selection & CE Results'!$D:$D,$B40,'Measure Selection & CE Results'!$J:$J,M$29)+SUMIFS(INDEX(OFFSET('Program Budget Input'!$A$1,6,1,2000,560),0,MATCH(CONCATENATE(M$29," Sub-Total"),OFFSET('Program Budget Input'!$A$1,6,1,1,560),0)),OFFSET('Program Budget Input'!$A$1,6,1,2000,1),$A40,OFFSET('Program Budget Input'!$A$1,6,2,2000,1),$B40),0) -> 23196.42562 | N40: =(SUMIFS(OFFSET('Measure Savings Results'!$A$1,6,15 +MAX('Measure Savings Results'!$F:$F)-MIN('Measure Savings Results'!$F:$F)+MAX('Measure Savings Results'!$I:$I)+M$29-MIN('Measure Savings Results'!$F:$F),2000),OFFSET('Measure Savings Results'!$A$1,6,5,2000),M$29,OFFSET('Measure Savings Results'!$A$1,6,4,2000),"Dx",OFFSET('Measure Savings Results'!$A$1,6,1,2000),$A40,OFFSET('Measure Savings Results'!$A$1,6,2,2000),$B40)/(1/(1-SUM('CE Parameters'!$F$10:$F$11))))/1000 -> 151.70706 | O40: =IFERROR(SUMIFS('Measure Selection & CE Results'!$S:$S,'Measure Selection & CE Results'!$C:$C,$A40,'Measure Selection & CE Results'!$D:$D,$B40)+SUMIFS('Measure Selection & CE Results'!$T:$T,'Measure Selection & CE Results'!$C:$C,$A40,'Measure Selection & CE Results'!$D:$D,$B40)+SUMIFS(INDEX(OFFSET('Program Budget Input'!$A$1,6,1,2000,560),0,MATCH("Total",OFFSET('Program Budget Input'!$A$1,6,1,1,560),0)),OFFSET('Program Budget Input'!$A$1,6,1,2000,1),$A40,OFFSET('Program Budget Input'!$A$1,6,2,2000,1),$B40),0) -> 117480.205 | P40: =(SUMIFS(OFFSET('Measure Savings Results'!$A$1,6,15+2020-MIN('Measure Selection & CE Results'!J:J)+2020 -MIN('Measure Selection & CE Results'!J:J)+ MAX('Measure Savings Results'!I:I),2000),OFFSET('Measure Savings Results'!$A$1,6,4,2000),"Dx",OFFSET('Measure Savings Results'!$A$1,6,1,2000),$A40,OFFSET('Measure Savings Results'!$A$1,6,2,2000),$B40)/(1/(1-SUM('CE Parameters'!$F$10:$F$11))))/1000 -> 606.82824
A41: Business | B41: Process and Systems | C41: =IFERROR(SUMIFS('Measure Selection & CE Results'!$S:$S,'Measure Selection & CE Results'!$C:$C,$A41,'Measure Selection & CE Results'!$D:$D,$B41,'Measure Selection & CE Results'!$J:$J,C$29)+SUMIFS('Measure Selection & CE Results'!$T:$T,'Measure Selection & CE Results'!$C:$C,$A41,'Measure Selection & CE Results'!$D:$D,$B41,'Measure Selection & CE Results'!$J:$J,C$29)+SUMIFS(INDEX(OFFSET('Program Budget Input'!$A$1,6,1,2000,560),0,MATCH(CONCATENATE(C$29," Sub-Total"),OFFSET('Program Budget Input'!$A$1,6,1,1,560),0)),OFFSET('Program Budget Input'!$A$1,6,1,2000,1),$A41,OFFSET('Program Budget Input'!$A$1,6,2,2000,1),$B41),0) -> 0 | D41: =(SUMIFS(OFFSET('Measure Savings Results'!$A$1,6,15 +MAX('Measure Savings Results'!$F:$F)-MIN('Measure Savings Results'!$F:$F)+MAX('Measure Savings Results'!$I:$I)+C$29-MIN('Measure Savings Results'!$F:$F),2000),OFFSET('Measure Savings Results'!$A$1,6,5,2000),C$29,OFFSET('Measure Savings Results'!$A$1,6,4,2000),"Dx",OFFSET('Measure Savings Results'!$A$1,6,1,2000),$A41,OFFSET('Measure Savings Results'!$A$1,6,2,2000),$B41)/(1/(1-SUM('CE Parameters'!$F$10:$F$11))))/1000 -> 0 | E41: =IFERROR(SUMIFS('Measure Selection & CE Results'!$S:$S,'Measure Selection & CE Results'!$C:$C,$A41,'Measure Selection & CE Results'!$D:$D,$B41,'Measure Selection & CE Results'!$J:$J,E$29)+SUMIFS('Measure Selection & CE Results'!$T:$T,'Measure Selection & CE Results'!$C:$C,$A41,'Measure Selection & CE Results'!$D:$D,$B41,'Measure Selection & CE Results'!$J:$J,E$29)+SUMIFS(INDEX(OFFSET('Program Budget Input'!$A$1,6,1,2000,560),0,MATCH(CONCATENATE(E$29," Sub-Total"),OFFSET('Program Budget Input'!$A$1,6,1,1,560),0)),OFFSET('Program Budget Input'!$A$1,6,1,2000,1),$A41,OFFSET('Program Budget Input'!$A$1,6,2,2000,1),$B41),0) -> 309207.1658 | F41: =(SUMIFS(OFFSET('Measure Savings Results'!$A$1,6,15 +MAX('Measure Savings Results'!$F:$F)-MIN('Measure Savings Results'!$F:$F)+MAX('Measure Savings Results'!$I:$I)+E$29-MIN('Measure Savings Results'!$F:$F),2000),OFFSET('Measure Savings Results'!$A$1,6,5,2000),E$29,OFFSET('Measure Savings Results'!$A$1,6,4,2000),"Dx",OFFSET('Measure Savings Results'!$A$1,6,1,2000),$A41,OFFSET('Measure Savings Results'!$A$1,6,2,2000),$B41)/(1/(1-SUM('CE Parameters'!$F$10:$F$11))))/1000 -> 7920.46 | G41: =IFERROR(SUMIFS('Measure Selection & CE Results'!$S:$S,'Measure Selection & CE Results'!$C:$C,$A41,'Measure Selection & CE Results'!$D:$D,$B41,'Measure Selection & CE Results'!$J:$J,G$29)+SUMIFS('Measure Selection & CE Results'!$T:$T,'Measure Selection & CE Results'!$C:$C,$A41,'Measure Selection & CE Results'!$D:$D,$B41,'Measure Selection & CE Results'!$J:$J,G$29)+SUMIFS(INDEX(OFFSET('Program Budget Input'!$A$1,6,1,2000,560),0,MATCH(CONCATENATE(G$29," Sub-Total"),OFFSET('Program Budget Input'!$A$1,6,1,1,560),0)),OFFSET('Program Budget Input'!$A$1,6,1,2000,1),$A41,OFFSET('Program Budget Input'!$A$1,6,2,2000,1),$B41),0) -> 294272.5937 | H41: =(SUMIFS(OFFSET('Measure Savings Results'!$A$1,6,15 +MAX('Measure Savings Results'!$F:$F)-MIN('Measure Savings Results'!$F:$F)+MAX('Measure Savings Results'!$I:$I)+G$29-MIN('Measure Savings Results'!$F:$F),2000),OFFSET('Measure Savings Results'!$A$1,6,5,2000),G$29,OFFSET('Measure Savings Results'!$A$1,6,4,2000),"Dx",OFFSET('Measure Savings Results'!$A$1,6,1,2000),$A41,OFFSET('Measure Savings Results'!$A$1,6,2,2000),$B41)/(1/(1-SUM('CE Parameters'!$F$10:$F$11))))/1000 -> 3028 | I41: =IFERROR(SUMIFS('Measure Selection & CE Results'!$S:$S,'Measure Selection & CE Results'!$C:$C,$A41,'Measure Selection & CE Results'!$D:$D,$B41,'Measure Selection & CE Results'!$J:$J,I$29)+SUMIFS('Measure Selection & CE Results'!$T:$T,'Measure Selection & CE Results'!$C:$C,$A41,'Measure Selection & CE Results'!$D:$D,$B41,'Measure Selection & CE Results'!$J:$J,I$29)+SUMIFS(INDEX(OFFSET('Program Budget Input'!$A$1,6,1,2000,560),0,MATCH(CONCATENATE(I$29," Sub-Total"),OFFSET('Program Budget Input'!$A$1,6,1,1,560),0)),OFFSET('Program Budget Input'!$A$1,6,1,2000,1),$A41,OFFSET('Program Budget Input'!$A$1,6,2,2000,1),$B41),0) -> 89015.1756 | J41: =(SUMIFS(OFFSET('Measure Savings Results'!$A$1,6,15 +MAX('Measure Savings Results'!$F:$F)-MIN('Measure Savings Results'!$F:$F)+MAX('Measure Savings Results'!$I:$I)+I$29-MIN('Measure Savings Results'!$F:$F),2000),OFFSET('Measure Savings Results'!$A$1,6,5,2000),I$29,OFFSET('Measure Savings Results'!$A$1,6,4,2000),"Dx",OFFSET('Measure Savings Results'!$A$1,6,1,2000),$A41,OFFSET('Measure Savings Results'!$A$1,6,2,2000),$B41)/(1/(1-SUM('CE Parameters'!$F$10:$F$11))))/1000 -> 400 | K41: =IFERROR(SUMIFS('Measure Selection & CE Results'!$S:$S,'Measure Selection & CE Results'!$C:$C,$A41,'Measure Selection & CE Results'!$D:$D,$B41,'Measure Selection & CE Results'!$J:$J,K$29)+SUMIFS('Measure Selection & CE Results'!$T:$T,'Measure Selection & CE Results'!$C:$C,$A41,'Measure Selection & CE Results'!$D:$D,$B41,'Measure Selection & CE Results'!$J:$J,K$29)+SUMIFS(INDEX(OFFSET('Program Budget Input'!$A$1,6,1,2000,560),0,MATCH(CONCATENATE(K$29," Sub-Total"),OFFSET('Program Budget Input'!$A$1,6,1,1,560),0)),OFFSET('Program Budget Input'!$A$1,6,1,2000,1),$A41,OFFSET('Program Budget Input'!$A$1,6,2,2000,1),$B41),0) -> 80167.54246 | L41: =(SUMIFS(OFFSET('Measure Savings Results'!$A$1,6,15 +MAX('Measure Savings Results'!$F:$F)-MIN('Measure Savings Results'!$F:$F)+MAX('Measure Savings Results'!$I:$I)+K$29-MIN('Measure Savings Results'!$F:$F),2000),OFFSET('Measure Savings Results'!$A$1,6,5,2000),K$29,OFFSET('Measure Savings Results'!$A$1,6,4,2000),"Dx",OFFSET('Measure Savings Results'!$A$1,6,1,2000),$A41,OFFSET('Measure Savings Results'!$A$1,6,2,2000),$B41)/(1/(1-SUM('CE Parameters'!$F$10:$F$11))))/1000 -> 300 | M41: =IFERROR(SUMIFS('Measure Selection & CE Results'!$S:$S,'Measure Selection & CE Results'!$C:$C,$A41,'Measure Selection & CE Results'!$D:$D,$B41,'Measure Selection & CE Results'!$J:$J,M$29)+SUMIFS('Measure Selection & CE Results'!$T:$T,'Measure Selection & CE Results'!$C:$C,$A41,'Measure Selection & CE Results'!$D:$D,$B41,'Measure Selection & CE Results'!$J:$J,M$29)+SUMIFS(INDEX(OFFSET('Program Budget Input'!$A$1,6,1,2000,560),0,MATCH(CONCATENATE(M$29," Sub-Total"),OFFSET('Program Budget Input'!$A$1,6,1,1,560),0)),OFFSET('Program Budget Input'!$A$1,6,1,2000,1),$A41,OFFSET('Program Budget Input'!$A$1,6,2,2000,1),$B41),0) -> 80167.54246 | N41: =(SUMIFS(OFFSET('Measure Savings Results'!$A$1,6,15 +MAX('Measure Savings Results'!$F:$F)-MIN('Measure Savings Results'!$F:$F)+MAX('Measure Savings Results'!$I:$I)+M$29-MIN('Measure Savings Results'!$F:$F),2000),OFFSET('Measure Savings Results'!$A$1,6,5,2000),M$29,OFFSET('Measure Savings Results'!$A$1,6,4,2000),"Dx",OFFSET('Measure Savings Results'!$A$1,6,1,2000),$A41,OFFSET('Measure Savings Results'!$A$1,6,2,2000),$B41)/(1/(1-SUM('CE Parameters'!$F$10:$F$11))))/1000 -> 300 | O41: =IFERROR(SUMIFS('Measure Selection & CE Results'!$S:$S,'Measure Selection & CE Results'!$C:$C,$A41,'Measure Selection & CE Results'!$D:$D,$B41)+SUMIFS('Measure Selection & CE Results'!$T:$T,'Measure Selection & CE Results'!$C:$C,$A41,'Measure Selection & CE Results'!$D:$D,$B41)+SUMIFS(INDEX(OFFSET('Program Budget Input'!$A$1,6,1,2000,560),0,MATCH("Total",OFFSET('Program Budget Input'!$A$1,6,1,1,560),0)),OFFSET('Program Budget Input'!$A$1,6,1,2000,1),$A41,OFFSET('Program Budget Input'!$A$1,6,2,2000,1),$B41),0) -> 852830.02 | P41: =(SUMIFS(OFFSET('Measure Savings Results'!$A$1,6,15+2020-MIN('Measure Selection & CE Results'!J:J)+2020 -MIN('Measure Selection & CE Results'!J:J)+ MAX('Measure Savings Results'!I:I),2000),OFFSET('Measure Savings Results'!$A$1,6,4,2000),"Dx",OFFSET('Measure Savings Results'!$A$1,6,1,2000),$A41,OFFSET('Measure Savings Results'!$A$1,6,2,2000),$B41)/(1/(1-SUM('CE Parameters'!$F$10:$F$11))))/1000 -> 11948.46
A42: 2015 Savings | B42: Process and Systems | C42: =IFERROR(SUMIFS('Measure Selection & CE Results'!$S:$S,'Measure Selection & CE Results'!$C:$C,$A42,'Measure Selection & CE Results'!$D:$D,$B42,'Measure Selection & CE Results'!$J:$J,C$29)+SUMIFS('Measure Selection & CE Results'!$T:$T,'Measure Selection & CE Results'!$C:$C,$A42,'Measure Selection & CE Results'!$D:$D,$B42,'Measure Selection & CE Results'!$J:$J,C$29)+SUMIFS(INDEX(OFFSET('Program Budget Input'!$A$1,6,1,2000,560),0,MATCH(CONCATENATE(C$29," Sub-Total"),OFFSET('Program Budget Input'!$A$1,6,1,1,560),0)),OFFSET('Program Budget Input'!$A$1,6,1,2000,1),$A42,OFFSET('Program Budget Input'!$A$1,6,2,2000,1),$B42),0) -> 0.01 | D42: =(SUMIFS(OFFSET('Measure Savings Results'!$A$1,6,15 +MAX('Measure Savings Results'!$F:$F)-MIN('Measure Savings Results'!$F:$F)+MAX('Measure Savings Results'!$I:$I)+C$29-MIN('Measure Savings Results'!$F:$F),2000),OFFSET('Measure Savings Results'!$A$1,6,5,2000),C$29,OFFSET('Measure Savings Results'!$A$1,6,4,2000),"Dx",OFFSET('Measure Savings Results'!$A$1,6,1,2000),$A42,OFFSET('Measure Savings Results'!$A$1,6,2,2000),$B42)/(1/(1-SUM('CE Parameters'!$F$10:$F$11))))/1000 -> 100 | E42: =IFERROR(SUMIFS('Measure Selection & CE Results'!$S:$S,'Measure Selection & CE Results'!$C:$C,$A42,'Measure Selection & CE Results'!$D:$D,$B42,'Measure Selection & CE Results'!$J:$J,E$29)+SUMIFS('Measure Selection & CE Results'!$T:$T,'Measure Selection & CE Results'!$C:$C,$A42,'Measure Selection & CE Results'!$D:$D,$B42,'Measure Selection & CE Results'!$J:$J,E$29)+SUMIFS(INDEX(OFFSET('Program Budget Input'!$A$1,6,1,2000,560),0,MATCH(CONCATENATE(E$29," Sub-Total"),OFFSET('Program Budget Input'!$A$1,6,1,1,560),0)),OFFSET('Program Budget Input'!$A$1,6,1,2000,1),$A42,OFFSET('Program Budget Input'!$A$1,6,2,2000,1),$B42),0) -> 0 | F42: =(SUMIFS(OFFSET('Measure Savings Results'!$A$1,6,15 +MAX('Measure Savings Results'!$F:$F)-MIN('Measure Savings Results'!$F:$F)+MAX('Measure Savings Results'!$I:$I)+E$29-MIN('Measure Savings Results'!$F:$F),2000),OFFSET('Measure Savings Results'!$A$1,6,5,2000),E$29,OFFSET('Measure Savings Results'!$A$1,6,4,2000),"Dx",OFFSET('Measure Savings Results'!$A$1,6,1,2000),$A42,OFFSET('Measure Savings Results'!$A$1,6,2,2000),$B42)/(1/(1-SUM('CE Parameters'!$F$10:$F$11))))/1000 -> 0 | G42: =IFERROR(SUMIFS('Measure Selection & CE Results'!$S:$S,'Measure Selection & CE Results'!$C:$C,$A42,'Measure Selection & CE Results'!$D:$D,$B42,'Measure Selection & CE Results'!$J:$J,G$29)+SUMIFS('Measure Selection & CE Results'!$T:$T,'Measure Selection & CE Results'!$C:$C,$A42,'Measure Selection & CE Results'!$D:$D,$B42,'Measure Selection & CE Results'!$J:$J,G$29)+SUMIFS(INDEX(OFFSET('Program Budget Input'!$A$1,6,1,2000,560),0,MATCH(CONCATENATE(G$29," Sub-Total"),OFFSET('Program Budget Input'!$A$1,6,1,1,560),0)),OFFSET('Program Budget Input'!$A$1,6,1,2000,1),$A42,OFFSET('Program Budget Input'!$A$1,6,2,2000,1),$B42),0) -> 0 | H42: =(SUMIFS(OFFSET('Measure Savings Results'!$A$1,6,15 +MAX('Measure Savings Results'!$F:$F)-MIN('Measure Savings Results'!$F:$F)+MAX('Measure Savings Results'!$I:$I)+G$29-MIN('Measure Savings Results'!$F:$F),2000),OFFSET('Measure Savings Results'!$A$1,6,5,2000),G$29,OFFSET('Measure Savings Results'!$A$1,6,4,2000),"Dx",OFFSET('Measure Savings Results'!$A$1,6,1,2000),$A42,OFFSET('Measure Savings Results'!$A$1,6,2,2000),$B42)/(1/(1-SUM('CE Parameters'!$F$10:$F$11))))/1000 -> 0 | I42: =IFERROR(SUMIFS('Measure Selection & CE Results'!$S:$S,'Measure Selection & CE Results'!$C:$C,$A42,'Measure Selection & CE Results'!$D:$D,$B42,'Measure Selection & CE Results'!$J:$J,I$29)+SUMIFS('Measure Selection & CE Results'!$T:$T,'Measure Selection & CE Results'!$C:$C,$A42,'Measure Selection & CE Results'!$D:$D,$B42,'Measure Selection & CE Results'!$J:$J,I$29)+SUMIFS(INDEX(OFFSET('Program Budget Input'!$A$1,6,1,2000,560),0,MATCH(CONCATENATE(I$29," Sub-Total"),OFFSET('Program Budget Input'!$A$1,6,1,1,560),0)),OFFSET('Program Budget Input'!$A$1,6,1,2000,1),$A42,OFFSET('Program Budget Input'!$A$1,6,2,2000,1),$B42),0) -> 0 | J42: =(SUMIFS(OFFSET('Measure Savings Results'!$A$1,6,15 +MAX('Measure Savings Results'!$F:$F)-MIN('Measure Savings Results'!$F:$F)+MAX('Measure Savings Results'!$I:$I)+I$29-MIN('Measure Savings Results'!$F:$F),2000),OFFSET('Measure Savings Results'!$A$1,6,5,2000),I$29,OFFSET('Measure Savings Results'!$A$1,6,4,2000),"Dx",OFFSET('Measure Savings Results'!$A$1,6,1,2000),$A42,OFFSET('Measure Savings Results'!$A$1,6,2,2000),$B42)/(1/(1-SUM('CE Parameters'!$F$10:$F$11))))/1000 -> 0 | K42: =IFERROR(SUMIFS('Measure Selection & CE Results'!$S:$S,'Measure Selection & CE Results'!$C:$C,$A42,'Measure Selection & CE Results'!$D:$D,$B42,'Measure Selection & CE Results'!$J:$J,K$29)+SUMIFS('Measure Selection & CE Results'!$T:$T,'Measure Selection & CE Results'!$C:$C,$A42,'Measure Selection & CE Results'!$D:$D,$B42,'Measure Selection & CE Results'!$J:$J,K$29)+SUMIFS(INDEX(OFFSET('Program Budget Input'!$A$1,6,1,2000,560),0,MATCH(CONCATENATE(K$29," Sub-Total"),OFFSET('Program Budget Input'!$A$1,6,1,1,560),0)),OFFSET('Program Budget Input'!$A$1,6,1,2000,1),$A42,OFFSET('Program Budget Input'!$A$1,6,2,2000,1),$B42),0) -> 0 | L42: =(SUMIFS(OFFSET('Measure Savings Results'!$A$1,6,15 +MAX('Measure Savings Results'!$F:$F)-MIN('Measure Savings Results'!$F:$F)+MAX('Measure Savings Results'!$I:$I)+K$29-MIN('Measure Savings Results'!$F:$F),2000),OFFSET('Measure Savings Results'!$A$1,6,5,2000),K$29,OFFSET('Measure Savings Results'!$A$1,6,4,2000),"Dx",OFFSET('Measure Savings Results'!$A$1,6,1,2000),$A42,OFFSET('Measure Savings Results'!$A$1,6,2,2000),$B42)/(1/(1-SUM('CE Parameters'!$F$10:$F$11))))/1000 -> 0 | M42: =IFERROR(SUMIFS('Measure Selection & CE Results'!$S:$S,'Measure Selection & CE Results'!$C:$C,$A42,'Measure Selection & CE Results'!$D:$D,$B42,'Measure Selection & CE Results'!$J:$J,M$29)+SUMIFS('Measure Selection & CE Results'!$T:$T,'Measure Selection & CE Results'!$C:$C,$A42,'Measure Selection & CE Results'!$D:$D,$B42,'Measure Selection & CE Results'!$J:$J,M$29)+SUMIFS(INDEX(OFFSET('Program Budget Input'!$A$1,6,1,2000,560),0,MATCH(CONCATENATE(M$29," Sub-Total"),OFFSET('Program Budget Input'!$A$1,6,1,1,560),0)),OFFSET('Program Budget Input'!$A$1,6,1,2000,1),$A42,OFFSET('Program Budget Input'!$A$1,6,2,2000,1),$B42),0) -> 0 | N42: =(SUMIFS(OFFSET('Measure Savings Results'!$A$1,6,15 +MAX('Measure Savings Results'!$F:$F)-MIN('Measure Savings Results'!$F:$F)+MAX('Measure Savings Results'!$I:$I)+M$29-MIN('Measure Savings Results'!$F:$F),2000),OFFSET('Measure Savings Results'!$A$1,6,5,2000),M$29,OFFSET('Measure Savings Results'!$A$1,6,4,2000),"Dx",OFFSET('Measure Savings Results'!$A$1,6,1,2000),$A42,OFFSET('Measure Savings Results'!$A$1,6,2,2000),$B42)/(1/(1-SUM('CE Parameters'!$F$10:$F$11))))/1000 -> 0 | O42: =IFERROR(SUMIFS('Measure Selection & CE Results'!$S:$S,'Measure Selection & CE Results'!$C:$C,$A42,'Measure Selection & CE Results'!$D:$D,$B42)+SUMIFS('Measure Selection & CE Results'!$T:$T,'Measure Selection & CE Results'!$C:$C,$A42,'Measure Selection & CE Results'!$D:$D,$B42)+SUMIFS(INDEX(OFFSET('Program Budget Input'!$A$1,6,1,2000,560),0,MATCH("Total",OFFSET('Program Budget Input'!$A$1,6,1,1,560),0)),OFFSET('Program Budget Input'!$A$1,6,1,2000,1),$A42,OFFSET('Program Budget Input'!$A$1,6,2,2000,1),$B42),0) -> 0.01 | P42: =(SUMIFS(OFFSET('Measure Savings Results'!$A$1,6,15+2020-MIN('Measure Selection & CE Results'!J:J)+2020 -MIN('Measure Selection & CE Results'!J:J)+ MAX('Measure Savings Results'!I:I),2000),OFFSET('Measure Savings Results'!$A$1,6,4,2000),"Dx",OFFSET('Measure Savings Results'!$A$1,6,1,2000),$A42,OFFSET('Measure Savings Results'!$A$1,6,2,2000),$B42)/(1/(1-SUM('CE Parameters'!$F$10:$F$11))))/1000 -> 100
A43: TOTAL | C43: =SUM($C32:$C42) -> 0.01 | D43: =SUM($D32:$D42) -> 2840.526829 | E43: =SUM($E32:$E42) -> 1716250.758 | F43: =SUM($F32:$F42) -> 11617.47515 | G43: =SUM($G32:$G42) -> 1761544.157 | H43: =SUM($H32:$H42) -> 7034.716363 | I43: =SUM($I32:$I42) -> 1612990.096 | J43: =SUM($J32:$J42) -> 4893.695993 | K43: =SUM($K32:$K42) -> 1718533.885 | L43: =SUM($L32:$L42) -> 5280.675623 | M43: =SUM($M32:$M42) -> 1822554.005 | N43: =SUM($N32:$N42) -> 5767.655253 | O43: =SUM($O32:$O42) -> 8631872.91 | P43: =SUM($P32:$P42) -> 37182.91149

Sheet OPA ADMIN ONLY (hidden)
A1: OPA ADMIN ONLY: LOCKING AND UNLOCKING SHEETS
A2: This sheet will become hidden when you navigate away from it. The sheet can then be unlocked using the password in cell B3. Please remember this password.
A3: Admin Password | B3: opaADMIN702
A4: Unlocks VBA code *Must be changed manually*
A5: Unhides this sheet *Using password in cell B3 (automatically locks when user navigates away from this page)
A8: Tool Password | B8: opaTOOL989
A10: Locks and Unlocks all sheets
A11: User input cells will remain unlocked
A12: Individual sheets can also be unlocked manually using the password above
A14: To change the password: "Unlock All Sheets," modify the password in cell B8 and "Lock All Sheets"
A15: **Do not change the password without unlocking first**

Sheet Detailed CDM Plan Summary (hidden)
B1: Detailed CDM Portfolio Summary
B3: TABLE 1
B4: SUMMARY OF CDM PORTFOLIO COST EFFECTIVENESS
C5: Plan Cost Effectiveness | D5: Implementation Year | E5: TRC | H5: PACT | K5: Levelized Cost
E6: Benefits ($) | F6: Costs ($) | G6: Ratio | H6: Benefits ($) | I6: Costs ($) | J6: Ratio | K6: PV of Lifetime Net Energy Savings (kWh) | L6: Costs ($) | M6: ($/kWh)
D7: 2015 | E7: =SUMIFS('Measure Selection & CE Results'!$U:$U,'Measure Selection & CE Results'!$J:$J,$D7) -> 2197867.575 | F7: =SUMIFS('Measure Selection & CE Results'!$V:$V,'Measure Selection & CE Results'!$J:$J,$D7)+IFERROR(SUMIFS(INDEX(OFFSET('Program Budget Input'!$A$1,6,1,2000,560),0,MATCH(CONCATENATE($D7," Sub-Total"),OFFSET('Program Budget Input'!$A$1,6,1,1,560),0)),OFFSET('Program Budget Input'!$A$1,6,1,2000,1),"Total")*INDEX(OFFSET('Levelized Avoided Cost Table'!$A$1,7,1,900,20),MATCH(CONCATENATE($D7,"_",1),OFFSET('Levelized Avoided Cost Table'!$A$1,7,1,900,1),0),MATCH("Discount Factor",OFFSET('Levelized Avoided Cost Table'!$A$1,7,1,1,20),0)),0) -> 578243.7672 | G7: =IF(E7=0,"",E7/F7) -> 3.80093604 | H7: =SUMIFS('Measure Selection & CE Results'!$AC:$AC,'Measure Selection & CE Results'!$J:$J,$D7) -> 1818153.137 | I7: =SUMIFS('Measure Selection & CE Results'!$AD:$AD,'Measure Selection & CE Results'!$J:$J,$D7)+IFERROR(SUMIFS(INDEX(OFFSET('Program Budget Input'!$A$1,6,1,2000,560),0,MATCH(CONCATENATE($D7," Sub-Total"),OFFSET('Program Budget Input'!$A$1,6,1,1,560),0)),OFFSET('Program Budget Input'!$A$1,6,1,2000,1),"Total")*INDEX(OFFSET('Levelized Avoided Cost Table'!$A$1,7,1,900,20),MATCH(CONCATENATE($D7,"_",1),OFFSET('Levelized Avoided Cost Table'!$A$1,7,1,900,1),0),MATCH("Discount Factor",OFFSET('Levelized Avoided Cost Table'!$A$1,7,1,1,20),0)),0) -> 0.01 | J7: =IF(H7=0,"",H7/I7) -> 181815313.7 | K7: =SUMIFS('Measure Selection & CE Results'!$AP:$AP,'Measure Selection & CE Results'!$J:$J,$D7) -> 31482775.52 | L7: =IFERROR(SUMIFS('Measure Selection & CE Results'!$AQ:$AQ,'Measure Selection & CE Results'!$J:$J,$D7)+(SUMIFS(INDEX(OFFSET('Program Budget Input'!$A$1,6,1,2000,560),0,MATCH(CONCATENATE($D7," Sub-Total"),OFFSET('Program Budget Input'!$A$1,6,1,1,560),0)),OFFSET('Program Budget Input'!$A$1,6,1,2000,1),"Total")*INDEX(OFFSET('Levelized Avoided Cost Table'!$A$1,7,1,900,20),MATCH(CONCATENATE($D7,"_",1),OFFSET('Levelized Avoided Cost Table'!$A$1,7,1,900,1),0),MATCH("Discount Factor",OFFSET('Levelized Avoided Cost Table'!$A$1,7,1,1,20),0))),0) -> 0.01 | M7: =IF(K7=0,"",L7/K7) -> 3.176340025e-10
D8: 2016 | E8: =SUMIFS('Measure Selection & CE Results'!$U:$U,'Measure Selection & CE Results'!$J:$J,$D8) -> 11212520.88 | F8: =SUMIFS('Measure Selection & CE Results'!$V:$V,'Measure Selection & CE Results'!$J:$J,$D8)+IFERROR(SUMIFS(INDEX(OFFSET('Program Budget Input'!$A$1,6,1,2000,560),0,MATCH(CONCATENATE($D8," Sub-Total"),OFFSET('Program Budget Input'!$A$1,6,1,1,560),0)),OFFSET('Program Budget Input'!$A$1,6,1,2000,1),"Total")*INDEX(OFFSET('Levelized Avoided Cost Table'!$A$1,7,1,900,20),MATCH(CONCATENATE($D8,"_",1),OFFSET('Levelized Avoided Cost Table'!$A$1,7,1,900,1),0),MATCH("Discount Factor",OFFSET('Levelized Avoided Cost Table'!$A$1,7,1,1,20),0)),0) -> 5014755.431 | G8: 2.235905825 | H8: =SUMIFS('Measure Selection & CE Results'!$AC:$AC,'Measure Selection & CE Results'!$J:$J,$D8) -> 9651725.837 | I8: =SUMIFS('Measure Selection & CE Results'!$AD:$AD,'Measure Selection & CE Results'!$J:$J,$D8)+IFERROR(SUMIFS(INDEX(OFFSET('Program Budget Input'!$A$1,6,1,2000,560),0,MATCH(CONCATENATE($D8," Sub-Total"),OFFSET('Program Budget Input'!$A$1,6,1,1,560),0)),OFFSET('Program Budget Input'!$A$1,6,1,2000,1),"Total")*INDEX(OFFSET('Levelized Avoided Cost Table'!$A$1,7,1,900,20),MATCH(CONCATENATE($D8,"_",1),OFFSET('Levelized Avoided Cost Table'!$A$1,7,1,900,1),0),MATCH("Discount Factor",OFFSET('Levelized Avoided Cost Table'!$A$1,7,1,1,20),0)),0) -> 1682598.782 | J8: 5.736201607 | K8: =SUMIFS('Measure Selection & CE Results'!$AP:$AP,'Measure Selection & CE Results'!$J:$J,$D8) -> 141637862.3 | L8: =IFERROR(SUMIFS('Measure Selection & CE Results'!$AQ:$AQ,'Measure Selection & CE Results'!$J:$J,$D8)+(SUMIFS(INDEX(OFFSET('Program Budget Input'!$A$1,6,1,2000,560),0,MATCH(CONCATENATE($D8," Sub-Total"),OFFSET('Program Budget Input'!$A$1,6,1,1,560),0)),OFFSET('Program Budget Input'!$A$1,6,1,2000,1),"Total")*INDEX(OFFSET('Levelized Avoided Cost Table'!$A$1,7,1,900,20),MATCH(CONCATENATE($D8,"_",1),OFFSET('Levelized Avoided Cost Table'!$A$1,7,1,900,1),0),MATCH("Discount Factor",OFFSET('Levelized Avoided Cost Table'!$A$1,7,1,1,20),0))),0) -> 1682598.782 | M8: 0.01187958329
D9: 2017 | E9: =SUMIFS('Measure Selection & CE Results'!$U:$U,'Measure Selection & CE Results'!$J:$J,$D9) -> 6496408.203 | F9: =SUMIFS('Measure Selection & CE Results'!$V:$V,'Measure Selection & CE Results'!$J:$J,$D9)+IFERROR(SUMIFS(INDEX(OFFSET('Program Budget Input'!$A$1,6,1,2000,560),0,MATCH(CONCATENATE($D9," Sub-Total"),OFFSET('Program Budget Input'!$A$1,6,1,1,560),0)),OFFSET('Program Budget Input'!$A$1,6,1,2000,1),"Total")*INDEX(OFFSET('Levelized Avoided Cost Table'!$A$1,7,1,900,20),MATCH(CONCATENATE($D9,"_",1),OFFSET('Levelized Avoided Cost Table'!$A$1,7,1,900,1),0),MATCH("Discount Factor",OFFSET('Levelized Avoided Cost Table'!$A$1,7,1,1,20),0)),0) -> 5087529.941 | G9: 1.276927758 | H9: =SUMIFS('Measure Selection & CE Results'!$AC:$AC,'Measure Selection & CE Results'!$J:$J,$D9) -> 5545016.908 | I9: =SUMIFS('Measure Selection & CE Results'!$AD:$AD,'Measure Selection & CE Results'!$J:$J,$D9)+IFERROR(SUMIFS(INDEX(OFFSET('Program Budget Input'!$A$1,6,1,2000,560),0,MATCH(CONCATENATE($D9," Sub-Total"),OFFSET('Program Budget Input'!$A$1,6,1,1,560),0)),OFFSET('Program Budget Input'!$A$1,6,1,2000,1),"Total")*INDEX(OFFSET('Levelized Avoided Cost Table'!$A$1,7,1,900,20),MATCH(CONCATENATE($D9,"_",1),OFFSET('Levelized Avoided Cost Table'!$A$1,7,1,900,1),0),MATCH("Discount Factor",OFFSET('Levelized Avoided Cost Table'!$A$1,7,1,1,20),0)),0) -> 1693141.251 | J9: 3.274987782 | K9: =SUMIFS('Measure Selection & CE Results'!$AP:$AP,'Measure Selection & CE Results'!$J:$J,$D9) -> 78366006.28 | L9: =IFERROR(SUMIFS('Measure Selection & CE Results'!$AQ:$AQ,'Measure Selection & CE Results'!$J:$J,$D9)+(SUMIFS(INDEX(OFFSET('Program Budget Input'!$A$1,6,1,2000,560),0,MATCH(CONCATENATE($D9," Sub-Total"),OFFSET('Program Budget Input'!$A$1,6,1,1,560),0)),OFFSET('Program Budget Input'!$A$1,6,1,2000,1),"Total")*INDEX(OFFSET('Levelized Avoided Cost Table'!$A$1,7,1,900,20),MATCH(CONCATENATE($D9,"_",1),OFFSET('Levelized Avoided Cost Table'!$A$1,7,1,900,1),0),MATCH("Discount Factor",OFFSET('Levelized Avoided Cost Table'!$A$1,7,1,1,20),0))),0) -> 1693141.251 | M9: 0.02160555745
D10: 2018 | E10: =SUMIFS('Measure Selection & CE Results'!$U:$U,'Measure Selection & CE Results'!$J:$J,$D10) -> 4816863.766 | F10: =SUMIFS('Measure Selection & CE Results'!$V:$V,'Measure Selection & CE Results'!$J:$J,$D10)+IFERROR(SUMIFS(INDEX(OFFSET('Program Budget Input'!$A$1,6,1,2000,560),0,MATCH(CONCATENATE($D10," Sub-Total"),OFFSET('Program Budget Input'!$A$1,6,1,1,560),0)),OFFSET('Program Budget Input'!$A$1,6,1,2000,1),"Total")*INDEX(OFFSET('Levelized Avoided Cost Table'!$A$1,7,1,900,20),MATCH(CONCATENATE($D10,"_",1),OFFSET('Levelized Avoided Cost Table'!$A$1,7,1,900,1),0),MATCH("Discount Factor",OFFSET('Levelized Avoided Cost Table'!$A$1,7,1,1,20),0)),0) -> 4743963.101 | G10: 1.015367039 | H10: =SUMIFS('Measure Selection & CE Results'!$AC:$AC,'Measure Selection & CE Results'!$J:$J,$D10) -> 4075763.054 | I10: =SUMIFS('Measure Selection & CE Results'!$AD:$AD,'Measure Selection & CE Results'!$J:$J,$D10)+IFERROR(SUMIFS(INDEX(OFFSET('Program Budget Input'!$A$1,6,1,2000,560),0,MATCH(CONCATENATE($D10," Sub-Total"),OFFSET('Program Budget Input'!$A$1,6,1,1,560),0)),OFFSET('Program Budget Input'!$A$1,6,1,2000,1),"Total")*INDEX(OFFSET('Levelized Avoided Cost Table'!$A$1,7,1,900,20),MATCH(CONCATENATE($D10,"_",1),OFFSET('Levelized Avoided Cost Table'!$A$1,7,1,900,1),0),MATCH("Discount Factor",OFFSET('Levelized Avoided Cost Table'!$A$1,7,1,1,20),0)),0) -> 1519956.593 | J10: 2.681499639 | K10: =SUMIFS('Measure Selection & CE Results'!$AP:$AP,'Measure Selection & CE Results'!$J:$J,$D10) -> 56624548.17 | L10: =IFERROR(SUMIFS('Measure Selection & CE Results'!$AQ:$AQ,'Measure Selection & CE Results'!$J:$J,$D10)+(SUMIFS(INDEX(OFFSET('Program Budget Input'!$A$1,6,1,2000,560),0,MATCH(CONCATENATE($D10," Sub-Total"),OFFSET('Program Budget Input'!$A$1,6,1,1,560),0)),OFFSET('Program Budget Input'!$A$1,6,1,2000,1),"Total")*INDEX(OFFSET('Levelized Avoided Cost Table'!$A$1,7,1,900,20),MATCH(CONCATENATE($D10,"_",1),OFFSET('Levelized Avoided Cost Table'!$A$1,7,1,900,1),0),MATCH("Discount Factor",OFFSET('Levelized Avoided Cost Table'!$A$1,7,1,1,20),0))),0) -> 1519956.593 | M10: 0.02684271472
D11: 2019 | E11: =SUMIFS('Measure Selection & CE Results'!$U:$U,'Measure Selection & CE Results'!$J:$J,$D11) -> 5058676.288 | F11: =SUMIFS('Measure Selection & CE Results'!$V:$V,'Measure Selection & CE Results'!$J:$J,$D11)+IFERROR(SUMIFS(INDEX(OFFSET('Program Budget Input'!$A$1,6,1,2000,560),0,MATCH(CONCATENATE($D11," Sub-Total"),OFFSET('Program Budget Input'!$A$1,6,1,1,560),0)),OFFSET('Program Budget Input'!$A$1,6,1,2000,1),"Total")*INDEX(OFFSET('Levelized Avoided Cost Table'!$A$1,7,1,900,20),MATCH(CONCATENATE($D11,"_",1),OFFSET('Levelized Avoided Cost Table'!$A$1,7,1,900,1),0),MATCH("Discount Factor",OFFSET('Levelized Avoided Cost Table'!$A$1,7,1,1,20),0)),0) -> 4563514.527 | G11: 1.108504478 | H11: =SUMIFS('Measure Selection & CE Results'!$AC:$AC,'Measure Selection & CE Results'!$J:$J,$D11) -> 4277254.383 | I11: =SUMIFS('Measure Selection & CE Results'!$AD:$AD,'Measure Selection & CE Results'!$J:$J,$D11)+IFERROR(SUMIFS(INDEX(OFFSET('Program Budget Input'!$A$1,6,1,2000,560),0,MATCH(CONCATENATE($D11," Sub-Total"),OFFSET('Program Budget Input'!$A$1,6,1,1,560),0)),OFFSET('Program Budget Input'!$A$1,6,1,2000,1),"Total")*INDEX(OFFSET('Levelized Avoided Cost Table'!$A$1,7,1,900,20),MATCH(CONCATENATE($D11,"_",1),OFFSET('Levelized Avoided Cost Table'!$A$1,7,1,900,1),0),MATCH("Discount Factor",OFFSET('Levelized Avoided Cost Table'!$A$1,7,1,1,20),0)),0) -> 1587659.669 | J11: 2.694062504 | K11: =SUMIFS('Measure Selection & CE Results'!$AP:$AP,'Measure Selection & CE Results'!$J:$J,$D11) -> 60199202.58 | L11: =IFERROR(SUMIFS('Measure Selection & CE Results'!$AQ:$AQ,'Measure Selection & CE Results'!$J:$J,$D11)+(SUMIFS(INDEX(OFFSET('Program Budget Input'!$A$1,6,1,2000,560),0,MATCH(CONCATENATE($D11," Sub-Total"),OFFSET('Program Budget Input'!$A$1,6,1,1,560),0)),OFFSET('Program Budget Input'!$A$1,6,1,2000,1),"Total")*INDEX(OFFSET('Levelized Avoided Cost Table'!$A$1,7,1,900,20),MATCH(CONCATENATE($D11,"_",1),OFFSET('Levelized Avoided Cost Table'!$A$1,7,1,900,1),0),MATCH("Discount Factor",OFFSET('Levelized Avoided Cost Table'!$A$1,7,1,1,20),0))),0) -> 1587659.669 | M11: 0.02637343355
D12: 2020 | E12: =SUMIFS('Measure Selection & CE Results'!$U:$U,'Measure Selection & CE Results'!$J:$J,$D12) -> 5509459.244 | F12: =SUMIFS('Measure Selection & CE Results'!$V:$V,'Measure Selection & CE Results'!$J:$J,$D12)+IFERROR(SUMIFS(INDEX(OFFSET('Program Budget Input'!$A$1,6,1,2000,560),0,MATCH(CONCATENATE($D12," Sub-Total"),OFFSET('Program Budget Input'!$A$1,6,1,1,560),0)),OFFSET('Program Budget Input'!$A$1,6,1,2000,1),"Total")*INDEX(OFFSET('Levelized Avoided Cost Table'!$A$1,7,1,900,20),MATCH(CONCATENATE($D12,"_",1),OFFSET('Levelized Avoided Cost Table'!$A$1,7,1,900,1),0),MATCH("Discount Factor",OFFSET('Levelized Avoided Cost Table'!$A$1,7,1,1,20),0)),0) -> 4740173.451 | G12: 1.162290642 | H12: =SUMIFS('Measure Selection & CE Results'!$AC:$AC,'Measure Selection & CE Results'!$J:$J,$D12) -> 4660459.132 | I12: =SUMIFS('Measure Selection & CE Results'!$AD:$AD,'Measure Selection & CE Results'!$J:$J,$D12)+IFERROR(SUMIFS(INDEX(OFFSET('Program Budget Input'!$A$1,6,1,2000,560),0,MATCH(CONCATENATE($D12," Sub-Total"),OFFSET('Program Budget Input'!$A$1,6,1,1,560),0)),OFFSET('Program Budget Input'!$A$1,6,1,2000,1),"Total")*INDEX(OFFSET('Levelized Avoided Cost Table'!$A$1,7,1,900,20),MATCH(CONCATENATE($D12,"_",1),OFFSET('Levelized Avoided Cost Table'!$A$1,7,1,900,1),0),MATCH("Discount Factor",OFFSET('Levelized Avoided Cost Table'!$A$1,7,1,1,20),0)),0) -> 1650743.315 | J12: 2.823248831 | K12: =SUMIFS('Measure Selection & CE Results'!$AP:$AP,'Measure Selection & CE Results'!$J:$J,$D12) -> 64740302.68 | L12: =IFERROR(SUMIFS('Measure Selection & CE Results'!$AQ:$AQ,'Measure Selection & CE Results'!$J:$J,$D12)+(SUMIFS(INDEX(OFFSET('Program Budget Input'!$A$1,6,1,2000,560),0,MATCH(CONCATENATE($D12," Sub-Total"),OFFSET('Program Budget Input'!$A$1,6,1,1,560),0)),OFFSET('Program Budget Input'!$A$1,6,1,2000,1),"Total")*INDEX(OFFSET('Levelized Avoided Cost Table'!$A$1,7,1,900,20),MATCH(CONCATENATE($D12,"_",1),OFFSET('Levelized Avoided Cost Table'!$A$1,7,1,900,1),0),MATCH("Discount Factor",OFFSET('Levelized Avoided Cost Table'!$A$1,7,1,1,20),0))),0) -> 1650743.315 | M12: 0.02549792396
D13: Plan Total | E13: =SUM(E7:E12) -> 35291795.96 | F13: =SUM(F7:F12) -> 24728180.22 | G13: =IF(E13="","",E13/F13) -> 1.42718937 | H13: =SUM(H7:H12) -> 30028372.45 | I13: =SUM(I7:I12) -> 8134099.619 | J13: =IF(H13="","",H13/I13) -> 3.691665195 | K13: =SUM(K7:K12) -> 433050697.6 | L13: =SUM(L7:L12) -> 8134099.619 | M13: =IF(K13="","",L13/K13) -> 0.01878325024
B15: TABLE 2
B16: SUMMARY OF PERSISTING CDM PORTFOLIO SAVINGS
C17: Plan Persisting Savings (end-user level) | D17: Implementation Year | E17: 2015 | G17: 2016 | I17: 2017 | K17: 2018 | M17: 2019 | O17: 2020 | Q17: 2021 | S17: 2022 | U17: 2023 | W17: 2024 | Y17: 2025 | AA17: 2026 | AC17: 2027 | AE17: 2028 | AG17: 2029 | AI17: 2030 | AK17: 2031 | AM17: 2032
E18: MW | F18: MWh | G18: MW | H18: MWh | I18: MW | J18: MWh | K18: MW | L18: MWh | M18: MW | N18: MWh | O18: MW | P18: MWh | Q18: MW | R18: MWh | S18: MW | T18: MWh | U18: MW | V18: MWh | W18: MW | X18: MWh | Y18: MW | Z18: MWh | AA18: MW | AB18: MWh | AC18: MW | AD18: MWh | AE18: MW | AF18: MWh | AG18: MW | AH18: MWh | AI18: MW | AJ18: MWh | AK18: MW | AL18: MWh | AM18: MW | AN18: MWh
D19: 2015 | E19: =IF(OFFSET('Measure Savings Results'!$A$1,5,15 +E$17-MIN('Measure Savings Results'!$F:$F))=E$17,(SUMIFS(OFFSET('Measure Savings Results'!$A$1,6,15 +E$17-MIN('Measure Savings Results'!$F:$F),2000),OFFSET('Measure Savings Results'!$A$1,6,4,2000),"Dx",OFFSET('Measure Savings Results'!$A$1,6,5,2000),$D19)/(1/(1-SUM('CE Parameters'!$F$10:$F$11))))/1000,0) -> 0.5791900232 | F19: =IF(OFFSET('Measure Savings Results'!$A$1,5,15 +MAX('Measure Savings Results'!$F:$F)-MIN('Measure Savings Results'!$F:$F)+MAX('Measure Savings Results'!$I:$I)+E$17-MIN('Measure Savings Results'!$F:$F))=E$17,(SUMIFS(OFFSET('Measure Savings Results'!$A$1,6,15 +MAX('Measure Savings Results'!$F:$F)-MIN('Measure Savings Results'!$F:$F)+MAX('Measure Savings Results'!$I:$I)+E$17-MIN('Measure Savings Results'!$F:$F),2000),OFFSET('Measure Savings Results'!$A$1,6,4,2000),"Dx",OFFSET('Measure Savings Results'!$A$1,6,5,2000),$D19)/(1/(1-SUM('CE Parameters'!$F$10:$F$11))))/1000,0) -> 2840.526829 | G19: =IF(OFFSET('Measure Savings Results'!$A$1,5,15 +G$17-MIN('Measure Savings Results'!$F:$F))=G$17,(SUMIFS(OFFSET('Measure Savings Results'!$A$1,6,15 +G$17-MIN('Measure Savings Results'!$F:$F),2000),OFFSET('Measure Savings Results'!$A$1,6,4,2000),"Dx",OFFSET('Measure Savings Results'!$A$1,6,5,2000),$D19)/(1/(1-SUM('CE Parameters'!$F$10:$F$11))))/1000,0) -> 0.5791900232 | H19: =IF(OFFSET('Measure Savings Results'!$A$1,5,15 +MAX('Measure Savings Results'!$F:$F)-MIN('Measure Savings Results'!$F:$F)+MAX('Measure Savings Results'!$I:$I)+G$17-MIN('Measure Savings Results'!$F:$F))=G$17,(SUMIFS(OFFSET('Measure Savings Results'!$A$1,6,15 +MAX('Measure Savings Results'!$F:$F)-MIN('Measure Savings Results'!$F:$F)+MAX('Measure Savings Results'!$I:$I)+G$17-MIN('Measure Savings Results'!$F:$F),2000),OFFSET('Measure Savings Results'!$A$1,6,4,2000),"Dx",OFFSET('Measure Savings Results'!$A$1,6,5,2000),$D19)/(1/(1-SUM('CE Parameters'!$F$10:$F$11))))/1000,0) -> 2840.526829 | I19: =IF(OFFSET('Measure Savings Results'!$A$1,5,15 +I$17-MIN('Measure Savings Results'!$F:$F))=I$17,(SUMIFS(OFFSET('Measure Savings Results'!$A$1,6,15 +I$17-MIN('Measure Savings Results'!$F:$F),2000),OFFSET('Measure Savings Results'!$A$1,6,4,2000),"Dx",OFFSET('Measure Savings Results'!$A$1,6,5,2000),$D19)/(1/(1-SUM('CE Parameters'!$F$10:$F$11))))/1000,0) -> 0.5791900232 | J19: =IF(OFFSET('Measure Savings Results'!$A$1,5,15 +MAX('Measure Savings Results'!$F:$F)-MIN('Measure Savings Results'!$F:$F)+MAX('Measure Savings Results'!$I:$I)+I$17-MIN('Measure Savings Results'!$F:$F))=I$17,(SUMIFS(OFFSET('Measure Savings Results'!$A$1,6,15 +MAX('Measure Savings Results'!$F:$F)-MIN('Measure Savings Results'!$F:$F)+MAX('Measure Savings Results'!$I:$I)+I$17-MIN('Measure Savings Results'!$F:$F),2000),OFFSET('Measure Savings Results'!$A$1,6,4,2000),"Dx",OFFSET('Measure Savings Results'!$A$1,6,5,2000),$D19)/(1/(1-SUM('CE Parameters'!$F$10:$F$11))))/1000,0) -> 2840.526829 | K19: =IF(OFFSET('Measure Savings Results'!$A$1,5,15 +K$17-MIN('Measure Savings Results'!$F:$F))=K$17,(SUMIFS(OFFSET('Measure Savings Results'!$A$1,6,15 +K$17-MIN('Measure Savings Results'!$F:$F),2000),OFFSET('Measure Savings Results'!$A$1,6,4,2000),"Dx",OFFSET('Measure Savings Results'!$A$1,6,5,2000),$D19)/(1/(1-SUM('CE Parameters'!$F$10:$F$11))))/1000,0) -> 0.5791900232 | L19: =IF(OFFSET('Measure Savings Results'!$A$1,5,15 +MAX('Measure Savings Results'!$F:$F)-MIN('Measure Savings Results'!$F:$F)+MAX('Measure Savings Results'!$I:$I)+K$17-MIN('Measure Savings Results'!$F:$F))=K$17,(SUMIFS(OFFSET('Measure Savings Results'!$A$1,6,15 +MAX('Measure Savings Results'!$F:$F)-MIN('Measure Savings Results'!$F:$F)+MAX('Measure Savings Results'!$I:$I)+K$17-MIN('Measure Savings Results'!$F:$F),2000),OFFSET('Measure Savings Results'!$A$1,6,4,2000),"Dx",OFFSET('Measure Savings Results'!$A$1,6,5,2000),$D19)/(1/(1-SUM('CE Parameters'!$F$10:$F$11))))/1000,0) -> 2840.526829 | M19: =IF(OFFSET('Measure Savings Results'!$A$1,5,15 +M$17-MIN('Measure Savings Results'!$F:$F))=M$17,(SUMIFS(OFFSET('Measure Savings Results'!$A$1,6,15 +M$17-MIN('Measure Savings Results'!$F:$F),2000),OFFSET('Measure Savings Results'!$A$1,6,4,2000),"Dx",OFFSET('Measure Savings Results'!$A$1,6,5,2000),$D19)/(1/(1-SUM('CE Parameters'!$F$10:$F$11))))/1000,0) -> 0.5617528232 | N19: =IF(OFFSET('Measure Savings Results'!$A$1,5,15 +MAX('Measure Savings Results'!$F:$F)-MIN('Measure Savings Results'!$F:$F)+MAX('Measure Savings Results'!$I:$I)+M$17-MIN('Measure Savings Results'!$F:$F))=M$17,(SUMIFS(OFFSET('Measure Savings Results'!$A$1,6,15 +MAX('Measure Savings Results'!$F:$F)-MIN('Measure Savings Results'!$F:$F)+MAX('Measure Savings Results'!$I:$I)+M$17-MIN('Measure Savings Results'!$F:$F),2000),OFFSET('Measure Savings Results'!$A$1,6,4,2000),"Dx",OFFSET('Measure Savings Results'!$A$1,6,5,2000),$D19)/(1/(1-SUM('CE Parameters'!$F$10:$F$11))))/1000,0) -> 2740.400169 | O19: =IF(OFFSET('Measure Savings Results'!$A$1,5,15 +O$17-MIN('Measure Savings Results'!$F:$F))=O$17,(SUMIFS(OFFSET('Measure Savings Results'!$A$1,6,15 +O$17-MIN('Measure Savings Results'!$F:$F),2000),OFFSET('Measure Savings Results'!$A$1,6,4,2000),"Dx",OFFSET('Measure Savings Results'!$A$1,6,5,2000),$D19)/(1/(1-SUM('CE Parameters'!$F$10:$F$11))))/1000,0) -> 0.5617528232 | P19: =IF(OFFSET('Measure Savings Results'!$A$1,5,15 +MAX('Measure Savings Results'!$F:$F)-MIN('Measure Savings Results'!$F:$F)+MAX('Measure Savings Results'!$I:$I)+O$17-MIN('Measure Savings Results'!$F:$F))=O$17,(SUMIFS(OFFSET('Measure Savings Results'!$A$1,6,15 +MAX('Measure Savings Results'!$F:$F)-MIN('Measure Savings Results'!$F:$F)+MAX('Measure Savings Results'!$I:$I)+O$17-MIN('Measure Savings Results'!$F:$F),2000),OFFSET('Measure Savings Results'!$A$1,6,4,2000),"Dx",OFFSET('Measure Savings Results'!$A$1,6,5,2000),$D19)/(1/(1-SUM('CE Parameters'!$F$10:$F$11))))/1000,0) -> 2740.400169 | Q19: =IF(OFFSET('Measure Savings Results'!$A$1,5,15 +Q$17-MIN('Measure Savings Results'!$F:$F))=Q$17,(SUMIFS(OFFSET('Measure Savings Results'!$A$1,6,15 +Q$17-MIN('Measure Savings Results'!$F:$F),2000),OFFSET('Measure Savings Results'!$A$1,6,4,2000),"Dx",OFFSET('Measure Savings Results'!$A$1,6,5,2000),$D19)/(1/(1-SUM('CE Parameters'!$F$10:$F$11))))/1000,0) -> 0.5617528232 | R19: =IF(OFFSET('Measure Savings Results'!$A$1,5,15 +MAX('Measure Savings Results'!$F:$F)-MIN('Measure Savings Results'!$F:$F)+MAX('Measure Savings Results'!$I:$I)+Q$17-MIN('Measure Savings Results'!$F:$F))=Q$17,(SUMIFS(OFFSET('Measure Savings Results'!$A$1,6,15 +MAX('Measure Savings Results'!$F:$F)-MIN('Measure Savings Results'!$F:$F)+MAX('Measure Savings Results'!$I:$I)+Q$17-MIN('Measure Savings Results'!$F:$F),2000),OFFSET('Measure Savings Results'!$A$1,6,4,2000),"Dx",OFFSET('Measure Savings Results'!$A$1,6,5,2000),$D19)/(1/(1-SUM('CE Parameters'!$F$10:$F$11))))/1000,0) -> 2740.400169 | S19: =IF(OFFSET('Measure Savings Results'!$A$1,5,15 +S$17-MIN('Measure Savings Results'!$F:$F))=S$17,(SUMIFS(OFFSET('Measure Savings Results'!$A$1,6,15 +S$17-MIN('Measure Savings Results'!$F:$F),2000),OFFSET('Measure Savings Results'!$A$1,6,4,2000),"Dx",OFFSET('Measure Savings Results'!$A$1,6,5,2000),$D19)/(1/(1-SUM('CE Parameters'!$F$10:$F$11))))/1000,0) -> 0.5617528232 | T19: =IF(OFFSET('Measure Savings Results'!$A$1,5,15 +MAX('Measure Savings Results'!$F:$F)-MIN('Measure Savings Results'!$F:$F)+MAX('Measure Savings Results'!$I:$I)+S$17-MIN('Measure Savings Results'!$F:$F))=S$17,(SUMIFS(OFFSET('Measure Savings Results'!$A$1,6,15 +MAX('Measure Savings Results'!$F:$F)-MIN('Measure Savings Results'!$F:$F)+MAX('Measure Savings Results'!$I:$I)+S$17-MIN('Measure Savings Results'!$F:$F),2000),OFFSET('Measure Savings Results'!$A$1,6,4,2000),"Dx",OFFSET('Measure Savings Results'!$A$1,6,5,2000),$D19)/(1/(1-SUM('CE Parameters'!$F$10:$F$11))))/1000,0) -> 2740.400169 | U19: =IF(OFFSET('Measure Savings Results'!$A$1,5,15 +U$17-MIN('Measure Savings Results'!$F:$F))=U$17,(SUMIFS(OFFSET('Measure Savings Results'!$A$1,6,15 +U$17-MIN('Measure Savings Results'!$F:$F),2000),OFFSET('Measure Savings Results'!$A$1,6,4,2000),"Dx",OFFSET('Measure Savings Results'!$A$1,6,5,2000),$D19)/(1/(1-SUM('CE Parameters'!$F$10:$F$11))))/1000,0) -> 0.5617528232 | V19: =IF(OFFSET('Measure Savings Results'!$A$1,5,15 +MAX('Measure Savings Results'!$F:$F)-MIN('Measure Savings Results'!$F:$F)+MAX('Measure Savings Results'!$I:$I)+U$17-MIN('Measure Savings Results'!$F:$F))=U$17,(SUMIFS(OFFSET('Measure Savings Results'!$A$1,6,15 +MAX('Measure Savings Results'!$F:$F)-MIN('Measure Savings Results'!$F:$F)+MAX('Measure Savings Results'!$I:$I)+U$17-MIN('Measure Savings Results'!$F:$F),2000),OFFSET('Measure Savings Results'!$A$1,6,4,2000),"Dx",OFFSET('Measure Savings Results'!$A$1,6,5,2000),$D19)/(1/(1-SUM('CE Parameters'!$F$10:$F$11))))/1000,0) -> 2740.400169 | W19: =IF(OFFSET('Measure Savings Results'!$A$1,5,15 +W$17-MIN('Measure Savings Results'!$F:$F))=W$17,(SUMIFS(OFFSET('Measure Savings Results'!$A$1,6,15 +W$17-MIN('Measure Savings Results'!$F:$F),2000),OFFSET('Measure Savings Results'!$A$1,6,4,2000),"Dx",OFFSET('Measure Savings Results'!$A$1,6,5,2000),$D19)/(1/(1-SUM('CE Parameters'!$F$10:$F$11))))/1000,0) -> 0.5617528232 | X19: =IF(OFFSET('Measure Savings Results'!$A$1,5,15 +MAX('Measure Savings Results'!$F:$F)-MIN('Measure Savings Results'!$F:$F)+MAX('Measure Savings Results'!$I:$I)+W$17-MIN('Measure Savings Results'!$F:$F))=W$17,(SUMIFS(OFFSET('Measure Savings Results'!$A$1,6,15 +MAX('Measure Savings Results'!$F:$F)-MIN('Measure Savings Results'!$F:$F)+MAX('Measure Savings Results'!$I:$I)+W$17-MIN('Measure Savings Results'!$F:$F),2000),OFFSET('Measure Savings Results'!$A$1,6,4,2000),"Dx",OFFSET('Measure Savings Results'!$A$1,6,5,2000),$D19)/(1/(1-SUM('CE Parameters'!$F$10:$F$11))))/1000,0) -> 2740.400169 | Y19: =IF(OFFSET('Measure Savings Results'!$A$1,5,15 +Y$17-MIN('Measure Savings Results'!$F:$F))=Y$17,(SUMIFS(OFFSET('Measure Savings Results'!$A$1,6,15 +Y$17-MIN('Measure Savings Results'!$F:$F),2000),OFFSET('Measure Savings Results'!$A$1,6,4,2000),"Dx",OFFSET('Measure Savings Results'!$A$1,6,5,2000),$D19)/(1/(1-SUM('CE Parameters'!$F$10:$F$11))))/1000,0) -> 0.5327276303 | Z19: =IF(OFFSET('Measure Savings Results'!$A$1,5,15 +MAX('Measure Savings Results'!$F:$F)-MIN('Measure Savings Results'!$F:$F)+MAX('Measure Savings Results'!$I:$I)+Y$17-MIN('Measure Savings Results'!$F:$F))=Y$17,(SUMIFS(OFFSET('Measure Savings Results'!$A$1,6,15 +MAX('Measure Savings Results'!$F:$F)-MIN('Measure Savings Results'!$F:$F)+MAX('Measure Savings Results'!$I:$I)+Y$17-MIN('Measure Savings Results'!$F:$F),2000),OFFSET('Measure Savings Results'!$A$1,6,4,2000),"Dx",OFFSET('Measure Savings Results'!$A$1,6,5,2000),$D19)/(1/(1-SUM('CE Parameters'!$F$10:$F$11))))/1000,0) -> 2380.120169 | AA19: =IF(OFFSET('Measure Savings Results'!$A$1,5,15 +AA$17-MIN('Measure Savings Results'!$F:$F))=AA$17,(SUMIFS(OFFSET('Measure Savings Results'!$A$1,6,15 +AA$17-MIN('Measure Savings Results'!$F:$F),2000),OFFSET('Measure Savings Results'!$A$1,6,4,2000),"Dx",OFFSET('Measure Savings Results'!$A$1,6,5,2000),$D19)/(1/(1-SUM('CE Parameters'!$F$10:$F$11))))/1000,0) -> 0.09496043033 | AB19: =IF(OFFSET('Measure Savings Results'!$A$1,5,15 +MAX('Measure Savings Results'!$F:$F)-MIN('Measure Savings Results'!$F:$F)+MAX('Measure Savings Results'!$I:$I)+AA$17-MIN('Measure Savings Results'!$F:$F))=AA$17,(SUMIFS(OFFSET('Measure Savings Results'!$A$1,6,15 +MAX('Measure Savings Results'!$F:$F)-MIN('Measure Savings Results'!$F:$F)+MAX('Measure Savings Results'!$I:$I)+AA$17-MIN('Measure Savings Results'!$F:$F),2000),OFFSET('Measure Savings Results'!$A$1,6,4,2000),"Dx",OFFSET('Measure Savings Results'!$A$1,6,5,2000),$D19)/(1/(1-SUM('CE Parameters'!$F$10:$F$11))))/1000,0) -> 160.2661695 | AC19: =IF(OFFSET('Measure Savings Results'!$A$1,5,15 +AC$17-MIN('Measure Savings Results'!$F:$F))=AC$17,(SUMIFS(OFFSET('Measure Savings Results'!$A$1,6,15 +AC$17-MIN('Measure Savings Results'!$F:$F),2000),OFFSET('Measure Savings Results'!$A$1,6,4,2000),"Dx",OFFSET('Measure Savings Results'!$A$1,6,5,2000),$D19)/(1/(1-SUM('CE Parameters'!$F$10:$F$11))))/1000,0) -> 0.09496043033 | AD19: =IF(OFFSET('Measure Savings Results'!$A$1,5,15 +MAX('Measure Savings Results'!$F:$F)-MIN('Measure Savings Results'!$F:$F)+MAX('Measure Savings Results'!$I:$I)+AC$17-MIN('Measure Savings Results'!$F:$F))=AC$17,(SUMIFS(OFFSET('Measure Savings Results'!$A$1,6,15 +MAX('Measure Savings Results'!$F:$F)-MIN('Measure Savings Results'!$F:$F)+MAX('Measure Savings Results'!$I:$I)+AC$17-MIN('Measure Savings Results'!$F:$F),2000),OFFSET('Measure Savings Results'!$A$1,6,4,2000),"Dx",OFFSET('Measure Savings Results'!$A$1,6,5,2000),$D19)/(1/(1-SUM('CE Parameters'!$F$10:$F$11))))/1000,0) -> 160.2661695 | AE19: =IF(OFFSET('Measure Savings Results'!$A$1,5,15 +AE$17-MIN('Measure Savings Results'!$F:$F))=AE$17,(SUMIFS(OFFSET('Measure Savings Results'!$A$1,6,15 +AE$17-MIN('Measure Savings Results'!$F:$F),2000),OFFSET('Measure Savings Results'!$A$1,6,4,2000),"Dx",OFFSET('Measure Savings Results'!$A$1,6,5,2000),$D19)/(1/(1-SUM('CE Parameters'!$F$10:$F$11))))/1000,0) -> 0.09496043033 | AF19: =IF(OFFSET('Measure Savings Results'!$A$1,5,15 +MAX('Measure Savings Results'!$F:$F)-MIN('Measure Savings Results'!$F:$F)+MAX('Measure Savings Results'!$I:$I)+AE$17-MIN('Measure Savings Results'!$F:$F))=AE$17,(SUMIFS(OFFSET('Measure Savings Results'!$A$1,6,15 +MAX('Measure Savings Results'!$F:$F)-MIN('Measure Savings Results'!$F:$F)+MAX('Measure Savings Results'!$I:$I)+AE$17-MIN('Measure Savings Results'!$F:$F),2000),OFFSET('Measure Savings Results'!$A$1,6,4,2000),"Dx",OFFSET('Measure Savings Results'!$A$1,6,5,2000),$D19)/(1/(1-SUM('CE Parameters'!$F$10:$F$11))))/1000,0) -> 160.2661695 | AG19: =IF(OFFSET('Measure Savings Results'!$A$1,5,15 +AG$17-MIN('Measure Savings Results'!$F:$F))=AG$17,(SUMIFS(OFFSET('Measure Savings Results'!$A$1,6,15 +AG$17-MIN('Measure Savings Results'!$F:$F),2000),OFFSET('Measure Savings Results'!$A$1,6,4,2000),"Dx",OFFSET('Measure Savings Results'!$A$1,6,5,2000),$D19)/(1/(1-SUM('CE Parameters'!$F$10:$F$11))))/1000,0) -> 0.07583903573 | AH19: =IF(OFFSET('Measure Savings Results'!$A$1,5,15 +MAX('Measure Savings Results'!$F:$F)-MIN('Measure Savings Results'!$F:$F)+MAX('Measure Savings Results'!$I:$I)+AG$17-MIN('Measure Savings Results'!$F:$F))=AG$17,(SUMIFS(OFFSET('Measure Savings Results'!$A$1,6,15 +MAX('Measure Savings Results'!$F:$F)-MIN('Measure Savings Results'!$F:$F)+MAX('Measure Savings Results'!$I:$I)+AG$17-MIN('Measure Savings Results'!$F:$F),2000),OFFSET('Measure Savings Results'!$A$1,6,4,2000),"Dx",OFFSET('Measure Savings Results'!$A$1,6,5,2000),$D19)/(1/(1-SUM('CE Parameters'!$F$10:$F$11))))/1000,0) -> 100.4162067 | AI19: =IF(OFFSET('Measure Savings Results'!$A$1,5,15 +AI$17-MIN('Measure Savings Results'!$F:$F))=AI$17,(SUMIFS(OFFSET('Measure Savings Results'!$A$1,6,15 +AI$17-MIN('Measure Savings Results'!$F:$F),2000),OFFSET('Measure Savings Results'!$A$1,6,4,2000),"Dx",OFFSET('Measure Savings Results'!$A$1,6,5,2000),$D19)/(1/(1-SUM('CE Parameters'!$F$10:$F$11))))/1000,0) -> 0.07583903573 | AJ19: =IF(OFFSET('Measure Savings Results'!$A$1,5,15 +MAX('Measure Savings Results'!$F:$F)-MIN('Measure Savings Results'!$F:$F)+MAX('Measure Savings Results'!$I:$I)+AI$17-MIN('Measure Savings Results'!$F:$F))=AI$17,(SUMIFS(OFFSET('Measure Savings Results'!$A$1,6,15 +MAX('Measure Savings Results'!$F:$F)-MIN('Measure Savings Results'!$F:$F)+MAX('Measure Savings Results'!$I:$I)+AI$17-MIN('Measure Savings Results'!$F:$F),2000),OFFSET('Measure Savings Results'!$A$1,6,4,2000),"Dx",OFFSET('Measure Savings Results'!$A$1,6,5,2000),$D19)/(1/(1-SUM('CE Parameters'!$F$10:$F$11))))/1000,0) -> 100.4162067 | AK19: =IF(OFFSET('Measure Savings Results'!$A$1,5,15 +AK$17-MIN('Measure Savings Results'!$F:$F))=AK$17,(SUMIFS(OFFSET('Measure Savings Results'!$A$1,6,15 +AK$17-MIN('Measure Savings Results'!$F:$F),2000),OFFSET('Measure Savings Results'!$A$1,6,4,2000),"Dx",OFFSET('Measure Savings Results'!$A$1,6,5,2000),$D19)/(1/(1-SUM('CE Parameters'!$F$10:$F$11))))/1000,0) -> 0.07583903573 | AL19: =IF(OFFSET('Measure Savings Results'!$A$1,5,15 +MAX('Measure Savings Results'!$F:$F)-MIN('Measure Savings Results'!$F:$F)+MAX('Measure Savings Results'!$I:$I)+AK$17-MIN('Measure Savings Results'!$F:$F))=AK$17,(SUMIFS(OFFSET('Measure Savings Results'!$A$1,6,15 +MAX('Measure Savings Results'!$F:$F)-MIN('Measure Savings Results'!$F:$F)+MAX('Measure Savings Results'!$I:$I)+AK$17-MIN('Measure Savings Results'!$F:$F),2000),OFFSET('Measure Savings Results'!$A$1,6,4,2000),"Dx",OFFSET('Measure Savings Results'!$A$1,6,5,2000),$D19)/(1/(1-SUM('CE Parameters'!$F$10:$F$11))))/1000,0) -> 100.4162067 | AM19: =IF(OFFSET('Measure Savings Results'!$A$1,5,15 +AM$17-MIN('Measure Savings Results'!$F:$F))=AM$17,(SUMIFS(OFFSET('Measure Savings Results'!$A$1,6,15 +AM$17-MIN('Measure Savings Results'!$F:$F),2000),OFFSET('Measure Savings Results'!$A$1,6,4,2000),"Dx",OFFSET('Measure Savings Results'!$A$1,6,5,2000),$D19)/(1/(1-SUM('CE Parameters'!$F$10:$F$11))))/1000,0) -> 0.07583903573 | AN19: =IF(OFFSET('Measure Savings Results'!$A$1,5,15 +MAX('Measure Savings Results'!$F:$F)-MIN('Measure Savings Results'!$F:$F)+MAX('Measure Savings Results'!$I:$I)+AM$17-MIN('Measure Savings Results'!$F:$F))=AM$17,(SUMIFS(OFFSET('Measure Savings Results'!$A$1,6,15 +MAX('Measure Savings Results'!$F:$F)-MIN('Measure Savings Results'!$F:$F)+MAX('Measure Savings Results'!$I:$I)+AM$17-MIN('Measure Savings Results'!$F:$F),2000),OFFSET('Measure Savings Results'!$A$1,6,4,2000),"Dx",OFFSET('Measure Savings Results'!$A$1,6,5,2000),$D19)/(1/(1-SUM('CE Parameters'!$F$10:$F$11))))/1000,0) -> 100.4162067
D20: 2016 | E20: =IF(OFFSET('Measure Savings Results'!$A$1,5,15 +E$17-MIN('Measure Savings Results'!$F:$F))=E$17,(SUMIFS(OFFSET('Measure Savings Results'!$A$1,6,15 +E$17-MIN('Measure Savings Results'!$F:$F),2000),OFFSET('Measure Savings Results'!$A$1,6,4,2000),"Dx",OFFSET('Measure Savings Results'!$A$1,6,5,2000),$D20)/(1/(1-SUM('CE Parameters'!$F$10:$F$11))))/1000,0) -> 0 | F20: =IF(OFFSET('Measure Savings Results'!$A$1,5,15 +MAX('Measure Savings Results'!$F:$F)-MIN('Measure Savings Results'!$F:$F)+MAX('Measure Savings Results'!$I:$I)+E$17-MIN('Measure Savings Results'!$F:$F))=E$17,(SUMIFS(OFFSET('Measure Savings Results'!$A$1,6,15 +MAX('Measure Savings Results'!$F:$F)-MIN('Measure Savings Results'!$F:$F)+MAX('Measure Savings Results'!$I:$I)+E$17-MIN('Measure Savings Results'!$F:$F),2000),OFFSET('Measure Savings Results'!$A$1,6,4,2000),"Dx",OFFSET('Measure Savings Results'!$A$1,6,5,2000),$D20)/(1/(1-SUM('CE Parameters'!$F$10:$F$11))))/1000,0) -> 0 | G20: =IF(OFFSET('Measure Savings Results'!$A$1,5,15 +G$17-MIN('Measure Savings Results'!$F:$F))=G$17,(SUMIFS(OFFSET('Measure Savings Results'!$A$1,6,15 +G$17-MIN('Measure Savings Results'!$F:$F),2000),OFFSET('Measure Savings Results'!$A$1,6,4,2000),"Dx",OFFSET('Measure Savings Results'!$A$1,6,5,2000),$D20)/(1/(1-SUM('CE Parameters'!$F$10:$F$11))))/1000,0) -> 1.853008259 | H20: =IF(OFFSET('Measure Savings Results'!$A$1,5,15 +MAX('Measure Savings Results'!$F:$F)-MIN('Measure Savings Results'!$F:$F)+MAX('Measure Savings Results'!$I:$I)+G$17-MIN('Measure Savings Results'!$F:$F))=G$17,(SUMIFS(OFFSET('Measure Savings Results'!$A$1,6,15 +MAX('Measure Savings Results'!$F:$F)-MIN('Measure Savings Results'!$F:$F)+MAX('Measure Savings Results'!$I:$I)+G$17-MIN('Measure Savings Results'!$F:$F),2000),OFFSET('Measure Savings Results'!$A$1,6,4,2000),"Dx",OFFSET('Measure Savings Results'!$A$1,6,5,2000),$D20)/(1/(1-SUM('CE Parameters'!$F$10:$F$11))))/1000,0) -> 11617.47515 | I20: =IF(OFFSET('Measure Savings Results'!$A$1,5,15 +I$17-MIN('Measure Savings Results'!$F:$F))=I$17,(SUMIFS(OFFSET('Measure Savings Results'!$A$1,6,15 +I$17-MIN('Measure Savings Results'!$F:$F),2000),OFFSET('Measure Savings Results'!$A$1,6,4,2000),"Dx",OFFSET('Measure Savings Results'!$A$1,6,5,2000),$D20)/(1/(1-SUM('CE Parameters'!$F$10:$F$11))))/1000,0) -> 1.853008259 | J20: =IF(OFFSET('Measure Savings Results'!$A$1,5,15 +MAX('Measure Savings Results'!$F:$F)-MIN('Measure Savings Results'!$F:$F)+MAX('Measure Savings Results'!$I:$I)+I$17-MIN('Measure Savings Results'!$F:$F))=I$17,(SUMIFS(OFFSET('Measure Savings Results'!$A$1,6,15 +MAX('Measure Savings Results'!$F:$F)-MIN('Measure Savings Results'!$F:$F)+MAX('Measure Savings Results'!$I:$I)+I$17-MIN('Measure Savings Results'!$F:$F),2000),OFFSET('Measure Savings Results'!$A$1,6,4,2000),"Dx",OFFSET('Measure Savings Results'!$A$1,6,5,2000),$D20)/(1/(1-SUM('CE Parameters'!$F$10:$F$11))))/1000,0) -> 11617.47515 | K20: =IF(OFFSET('Measure Savings Results'!$A$1,5,15 +K$17-MIN('Measure Savings Results'!$F:$F))=K$17,(SUMIFS(OFFSET('Measure Savings Results'!$A$1,6,15 +K$17-MIN('Measure Savings Results'!$F:$F),2000),OFFSET('Measure Savings Results'!$A$1,6,4,2000),"Dx",OFFSET('Measure Savings Results'!$A$1,6,5,2000),$D20)/(1/(1-SUM('CE Parameters'!$F$10:$F$11))))/1000,0) -> 1.853008259 | L20: =IF(OFFSET('Measure Savings Results'!$A$1,5,15 +MAX('Measure Savings Results'!$F:$F)-MIN('Measure Savings Results'!$F:$F)+MAX('Measure Savings Results'!$I:$I)+K$17-MIN('Measure Savings Results'!$F:$F))=K$17,(SUMIFS(OFFSET('Measure Savings Results'!$A$1,6,15 +MAX('Measure Savings Results'!$F:$F)-MIN('Measure Savings Results'!$F:$F)+MAX('Measure Savings Results'!$I:$I)+K$17-MIN('Measure Savings Results'!$F:$F),2000),OFFSET('Measure Savings Results'!$A$1,6,4,2000),"Dx",OFFSET('Measure Savings Results'!$A$1,6,5,2000),$D20)/(1/(1-SUM('CE Parameters'!$F$10:$F$11))))/1000,0) -> 11617.47515 | M20: =IF(OFFSET('Measure Savings Results'!$A$1,5,15 +M$17-MIN('Measure Savings Results'!$F:$F))=M$17,(SUMIFS(OFFSET('Measure Savings Results'!$A$1,6,15 +M$17-MIN('Measure Savings Results'!$F:$F),2000),OFFSET('Measure Savings Results'!$A$1,6,4,2000),"Dx",OFFSET('Measure Savings Results'!$A$1,6,5,2000),$D20)/(1/(1-SUM('CE Parameters'!$F$10:$F$11))))/1000,0) -> 1.853008259 | N20: =IF(OFFSET('Measure Savings Results'!$A$1,5,15 +MAX('Measure Savings Results'!$F:$F)-MIN('Measure Savings Results'!$F:$F)+MAX('Measure Savings Results'!$I:$I)+M$17-MIN('Measure Savings Results'!$F:$F))=M$17,(SUMIFS(OFFSET('Measure Savings Results'!$A$1,6,15 +MAX('Measure Savings Results'!$F:$F)-MIN('Measure Savings Results'!$F:$F)+MAX('Measure Savings Results'!$I:$I)+M$17-MIN('Measure Savings Results'!$F:$F),2000),OFFSET('Measure Savings Results'!$A$1,6,4,2000),"Dx",OFFSET('Measure Savings Results'!$A$1,6,5,2000),$D20)/(1/(1-SUM('CE Parameters'!$F$10:$F$11))))/1000,0) -> 11617.47515 | O20: =IF(OFFSET('Measure Savings Results'!$A$1,5,15 +O$17-MIN('Measure Savings Results'!$F:$F))=O$17,(SUMIFS(OFFSET('Measure Savings Results'!$A$1,6,15 +O$17-MIN('Measure Savings Results'!$F:$F),2000),OFFSET('Measure Savings Results'!$A$1,6,4,2000),"Dx",OFFSET('Measure Savings Results'!$A$1,6,5,2000),$D20)/(1/(1-SUM('CE Parameters'!$F$10:$F$11))))/1000,0) -> 1.826588259 | P20: =IF(OFFSET('Measure Savings Results'!$A$1,5,15 +MAX('Measure Savings Results'!$F:$F)-MIN('Measure Savings Results'!$F:$F)+MAX('Measure Savings Results'!$I:$I)+O$17-MIN('Measure Savings Results'!$F:$F))=O$17,(SUMIFS(OFFSET('Measure Savings Results'!$A$1,6,15 +MAX('Measure Savings Results'!$F:$F)-MIN('Measure Savings Results'!$F:$F)+MAX('Measure Savings Results'!$I:$I)+O$17-MIN('Measure Savings Results'!$F:$F),2000),OFFSET('Measure Savings Results'!$A$1,6,4,2000),"Dx",OFFSET('Measure Savings Results'!$A$1,6,5,2000),$D20)/(1/(1-SUM('CE Parameters'!$F$10:$F$11))))/1000,0) -> 11465.76809 | Q20: =IF(OFFSET('Measure Savings Results'!$A$1,5,15 +Q$17-MIN('Measure Savings Results'!$F:$F))=Q$17,(SUMIFS(OFFSET('Measure Savings Results'!$A$1,6,15 +Q$17-MIN('Measure Savings Results'!$F:$F),2000),OFFSET('Measure Savings Results'!$A$1,6,4,2000),"Dx",OFFSET('Measure Savings Results'!$A$1,6,5,2000),$D20)/(1/(1-SUM('CE Parameters'!$F$10:$F$11))))/1000,0) -> 1.826588259 | R20: =IF(OFFSET('Measure Savings Results'!$A$1,5,15 +MAX('Measure Savings Results'!$F:$F)-MIN('Measure Savings Results'!$F:$F)+MAX('Measure Savings Results'!$I:$I)+Q$17-MIN('Measure Savings Results'!$F:$F))=Q$17,(SUMIFS(OFFSET('Measure Savings Results'!$A$1,6,15 +MAX('Measure Savings Results'!$F:$F)-MIN('Measure Savings Results'!$F:$F)+MAX('Measure Savings Results'!$I:$I)+Q$17-MIN('Measure Savings Results'!$F:$F),2000),OFFSET('Measure Savings Results'!$A$1,6,4,2000),"Dx",OFFSET('Measure Savings Results'!$A$1,6,5,2000),$D20)/(1/(1-SUM('CE Parameters'!$F$10:$F$11))))/1000,0) -> 11465.76809 | S20: =IF(OFFSET('Measure Savings Results'!$A$1,5,15 +S$17-MIN('Measure Savings Results'!$F:$F))=S$17,(SUMIFS(OFFSET('Measure Savings Results'!$A$1,6,15 +S$17-MIN('Measure Savings Results'!$F:$F),2000),OFFSET('Measure Savings Results'!$A$1,6,4,2000),"Dx",OFFSET('Measure Savings Results'!$A$1,6,5,2000),$D20)/(1/(1-SUM('CE Parameters'!$F$10:$F$11))))/1000,0) -> 1.826588259 | T20: =IF(OFFSET('Measure Savings Results'!$A$1,5,15 +MAX('Measure Savings Results'!$F:$F)-MIN('Measure Savings Results'!$F:$F)+MAX('Measure Savings Results'!$I:$I)+S$17-MIN('Measure Savings Results'!$F:$F))=S$17,(SUMIFS(OFFSET('Measure Savings Results'!$A$1,6,15 +MAX('Measure Savings Results'!$F:$F)-MIN('Measure Savings Results'!$F:$F)+MAX('Measure Savings Results'!$I:$I)+S$17-MIN('Measure Savings Results'!$F:$F),2000),OFFSET('Measure Savings Results'!$A$1,6,4,2000),"Dx",OFFSET('Measure Savings Results'!$A$1,6,5,2000),$D20)/(1/(1-SUM('CE Parameters'!$F$10:$F$11))))/1000,0) -> 11465.76809 | U20: =IF(OFFSET('Measure Savings Results'!$A$1,5,15 +U$17-MIN('Measure Savings Results'!$F:$F))=U$17,(SUMIFS(OFFSET('Measure Savings Results'!$A$1,6,15 +U$17-MIN('Measure Savings Results'!$F:$F),2000),OFFSET('Measure Savings Results'!$A$1,6,4,2000),"Dx",OFFSET('Measure Savings Results'!$A$1,6,5,2000),$D20)/(1/(1-SUM('CE Parameters'!$F$10:$F$11))))/1000,0) -> 1.826588259 | V20: =IF(OFFSET('Measure Savings Results'!$A$1,5,15 +MAX('Measure Savings Results'!$F:$F)-MIN('Measure Savings Results'!$F:$F)+MAX('Measure Savings Results'!$I:$I)+U$17-MIN('Measure Savings Results'!$F:$F))=U$17,(SUMIFS(OFFSET('Measure Savings Results'!$A$1,6,15 +MAX('Measure Savings Results'!$F:$F)-MIN('Measure Savings Results'!$F:$F)+MAX('Measure Savings Results'!$I:$I)+U$17-MIN('Measure Savings Results'!$F:$F),2000),OFFSET('Measure Savings Results'!$A$1,6,4,2000),"Dx",OFFSET('Measure Savings Results'!$A$1,6,5,2000),$D20)/(1/(1-SUM('CE Parameters'!$F$10:$F$11))))/1000,0) -> 11465.76809 | W20: =IF(OFFSET('Measure Savings Results'!$A$1,5,15 +W$17-MIN('Measure Savings Results'!$F:$F))=W$17,(SUMIFS(OFFSET('Measure Savings Results'!$A$1,6,15 +W$17-MIN('Measure Savings Results'!$F:$F),2000),OFFSET('Measure Savings Results'!$A$1,6,4,2000),"Dx",OFFSET('Measure Savings Results'!$A$1,6,5,2000),$D20)/(1/(1-SUM('CE Parameters'!$F$10:$F$11))))/1000,0) -> 1.826588259 | X20: =IF(OFFSET('Measure Savings Results'!$A$1,5,15 +MAX('Measure Savings Results'!$F:$F)-MIN('Measure Savings Results'!$F:$F)+MAX('Measure Savings Results'!$I:$I)+W$17-MIN('Measure Savings Results'!$F:$F))=W$17,(SUMIFS(OFFSET('Measure Savings Results'!$A$1,6,15 +MAX('Measure Savings Results'!$F:$F)-MIN('Measure Savings Results'!$F:$F)+MAX('Measure Savings Results'!$I:$I)+W$17-MIN('Measure Savings Results'!$F:$F),2000),OFFSET('Measure Savings Results'!$A$1,6,4,2000),"Dx",OFFSET('Measure Savings Results'!$A$1,6,5,2000),$D20)/(1/(1-SUM('CE Parameters'!$F$10:$F$11))))/1000,0) -> 11465.76809 | Y20: =IF(OFFSET('Measure Savings Results'!$A$1,5,15 +Y$17-MIN('Measure Savings Results'!$F:$F))=Y$17,(SUMIFS(OFFSET('Measure Savings Results'!$A$1,6,15 +Y$17-MIN('Measure Savings Results'!$F:$F),2000),OFFSET('Measure Savings Results'!$A$1,6,4,2000),"Dx",OFFSET('Measure Savings Results'!$A$1,6,5,2000),$D20)/(1/(1-SUM('CE Parameters'!$F$10:$F$11))))/1000,0) -> 1.623971201 | Z20: =IF(OFFSET('Measure Savings Results'!$A$1,5,15 +MAX('Measure Savings Results'!$F:$F)-MIN('Measure Savings Results'!$F:$F)+MAX('Measure Savings Results'!$I:$I)+Y$17-MIN('Measure Savings Results'!$F:$F))=Y$17,(SUMIFS(OFFSET('Measure Savings Results'!$A$1,6,15 +MAX('Measure Savings Results'!$F:$F)-MIN('Measure Savings Results'!$F:$F)+MAX('Measure Savings Results'!$I:$I)+Y$17-MIN('Measure Savings Results'!$F:$F),2000),OFFSET('Measure Savings Results'!$A$1,6,4,2000),"Dx",OFFSET('Measure Savings Results'!$A$1,6,5,2000),$D20)/(1/(1-SUM('CE Parameters'!$F$10:$F$11))))/1000,0) -> 10720.73246 | AA20: =IF(OFFSET('Measure Savings Results'!$A$1,5,15 +AA$17-MIN('Measure Savings Results'!$F:$F))=AA$17,(SUMIFS(OFFSET('Measure Savings Results'!$A$1,6,15 +AA$17-MIN('Measure Savings Results'!$F:$F),2000),OFFSET('Measure Savings Results'!$A$1,6,4,2000),"Dx",OFFSET('Measure Savings Results'!$A$1,6,5,2000),$D20)/(1/(1-SUM('CE Parameters'!$F$10:$F$11))))/1000,0) -> 1.555271172 | AB20: =IF(OFFSET('Measure Savings Results'!$A$1,5,15 +MAX('Measure Savings Results'!$F:$F)-MIN('Measure Savings Results'!$F:$F)+MAX('Measure Savings Results'!$I:$I)+AA$17-MIN('Measure Savings Results'!$F:$F))=AA$17,(SUMIFS(OFFSET('Measure Savings Results'!$A$1,6,15 +MAX('Measure Savings Results'!$F:$F)-MIN('Measure Savings Results'!$F:$F)+MAX('Measure Savings Results'!$I:$I)+AA$17-MIN('Measure Savings Results'!$F:$F),2000),OFFSET('Measure Savings Results'!$A$1,6,4,2000),"Dx",OFFSET('Measure Savings Results'!$A$1,6,5,2000),$D20)/(1/(1-SUM('CE Parameters'!$F$10:$F$11))))/1000,0) -> 10053.72494 | AC20: =IF(OFFSET('Measure Savings Results'!$A$1,5,15 +AC$17-MIN('Measure Savings Results'!$F:$F))=AC$17,(SUMIFS(OFFSET('Measure Savings Results'!$A$1,6,15 +AC$17-MIN('Measure Savings Results'!$F:$F),2000),OFFSET('Measure Savings Results'!$A$1,6,4,2000),"Dx",OFFSET('Measure Savings Results'!$A$1,6,5,2000),$D20)/(1/(1-SUM('CE Parameters'!$F$10:$F$11))))/1000,0) -> 1.353224772 | AD20: =IF(OFFSET('Measure Savings Results'!$A$1,5,15 +MAX('Measure Savings Results'!$F:$F)-MIN('Measure Savings Results'!$F:$F)+MAX('Measure Savings Results'!$I:$I)+AC$17-MIN('Measure Savings Results'!$F:$F))=AC$17,(SUMIFS(OFFSET('Measure Savings Results'!$A$1,6,15 +MAX('Measure Savings Results'!$F:$F)-MIN('Measure Savings Results'!$F:$F)+MAX('Measure Savings Results'!$I:$I)+AC$17-MIN('Measure Savings Results'!$F:$F),2000),OFFSET('Measure Savings Results'!$A$1,6,4,2000),"Dx",OFFSET('Measure Savings Results'!$A$1,6,5,2000),$D20)/(1/(1-SUM('CE Parameters'!$F$10:$F$11))))/1000,0) -> 9029.176942 | AE20: =IF(OFFSET('Measure Savings Results'!$A$1,5,15 +AE$17-MIN('Measure Savings Results'!$F:$F))=AE$17,(SUMIFS(OFFSET('Measure Savings Results'!$A$1,6,15 +AE$17-MIN('Measure Savings Results'!$F:$F),2000),OFFSET('Measure Savings Results'!$A$1,6,4,2000),"Dx",OFFSET('Measure Savings Results'!$A$1,6,5,2000),$D20)/(1/(1-SUM('CE Parameters'!$F$10:$F$11))))/1000,0) -> 1.353224772 | AF20: =IF(OFFSET('Measure Savings Results'!$A$1,5,15 +MAX('Measure Savings Results'!$F:$F)-MIN('Measure Savings Results'!$F:$F)+MAX('Measure Savings Results'!$I:$I)+AE$17-MIN('Measure Savings Results'!$F:$F))=AE$17,(SUMIFS(OFFSET('Measure Savings Results'!$A$1,6,15 +MAX('Measure Savings Results'!$F:$F)-MIN('Measure Savings Results'!$F:$F)+MAX('Measure Savings Results'!$I:$I)+AE$17-MIN('Measure Savings Results'!$F:$F),2000),OFFSET('Measure Savings Results'!$A$1,6,4,2000),"Dx",OFFSET('Measure Savings Results'!$A$1,6,5,2000),$D20)/(1/(1-SUM('CE Parameters'!$F$10:$F$11))))/1000,0) -> 9029.176942 | AG20: =IF(OFFSET('Measure Savings Results'!$A$1,5,15 +AG$17-MIN('Measure Savings Results'!$F:$F))=AG$17,(SUMIFS(OFFSET('Measure Savings Results'!$A$1,6,15 +AG$17-MIN('Measure Savings Results'!$F:$F),2000),OFFSET('Measure Savings Results'!$A$1,6,4,2000),"Dx",OFFSET('Measure Savings Results'!$A$1,6,5,2000),$D20)/(1/(1-SUM('CE Parameters'!$F$10:$F$11))))/1000,0) -> 1.353224772 | AH20: =IF(OFFSET('Measure Savings Results'!$A$1,5,15 +MAX('Measure Savings Results'!$F:$F)-MIN('Measure Savings Results'!$F:$F)+MAX('Measure Savings Results'!$I:$I)+AG$17-MIN('Measure Savings Results'!$F:$F))=AG$17,(SUMIFS(OFFSET('Measure Savings Results'!$A$1,6,15 +MAX('Measure Savings Results'!$F:$F)-MIN('Measure Savings Results'!$F:$F)+MAX('Measure Savings Results'!$I:$I)+AG$17-MIN('Measure Savings Results'!$F:$F),2000),OFFSET('Measure Savings Results'!$A$1,6,4,2000),"Dx",OFFSET('Measure Savings Results'!$A$1,6,5,2000),$D20)/(1/(1-SUM('CE Parameters'!$F$10:$F$11))))/1000,0) -> 9029.176942 | AI20: =IF(OFFSET('Measure Savings Results'!$A$1,5,15 +AI$17-MIN('Measure Savings Results'!$F:$F))=AI$17,(SUMIFS(OFFSET('Measure Savings Results'!$A$1,6,15 +AI$17-MIN('Measure Savings Results'!$F:$F),2000),OFFSET('Measure Savings Results'!$A$1,6,4,2000),"Dx",OFFSET('Measure Savings Results'!$A$1,6,5,2000),$D20)/(1/(1-SUM('CE Parameters'!$F$10:$F$11))))/1000,0) -> 1.316803068 | AJ20: =IF(OFFSET('Measure Savings Results'!$A$1,5,15 +MAX('Measure Savings Results'!$F:$F)-MIN('Measure Savings Results'!$F:$F)+MAX('Measure Savings Results'!$I:$I)+AI$17-MIN('Measure Savings Results'!$F:$F))=AI$17,(SUMIFS(OFFSET('Measure Savings Results'!$A$1,6,15 +MAX('Measure Savings Results'!$F:$F)-MIN('Measure Savings Results'!$F:$F)+MAX('Measure Savings Results'!$I:$I)+AI$17-MIN('Measure Savings Results'!$F:$F),2000),OFFSET('Measure Savings Results'!$A$1,6,4,2000),"Dx",OFFSET('Measure Savings Results'!$A$1,6,5,2000),$D20)/(1/(1-SUM('CE Parameters'!$F$10:$F$11))))/1000,0) -> 8915.177013 | AK20: =IF(OFFSET('Measure Savings Results'!$A$1,5,15 +AK$17-MIN('Measure Savings Results'!$F:$F))=AK$17,(SUMIFS(OFFSET('Measure Savings Results'!$A$1,6,15 +AK$17-MIN('Measure Savings Results'!$F:$F),2000),OFFSET('Measure Savings Results'!$A$1,6,4,2000),"Dx",OFFSET('Measure Savings Results'!$A$1,6,5,2000),$D20)/(1/(1-SUM('CE Parameters'!$F$10:$F$11))))/1000,0) -> 1.316803068 | AL20: =IF(OFFSET('Measure Savings Results'!$A$1,5,15 +MAX('Measure Savings Results'!$F:$F)-MIN('Measure Savings Results'!$F:$F)+MAX('Measure Savings Results'!$I:$I)+AK$17-MIN('Measure Savings Results'!$F:$F))=AK$17,(SUMIFS(OFFSET('Measure Savings Results'!$A$1,6,15 +MAX('Measure Savings Results'!$F:$F)-MIN('Measure Savings Results'!$F:$F)+MAX('Measure Savings Results'!$I:$I)+AK$17-MIN('Measure Savings Results'!$F:$F),2000),OFFSET('Measure Savings Results'!$A$1,6,4,2000),"Dx",OFFSET('Measure Savings Results'!$A$1,6,5,2000),$D20)/(1/(1-SUM('CE Parameters'!$F$10:$F$11))))/1000,0) -> 8915.177013 | AM20: =IF(OFFSET('Measure Savings Results'!$A$1,5,15 +AM$17-MIN('Measure Savings Results'!$F:$F))=AM$17,(SUMIFS(OFFSET('Measure Savings Results'!$A$1,6,15 +AM$17-MIN('Measure Savings Results'!$F:$F),2000),OFFSET('Measure Savings Results'!$A$1,6,4,2000),"Dx",OFFSET('Measure Savings Results'!$A$1,6,5,2000),$D20)/(1/(1-SUM('CE Parameters'!$F$10:$F$11))))/1000,0) -> 1.129498668 | AN20: =IF(OFFSET('Measure Savings Results'!$A$1,5,15 +MAX('Measure Savings Results'!$F:$F)-MIN('Measure Savings Results'!$F:$F)+MAX('Measure Savings Results'!$I:$I)+AM$17-MIN('Measure Savings Results'!$F:$F))=AM$17,(SUMIFS(OFFSET('Measure Savings Results'!$A$1,6,15 +MAX('Measure Savings Results'!$F:$F)-MIN('Measure Savings Results'!$F:$F)+MAX('Measure Savings Results'!$I:$I)+AM$17-MIN('Measure Savings Results'!$F:$F),2000),OFFSET('Measure Savings Results'!$A$1,6,4,2000),"Dx",OFFSET('Measure Savings Results'!$A$1,6,5,2000),$D20)/(1/(1-SUM('CE Parameters'!$F$10:$F$11))))/1000,0) -> 8023.918781
D21: 2017 | E21: =IF(OFFSET('Measure Savings Results'!$A$1,5,15 +E$17-MIN('Measure Savings Results'!$F:$F))=E$17,(SUMIFS(OFFSET('Measure Savings Results'!$A$1,6,15 +E$17-MIN('Measure Savings Results'!$F:$F),2000),OFFSET('Measure Savings Results'!$A$1,6,4,2000),"Dx",OFFSET('Measure Savings Results'!$A$1,6,5,2000),$D21)/(1/(1-SUM('CE Parameters'!$F$10:$F$11))))/1000,0) -> 0 | F21: =IF(OFFSET('Measure Savings Results'!$A$1,5,15 +MAX('Measure Savings Results'!$F:$F)-MIN('Measure Savings Results'!$F:$F)+MAX('Measure Savings Results'!$I:$I)+E$17-MIN('Measure Savings Results'!$F:$F))=E$17,(SUMIFS(OFFSET('Measure Savings Results'!$A$1,6,15 +MAX('Measure Savings Results'!$F:$F)-MIN('Measure Savings Results'!$F:$F)+MAX('Measure Savings Results'!$I:$I)+E$17-MIN('Measure Savings Results'!$F:$F),2000),OFFSET('Measure Savings Results'!$A$1,6,4,2000),"Dx",OFFSET('Measure Savings Results'!$A$1,6,5,2000),$D21)/(1/(1-SUM('CE Parameters'!$F$10:$F$11))))/1000,0) -> 0 | G21: =IF(OFFSET('Measure Savings Results'!$A$1,5,15 +G$17-MIN('Measure Savings Results'!$F:$F))=G$17,(SUMIFS(OFFSET('Measure Savings Results'!$A$1,6,15 +G$17-MIN('Measure Savings Results'!$F:$F),2000),OFFSET('Measure Savings Results'!$A$1,6,4,2000),"Dx",OFFSET('Measure Savings Results'!$A$1,6,5,2000),$D21)/(1/(1-SUM('CE Parameters'!$F$10:$F$11))))/1000,0) -> 0 | H21: =IF(OFFSET('Measure Savings Results'!$A$1,5,15 +MAX('Measure Savings Results'!$F:$F)-MIN('Measure Savings Results'!$F:$F)+MAX('Measure Savings Results'!$I:$I)+G$17-MIN('Measure Savings Results'!$F:$F))=G$17,(SUMIFS(OFFSET('Measure Savings Results'!$A$1,6,15 +MAX('Measure Savings Results'!$F:$F)-MIN('Measure Savings Results'!$F:$F)+MAX('Measure Savings Results'!$I:$I)+G$17-MIN('Measure Savings Results'!$F:$F),2000),OFFSET('Measure Savings Results'!$A$1,6,4,2000),"Dx",OFFSET('Measure Savings Results'!$A$1,6,5,2000),$D21)/(1/(1-SUM('CE Parameters'!$F$10:$F$11))))/1000,0) -> 0 | I21: =IF(OFFSET('Measure Savings Results'!$A$1,5,15 +I$17-MIN('Measure Savings Results'!$F:$F))=I$17,(SUMIFS(OFFSET('Measure Savings Results'!$A$1,6,15 +I$17-MIN('Measure Savings Results'!$F:$F),2000),OFFSET('Measure Savings Results'!$A$1,6,4,2000),"Dx",OFFSET('Measure Savings Results'!$A$1,6,5,2000),$D21)/(1/(1-SUM('CE Parameters'!$F$10:$F$11))))/1000,0) -> 1.333013114 | J21: =IF(OFFSET('Measure Savings Results'!$A$1,5,15 +MAX('Measure Savings Results'!$F:$F)-MIN('Measure Savings Results'!$F:$F)+MAX('Measure Savings Results'!$I:$I)+I$17-MIN('Measure Savings Results'!$F:$F))=I$17,(SUMIFS(OFFSET('Measure Savings Results'!$A$1,6,15 +MAX('Measure Savings Results'!$F:$F)-MIN('Measure Savings Results'!$F:$F)+MAX('Measure Savings Results'!$I:$I)+I$17-MIN('Measure Savings Results'!$F:$F),2000),OFFSET('Measure Savings Results'!$A$1,6,4,2000),"Dx",OFFSET('Measure Savings Results'!$A$1,6,5,2000),$D21)/(1/(1-SUM('CE Parameters'!$F$10:$F$11))))/1000,0) -> 7034.716363 | K21: =IF(OFFSET('Measure Savings Results'!$A$1,5,15 +K$17-MIN('Measure Savings Results'!$F:$F))=K$17,(SUMIFS(OFFSET('Measure Savings Results'!$A$1,6,15 +K$17-MIN('Measure Savings Results'!$F:$F),2000),OFFSET('Measure Savings Results'!$A$1,6,4,2000),"Dx",OFFSET('Measure Savings Results'!$A$1,6,5,2000),$D21)/(1/(1-SUM('CE Parameters'!$F$10:$F$11))))/1000,0) -> 1.333013114 | L21: =IF(OFFSET('Measure Savings Results'!$A$1,5,15 +MAX('Measure Savings Results'!$F:$F)-MIN('Measure Savings Results'!$F:$F)+MAX('Measure Savings Results'!$I:$I)+K$17-MIN('Measure Savings Results'!$F:$F))=K$17,(SUMIFS(OFFSET('Measure Savings Results'!$A$1,6,15 +MAX('Measure Savings Results'!$F:$F)-MIN('Measure Savings Results'!$F:$F)+MAX('Measure Savings Results'!$I:$I)+K$17-MIN('Measure Savings Results'!$F:$F),2000),OFFSET('Measure Savings Results'!$A$1,6,4,2000),"Dx",OFFSET('Measure Savings Results'!$A$1,6,5,2000),$D21)/(1/(1-SUM('CE Parameters'!$F$10:$F$11))))/1000,0) -> 7034.716363 | M21: =IF(OFFSET('Measure Savings Results'!$A$1,5,15 +M$17-MIN('Measure Savings Results'!$F:$F))=M$17,(SUMIFS(OFFSET('Measure Savings Results'!$A$1,6,15 +M$17-MIN('Measure Savings Results'!$F:$F),2000),OFFSET('Measure Savings Results'!$A$1,6,4,2000),"Dx",OFFSET('Measure Savings Results'!$A$1,6,5,2000),$D21)/(1/(1-SUM('CE Parameters'!$F$10:$F$11))))/1000,0) -> 1.333013114 | N21: =IF(OFFSET('Measure Savings Results'!$A$1,5,15 +MAX('Measure Savings Results'!$F:$F)-MIN('Measure Savings Results'!$F:$F)+MAX('Measure Savings Results'!$I:$I)+M$17-MIN('Measure Savings Results'!$F:$F))=M$17,(SUMIFS(OFFSET('Measure Savings Results'!$A$1,6,15 +MAX('Measure Savings Results'!$F:$F)-MIN('Measure Savings Results'!$F:$F)+MAX('Measure Savings Results'!$I:$I)+M$17-MIN('Measure Savings Results'!$F:$F),2000),OFFSET('Measure Savings Results'!$A$1,6,4,2000),"Dx",OFFSET('Measure Savings Results'!$A$1,6,5,2000),$D21)/(1/(1-SUM('CE Parameters'!$F$10:$F$11))))/1000,0) -> 7034.716363 | O21: =IF(OFFSET('Measure Savings Results'!$A$1,5,15 +O$17-MIN('Measure Savings Results'!$F:$F))=O$17,(SUMIFS(OFFSET('Measure Savings Results'!$A$1,6,15 +O$17-MIN('Measure Savings Results'!$F:$F),2000),OFFSET('Measure Savings Results'!$A$1,6,4,2000),"Dx",OFFSET('Measure Savings Results'!$A$1,6,5,2000),$D21)/(1/(1-SUM('CE Parameters'!$F$10:$F$11))))/1000,0) -> 1.333013114 | P21: =IF(OFFSET('Measure Savings Results'!$A$1,5,15 +MAX('Measure Savings Results'!$F:$F)-MIN('Measure Savings Results'!$F:$F)+MAX('Measure Savings Results'!$I:$I)+O$17-MIN('Measure Savings Results'!$F:$F))=O$17,(SUMIFS(OFFSET('Measure Savings Results'!$A$1,6,15 +MAX('Measure Savings Results'!$F:$F)-MIN('Measure Savings Results'!$F:$F)+MAX('Measure Savings Results'!$I:$I)+O$17-MIN('Measure Savings Results'!$F:$F),2000),OFFSET('Measure Savings Results'!$A$1,6,4,2000),"Dx",OFFSET('Measure Savings Results'!$A$1,6,5,2000),$D21)/(1/(1-SUM('CE Parameters'!$F$10:$F$11))))/1000,0) -> 7034.716363 | Q21: =IF(OFFSET('Measure Savings Results'!$A$1,5,15 +Q$17-MIN('Measure Savings Results'!$F:$F))=Q$17,(SUMIFS(OFFSET('Measure Savings Results'!$A$1,6,15 +Q$17-MIN('Measure Savings Results'!$F:$F),2000),OFFSET('Measure Savings Results'!$A$1,6,4,2000),"Dx",OFFSET('Measure Savings Results'!$A$1,6,5,2000),$D21)/(1/(1-SUM('CE Parameters'!$F$10:$F$11))))/1000,0) -> 1.306593114 | R21: =IF(OFFSET('Measure Savings Results'!$A$1,5,15 +MAX('Measure Savings Results'!$F:$F)-MIN('Measure Savings Results'!$F:$F)+MAX('Measure Savings Results'!$I:$I)+Q$17-MIN('Measure Savings Results'!$F:$F))=Q$17,(SUMIFS(OFFSET('Measure Savings Results'!$A$1,6,15 +MAX('Measure Savings Results'!$F:$F)-MIN('Measure Savings Results'!$F:$F)+MAX('Measure Savings Results'!$I:$I)+Q$17-MIN('Measure Savings Results'!$F:$F),2000),OFFSET('Measure Savings Results'!$A$1,6,4,2000),"Dx",OFFSET('Measure Savings Results'!$A$1,6,5,2000),$D21)/(1/(1-SUM('CE Parameters'!$F$10:$F$11))))/1000,0) -> 6883.009303 | S21: =IF(OFFSET('Measure Savings Results'!$A$1,5,15 +S$17-MIN('Measure Savings Results'!$F:$F))=S$17,(SUMIFS(OFFSET('Measure Savings Results'!$A$1,6,15 +S$17-MIN('Measure Savings Results'!$F:$F),2000),OFFSET('Measure Savings Results'!$A$1,6,4,2000),"Dx",OFFSET('Measure Savings Results'!$A$1,6,5,2000),$D21)/(1/(1-SUM('CE Parameters'!$F$10:$F$11))))/1000,0) -> 1.306593114 | T21: =IF(OFFSET('Measure Savings Results'!$A$1,5,15 +MAX('Measure Savings Results'!$F:$F)-MIN('Measure Savings Results'!$F:$F)+MAX('Measure Savings Results'!$I:$I)+S$17-MIN('Measure Savings Results'!$F:$F))=S$17,(SUMIFS(OFFSET('Measure Savings Results'!$A$1,6,15 +MAX('Measure Savings Results'!$F:$F)-MIN('Measure Savings Results'!$F:$F)+MAX('Measure Savings Results'!$I:$I)+S$17-MIN('Measure Savings Results'!$F:$F),2000),OFFSET('Measure Savings Results'!$A$1,6,4,2000),"Dx",OFFSET('Measure Savings Results'!$A$1,6,5,2000),$D21)/(1/(1-SUM('CE Parameters'!$F$10:$F$11))))/1000,0) -> 6883.009303 | U21: =IF(OFFSET('Measure Savings Results'!$A$1,5,15 +U$17-MIN('Measure Savings Results'!$F:$F))=U$17,(SUMIFS(OFFSET('Measure Savings Results'!$A$1,6,15 +U$17-MIN('Measure Savings Results'!$F:$F),2000),OFFSET('Measure Savings Results'!$A$1,6,4,2000),"Dx",OFFSET('Measure Savings Results'!$A$1,6,5,2000),$D21)/(1/(1-SUM('CE Parameters'!$F$10:$F$11))))/1000,0) -> 1.306593114 | V21: =IF(OFFSET('Measure Savings Results'!$A$1,5,15 +MAX('Measure Savings Results'!$F:$F)-MIN('Measure Savings Results'!$F:$F)+MAX('Measure Savings Results'!$I:$I)+U$17-MIN('Measure Savings Results'!$F:$F))=U$17,(SUMIFS(OFFSET('Measure Savings Results'!$A$1,6,15 +MAX('Measure Savings Results'!$F:$F)-MIN('Measure Savings Results'!$F:$F)+MAX('Measure Savings Results'!$I:$I)+U$17-MIN('Measure Savings Results'!$F:$F),2000),OFFSET('Measure Savings Results'!$A$1,6,4,2000),"Dx",OFFSET('Measure Savings Results'!$A$1,6,5,2000),$D21)/(1/(1-SUM('CE Parameters'!$F$10:$F$11))))/1000,0) -> 6883.009303 | W21: =IF(OFFSET('Measure Savings Results'!$A$1,5,15 +W$17-MIN('Measure Savings Results'!$F:$F))=W$17,(SUMIFS(OFFSET('Measure Savings Results'!$A$1,6,15 +W$17-MIN('Measure Savings Results'!$F:$F),2000),OFFSET('Measure Savings Results'!$A$1,6,4,2000),"Dx",OFFSET('Measure Savings Results'!$A$1,6,5,2000),$D21)/(1/(1-SUM('CE Parameters'!$F$10:$F$11))))/1000,0) -> 1.306593114 | X21: =IF(OFFSET('Measure Savings Results'!$A$1,5,15 +MAX('Measure Savings Results'!$F:$F)-MIN('Measure Savings Results'!$F:$F)+MAX('Measure Savings Results'!$I:$I)+W$17-MIN('Measure Savings Results'!$F:$F))=W$17,(SUMIFS(OFFSET('Measure Savings Results'!$A$1,6,15 +MAX('Measure Savings Results'!$F:$F)-MIN('Measure Savings Results'!$F:$F)+MAX('Measure Savings Results'!$I:$I)+W$17-MIN('Measure Savings Results'!$F:$F),2000),OFFSET('Measure Savings Results'!$A$1,6,4,2000),"Dx",OFFSET('Measure Savings Results'!$A$1,6,5,2000),$D21)/(1/(1-SUM('CE Parameters'!$F$10:$F$11))))/1000,0) -> 6883.009303 | Y21: =IF(OFFSET('Measure Savings Results'!$A$1,5,15 +Y$17-MIN('Measure Savings Results'!$F:$F))=Y$17,(SUMIFS(OFFSET('Measure Savings Results'!$A$1,6,15 +Y$17-MIN('Measure Savings Results'!$F:$F),2000),OFFSET('Measure Savings Results'!$A$1,6,4,2000),"Dx",OFFSET('Measure Savings Results'!$A$1,6,5,2000),$D21)/(1/(1-SUM('CE Parameters'!$F$10:$F$11))))/1000,0) -> 1.306593114 | Z21: =IF(OFFSET('Measure Savings Results'!$A$1,5,15 +MAX('Measure Savings Results'!$F:$F)-MIN('Measure Savings Results'!$F:$F)+MAX('Measure Savings Results'!$I:$I)+Y$17-MIN('Measure Savings Results'!$F:$F))=Y$17,(SUMIFS(OFFSET('Measure Savings Results'!$A$1,6,15 +MAX('Measure Savings Results'!$F:$F)-MIN('Measure Savings Results'!$F:$F)+MAX('Measure Savings Results'!$I:$I)+Y$17-MIN('Measure Savings Results'!$F:$F),2000),OFFSET('Measure Savings Results'!$A$1,6,4,2000),"Dx",OFFSET('Measure Savings Results'!$A$1,6,5,2000),$D21)/(1/(1-SUM('CE Parameters'!$F$10:$F$11))))/1000,0) -> 6883.009303 | AA21: =IF(OFFSET('Measure Savings Results'!$A$1,5,15 +AA$17-MIN('Measure Savings Results'!$F:$F))=AA$17,(SUMIFS(OFFSET('Measure Savings Results'!$A$1,6,15 +AA$17-MIN('Measure Savings Results'!$F:$F),2000),OFFSET('Measure Savings Results'!$A$1,6,4,2000),"Dx",OFFSET('Measure Savings Results'!$A$1,6,5,2000),$D21)/(1/(1-SUM('CE Parameters'!$F$10:$F$11))))/1000,0) -> 1.076515397 | AB21: =IF(OFFSET('Measure Savings Results'!$A$1,5,15 +MAX('Measure Savings Results'!$F:$F)-MIN('Measure Savings Results'!$F:$F)+MAX('Measure Savings Results'!$I:$I)+AA$17-MIN('Measure Savings Results'!$F:$F))=AA$17,(SUMIFS(OFFSET('Measure Savings Results'!$A$1,6,15 +MAX('Measure Savings Results'!$F:$F)-MIN('Measure Savings Results'!$F:$F)+MAX('Measure Savings Results'!$I:$I)+AA$17-MIN('Measure Savings Results'!$F:$F),2000),OFFSET('Measure Savings Results'!$A$1,6,4,2000),"Dx",OFFSET('Measure Savings Results'!$A$1,6,5,2000),$D21)/(1/(1-SUM('CE Parameters'!$F$10:$F$11))))/1000,0) -> 5996.13802 | AC21: =IF(OFFSET('Measure Savings Results'!$A$1,5,15 +AC$17-MIN('Measure Savings Results'!$F:$F))=AC$17,(SUMIFS(OFFSET('Measure Savings Results'!$A$1,6,15 +AC$17-MIN('Measure Savings Results'!$F:$F),2000),OFFSET('Measure Savings Results'!$A$1,6,4,2000),"Dx",OFFSET('Measure Savings Results'!$A$1,6,5,2000),$D21)/(1/(1-SUM('CE Parameters'!$F$10:$F$11))))/1000,0) -> 1.001623368 | AD21: =IF(OFFSET('Measure Savings Results'!$A$1,5,15 +MAX('Measure Savings Results'!$F:$F)-MIN('Measure Savings Results'!$F:$F)+MAX('Measure Savings Results'!$I:$I)+AC$17-MIN('Measure Savings Results'!$F:$F))=AC$17,(SUMIFS(OFFSET('Measure Savings Results'!$A$1,6,15 +MAX('Measure Savings Results'!$F:$F)-MIN('Measure Savings Results'!$F:$F)+MAX('Measure Savings Results'!$I:$I)+AC$17-MIN('Measure Savings Results'!$F:$F),2000),OFFSET('Measure Savings Results'!$A$1,6,4,2000),"Dx",OFFSET('Measure Savings Results'!$A$1,6,5,2000),$D21)/(1/(1-SUM('CE Parameters'!$F$10:$F$11))))/1000,0) -> 5269.28218 | AE21: =IF(OFFSET('Measure Savings Results'!$A$1,5,15 +AE$17-MIN('Measure Savings Results'!$F:$F))=AE$17,(SUMIFS(OFFSET('Measure Savings Results'!$A$1,6,15 +AE$17-MIN('Measure Savings Results'!$F:$F),2000),OFFSET('Measure Savings Results'!$A$1,6,4,2000),"Dx",OFFSET('Measure Savings Results'!$A$1,6,5,2000),$D21)/(1/(1-SUM('CE Parameters'!$F$10:$F$11))))/1000,0) -> 0.7995769681 | AF21: =IF(OFFSET('Measure Savings Results'!$A$1,5,15 +MAX('Measure Savings Results'!$F:$F)-MIN('Measure Savings Results'!$F:$F)+MAX('Measure Savings Results'!$I:$I)+AE$17-MIN('Measure Savings Results'!$F:$F))=AE$17,(SUMIFS(OFFSET('Measure Savings Results'!$A$1,6,15 +MAX('Measure Savings Results'!$F:$F)-MIN('Measure Savings Results'!$F:$F)+MAX('Measure Savings Results'!$I:$I)+AE$17-MIN('Measure Savings Results'!$F:$F),2000),OFFSET('Measure Savings Results'!$A$1,6,4,2000),"Dx",OFFSET('Measure Savings Results'!$A$1,6,5,2000),$D21)/(1/(1-SUM('CE Parameters'!$F$10:$F$11))))/1000,0) -> 4244.73418 | AG21: =IF(OFFSET('Measure Savings Results'!$A$1,5,15 +AG$17-MIN('Measure Savings Results'!$F:$F))=AG$17,(SUMIFS(OFFSET('Measure Savings Results'!$A$1,6,15 +AG$17-MIN('Measure Savings Results'!$F:$F),2000),OFFSET('Measure Savings Results'!$A$1,6,4,2000),"Dx",OFFSET('Measure Savings Results'!$A$1,6,5,2000),$D21)/(1/(1-SUM('CE Parameters'!$F$10:$F$11))))/1000,0) -> 0.7995769681 | AH21: =IF(OFFSET('Measure Savings Results'!$A$1,5,15 +MAX('Measure Savings Results'!$F:$F)-MIN('Measure Savings Results'!$F:$F)+MAX('Measure Savings Results'!$I:$I)+AG$17-MIN('Measure Savings Results'!$F:$F))=AG$17,(SUMIFS(OFFSET('Measure Savings Results'!$A$1,6,15 +MAX('Measure Savings Results'!$F:$F)-MIN('Measure Savings Results'!$F:$F)+MAX('Measure Savings Results'!$I:$I)+AG$17-MIN('Measure Savings Results'!$F:$F),2000),OFFSET('Measure Savings Results'!$A$1,6,4,2000),"Dx",OFFSET('Measure Savings Results'!$A$1,6,5,2000),$D21)/(1/(1-SUM('CE Parameters'!$F$10:$F$11))))/1000,0) -> 4244.73418 | AI21: =IF(OFFSET('Measure Savings Results'!$A$1,5,15 +AI$17-MIN('Measure Savings Results'!$F:$F))=AI$17,(SUMIFS(OFFSET('Measure Savings Results'!$A$1,6,15 +AI$17-MIN('Measure Savings Results'!$F:$F),2000),OFFSET('Measure Savings Results'!$A$1,6,4,2000),"Dx",OFFSET('Measure Savings Results'!$A$1,6,5,2000),$D21)/(1/(1-SUM('CE Parameters'!$F$10:$F$11))))/1000,0) -> 0.7995769681 | AJ21: =IF(OFFSET('Measure Savings Results'!$A$1,5,15 +MAX('Measure Savings Results'!$F:$F)-MIN('Measure Savings Results'!$F:$F)+MAX('Measure Savings Results'!$I:$I)+AI$17-MIN('Measure Savings Results'!$F:$F))=AI$17,(SUMIFS(OFFSET('Measure Savings Results'!$A$1,6,15 +MAX('Measure Savings Results'!$F:$F)-MIN('Measure Savings Results'!$F:$F)+MAX('Measure Savings Results'!$I:$I)+AI$17-MIN('Measure Savings Results'!$F:$F),2000),OFFSET('Measure Savings Results'!$A$1,6,4,2000),"Dx",OFFSET('Measure Savings Results'!$A$1,6,5,2000),$D21)/(1/(1-SUM('CE Parameters'!$F$10:$F$11))))/1000,0) -> 4244.73418 | AK21: =IF(OFFSET('Measure Savings Results'!$A$1,5,15 +AK$17-MIN('Measure Savings Results'!$F:$F))=AK$17,(SUMIFS(OFFSET('Measure Savings Results'!$A$1,6,15 +AK$17-MIN('Measure Savings Results'!$F:$F),2000),OFFSET('Measure Savings Results'!$A$1,6,4,2000),"Dx",OFFSET('Measure Savings Results'!$A$1,6,5,2000),$D21)/(1/(1-SUM('CE Parameters'!$F$10:$F$11))))/1000,0) -> 0.7631552641 | AL21: =IF(OFFSET('Measure Savings Results'!$A$1,5,15 +MAX('Measure Savings Results'!$F:$F)-MIN('Measure Savings Results'!$F:$F)+MAX('Measure Savings Results'!$I:$I)+AK$17-MIN('Measure Savings Results'!$F:$F))=AK$17,(SUMIFS(OFFSET('Measure Savings Results'!$A$1,6,15 +MAX('Measure Savings Results'!$F:$F)-MIN('Measure Savings Results'!$F:$F)+MAX('Measure Savings Results'!$I:$I)+AK$17-MIN('Measure Savings Results'!$F:$F),2000),OFFSET('Measure Savings Results'!$A$1,6,4,2000),"Dx",OFFSET('Measure Savings Results'!$A$1,6,5,2000),$D21)/(1/(1-SUM('CE Parameters'!$F$10:$F$11))))/1000,0) -> 4130.734251 | AM21: =IF(OFFSET('Measure Savings Results'!$A$1,5,15 +AM$17-MIN('Measure Savings Results'!$F:$F))=AM$17,(SUMIFS(OFFSET('Measure Savings Results'!$A$1,6,15 +AM$17-MIN('Measure Savings Results'!$F:$F),2000),OFFSET('Measure Savings Results'!$A$1,6,4,2000),"Dx",OFFSET('Measure Savings Results'!$A$1,6,5,2000),$D21)/(1/(1-SUM('CE Parameters'!$F$10:$F$11))))/1000,0) -> 0.4639749361 | AN21: =IF(OFFSET('Measure Savings Results'!$A$1,5,15 +MAX('Measure Savings Results'!$F:$F)-MIN('Measure Savings Results'!$F:$F)+MAX('Measure Savings Results'!$I:$I)+AM$17-MIN('Measure Savings Results'!$F:$F))=AM$17,(SUMIFS(OFFSET('Measure Savings Results'!$A$1,6,15 +MAX('Measure Savings Results'!$F:$F)-MIN('Measure Savings Results'!$F:$F)+MAX('Measure Savings Results'!$I:$I)+AM$17-MIN('Measure Savings Results'!$F:$F),2000),OFFSET('Measure Savings Results'!$A$1,6,4,2000),"Dx",OFFSET('Measure Savings Results'!$A$1,6,5,2000),$D21)/(1/(1-SUM('CE Parameters'!$F$10:$F$11))))/1000,0) -> 1502.734251
D22: 2018 | E22: =IF(OFFSET('Measure Savings Results'!$A$1,5,15 +E$17-MIN('Measure Savings Results'!$F:$F))=E$17,(SUMIFS(OFFSET('Measure Savings Results'!$A$1,6,15 +E$17-MIN('Measure Savings Results'!$F:$F),2000),OFFSET('Measure Savings Results'!$A$1,6,4,2000),"Dx",OFFSET('Measure Savings Results'!$A$1,6,5,2000),$D22)/(1/(1-SUM('CE Parameters'!$F$10:$F$11))))/1000,0) -> 0 | F22: =IF(OFFSET('Measure Savings Results'!$A$1,5,15 +MAX('Measure Savings Results'!$F:$F)-MIN('Measure Savings Results'!$F:$F)+MAX('Measure Savings Results'!$I:$I)+E$17-MIN('Measure Savings Results'!$F:$F))=E$17,(SUMIFS(OFFSET('Measure Savings Results'!$A$1,6,15 +MAX('Measure Savings Results'!$F:$F)-MIN('Measure Savings Results'!$F:$F)+MAX('Measure Savings Results'!$I:$I)+E$17-MIN('Measure Savings Results'!$F:$F),2000),OFFSET('Measure Savings Results'!$A$1,6,4,2000),"Dx",OFFSET('Measure Savings Results'!$A$1,6,5,2000),$D22)/(1/(1-SUM('CE Parameters'!$F$10:$F$11))))/1000,0) -> 0 | G22: =IF(OFFSET('Measure Savings Results'!$A$1,5,15 +G$17-MIN('Measure Savings Results'!$F:$F))=G$17,(SUMIFS(OFFSET('Measure Savings Results'!$A$1,6,15 +G$17-MIN('Measure Savings Results'!$F:$F),2000),OFFSET('Measure Savings Results'!$A$1,6,4,2000),"Dx",OFFSET('Measure Savings Results'!$A$1,6,5,2000),$D22)/(1/(1-SUM('CE Parameters'!$F$10:$F$11))))/1000,0) -> 0 | H22: =IF(OFFSET('Measure Savings Results'!$A$1,5,15 +MAX('Measure Savings Results'!$F:$F)-MIN('Measure Savings Results'!$F:$F)+MAX('Measure Savings Results'!$I:$I)+G$17-MIN('Measure Savings Results'!$F:$F))=G$17,(SUMIFS(OFFSET('Measure Savings Results'!$A$1,6,15 +MAX('Measure Savings Results'!$F:$F)-MIN('Measure Savings Results'!$F:$F)+MAX('Measure Savings Results'!$I:$I)+G$17-MIN('Measure Savings Results'!$F:$F),2000),OFFSET('Measure Savings Results'!$A$1,6,4,2000),"Dx",OFFSET('Measure Savings Results'!$A$1,6,5,2000),$D22)/(1/(1-SUM('CE Parameters'!$F$10:$F$11))))/1000,0) -> 0 | I22: =IF(OFFSET('Measure Savings Results'!$A$1,5,15 +I$17-MIN('Measure Savings Results'!$F:$F))=I$17,(SUMIFS(OFFSET('Measure Savings Results'!$A$1,6,15 +I$17-MIN('Measure Savings Results'!$F:$F),2000),OFFSET('Measure Savings Results'!$A$1,6,4,2000),"Dx",OFFSET('Measure Savings Results'!$A$1,6,5,2000),$D22)/(1/(1-SUM('CE Parameters'!$F$10:$F$11))))/1000,0) -> 0 | J22: =IF(OFFSET('Measure Savings Results'!$A$1,5,15 +MAX('Measure Savings Results'!$F:$F)-MIN('Measure Savings Results'!$F:$F)+MAX('Measure Savings Results'!$I:$I)+I$17-MIN('Measure Savings Results'!$F:$F))=I$17,(SUMIFS(OFFSET('Measure Savings Results'!$A$1,6,15 +MAX('Measure Savings Results'!$F:$F)-MIN('Measure Savings Results'!$F:$F)+MAX('Measure Savings Results'!$I:$I)+I$17-MIN('Measure Savings Results'!$F:$F),2000),OFFSET('Measure Savings Results'!$A$1,6,4,2000),"Dx",OFFSET('Measure Savings Results'!$A$1,6,5,2000),$D22)/(1/(1-SUM('CE Parameters'!$F$10:$F$11))))/1000,0) -> 0 | K22: =IF(OFFSET('Measure Savings Results'!$A$1,5,15 +K$17-MIN('Measure Savings Results'!$F:$F))=K$17,(SUMIFS(OFFSET('Measure Savings Results'!$A$1,6,15 +K$17-MIN('Measure Savings Results'!$F:$F),2000),OFFSET('Measure Savings Results'!$A$1,6,4,2000),"Dx",OFFSET('Measure Savings Results'!$A$1,6,5,2000),$D22)/(1/(1-SUM('CE Parameters'!$F$10:$F$11))))/1000,0) -> 1.124668446 | L22: =IF(OFFSET('Measure Savings Results'!$A$1,5,15 +MAX('Measure Savings Results'!$F:$F)-MIN('Measure Savings Results'!$F:$F)+MAX('Measure Savings Results'!$I:$I)+K$17-MIN('Measure Savings Results'!$F:$F))=K$17,(SUMIFS(OFFSET('Measure Savings Results'!$A$1,6,15 +MAX('Measure Savings Results'!$F:$F)-MIN('Measure Savings Results'!$F:$F)+MAX('Measure Savings Results'!$I:$I)+K$17-MIN('Measure Savings Results'!$F:$F),2000),OFFSET('Measure Savings Results'!$A$1,6,4,2000),"Dx",OFFSET('Measure Savings Results'!$A$1,6,5,2000),$D22)/(1/(1-SUM('CE Parameters'!$F$10:$F$11))))/1000,0) -> 4893.695993 | M22: =IF(OFFSET('Measure Savings Results'!$A$1,5,15 +M$17-MIN('Measure Savings Results'!$F:$F))=M$17,(SUMIFS(OFFSET('Measure Savings Results'!$A$1,6,15 +M$17-MIN('Measure Savings Results'!$F:$F),2000),OFFSET('Measure Savings Results'!$A$1,6,4,2000),"Dx",OFFSET('Measure Savings Results'!$A$1,6,5,2000),$D22)/(1/(1-SUM('CE Parameters'!$F$10:$F$11))))/1000,0) -> 1.124668446 | N22: =IF(OFFSET('Measure Savings Results'!$A$1,5,15 +MAX('Measure Savings Results'!$F:$F)-MIN('Measure Savings Results'!$F:$F)+MAX('Measure Savings Results'!$I:$I)+M$17-MIN('Measure Savings Results'!$F:$F))=M$17,(SUMIFS(OFFSET('Measure Savings Results'!$A$1,6,15 +MAX('Measure Savings Results'!$F:$F)-MIN('Measure Savings Results'!$F:$F)+MAX('Measure Savings Results'!$I:$I)+M$17-MIN('Measure Savings Results'!$F:$F),2000),OFFSET('Measure Savings Results'!$A$1,6,4,2000),"Dx",OFFSET('Measure Savings Results'!$A$1,6,5,2000),$D22)/(1/(1-SUM('CE Parameters'!$F$10:$F$11))))/1000,0) -> 4893.695993 | O22: =IF(OFFSET('Measure Savings Results'!$A$1,5,15 +O$17-MIN('Measure Savings Results'!$F:$F))=O$17,(SUMIFS(OFFSET('Measure Savings Results'!$A$1,6,15 +O$17-MIN('Measure Savings Results'!$F:$F),2000),OFFSET('Measure Savings Results'!$A$1,6,4,2000),"Dx",OFFSET('Measure Savings Results'!$A$1,6,5,2000),$D22)/(1/(1-SUM('CE Parameters'!$F$10:$F$11))))/1000,0) -> 1.124668446 | P22: =IF(OFFSET('Measure Savings Results'!$A$1,5,15 +MAX('Measure Savings Results'!$F:$F)-MIN('Measure Savings Results'!$F:$F)+MAX('Measure Savings Results'!$I:$I)+O$17-MIN('Measure Savings Results'!$F:$F))=O$17,(SUMIFS(OFFSET('Measure Savings Results'!$A$1,6,15 +MAX('Measure Savings Results'!$F:$F)-MIN('Measure Savings Results'!$F:$F)+MAX('Measure Savings Results'!$I:$I)+O$17-MIN('Measure Savings Results'!$F:$F),2000),OFFSET('Measure Savings Results'!$A$1,6,4,2000),"Dx",OFFSET('Measure Savings Results'!$A$1,6,5,2000),$D22)/(1/(1-SUM('CE Parameters'!$F$10:$F$11))))/1000,0) -> 4893.695993 | Q22: =IF(OFFSET('Measure Savings Results'!$A$1,5,15 +Q$17-MIN('Measure Savings Results'!$F:$F))=Q$17,(SUMIFS(OFFSET('Measure Savings Results'!$A$1,6,15 +Q$17-MIN('Measure Savings Results'!$F:$F),2000),OFFSET('Measure Savings Results'!$A$1,6,4,2000),"Dx",OFFSET('Measure Savings Results'!$A$1,6,5,2000),$D22)/(1/(1-SUM('CE Parameters'!$F$10:$F$11))))/1000,0) -> 1.124668446 | R22: =IF(OFFSET('Measure Savings Results'!$A$1,5,15 +MAX('Measure Savings Results'!$F:$F)-MIN('Measure Savings Results'!$F:$F)+MAX('Measure Savings Results'!$I:$I)+Q$17-MIN('Measure Savings Results'!$F:$F))=Q$17,(SUMIFS(OFFSET('Measure Savings Results'!$A$1,6,15 +MAX('Measure Savings Results'!$F:$F)-MIN('Measure Savings Results'!$F:$F)+MAX('Measure Savings Results'!$I:$I)+Q$17-MIN('Measure Savings Results'!$F:$F),2000),OFFSET('Measure Savings Results'!$A$1,6,4,2000),"Dx",OFFSET('Measure Savings Results'!$A$1,6,5,2000),$D22)/(1/(1-SUM('CE Parameters'!$F$10:$F$11))))/1000,0) -> 4893.695993 | S22: =IF(OFFSET('Measure Savings Results'!$A$1,5,15 +S$17-MIN('Measure Savings Results'!$F:$F))=S$17,(SUMIFS(OFFSET('Measure Savings Results'!$A$1,6,15 +S$17-MIN('Measure Savings Results'!$F:$F),2000),OFFSET('Measure Savings Results'!$A$1,6,4,2000),"Dx",OFFSET('Measure Savings Results'!$A$1,6,5,2000),$D22)/(1/(1-SUM('CE Parameters'!$F$10:$F$11))))/1000,0) -> 1.098248446 | T22: =IF(OFFSET('Measure Savings Results'!$A$1,5,15 +MAX('Measure Savings Results'!$F:$F)-MIN('Measure Savings Results'!$F:$F)+MAX('Measure Savings Results'!$I:$I)+S$17-MIN('Measure Savings Results'!$F:$F))=S$17,(SUMIFS(OFFSET('Measure Savings Results'!$A$1,6,15 +MAX('Measure Savings Results'!$F:$F)-MIN('Measure Savings Results'!$F:$F)+MAX('Measure Savings Results'!$I:$I)+S$17-MIN('Measure Savings Results'!$F:$F),2000),OFFSET('Measure Savings Results'!$A$1,6,4,2000),"Dx",OFFSET('Measure Savings Results'!$A$1,6,5,2000),$D22)/(1/(1-SUM('CE Parameters'!$F$10:$F$11))))/1000,0) -> 4741.988933 | U22: =IF(OFFSET('Measure Savings Results'!$A$1,5,15 +U$17-MIN('Measure Savings Results'!$F:$F))=U$17,(SUMIFS(OFFSET('Measure Savings Results'!$A$1,6,15 +U$17-MIN('Measure Savings Results'!$F:$F),2000),OFFSET('Measure Savings Results'!$A$1,6,4,2000),"Dx",OFFSET('Measure Savings Results'!$A$1,6,5,2000),$D22)/(1/(1-SUM('CE Parameters'!$F$10:$F$11))))/1000,0) -> 1.098248446 | V22: =IF(OFFSET('Measure Savings Results'!$A$1,5,15 +MAX('Measure Savings Results'!$F:$F)-MIN('Measure Savings Results'!$F:$F)+MAX('Measure Savings Results'!$I:$I)+U$17-MIN('Measure Savings Results'!$F:$F))=U$17,(SUMIFS(OFFSET('Measure Savings Results'!$A$1,6,15 +MAX('Measure Savings Results'!$F:$F)-MIN('Measure Savings Results'!$F:$F)+MAX('Measure Savings Results'!$I:$I)+U$17-MIN('Measure Savings Results'!$F:$F),2000),OFFSET('Measure Savings Results'!$A$1,6,4,2000),"Dx",OFFSET('Measure Savings Results'!$A$1,6,5,2000),$D22)/(1/(1-SUM('CE Parameters'!$F$10:$F$11))))/1000,0) -> 4741.988933 | W22: =IF(OFFSET('Measure Savings Results'!$A$1,5,15 +W$17-MIN('Measure Savings Results'!$F:$F))=W$17,(SUMIFS(OFFSET('Measure Savings Results'!$A$1,6,15 +W$17-MIN('Measure Savings Results'!$F:$F),2000),OFFSET('Measure Savings Results'!$A$1,6,4,2000),"Dx",OFFSET('Measure Savings Results'!$A$1,6,5,2000),$D22)/(1/(1-SUM('CE Parameters'!$F$10:$F$11))))/1000,0) -> 1.098248446 | X22: =IF(OFFSET('Measure Savings Results'!$A$1,5,15 +MAX('Measure Savings Results'!$F:$F)-MIN('Measure Savings Results'!$F:$F)+MAX('Measure Savings Results'!$I:$I)+W$17-MIN('Measure Savings Results'!$F:$F))=W$17,(SUMIFS(OFFSET('Measure Savings Results'!$A$1,6,15 +MAX('Measure Savings Results'!$F:$F)-MIN('Measure Savings Results'!$F:$F)+MAX('Measure Savings Results'!$I:$I)+W$17-MIN('Measure Savings Results'!$F:$F),2000),OFFSET('Measure Savings Results'!$A$1,6,4,2000),"Dx",OFFSET('Measure Savings Results'!$A$1,6,5,2000),$D22)/(1/(1-SUM('CE Parameters'!$F$10:$F$11))))/1000,0) -> 4741.988933 | Y22: =IF(OFFSET('Measure Savings Results'!$A$1,5,15 +Y$17-MIN('Measure Savings Results'!$F:$F))=Y$17,(SUMIFS(OFFSET('Measure Savings Results'!$A$1,6,15 +Y$17-MIN('Measure Savings Results'!$F:$F),2000),OFFSET('Measure Savings Results'!$A$1,6,4,2000),"Dx",OFFSET('Measure Savings Results'!$A$1,6,5,2000),$D22)/(1/(1-SUM('CE Parameters'!$F$10:$F$11))))/1000,0) -> 1.098248446 | Z22: =IF(OFFSET('Measure Savings Results'!$A$1,5,15 +MAX('Measure Savings Results'!$F:$F)-MIN('Measure Savings Results'!$F:$F)+MAX('Measure Savings Results'!$I:$I)+Y$17-MIN('Measure Savings Results'!$F:$F))=Y$17,(SUMIFS(OFFSET('Measure Savings Results'!$A$1,6,15 +MAX('Measure Savings Results'!$F:$F)-MIN('Measure Savings Results'!$F:$F)+MAX('Measure Savings Results'!$I:$I)+Y$17-MIN('Measure Savings Results'!$F:$F),2000),OFFSET('Measure Savings Results'!$A$1,6,4,2000),"Dx",OFFSET('Measure Savings Results'!$A$1,6,5,2000),$D22)/(1/(1-SUM('CE Parameters'!$F$10:$F$11))))/1000,0) -> 4741.988933 | AA22: =IF(OFFSET('Measure Savings Results'!$A$1,5,15 +AA$17-MIN('Measure Savings Results'!$F:$F))=AA$17,(SUMIFS(OFFSET('Measure Savings Results'!$A$1,6,15 +AA$17-MIN('Measure Savings Results'!$F:$F),2000),OFFSET('Measure Savings Results'!$A$1,6,4,2000),"Dx",OFFSET('Measure Savings Results'!$A$1,6,5,2000),$D22)/(1/(1-SUM('CE Parameters'!$F$10:$F$11))))/1000,0) -> 1.098248446 | AB22: =IF(OFFSET('Measure Savings Results'!$A$1,5,15 +MAX('Measure Savings Results'!$F:$F)-MIN('Measure Savings Results'!$F:$F)+MAX('Measure Savings Results'!$I:$I)+AA$17-MIN('Measure Savings Results'!$F:$F))=AA$17,(SUMIFS(OFFSET('Measure Savings Results'!$A$1,6,15 +MAX('Measure Savings Results'!$F:$F)-MIN('Measure Savings Results'!$F:$F)+MAX('Measure Savings Results'!$I:$I)+AA$17-MIN('Measure Savings Results'!$F:$F),2000),OFFSET('Measure Savings Results'!$A$1,6,4,2000),"Dx",OFFSET('Measure Savings Results'!$A$1,6,5,2000),$D22)/(1/(1-SUM('CE Parameters'!$F$10:$F$11))))/1000,0) -> 4741.988933 | AC22: =IF(OFFSET('Measure Savings Results'!$A$1,5,15 +AC$17-MIN('Measure Savings Results'!$F:$F))=AC$17,(SUMIFS(OFFSET('Measure Savings Results'!$A$1,6,15 +AC$17-MIN('Measure Savings Results'!$F:$F),2000),OFFSET('Measure Savings Results'!$A$1,6,4,2000),"Dx",OFFSET('Measure Savings Results'!$A$1,6,5,2000),$D22)/(1/(1-SUM('CE Parameters'!$F$10:$F$11))))/1000,0) -> 0.8407100687 | AD22: =IF(OFFSET('Measure Savings Results'!$A$1,5,15 +MAX('Measure Savings Results'!$F:$F)-MIN('Measure Savings Results'!$F:$F)+MAX('Measure Savings Results'!$I:$I)+AC$17-MIN('Measure Savings Results'!$F:$F))=AC$17,(SUMIFS(OFFSET('Measure Savings Results'!$A$1,6,15 +MAX('Measure Savings Results'!$F:$F)-MIN('Measure Savings Results'!$F:$F)+MAX('Measure Savings Results'!$I:$I)+AC$17-MIN('Measure Savings Results'!$F:$F),2000),OFFSET('Measure Savings Results'!$A$1,6,4,2000),"Dx",OFFSET('Measure Savings Results'!$A$1,6,5,2000),$D22)/(1/(1-SUM('CE Parameters'!$F$10:$F$11))))/1000,0) -> 3713.281996 | AE22: =IF(OFFSET('Measure Savings Results'!$A$1,5,15 +AE$17-MIN('Measure Savings Results'!$F:$F))=AE$17,(SUMIFS(OFFSET('Measure Savings Results'!$A$1,6,15 +AE$17-MIN('Measure Savings Results'!$F:$F),2000),OFFSET('Measure Savings Results'!$A$1,6,4,2000),"Dx",OFFSET('Measure Savings Results'!$A$1,6,5,2000),$D22)/(1/(1-SUM('CE Parameters'!$F$10:$F$11))))/1000,0) -> 0.7596260401 | AF22: =IF(OFFSET('Measure Savings Results'!$A$1,5,15 +MAX('Measure Savings Results'!$F:$F)-MIN('Measure Savings Results'!$F:$F)+MAX('Measure Savings Results'!$I:$I)+AE$17-MIN('Measure Savings Results'!$F:$F))=AE$17,(SUMIFS(OFFSET('Measure Savings Results'!$A$1,6,15 +MAX('Measure Savings Results'!$F:$F)-MIN('Measure Savings Results'!$F:$F)+MAX('Measure Savings Results'!$I:$I)+AE$17-MIN('Measure Savings Results'!$F:$F),2000),OFFSET('Measure Savings Results'!$A$1,6,4,2000),"Dx",OFFSET('Measure Savings Results'!$A$1,6,5,2000),$D22)/(1/(1-SUM('CE Parameters'!$F$10:$F$11))))/1000,0) -> 2926.577836 | AG22: =IF(OFFSET('Measure Savings Results'!$A$1,5,15 +AG$17-MIN('Measure Savings Results'!$F:$F))=AG$17,(SUMIFS(OFFSET('Measure Savings Results'!$A$1,6,15 +AG$17-MIN('Measure Savings Results'!$F:$F),2000),OFFSET('Measure Savings Results'!$A$1,6,4,2000),"Dx",OFFSET('Measure Savings Results'!$A$1,6,5,2000),$D22)/(1/(1-SUM('CE Parameters'!$F$10:$F$11))))/1000,0) -> 0.5407424401 | AH22: =IF(OFFSET('Measure Savings Results'!$A$1,5,15 +MAX('Measure Savings Results'!$F:$F)-MIN('Measure Savings Results'!$F:$F)+MAX('Measure Savings Results'!$I:$I)+AG$17-MIN('Measure Savings Results'!$F:$F))=AG$17,(SUMIFS(OFFSET('Measure Savings Results'!$A$1,6,15 +MAX('Measure Savings Results'!$F:$F)-MIN('Measure Savings Results'!$F:$F)+MAX('Measure Savings Results'!$I:$I)+AG$17-MIN('Measure Savings Results'!$F:$F),2000),OFFSET('Measure Savings Results'!$A$1,6,4,2000),"Dx",OFFSET('Measure Savings Results'!$A$1,6,5,2000),$D22)/(1/(1-SUM('CE Parameters'!$F$10:$F$11))))/1000,0) -> 1816.650836 | AI22: =IF(OFFSET('Measure Savings Results'!$A$1,5,15 +AI$17-MIN('Measure Savings Results'!$F:$F))=AI$17,(SUMIFS(OFFSET('Measure Savings Results'!$A$1,6,15 +AI$17-MIN('Measure Savings Results'!$F:$F),2000),OFFSET('Measure Savings Results'!$A$1,6,4,2000),"Dx",OFFSET('Measure Savings Results'!$A$1,6,5,2000),$D22)/(1/(1-SUM('CE Parameters'!$F$10:$F$11))))/1000,0) -> 0.5407424401 | AJ22: =IF(OFFSET('Measure Savings Results'!$A$1,5,15 +MAX('Measure Savings Results'!$F:$F)-MIN('Measure Savings Results'!$F:$F)+MAX('Measure Savings Results'!$I:$I)+AI$17-MIN('Measure Savings Results'!$F:$F))=AI$17,(SUMIFS(OFFSET('Measure Savings Results'!$A$1,6,15 +MAX('Measure Savings Results'!$F:$F)-MIN('Measure Savings Results'!$F:$F)+MAX('Measure Savings Results'!$I:$I)+AI$17-MIN('Measure Savings Results'!$F:$F),2000),OFFSET('Measure Savings Results'!$A$1,6,4,2000),"Dx",OFFSET('Measure Savings Results'!$A$1,6,5,2000),$D22)/(1/(1-SUM('CE Parameters'!$F$10:$F$11))))/1000,0) -> 1816.650836 | AK22: =IF(OFFSET('Measure Savings Results'!$A$1,5,15 +AK$17-MIN('Measure Savings Results'!$F:$F))=AK$17,(SUMIFS(OFFSET('Measure Savings Results'!$A$1,6,15 +AK$17-MIN('Measure Savings Results'!$F:$F),2000),OFFSET('Measure Savings Results'!$A$1,6,4,2000),"Dx",OFFSET('Measure Savings Results'!$A$1,6,5,2000),$D22)/(1/(1-SUM('CE Parameters'!$F$10:$F$11))))/1000,0) -> 0.5407424401 | AL22: =IF(OFFSET('Measure Savings Results'!$A$1,5,15 +MAX('Measure Savings Results'!$F:$F)-MIN('Measure Savings Results'!$F:$F)+MAX('Measure Savings Results'!$I:$I)+AK$17-MIN('Measure Savings Results'!$F:$F))=AK$17,(SUMIFS(OFFSET('Measure Savings Results'!$A$1,6,15 +MAX('Measure Savings Results'!$F:$F)-MIN('Measure Savings Results'!$F:$F)+MAX('Measure Savings Results'!$I:$I)+AK$17-MIN('Measure Savings Results'!$F:$F),2000),OFFSET('Measure Savings Results'!$A$1,6,4,2000),"Dx",OFFSET('Measure Savings Results'!$A$1,6,5,2000),$D22)/(1/(1-SUM('CE Parameters'!$F$10:$F$11))))/1000,0) -> 1816.650836 | AM22: =IF(OFFSET('Measure Savings Results'!$A$1,5,15 +AM$17-MIN('Measure Savings Results'!$F:$F))=AM$17,(SUMIFS(OFFSET('Measure Savings Results'!$A$1,6,15 +AM$17-MIN('Measure Savings Results'!$F:$F),2000),OFFSET('Measure Savings Results'!$A$1,6,4,2000),"Dx",OFFSET('Measure Savings Results'!$A$1,6,5,2000),$D22)/(1/(1-SUM('CE Parameters'!$F$10:$F$11))))/1000,0) -> 0.5043207361 | AN22: =IF(OFFSET('Measure Savings Results'!$A$1,5,15 +MAX('Measure Savings Results'!$F:$F)-MIN('Measure Savings Results'!$F:$F)+MAX('Measure Savings Results'!$I:$I)+AM$17-MIN('Measure Savings Results'!$F:$F))=AM$17,(SUMIFS(OFFSET('Measure Savings Results'!$A$1,6,15 +MAX('Measure Savings Results'!$F:$F)-MIN('Measure Savings Results'!$F:$F)+MAX('Measure Savings Results'!$I:$I)+AM$17-MIN('Measure Savings Results'!$F:$F),2000),OFFSET('Measure Savings Results'!$A$1,6,4,2000),"Dx",OFFSET('Measure Savings Results'!$A$1,6,5,2000),$D22)/(1/(1-SUM('CE Parameters'!$F$10:$F$11))))/1000,0) -> 1702.650907
D23: 2019 | E23: =IF(OFFSET('Measure Savings Results'!$A$1,5,15 +E$17-MIN('Measure Savings Results'!$F:$F))=E$17,(SUMIFS(OFFSET('Measure Savings Results'!$A$1,6,15 +E$17-MIN('Measure Savings Results'!$F:$F),2000),OFFSET('Measure Savings Results'!$A$1,6,4,2000),"Dx",OFFSET('Measure Savings Results'!$A$1,6,5,2000),$D23)/(1/(1-SUM('CE Parameters'!$F$10:$F$11))))/1000,0) -> 0 | F23: =IF(OFFSET('Measure Savings Results'!$A$1,5,15 +MAX('Measure Savings Results'!$F:$F)-MIN('Measure Savings Results'!$F:$F)+MAX('Measure Savings Results'!$I:$I)+E$17-MIN('Measure Savings Results'!$F:$F))=E$17,(SUMIFS(OFFSET('Measure Savings Results'!$A$1,6,15 +MAX('Measure Savings Results'!$F:$F)-MIN('Measure Savings Results'!$F:$F)+MAX('Measure Savings Results'!$I:$I)+E$17-MIN('Measure Savings Results'!$F:$F),2000),OFFSET('Measure Savings Results'!$A$1,6,4,2000),"Dx",OFFSET('Measure Savings Results'!$A$1,6,5,2000),$D23)/(1/(1-SUM('CE Parameters'!$F$10:$F$11))))/1000,0) -> 0 | G23: =IF(OFFSET('Measure Savings Results'!$A$1,5,15 +G$17-MIN('Measure Savings Results'!$F:$F))=G$17,(SUMIFS(OFFSET('Measure Savings Results'!$A$1,6,15 +G$17-MIN('Measure Savings Results'!$F:$F),2000),OFFSET('Measure Savings Results'!$A$1,6,4,2000),"Dx",OFFSET('Measure Savings Results'!$A$1,6,5,2000),$D23)/(1/(1-SUM('CE Parameters'!$F$10:$F$11))))/1000,0) -> 0 | H23: =IF(OFFSET('Measure Savings Results'!$A$1,5,15 +MAX('Measure Savings Results'!$F:$F)-MIN('Measure Savings Results'!$F:$F)+MAX('Measure Savings Results'!$I:$I)+G$17-MIN('Measure Savings Results'!$F:$F))=G$17,(SUMIFS(OFFSET('Measure Savings Results'!$A$1,6,15 +MAX('Measure Savings Results'!$F:$F)-MIN('Measure Savings Results'!$F:$F)+MAX('Measure Savings Results'!$I:$I)+G$17-MIN('Measure Savings Results'!$F:$F),2000),OFFSET('Measure Savings Results'!$A$1,6,4,2000),"Dx",OFFSET('Measure Savings Results'!$A$1,6,5,2000),$D23)/(1/(1-SUM('CE Parameters'!$F$10:$F$11))))/1000,0) -> 0 | I23: =IF(OFFSET('Measure Savings Results'!$A$1,5,15 +I$17-MIN('Measure Savings Results'!$F:$F))=I$17,(SUMIFS(OFFSET('Measure Savings Results'!$A$1,6,15 +I$17-MIN('Measure Savings Results'!$F:$F),2000),OFFSET('Measure Savings Results'!$A$1,6,4,2000),"Dx",OFFSET('Measure Savings Results'!$A$1,6,5,2000),$D23)/(1/(1-SUM('CE Parameters'!$F$10:$F$11))))/1000,0) -> 0 | J23: =IF(OFFSET('Measure Savings Results'!$A$1,5,15 +MAX('Measure Savings Results'!$F:$F)-MIN('Measure Savings Results'!$F:$F)+MAX('Measure Savings Results'!$I:$I)+I$17-MIN('Measure Savings Results'!$F:$F))=I$17,(SUMIFS(OFFSET('Measure Savings Results'!$A$1,6,15 +MAX('Measure Savings Results'!$F:$F)-MIN('Measure Savings Results'!$F:$F)+MAX('Measure Savings Results'!$I:$I)+I$17-MIN('Measure Savings Results'!$F:$F),2000),OFFSET('Measure Savings Results'!$A$1,6,4,2000),"Dx",OFFSET('Measure Savings Results'!$A$1,6,5,2000),$D23)/(1/(1-SUM('CE Parameters'!$F$10:$F$11))))/1000,0) -> 0 | K23: =IF(OFFSET('Measure Savings Results'!$A$1,5,15 +K$17-MIN('Measure Savings Results'!$F:$F))=K$17,(SUMIFS(OFFSET('Measure Savings Results'!$A$1,6,15 +K$17-MIN('Measure Savings Results'!$F:$F),2000),OFFSET('Measure Savings Results'!$A$1,6,4,2000),"Dx",OFFSET('Measure Savings Results'!$A$1,6,5,2000),$D23)/(1/(1-SUM('CE Parameters'!$F$10:$F$11))))/1000,0) -> 0 | L23: =IF(OFFSET('Measure Savings Results'!$A$1,5,15 +MAX('Measure Savings Results'!$F:$F)-MIN('Measure Savings Results'!$F:$F)+MAX('Measure Savings Results'!$I:$I)+K$17-MIN('Measure Savings Results'!$F:$F))=K$17,(SUMIFS(OFFSET('Measure Savings Results'!$A$1,6,15 +MAX('Measure Savings Results'!$F:$F)-MIN('Measure Savings Results'!$F:$F)+MAX('Measure Savings Results'!$I:$I)+K$17-MIN('Measure Savings Results'!$F:$F),2000),OFFSET('Measure Savings Results'!$A$1,6,4,2000),"Dx",OFFSET('Measure Savings Results'!$A$1,6,5,2000),$D23)/(1/(1-SUM('CE Parameters'!$F$10:$F$11))))/1000,0) -> 0 | M23: =IF(OFFSET('Measure Savings Results'!$A$1,5,15 +M$17-MIN('Measure Savings Results'!$F:$F))=M$17,(SUMIFS(OFFSET('Measure Savings Results'!$A$1,6,15 +M$17-MIN('Measure Savings Results'!$F:$F),2000),OFFSET('Measure Savings Results'!$A$1,6,4,2000),"Dx",OFFSET('Measure Savings Results'!$A$1,6,5,2000),$D23)/(1/(1-SUM('CE Parameters'!$F$10:$F$11))))/1000,0) -> 1.159066575 | N23: =IF(OFFSET('Measure Savings Results'!$A$1,5,15 +MAX('Measure Savings Results'!$F:$F)-MIN('Measure Savings Results'!$F:$F)+MAX('Measure Savings Results'!$I:$I)+M$17-MIN('Measure Savings Results'!$F:$F))=M$17,(SUMIFS(OFFSET('Measure Savings Results'!$A$1,6,15 +MAX('Measure Savings Results'!$F:$F)-MIN('Measure Savings Results'!$F:$F)+MAX('Measure Savings Results'!$I:$I)+M$17-MIN('Measure Savings Results'!$F:$F),2000),OFFSET('Measure Savings Results'!$A$1,6,4,2000),"Dx",OFFSET('Measure Savings Results'!$A$1,6,5,2000),$D23)/(1/(1-SUM('CE Parameters'!$F$10:$F$11))))/1000,0) -> 5280.675623 | O23: =IF(OFFSET('Measure Savings Results'!$A$1,5,15 +O$17-MIN('Measure Savings Results'!$F:$F))=O$17,(SUMIFS(OFFSET('Measure Savings Results'!$A$1,6,15 +O$17-MIN('Measure Savings Results'!$F:$F),2000),OFFSET('Measure Savings Results'!$A$1,6,4,2000),"Dx",OFFSET('Measure Savings Results'!$A$1,6,5,2000),$D23)/(1/(1-SUM('CE Parameters'!$F$10:$F$11))))/1000,0) -> 1.159066575 | P23: =IF(OFFSET('Measure Savings Results'!$A$1,5,15 +MAX('Measure Savings Results'!$F:$F)-MIN('Measure Savings Results'!$F:$F)+MAX('Measure Savings Results'!$I:$I)+O$17-MIN('Measure Savings Results'!$F:$F))=O$17,(SUMIFS(OFFSET('Measure Savings Results'!$A$1,6,15 +MAX('Measure Savings Results'!$F:$F)-MIN('Measure Savings Results'!$F:$F)+MAX('Measure Savings Results'!$I:$I)+O$17-MIN('Measure Savings Results'!$F:$F),2000),OFFSET('Measure Savings Results'!$A$1,6,4,2000),"Dx",OFFSET('Measure Savings Results'!$A$1,6,5,2000),$D23)/(1/(1-SUM('CE Parameters'!$F$10:$F$11))))/1000,0) -> 5280.675623 | Q23: =IF(OFFSET('Measure Savings Results'!$A$1,5,15 +Q$17-MIN('Measure Savings Results'!$F:$F))=Q$17,(SUMIFS(OFFSET('Measure Savings Results'!$A$1,6,15 +Q$17-MIN('Measure Savings Results'!$F:$F),2000),OFFSET('Measure Savings Results'!$A$1,6,4,2000),"Dx",OFFSET('Measure Savings Results'!$A$1,6,5,2000),$D23)/(1/(1-SUM('CE Parameters'!$F$10:$F$11))))/1000,0) -> 1.159066575 | R23: =IF(OFFSET('Measure Savings Results'!$A$1,5,15 +MAX('Measure Savings Results'!$F:$F)-MIN('Measure Savings Results'!$F:$F)+MAX('Measure Savings Results'!$I:$I)+Q$17-MIN('Measure Savings Results'!$F:$F))=Q$17,(SUMIFS(OFFSET('Measure Savings Results'!$A$1,6,15 +MAX('Measure Savings Results'!$F:$F)-MIN('Measure Savings Results'!$F:$F)+MAX('Measure Savings Results'!$I:$I)+Q$17-MIN('Measure Savings Results'!$F:$F),2000),OFFSET('Measure Savings Results'!$A$1,6,4,2000),"Dx",OFFSET('Measure Savings Results'!$A$1,6,5,2000),$D23)/(1/(1-SUM('CE Parameters'!$F$10:$F$11))))/1000,0) -> 5280.675623 | S23: =IF(OFFSET('Measure Savings Results'!$A$1,5,15 +S$17-MIN('Measure Savings Results'!$F:$F))=S$17,(SUMIFS(OFFSET('Measure Savings Results'!$A$1,6,15 +S$17-MIN('Measure Savings Results'!$F:$F),2000),OFFSET('Measure Savings Results'!$A$1,6,4,2000),"Dx",OFFSET('Measure Savings Results'!$A$1,6,5,2000),$D23)/(1/(1-SUM('CE Parameters'!$F$10:$F$11))))/1000,0) -> 1.159066575 | T23: =IF(OFFSET('Measure Savings Results'!$A$1,5,15 +MAX('Measure Savings Results'!$F:$F)-MIN('Measure Savings Results'!$F:$F)+MAX('Measure Savings Results'!$I:$I)+S$17-MIN('Measure Savings Results'!$F:$F))=S$17,(SUMIFS(OFFSET('Measure Savings Results'!$A$1,6,15 +MAX('Measure Savings Results'!$F:$F)-MIN('Measure Savings Results'!$F:$F)+MAX('Measure Savings Results'!$I:$I)+S$17-MIN('Measure Savings Results'!$F:$F),2000),OFFSET('Measure Savings Results'!$A$1,6,4,2000),"Dx",OFFSET('Measure Savings Results'!$A$1,6,5,2000),$D23)/(1/(1-SUM('CE Parameters'!$F$10:$F$11))))/1000,0) -> 5280.675623 | U23: =IF(OFFSET('Measure Savings Results'!$A$1,5,15 +U$17-MIN('Measure Savings Results'!$F:$F))=U$17,(SUMIFS(OFFSET('Measure Savings Results'!$A$1,6,15 +U$17-MIN('Measure Savings Results'!$F:$F),2000),OFFSET('Measure Savings Results'!$A$1,6,4,2000),"Dx",OFFSET('Measure Savings Results'!$A$1,6,5,2000),$D23)/(1/(1-SUM('CE Parameters'!$F$10:$F$11))))/1000,0) -> 1.132646575 | V23: =IF(OFFSET('Measure Savings Results'!$A$1,5,15 +MAX('Measure Savings Results'!$F:$F)-MIN('Measure Savings Results'!$F:$F)+MAX('Measure Savings Results'!$I:$I)+U$17-MIN('Measure Savings Results'!$F:$F))=U$17,(SUMIFS(OFFSET('Measure Savings Results'!$A$1,6,15 +MAX('Measure Savings Results'!$F:$F)-MIN('Measure Savings Results'!$F:$F)+MAX('Measure Savings Results'!$I:$I)+U$17-MIN('Measure Savings Results'!$F:$F),2000),OFFSET('Measure Savings Results'!$A$1,6,4,2000),"Dx",OFFSET('Measure Savings Results'!$A$1,6,5,2000),$D23)/(1/(1-SUM('CE Parameters'!$F$10:$F$11))))/1000,0) -> 5128.968563 | W23: =IF(OFFSET('Measure Savings Results'!$A$1,5,15 +W$17-MIN('Measure Savings Results'!$F:$F))=W$17,(SUMIFS(OFFSET('Measure Savings Results'!$A$1,6,15 +W$17-MIN('Measure Savings Results'!$F:$F),2000),OFFSET('Measure Savings Results'!$A$1,6,4,2000),"Dx",OFFSET('Measure Savings Results'!$A$1,6,5,2000),$D23)/(1/(1-SUM('CE Parameters'!$F$10:$F$11))))/1000,0) -> 1.132646575 | X23: =IF(OFFSET('Measure Savings Results'!$A$1,5,15 +MAX('Measure Savings Results'!$F:$F)-MIN('Measure Savings Results'!$F:$F)+MAX('Measure Savings Results'!$I:$I)+W$17-MIN('Measure Savings Results'!$F:$F))=W$17,(SUMIFS(OFFSET('Measure Savings Results'!$A$1,6,15 +MAX('Measure Savings Results'!$F:$F)-MIN('Measure Savings Results'!$F:$F)+MAX('Measure Savings Results'!$I:$I)+W$17-MIN('Measure Savings Results'!$F:$F),2000),OFFSET('Measure Savings Results'!$A$1,6,4,2000),"Dx",OFFSET('Measure Savings Results'!$A$1,6,5,2000),$D23)/(1/(1-SUM('CE Parameters'!$F$10:$F$11))))/1000,0) -> 5128.968563 | Y23: =IF(OFFSET('Measure Savings Results'!$A$1,5,15 +Y$17-MIN('Measure Savings Results'!$F:$F))=Y$17,(SUMIFS(OFFSET('Measure Savings Results'!$A$1,6,15 +Y$17-MIN('Measure Savings Results'!$F:$F),2000),OFFSET('Measure Savings Results'!$A$1,6,4,2000),"Dx",OFFSET('Measure Savings Results'!$A$1,6,5,2000),$D23)/(1/(1-SUM('CE Parameters'!$F$10:$F$11))))/1000,0) -> 1.132646575 | Z23: =IF(OFFSET('Measure Savings Results'!$A$1,5,15 +MAX('Measure Savings Results'!$F:$F)-MIN('Measure Savings Results'!$F:$F)+MAX('Measure Savings Results'!$I:$I)+Y$17-MIN('Measure Savings Results'!$F:$F))=Y$17,(SUMIFS(OFFSET('Measure Savings Results'!$A$1,6,15 +MAX('Measure Savings Results'!$F:$F)-MIN('Measure Savings Results'!$F:$F)+MAX('Measure Savings Results'!$I:$I)+Y$17-MIN('Measure Savings Results'!$F:$F),2000),OFFSET('Measure Savings Results'!$A$1,6,4,2000),"Dx",OFFSET('Measure Savings Results'!$A$1,6,5,2000),$D23)/(1/(1-SUM('CE Parameters'!$F$10:$F$11))))/1000,0) -> 5128.968563 | AA23: =IF(OFFSET('Measure Savings Results'!$A$1,5,15 +AA$17-MIN('Measure Savings Results'!$F:$F))=AA$17,(SUMIFS(OFFSET('Measure Savings Results'!$A$1,6,15 +AA$17-MIN('Measure Savings Results'!$F:$F),2000),OFFSET('Measure Savings Results'!$A$1,6,4,2000),"Dx",OFFSET('Measure Savings Results'!$A$1,6,5,2000),$D23)/(1/(1-SUM('CE Parameters'!$F$10:$F$11))))/1000,0) -> 1.132646575 | AB23: =IF(OFFSET('Measure Savings Results'!$A$1,5,15 +MAX('Measure Savings Results'!$F:$F)-MIN('Measure Savings Results'!$F:$F)+MAX('Measure Savings Results'!$I:$I)+AA$17-MIN('Measure Savings Results'!$F:$F))=AA$17,(SUMIFS(OFFSET('Measure Savings Results'!$A$1,6,15 +MAX('Measure Savings Results'!$F:$F)-MIN('Measure Savings Results'!$F:$F)+MAX('Measure Savings Results'!$I:$I)+AA$17-MIN('Measure Savings Results'!$F:$F),2000),OFFSET('Measure Savings Results'!$A$1,6,4,2000),"Dx",OFFSET('Measure Savings Results'!$A$1,6,5,2000),$D23)/(1/(1-SUM('CE Parameters'!$F$10:$F$11))))/1000,0) -> 5128.968563 | AC23: =IF(OFFSET('Measure Savings Results'!$A$1,5,15 +AC$17-MIN('Measure Savings Results'!$F:$F))=AC$17,(SUMIFS(OFFSET('Measure Savings Results'!$A$1,6,15 +AC$17-MIN('Measure Savings Results'!$F:$F),2000),OFFSET('Measure Savings Results'!$A$1,6,4,2000),"Dx",OFFSET('Measure Savings Results'!$A$1,6,5,2000),$D23)/(1/(1-SUM('CE Parameters'!$F$10:$F$11))))/1000,0) -> 1.132646575 | AD23: =IF(OFFSET('Measure Savings Results'!$A$1,5,15 +MAX('Measure Savings Results'!$F:$F)-MIN('Measure Savings Results'!$F:$F)+MAX('Measure Savings Results'!$I:$I)+AC$17-MIN('Measure Savings Results'!$F:$F))=AC$17,(SUMIFS(OFFSET('Measure Savings Results'!$A$1,6,15 +MAX('Measure Savings Results'!$F:$F)-MIN('Measure Savings Results'!$F:$F)+MAX('Measure Savings Results'!$I:$I)+AC$17-MIN('Measure Savings Results'!$F:$F),2000),OFFSET('Measure Savings Results'!$A$1,6,4,2000),"Dx",OFFSET('Measure Savings Results'!$A$1,6,5,2000),$D23)/(1/(1-SUM('CE Parameters'!$F$10:$F$11))))/1000,0) -> 5128.968563 | AE23: =IF(OFFSET('Measure Savings Results'!$A$1,5,15 +AE$17-MIN('Measure Savings Results'!$F:$F))=AE$17,(SUMIFS(OFFSET('Measure Savings Results'!$A$1,6,15 +AE$17-MIN('Measure Savings Results'!$F:$F),2000),OFFSET('Measure Savings Results'!$A$1,6,4,2000),"Dx",OFFSET('Measure Savings Results'!$A$1,6,5,2000),$D23)/(1/(1-SUM('CE Parameters'!$F$10:$F$11))))/1000,0) -> 0.8476475377 | AF23: =IF(OFFSET('Measure Savings Results'!$A$1,5,15 +MAX('Measure Savings Results'!$F:$F)-MIN('Measure Savings Results'!$F:$F)+MAX('Measure Savings Results'!$I:$I)+AE$17-MIN('Measure Savings Results'!$F:$F))=AE$17,(SUMIFS(OFFSET('Measure Savings Results'!$A$1,6,15 +MAX('Measure Savings Results'!$F:$F)-MIN('Measure Savings Results'!$F:$F)+MAX('Measure Savings Results'!$I:$I)+AE$17-MIN('Measure Savings Results'!$F:$F),2000),OFFSET('Measure Savings Results'!$A$1,6,4,2000),"Dx",OFFSET('Measure Savings Results'!$A$1,6,5,2000),$D23)/(1/(1-SUM('CE Parameters'!$F$10:$F$11))))/1000,0) -> 3958.425972 | AG23: =IF(OFFSET('Measure Savings Results'!$A$1,5,15 +AG$17-MIN('Measure Savings Results'!$F:$F))=AG$17,(SUMIFS(OFFSET('Measure Savings Results'!$A$1,6,15 +AG$17-MIN('Measure Savings Results'!$F:$F),2000),OFFSET('Measure Savings Results'!$A$1,6,4,2000),"Dx",OFFSET('Measure Savings Results'!$A$1,6,5,2000),$D23)/(1/(1-SUM('CE Parameters'!$F$10:$F$11))))/1000,0) -> 0.7603715091 | AH23: =IF(OFFSET('Measure Savings Results'!$A$1,5,15 +MAX('Measure Savings Results'!$F:$F)-MIN('Measure Savings Results'!$F:$F)+MAX('Measure Savings Results'!$I:$I)+AG$17-MIN('Measure Savings Results'!$F:$F))=AG$17,(SUMIFS(OFFSET('Measure Savings Results'!$A$1,6,15 +MAX('Measure Savings Results'!$F:$F)-MIN('Measure Savings Results'!$F:$F)+MAX('Measure Savings Results'!$I:$I)+AG$17-MIN('Measure Savings Results'!$F:$F),2000),OFFSET('Measure Savings Results'!$A$1,6,4,2000),"Dx",OFFSET('Measure Savings Results'!$A$1,6,5,2000),$D23)/(1/(1-SUM('CE Parameters'!$F$10:$F$11))))/1000,0) -> 3111.873492 | AI23: =IF(OFFSET('Measure Savings Results'!$A$1,5,15 +AI$17-MIN('Measure Savings Results'!$F:$F))=AI$17,(SUMIFS(OFFSET('Measure Savings Results'!$A$1,6,15 +AI$17-MIN('Measure Savings Results'!$F:$F),2000),OFFSET('Measure Savings Results'!$A$1,6,4,2000),"Dx",OFFSET('Measure Savings Results'!$A$1,6,5,2000),$D23)/(1/(1-SUM('CE Parameters'!$F$10:$F$11))))/1000,0) -> 0.5246507091 | AJ23: =IF(OFFSET('Measure Savings Results'!$A$1,5,15 +MAX('Measure Savings Results'!$F:$F)-MIN('Measure Savings Results'!$F:$F)+MAX('Measure Savings Results'!$I:$I)+AI$17-MIN('Measure Savings Results'!$F:$F))=AI$17,(SUMIFS(OFFSET('Measure Savings Results'!$A$1,6,15 +MAX('Measure Savings Results'!$F:$F)-MIN('Measure Savings Results'!$F:$F)+MAX('Measure Savings Results'!$I:$I)+AI$17-MIN('Measure Savings Results'!$F:$F),2000),OFFSET('Measure Savings Results'!$A$1,6,4,2000),"Dx",OFFSET('Measure Savings Results'!$A$1,6,5,2000),$D23)/(1/(1-SUM('CE Parameters'!$F$10:$F$11))))/1000,0) -> 1916.567492 | AK23: =IF(OFFSET('Measure Savings Results'!$A$1,5,15 +AK$17-MIN('Measure Savings Results'!$F:$F))=AK$17,(SUMIFS(OFFSET('Measure Savings Results'!$A$1,6,15 +AK$17-MIN('Measure Savings Results'!$F:$F),2000),OFFSET('Measure Savings Results'!$A$1,6,4,2000),"Dx",OFFSET('Measure Savings Results'!$A$1,6,5,2000),$D23)/(1/(1-SUM('CE Parameters'!$F$10:$F$11))))/1000,0) -> 0.5246507091 | AL23: =IF(OFFSET('Measure Savings Results'!$A$1,5,15 +MAX('Measure Savings Results'!$F:$F)-MIN('Measure Savings Results'!$F:$F)+MAX('Measure Savings Results'!$I:$I)+AK$17-MIN('Measure Savings Results'!$F:$F))=AK$17,(SUMIFS(OFFSET('Measure Savings Results'!$A$1,6,15 +MAX('Measure Savings Results'!$F:$F)-MIN('Measure Savings Results'!$F:$F)+MAX('Measure Savings Results'!$I:$I)+AK$17-MIN('Measure Savings Results'!$F:$F),2000),OFFSET('Measure Savings Results'!$A$1,6,4,2000),"Dx",OFFSET('Measure Savings Results'!$A$1,6,5,2000),$D23)/(1/(1-SUM('CE Parameters'!$F$10:$F$11))))/1000,0) -> 1916.567492 | AM23: =IF(OFFSET('Measure Savings Results'!$A$1,5,15 +AM$17-MIN('Measure Savings Results'!$F:$F))=AM$17,(SUMIFS(OFFSET('Measure Savings Results'!$A$1,6,15 +AM$17-MIN('Measure Savings Results'!$F:$F),2000),OFFSET('Measure Savings Results'!$A$1,6,4,2000),"Dx",OFFSET('Measure Savings Results'!$A$1,6,5,2000),$D23)/(1/(1-SUM('CE Parameters'!$F$10:$F$11))))/1000,0) -> 0.5246507091 | AN23: =IF(OFFSET('Measure Savings Results'!$A$1,5,15 +MAX('Measure Savings Results'!$F:$F)-MIN('Measure Savings Results'!$F:$F)+MAX('Measure Savings Results'!$I:$I)+AM$17-MIN('Measure Savings Results'!$F:$F))=AM$17,(SUMIFS(OFFSET('Measure Savings Results'!$A$1,6,15 +MAX('Measure Savings Results'!$F:$F)-MIN('Measure Savings Results'!$F:$F)+MAX('Measure Savings Results'!$I:$I)+AM$17-MIN('Measure Savings Results'!$F:$F),2000),OFFSET('Measure Savings Results'!$A$1,6,4,2000),"Dx",OFFSET('Measure Savings Results'!$A$1,6,5,2000),$D23)/(1/(1-SUM('CE Parameters'!$F$10:$F$11))))/1000,0) -> 1916.567492
D24: 2020 | E24: =IF(OFFSET('Measure Savings Results'!$A$1,5,15 +E$17-MIN('Measure Savings Results'!$F:$F))=E$17,(SUMIFS(OFFSET('Measure Savings Results'!$A$1,6,15 +E$17-MIN('Measure Savings Results'!$F:$F),2000),OFFSET('Measure Savings Results'!$A$1,6,4,2000),"Dx",OFFSET('Measure Savings Results'!$A$1,6,5,2000),$D24)/(1/(1-SUM('CE Parameters'!$F$10:$F$11))))/1000,0) -> 0 | F24: =IF(OFFSET('Measure Savings Results'!$A$1,5,15 +MAX('Measure Savings Results'!$F:$F)-MIN('Measure Savings Results'!$F:$F)+MAX('Measure Savings Results'!$I:$I)+E$17-MIN('Measure Savings Results'!$F:$F))=E$17,(SUMIFS(OFFSET('Measure Savings Results'!$A$1,6,15 +MAX('Measure Savings Results'!$F:$F)-MIN('Measure Savings Results'!$F:$F)+MAX('Measure Savings Results'!$I:$I)+E$17-MIN('Measure Savings Results'!$F:$F),2000),OFFSET('Measure Savings Results'!$A$1,6,4,2000),"Dx",OFFSET('Measure Savings Results'!$A$1,6,5,2000),$D24)/(1/(1-SUM('CE Parameters'!$F$10:$F$11))))/1000,0) -> 0 | G24: =IF(OFFSET('Measure Savings Results'!$A$1,5,15 +G$17-MIN('Measure Savings Results'!$F:$F))=G$17,(SUMIFS(OFFSET('Measure Savings Results'!$A$1,6,15 +G$17-MIN('Measure Savings Results'!$F:$F),2000),OFFSET('Measure Savings Results'!$A$1,6,4,2000),"Dx",OFFSET('Measure Savings Results'!$A$1,6,5,2000),$D24)/(1/(1-SUM('CE Parameters'!$F$10:$F$11))))/1000,0) -> 0 | H24: =IF(OFFSET('Measure Savings Results'!$A$1,5,15 +MAX('Measure Savings Results'!$F:$F)-MIN('Measure Savings Results'!$F:$F)+MAX('Measure Savings Results'!$I:$I)+G$17-MIN('Measure Savings Results'!$F:$F))=G$17,(SUMIFS(OFFSET('Measure Savings Results'!$A$1,6,15 +MAX('Measure Savings Results'!$F:$F)-MIN('Measure Savings Results'!$F:$F)+MAX('Measure Savings Results'!$I:$I)+G$17-MIN('Measure Savings Results'!$F:$F),2000),OFFSET('Measure Savings Results'!$A$1,6,4,2000),"Dx",OFFSET('Measure Savings Results'!$A$1,6,5,2000),$D24)/(1/(1-SUM('CE Parameters'!$F$10:$F$11))))/1000,0) -> 0 | I24: =IF(OFFSET('Measure Savings Results'!$A$1,5,15 +I$17-MIN('Measure Savings Results'!$F:$F))=I$17,(SUMIFS(OFFSET('Measure Savings Results'!$A$1,6,15 +I$17-MIN('Measure Savings Results'!$F:$F),2000),OFFSET('Measure Savings Results'!$A$1,6,4,2000),"Dx",OFFSET('Measure Savings Results'!$A$1,6,5,2000),$D24)/(1/(1-SUM('CE Parameters'!$F$10:$F$11))))/1000,0) -> 0 | J24: =IF(OFFSET('Measure Savings Results'!$A$1,5,15 +MAX('Measure Savings Results'!$F:$F)-MIN('Measure Savings Results'!$F:$F)+MAX('Measure Savings Results'!$I:$I)+I$17-MIN('Measure Savings Results'!$F:$F))=I$17,(SUMIFS(OFFSET('Measure Savings Results'!$A$1,6,15 +MAX('Measure Savings Results'!$F:$F)-MIN('Measure Savings Results'!$F:$F)+MAX('Measure Savings Results'!$I:$I)+I$17-MIN('Measure Savings Results'!$F:$F),2000),OFFSET('Measure Savings Results'!$A$1,6,4,2000),"Dx",OFFSET('Measure Savings Results'!$A$1,6,5,2000),$D24)/(1/(1-SUM('CE Parameters'!$F$10:$F$11))))/1000,0) -> 0 | K24: =IF(OFFSET('Measure Savings Results'!$A$1,5,15 +K$17-MIN('Measure Savings Results'!$F:$F))=K$17,(SUMIFS(OFFSET('Measure Savings Results'!$A$1,6,15 +K$17-MIN('Measure Savings Results'!$F:$F),2000),OFFSET('Measure Savings Results'!$A$1,6,4,2000),"Dx",OFFSET('Measure Savings Results'!$A$1,6,5,2000),$D24)/(1/(1-SUM('CE Parameters'!$F$10:$F$11))))/1000,0) -> 0 | L24: =IF(OFFSET('Measure Savings Results'!$A$1,5,15 +MAX('Measure Savings Results'!$F:$F)-MIN('Measure Savings Results'!$F:$F)+MAX('Measure Savings Results'!$I:$I)+K$17-MIN('Measure Savings Results'!$F:$F))=K$17,(SUMIFS(OFFSET('Measure Savings Results'!$A$1,6,15 +MAX('Measure Savings Results'!$F:$F)-MIN('Measure Savings Results'!$F:$F)+MAX('Measure Savings Results'!$I:$I)+K$17-MIN('Measure Savings Results'!$F:$F),2000),OFFSET('Measure Savings Results'!$A$1,6,4,2000),"Dx",OFFSET('Measure Savings Results'!$A$1,6,5,2000),$D24)/(1/(1-SUM('CE Parameters'!$F$10:$F$11))))/1000,0) -> 0 | M24: =IF(OFFSET('Measure Savings Results'!$A$1,5,15 +M$17-MIN('Measure Savings Results'!$F:$F))=M$17,(SUMIFS(OFFSET('Measure Savings Results'!$A$1,6,15 +M$17-MIN('Measure Savings Results'!$F:$F),2000),OFFSET('Measure Savings Results'!$A$1,6,4,2000),"Dx",OFFSET('Measure Savings Results'!$A$1,6,5,2000),$D24)/(1/(1-SUM('CE Parameters'!$F$10:$F$11))))/1000,0) -> 0 | N24: =IF(OFFSET('Measure Savings Results'!$A$1,5,15 +MAX('Measure Savings Results'!$F:$F)-MIN('Measure Savings Results'!$F:$F)+MAX('Measure Savings Results'!$I:$I)+M$17-MIN('Measure Savings Results'!$F:$F))=M$17,(SUMIFS(OFFSET('Measure Savings Results'!$A$1,6,15 +MAX('Measure Savings Results'!$F:$F)-MIN('Measure Savings Results'!$F:$F)+MAX('Measure Savings Results'!$I:$I)+M$17-MIN('Measure Savings Results'!$F:$F),2000),OFFSET('Measure Savings Results'!$A$1,6,4,2000),"Dx",OFFSET('Measure Savings Results'!$A$1,6,5,2000),$D24)/(1/(1-SUM('CE Parameters'!$F$10:$F$11))))/1000,0) -> 0 | O24: =IF(OFFSET('Measure Savings Results'!$A$1,5,15 +O$17-MIN('Measure Savings Results'!$F:$F))=O$17,(SUMIFS(OFFSET('Measure Savings Results'!$A$1,6,15 +O$17-MIN('Measure Savings Results'!$F:$F),2000),OFFSET('Measure Savings Results'!$A$1,6,4,2000),"Dx",OFFSET('Measure Savings Results'!$A$1,6,5,2000),$D24)/(1/(1-SUM('CE Parameters'!$F$10:$F$11))))/1000,0) -> 1.249902235 | P24: =IF(OFFSET('Measure Savings Results'!$A$1,5,15 +MAX('Measure Savings Results'!$F:$F)-MIN('Measure Savings Results'!$F:$F)+MAX('Measure Savings Results'!$I:$I)+O$17-MIN('Measure Savings Results'!$F:$F))=O$17,(SUMIFS(OFFSET('Measure Savings Results'!$A$1,6,15 +MAX('Measure Savings Results'!$F:$F)-MIN('Measure Savings Results'!$F:$F)+MAX('Measure Savings Results'!$I:$I)+O$17-MIN('Measure Savings Results'!$F:$F),2000),OFFSET('Measure Savings Results'!$A$1,6,4,2000),"Dx",OFFSET('Measure Savings Results'!$A$1,6,5,2000),$D24)/(1/(1-SUM('CE Parameters'!$F$10:$F$11))))/1000,0) -> 5767.655253 | Q24: =IF(OFFSET('Measure Savings Results'!$A$1,5,15 +Q$17-MIN('Measure Savings Results'!$F:$F))=Q$17,(SUMIFS(OFFSET('Measure Savings Results'!$A$1,6,15 +Q$17-MIN('Measure Savings Results'!$F:$F),2000),OFFSET('Measure Savings Results'!$A$1,6,4,2000),"Dx",OFFSET('Measure Savings Results'!$A$1,6,5,2000),$D24)/(1/(1-SUM('CE Parameters'!$F$10:$F$11))))/1000,0) -> 1.249902235 | R24: =IF(OFFSET('Measure Savings Results'!$A$1,5,15 +MAX('Measure Savings Results'!$F:$F)-MIN('Measure Savings Results'!$F:$F)+MAX('Measure Savings Results'!$I:$I)+Q$17-MIN('Measure Savings Results'!$F:$F))=Q$17,(SUMIFS(OFFSET('Measure Savings Results'!$A$1,6,15 +MAX('Measure Savings Results'!$F:$F)-MIN('Measure Savings Results'!$F:$F)+MAX('Measure Savings Results'!$I:$I)+Q$17-MIN('Measure Savings Results'!$F:$F),2000),OFFSET('Measure Savings Results'!$A$1,6,4,2000),"Dx",OFFSET('Measure Savings Results'!$A$1,6,5,2000),$D24)/(1/(1-SUM('CE Parameters'!$F$10:$F$11))))/1000,0) -> 5767.655253 | S24: =IF(OFFSET('Measure Savings Results'!$A$1,5,15 +S$17-MIN('Measure Savings Results'!$F:$F))=S$17,(SUMIFS(OFFSET('Measure Savings Results'!$A$1,6,15 +S$17-MIN('Measure Savings Results'!$F:$F),2000),OFFSET('Measure Savings Results'!$A$1,6,4,2000),"Dx",OFFSET('Measure Savings Results'!$A$1,6,5,2000),$D24)/(1/(1-SUM('CE Parameters'!$F$10:$F$11))))/1000,0) -> 1.249902235 | T24: =IF(OFFSET('Measure Savings Results'!$A$1,5,15 +MAX('Measure Savings Results'!$F:$F)-MIN('Measure Savings Results'!$F:$F)+MAX('Measure Savings Results'!$I:$I)+S$17-MIN('Measure Savings Results'!$F:$F))=S$17,(SUMIFS(OFFSET('Measure Savings Results'!$A$1,6,15 +MAX('Measure Savings Results'!$F:$F)-MIN('Measure Savings Results'!$F:$F)+MAX('Measure Savings Results'!$I:$I)+S$17-MIN('Measure Savings Results'!$F:$F),2000),OFFSET('Measure Savings Results'!$A$1,6,4,2000),"Dx",OFFSET('Measure Savings Results'!$A$1,6,5,2000),$D24)/(1/(1-SUM('CE Parameters'!$F$10:$F$11))))/1000,0) -> 5767.655253 | U24: =IF(OFFSET('Measure Savings Results'!$A$1,5,15 +U$17-MIN('Measure Savings Results'!$F:$F))=U$17,(SUMIFS(OFFSET('Measure Savings Results'!$A$1,6,15 +U$17-MIN('Measure Savings Results'!$F:$F),2000),OFFSET('Measure Savings Results'!$A$1,6,4,2000),"Dx",OFFSET('Measure Savings Results'!$A$1,6,5,2000),$D24)/(1/(1-SUM('CE Parameters'!$F$10:$F$11))))/1000,0) -> 1.249902235 | V24: =IF(OFFSET('Measure Savings Results'!$A$1,5,15 +MAX('Measure Savings Results'!$F:$F)-MIN('Measure Savings Results'!$F:$F)+MAX('Measure Savings Results'!$I:$I)+U$17-MIN('Measure Savings Results'!$F:$F))=U$17,(SUMIFS(OFFSET('Measure Savings Results'!$A$1,6,15 +MAX('Measure Savings Results'!$F:$F)-MIN('Measure Savings Results'!$F:$F)+MAX('Measure Savings Results'!$I:$I)+U$17-MIN('Measure Savings Results'!$F:$F),2000),OFFSET('Measure Savings Results'!$A$1,6,4,2000),"Dx",OFFSET('Measure Savings Results'!$A$1,6,5,2000),$D24)/(1/(1-SUM('CE Parameters'!$F$10:$F$11))))/1000,0) -> 5767.655253 | W24: =IF(OFFSET('Measure Savings Results'!$A$1,5,15 +W$17-MIN('Measure Savings Results'!$F:$F))=W$17,(SUMIFS(OFFSET('Measure Savings Results'!$A$1,6,15 +W$17-MIN('Measure Savings Results'!$F:$F),2000),OFFSET('Measure Savings Results'!$A$1,6,4,2000),"Dx",OFFSET('Measure Savings Results'!$A$1,6,5,2000),$D24)/(1/(1-SUM('CE Parameters'!$F$10:$F$11))))/1000,0) -> 1.223482235 | X24: =IF(OFFSET('Measure Savings Results'!$A$1,5,15 +MAX('Measure Savings Results'!$F:$F)-MIN('Measure Savings Results'!$F:$F)+MAX('Measure Savings Results'!$I:$I)+W$17-MIN('Measure Savings Results'!$F:$F))=W$17,(SUMIFS(OFFSET('Measure Savings Results'!$A$1,6,15 +MAX('Measure Savings Results'!$F:$F)-MIN('Measure Savings Results'!$F:$F)+MAX('Measure Savings Results'!$I:$I)+W$17-MIN('Measure Savings Results'!$F:$F),2000),OFFSET('Measure Savings Results'!$A$1,6,4,2000),"Dx",OFFSET('Measure Savings Results'!$A$1,6,5,2000),$D24)/(1/(1-SUM('CE Parameters'!$F$10:$F$11))))/1000,0) -> 5615.948193 | Y24: =IF(OFFSET('Measure Savings Results'!$A$1,5,15 +Y$17-MIN('Measure Savings Results'!$F:$F))=Y$17,(SUMIFS(OFFSET('Measure Savings Results'!$A$1,6,15 +Y$17-MIN('Measure Savings Results'!$F:$F),2000),OFFSET('Measure Savings Results'!$A$1,6,4,2000),"Dx",OFFSET('Measure Savings Results'!$A$1,6,5,2000),$D24)/(1/(1-SUM('CE Parameters'!$F$10:$F$11))))/1000,0) -> 1.223482235 | Z24: =IF(OFFSET('Measure Savings Results'!$A$1,5,15 +MAX('Measure Savings Results'!$F:$F)-MIN('Measure Savings Results'!$F:$F)+MAX('Measure Savings Results'!$I:$I)+Y$17-MIN('Measure Savings Results'!$F:$F))=Y$17,(SUMIFS(OFFSET('Measure Savings Results'!$A$1,6,15 +MAX('Measure Savings Results'!$F:$F)-MIN('Measure Savings Results'!$F:$F)+MAX('Measure Savings Results'!$I:$I)+Y$17-MIN('Measure Savings Results'!$F:$F),2000),OFFSET('Measure Savings Results'!$A$1,6,4,2000),"Dx",OFFSET('Measure Savings Results'!$A$1,6,5,2000),$D24)/(1/(1-SUM('CE Parameters'!$F$10:$F$11))))/1000,0) -> 5615.948193 | AA24: =IF(OFFSET('Measure Savings Results'!$A$1,5,15 +AA$17-MIN('Measure Savings Results'!$F:$F))=AA$17,(SUMIFS(OFFSET('Measure Savings Results'!$A$1,6,15 +AA$17-MIN('Measure Savings Results'!$F:$F),2000),OFFSET('Measure Savings Results'!$A$1,6,4,2000),"Dx",OFFSET('Measure Savings Results'!$A$1,6,5,2000),$D24)/(1/(1-SUM('CE Parameters'!$F$10:$F$11))))/1000,0) -> 1.223482235 | AB24: =IF(OFFSET('Measure Savings Results'!$A$1,5,15 +MAX('Measure Savings Results'!$F:$F)-MIN('Measure Savings Results'!$F:$F)+MAX('Measure Savings Results'!$I:$I)+AA$17-MIN('Measure Savings Results'!$F:$F))=AA$17,(SUMIFS(OFFSET('Measure Savings Results'!$A$1,6,15 +MAX('Measure Savings Results'!$F:$F)-MIN('Measure Savings Results'!$F:$F)+MAX('Measure Savings Results'!$I:$I)+AA$17-MIN('Measure Savings Results'!$F:$F),2000),OFFSET('Measure Savings Results'!$A$1,6,4,2000),"Dx",OFFSET('Measure Savings Results'!$A$1,6,5,2000),$D24)/(1/(1-SUM('CE Parameters'!$F$10:$F$11))))/1000,0) -> 5615.948193 | AC24: =IF(OFFSET('Measure Savings Results'!$A$1,5,15 +AC$17-MIN('Measure Savings Results'!$F:$F))=AC$17,(SUMIFS(OFFSET('Measure Savings Results'!$A$1,6,15 +AC$17-MIN('Measure Savings Results'!$F:$F),2000),OFFSET('Measure Savings Results'!$A$1,6,4,2000),"Dx",OFFSET('Measure Savings Results'!$A$1,6,5,2000),$D24)/(1/(1-SUM('CE Parameters'!$F$10:$F$11))))/1000,0) -> 1.223482235 | AD24: =IF(OFFSET('Measure Savings Results'!$A$1,5,15 +MAX('Measure Savings Results'!$F:$F)-MIN('Measure Savings Results'!$F:$F)+MAX('Measure Savings Results'!$I:$I)+AC$17-MIN('Measure Savings Results'!$F:$F))=AC$17,(SUMIFS(OFFSET('Measure Savings Results'!$A$1,6,15 +MAX('Measure Savings Results'!$F:$F)-MIN('Measure Savings Results'!$F:$F)+MAX('Measure Savings Results'!$I:$I)+AC$17-MIN('Measure Savings Results'!$F:$F),2000),OFFSET('Measure Savings Results'!$A$1,6,4,2000),"Dx",OFFSET('Measure Savings Results'!$A$1,6,5,2000),$D24)/(1/(1-SUM('CE Parameters'!$F$10:$F$11))))/1000,0) -> 5615.948193 | AE24: =IF(OFFSET('Measure Savings Results'!$A$1,5,15 +AE$17-MIN('Measure Savings Results'!$F:$F))=AE$17,(SUMIFS(OFFSET('Measure Savings Results'!$A$1,6,15 +AE$17-MIN('Measure Savings Results'!$F:$F),2000),OFFSET('Measure Savings Results'!$A$1,6,4,2000),"Dx",OFFSET('Measure Savings Results'!$A$1,6,5,2000),$D24)/(1/(1-SUM('CE Parameters'!$F$10:$F$11))))/1000,0) -> 1.223482235 | AF24: =IF(OFFSET('Measure Savings Results'!$A$1,5,15 +MAX('Measure Savings Results'!$F:$F)-MIN('Measure Savings Results'!$F:$F)+MAX('Measure Savings Results'!$I:$I)+AE$17-MIN('Measure Savings Results'!$F:$F))=AE$17,(SUMIFS(OFFSET('Measure Savings Results'!$A$1,6,15 +MAX('Measure Savings Results'!$F:$F)-MIN('Measure Savings Results'!$F:$F)+MAX('Measure Savings Results'!$I:$I)+AE$17-MIN('Measure Savings Results'!$F:$F),2000),OFFSET('Measure Savings Results'!$A$1,6,4,2000),"Dx",OFFSET('Measure Savings Results'!$A$1,6,5,2000),$D24)/(1/(1-SUM('CE Parameters'!$F$10:$F$11))))/1000,0) -> 5615.948193 | AG24: =IF(OFFSET('Measure Savings Results'!$A$1,5,15 +AG$17-MIN('Measure Savings Results'!$F:$F))=AG$17,(SUMIFS(OFFSET('Measure Savings Results'!$A$1,6,15 +AG$17-MIN('Measure Savings Results'!$F:$F),2000),OFFSET('Measure Savings Results'!$A$1,6,4,2000),"Dx",OFFSET('Measure Savings Results'!$A$1,6,5,2000),$D24)/(1/(1-SUM('CE Parameters'!$F$10:$F$11))))/1000,0) -> 0.9110225377 | AH24: =IF(OFFSET('Measure Savings Results'!$A$1,5,15 +MAX('Measure Savings Results'!$F:$F)-MIN('Measure Savings Results'!$F:$F)+MAX('Measure Savings Results'!$I:$I)+AG$17-MIN('Measure Savings Results'!$F:$F))=AG$17,(SUMIFS(OFFSET('Measure Savings Results'!$A$1,6,15 +MAX('Measure Savings Results'!$F:$F)-MIN('Measure Savings Results'!$F:$F)+MAX('Measure Savings Results'!$I:$I)+AG$17-MIN('Measure Savings Results'!$F:$F),2000),OFFSET('Measure Savings Results'!$A$1,6,4,2000),"Dx",OFFSET('Measure Savings Results'!$A$1,6,5,2000),$D24)/(1/(1-SUM('CE Parameters'!$F$10:$F$11))))/1000,0) -> 4303.569948 | AI24: =IF(OFFSET('Measure Savings Results'!$A$1,5,15 +AI$17-MIN('Measure Savings Results'!$F:$F))=AI$17,(SUMIFS(OFFSET('Measure Savings Results'!$A$1,6,15 +AI$17-MIN('Measure Savings Results'!$F:$F),2000),OFFSET('Measure Savings Results'!$A$1,6,4,2000),"Dx",OFFSET('Measure Savings Results'!$A$1,6,5,2000),$D24)/(1/(1-SUM('CE Parameters'!$F$10:$F$11))))/1000,0) -> 0.8175545091 | AJ24: =IF(OFFSET('Measure Savings Results'!$A$1,5,15 +MAX('Measure Savings Results'!$F:$F)-MIN('Measure Savings Results'!$F:$F)+MAX('Measure Savings Results'!$I:$I)+AI$17-MIN('Measure Savings Results'!$F:$F))=AI$17,(SUMIFS(OFFSET('Measure Savings Results'!$A$1,6,15 +MAX('Measure Savings Results'!$F:$F)-MIN('Measure Savings Results'!$F:$F)+MAX('Measure Savings Results'!$I:$I)+AI$17-MIN('Measure Savings Results'!$F:$F),2000),OFFSET('Measure Savings Results'!$A$1,6,4,2000),"Dx",OFFSET('Measure Savings Results'!$A$1,6,5,2000),$D24)/(1/(1-SUM('CE Parameters'!$F$10:$F$11))))/1000,0) -> 3397.169148 | AK24: =IF(OFFSET('Measure Savings Results'!$A$1,5,15 +AK$17-MIN('Measure Savings Results'!$F:$F))=AK$17,(SUMIFS(OFFSET('Measure Savings Results'!$A$1,6,15 +AK$17-MIN('Measure Savings Results'!$F:$F),2000),OFFSET('Measure Savings Results'!$A$1,6,4,2000),"Dx",OFFSET('Measure Savings Results'!$A$1,6,5,2000),$D24)/(1/(1-SUM('CE Parameters'!$F$10:$F$11))))/1000,0) -> 0.5649965091 | AL24: =IF(OFFSET('Measure Savings Results'!$A$1,5,15 +MAX('Measure Savings Results'!$F:$F)-MIN('Measure Savings Results'!$F:$F)+MAX('Measure Savings Results'!$I:$I)+AK$17-MIN('Measure Savings Results'!$F:$F))=AK$17,(SUMIFS(OFFSET('Measure Savings Results'!$A$1,6,15 +MAX('Measure Savings Results'!$F:$F)-MIN('Measure Savings Results'!$F:$F)+MAX('Measure Savings Results'!$I:$I)+AK$17-MIN('Measure Savings Results'!$F:$F),2000),OFFSET('Measure Savings Results'!$A$1,6,4,2000),"Dx",OFFSET('Measure Savings Results'!$A$1,6,5,2000),$D24)/(1/(1-SUM('CE Parameters'!$F$10:$F$11))))/1000,0) -> 2116.484148 | AM24: =IF(OFFSET('Measure Savings Results'!$A$1,5,15 +AM$17-MIN('Measure Savings Results'!$F:$F))=AM$17,(SUMIFS(OFFSET('Measure Savings Results'!$A$1,6,15 +AM$17-MIN('Measure Savings Results'!$F:$F),2000),OFFSET('Measure Savings Results'!$A$1,6,4,2000),"Dx",OFFSET('Measure Savings Results'!$A$1,6,5,2000),$D24)/(1/(1-SUM('CE Parameters'!$F$10:$F$11))))/1000,0) -> 0.5649965091 | AN24: =IF(OFFSET('Measure Savings Results'!$A$1,5,15 +MAX('Measure Savings Results'!$F:$F)-MIN('Measure Savings Results'!$F:$F)+MAX('Measure Savings Results'!$I:$I)+AM$17-MIN('Measure Savings Results'!$F:$F))=AM$17,(SUMIFS(OFFSET('Measure Savings Results'!$A$1,6,15 +MAX('Measure Savings Results'!$F:$F)-MIN('Measure Savings Results'!$F:$F)+MAX('Measure Savings Results'!$I:$I)+AM$17-MIN('Measure Savings Results'!$F:$F),2000),OFFSET('Measure Savings Results'!$A$1,6,4,2000),"Dx",OFFSET('Measure Savings Results'!$A$1,6,5,2000),$D24)/(1/(1-SUM('CE Parameters'!$F$10:$F$11))))/1000,0) -> 2116.484148
D25: Plan Total | E25: =SUM(E19:E24) -> 0.5791900232 | F25: 2840.526829 | G25: 2.432198282 | H25: 14458.00198 | I25: 3.765211396 | J25: 21492.71834 | K25: 4.889879843 | L25: 26386.41434 | M25: 6.031509218 | N25: 31566.9633 | O25: 7.254991454 | P25: 37182.91149 | Q25: 7.228571454 | R25: 37031.20443 | S25: 7.202151454 | T25: 36879.49737 | U25: 7.175731454 | V25: 36727.79031 | W25: 7.149311454 | X25: 36576.08325 | Y25: 6.917669203 | Z25: 35470.76762 | AA25: 6.181124257 | AB25: 31697.03482 | AC25: 5.646647451 | AD25: 28916.92404 | AE25: 5.078517984 | AF25: 25935.12929 | AG25: 4.440777263 | AH25: 22606.4216 | AI25: 4.075166731 | AJ25: 20390.71487 | AK25: 3.786187027 | AL25: 18996.02995 | AM25: 3.263280595 | AN25: 15362.77178
B27: TABLE 3
B28: SUMMARY OF CDM PORTFOLIO COSTS
C29: CDM Plan Costs | D29: Implementation Year
D31: 2015
D32: 2016
D33: 2017
D34: 2018
D35: 2019
D36: 2020
D37: Plan Total

Sheet PROGRAM DESIGN >>
A1: Program Design Module
A2: INSTRUCTIONS:
A4: 1 | B4: Begin with the "Custom Measure Input" worksheet to create any new measures needed. A measure is defined as the combination of the technology (measure), program, and assumptions.
A5: =A4+1 -> 2 | B5: Next, move to the "Measure Selection & CE Results" worksheet and select the measures to be included in your program(s), specify the participation, incentive levels and program years for each measure. If a measure does not appear, it has not been added in Step 1.
A6: =A5+1 -> 3 | B6: Next, input the program budgets in the "Program Budget Input" worksheet (this worksheet will not populate until the measures have been selected). This worksheet will populate with only the programs and program years selected in step 2.
A7: =A6+1 -> 4 | B7: Finally, if necessary, populate the "External Input" worksheet with any externally calculated cost-effectiveness results (i.e. behind the meter generation). Ensure that the assumptions align with the "CE Parameters" worksheet (i.e., inflation rate, base year, etc.).
A8: =A7+1 -> 5 | B8: To calculate Cost Effectiveness, activate the "Program Portfolio CE Results" worksheet and click the appropriate buttons.
A9: =A8+1 -> 6 | B9: To view measure level savings for the life of a measure, activate the "Measure Savings Results" worksheet and click the appropriate buttons.

Sheet Custom Measure Input
B1: Program Design Module: Custom Measure Input | C1: Users can create custom measures to add to the repository ("Formatted Measure List"). If the measure is not in the repository, it cannot be used in the next step in the program design module. CAUTION: If the measure name is already in the repository, the measure cannot be added (a measure name consists of all headings in the table below marked with "*")
B2: Use the buttons to add and remove custom measures. "Define Custom Measure": Activates the form to input custom measure information and add it to the table below (if the entire form is not visible select "small format" in the drop down in the "ADMIN OPTIONS" tab) "Delete Custom Measure(s)": To delete measures in the table below, click or highlight any cell in the row of the measures you wish to delete and click the button "Clear All Custom Measures": Clears all measures "Add Custom Measures to Formatted Measure List": Once all custom measures are added, click this button to add them to the repository ("Formatted Measure List").
B3: Click here to see existing measures in the "Formatted Measure List"
X4: *
B5: * | C5: * | D5: * | F5: * | G5: * | H5: * | R5: * | X5: DUAL BASELINE | AF5: * | AG5: *
B6: ACTIVE | C6: SECTOR | D6: PROGRAM | E6: END-USE | F6: CONSERVATION MEASURE | G6: MEASURE DESCRIPTION | H6: BASE MEASURE | I6: ASSUMED ANNUAL OPERATING HOURS | J6: BASE CASE KW | K6: BASE CASE KWH | L6: CONSERVATION CASE KW | M6: CONSERVATION CASE KWH | N6: FIRST YEAR DEMAND SAVINGS (KW) | O6: FIRST YEAR ENERGY SAVINGS (KWH) | P6: PEAK DEMAND (KW) | Q6: EFFECTIVE USEFUL LIFE (YEAR) | R6: END USE LOAD PROFILE | S6: INCREMENTAL LIFE CYCLE COST ($) | T6: 2012 NET-TO-GROSS (ENERGY) | U6: 2012 NET-TO-GROSS (DEMAND) | V6: FIRST YEAR NATURAL GAS SAVINGS (MMBtu) | W6: FIRST YEAR WATER SAVINGS ($/Litre) | X6: EARLY REPLACEMENT | Y6: REMAINNG USEFUL LIFE (YEAR) | Z6: REMAINING LIFE ANNUAL DEMAND SAVINGS (KW) | AA6: REMAINNG LIFE ANNUAL ENERGY SAVINGS (KWH) | AB6: REMAINING LIFE PEAK DEMAND SAVINGS (KW) | AC6: REMAINING LIFE NATURAL GAS SAVINGS (MMBtu) | AD6: REMAINING LIFE WATER SAVINGS ($/Litre) | AE6: REMAINING INCREMENTAL LIFE CYCLE COST ($) | AF6: Weather Sensitive Peak Demand | AG6: Distribution (Dx) or Transmission (Tx) Connected

Sheet Measure Selection & CE Results
B1: Program Design Module: Measure Selection | C1: Users select the measures to model for program design, tracking and evaluation purposes. The program year, quantity of measures, incentive and variable program costs are selected at this stage, these three components can be modified either within the User Input form or directly in the spreadsheet. Users can input single measures or all measures within a program.
B2: Use buttons to add and remove measures and calculate cost effectiveness at the measure level. "Single Measure Selection": Activates the measure selection form (users quantity, program year, variable program costs and incentive costs) for one measure. "Bulk Measure Selection": Activates the bulk measure selection and specification form for all measures within a program (users specify placeholder values for the program year, quantity, incentive and variable program costs, but can modify these values after the table below is populated) "Delete Measure": Select any cell within the rows containing the measure(s) you would like to remove and click the button "Clear All Measures": Click the button to clear the sheet and re-start your measure selection
B3: Click here to see detailed cost effectiveness calculations by measure
U5: Total Resource Cost (TRC) Test | Y5: Societal Cost (SC) Test | AC5: Program Administrator Cost (PAC) Test | AG5: Participant Cost (PC) Test | AK5: Rate Impact Measure (RIM) Test | AO5: Levelized Cost (LC) Metric ($/kW or $/kWh)
B6: ACTIVE | C6: SECTOR | D6: PROGRAM | E6: END-USE | F6: CONSERVATION MEASURE | G6: MEASURE DESCRIPTION | H6: BASE MEASURE | I6: END USE LOAD PROFILE | J6: PROGRAM YEAR | K6: QUANTITY | L6: PER UNIT INCENTIVE | M6: VARIABLE PROGRAM COSTS | N6: EARLY REPLACEMENT | O6: WEATHER SENSITIVE PEAK DEMAND | P6: Distribution (Dx) or Transmission (Tx) Connected | Q6: NET-TO-GROSS (ENERGY) | R6: NET-TO-GROSS (DEMAND) | S6: TOTAL INCENTIVE | T6: TOTAL VARIABLE PROGRAM COSTS | U6: TRC BENEFITS | V6: TRC COSTS | W6: TRC RATIO | X6: TRC NET BENEFITS | Y6: SC BENEFITS | Z6: SC COSTS | AA6: SC RATIO | AB6: SC NET BENEFITS | AC6: PAC BENEFITS | AD6: PAC COSTS | AE6: PAC RATIO | AF6: PAC NET BENEFITS | AG6: PC BENEFITS | AH6: PC COSTS | AI6: PC RATIO | AJ6: PC NET BENEFITS | AK6: RIM BENEFITS | AL6: RIM COSTS | AM6: RIM RATIO | AN6: RIM NET BENEFITS | AO6: LC BENEFITS (DEMAND) | AP6: LC BENEFITS (ENERGY) | AQ6: LC COSTS | AR6: LC METRIC (DEMAND) | AS6: LC METRIC (ENERGY)
A7: =CONCATENATE(TRIM(LEFT(B7,1)),TRIM(LEFT(C7,20)),TRIM(LEFT(D7,10)),TRIM(RIGHT(D7,10)),TRIM(LEFT(F7,20)),TRIM(RIGHT(F7,20)),TRIM(LEFT(G7,105)),TRIM(LEFT(H7,20)),TRIM(RIGHT(H7,20)),TRIM(LEFT(I7,1)),TRIM(RIGHT(I7,25)),TRIM(LEFT(N7,1)),TRIM(LEFT(O7,1)),TRIM(LEFT(P7,1))) -> YIESO - ARCHETYPERetrofitRetrofitPRESCRIPTIVE LIGHTINRESCRIPTIVE LIGHTINGARCHETYPE - PRESCRIPTIVE LIGHTINGHISTORICAL PERFORMANSTORICAL PERFORMANCEPLighting_Interior_GeneralNND | B7: Yes | C7: IESO - ARCHETYPE | D7: Retrofit | E7: Lighting | F7: PRESCRIPTIVE LIGHTING | G7: ARCHETYPE - PRESCRIPTIVE LIGHTING | H7: HISTORICAL PERFORMANCE | I7: PSP-Business-Commercial-Lighting_Interior_General | J7: 2015 | K7: 52 | L7: 0 | M7: 0 | N7: No | O7: No | P7: Dx | Q7: =VLOOKUP($A7,OFFSET('Formatted Measure List'!$A$1,4,0,10000,33),MATCH($Q$6,OFFSET('Formatted Measure List'!$A$1,4,0,1,33),0),FALSE) -> 0.777 | R7: =VLOOKUP($A7,OFFSET('Formatted Measure List'!$A$1,4,0,10000,33),MATCH($R$6,OFFSET('Formatted Measure List'!$A$1,4,0,1,33),0),FALSE) -> 0.767 | S7: =L7*K7 -> 0 | T7: =M7*K7 -> 0 | U7: =$K7*'Measure CE Results'!DX8 -> 1669291.5 | V7: =$K7*'Measure CE Results'!DY8 -> 201457.1723 | W7: =U7/V7 -> 8.286086226 | X7: =U7-V7 -> 1467834.328 | Y7: =$K7*'Measure CE Results'!DZ8 -> 1669291.5 | Z7: =$K7*'Measure CE Results'!EA8 -> 201457.1723 | AA7: =Y7/Z7 -> 8.286086226 | AB7: =Y7-Z7 -> 1467834.328 | AC7: =$K7*'Measure CE Results'!EB8 -> 1372542.61 | AD7: =$K7*'Measure CE Results'!EC8 -> 0 | AE7: =AC7/AD7 ->  | AF7: =AC7-AD7 -> 1372542.61 | AG7: =$K7*'Measure CE Results'!ED8 -> 3418.432907 | AH7: =$K7*'Measure CE Results'!EE8 -> 259275.64 | AI7: =AG7/AH7 -> 0.01318455103 | AJ7: =AG7-AH7 -> -255857.2071 | AK7: =$K7*'Measure CE Results'!EF8 -> 1451557.826 | AL7: =$K7*'Measure CE Results'!EG8 -> 2656.122369 | AM7: =AK7/AL7 -> 546.4950875 | AN7: =AK7-AL7 -> 1448901.704 | AO7: =$K7*'Measure CE Results'!EH8 -> 4901.130464 | AP7: =$K7*'Measure CE Results'!$EJ8 -> 24533064.55 | AQ7: =$K7*'Measure CE Results'!EI8 -> 0 | AR7: =AQ7/AO7 -> 0 | AS7: =AQ7/AP7 -> 0
A8: YIESO - ARCHETYPERetrofitRetrofitPRESCRIPTIVE LIGHTINRESCRIPTIVE LIGHTINGARCHETYPE - PRESCRIPTIVE LIGHTINGHISTORICAL PERFORMANSTORICAL PERFORMANCEPLighting_Interior_GeneralNND | B8: Yes | C8: IESO - ARCHETYPE | D8: Retrofit | E8: Lighting | F8: PRESCRIPTIVE LIGHTING | G8: ARCHETYPE - PRESCRIPTIVE LIGHTING | H8: HISTORICAL PERFORMANCE | I8: PSP-Business-Commercial-Lighting_Interior_General | J8: 2016 | K8: 24 | L8: 5270.5 | M8: 0 | N8: No | O8: No | P8: Dx | Q8: =VLOOKUP($A8,OFFSET('Formatted Measure List'!$A$1,4,0,10000,33),MATCH($Q$6,OFFSET('Formatted Measure List'!$A$1,4,0,1,33),0),FALSE) -> 0.777 | R8: =VLOOKUP($A8,OFFSET('Formatted Measure List'!$A$1,4,0,10000,33),MATCH($R$6,OFFSET('Formatted Measure List'!$A$1,4,0,1,33),0),FALSE) -> 0.767 | S8: =L8*K8 -> 126492 | T8: =M8*K8 -> 0 | U8: =$K8*'Measure CE Results'!DX9 -> 805974.6593 | V8: =$K8*'Measure CE Results'!DY9 -> 91157.09153 | W8: =U8/V8 -> 8.841601303 | X8: =U8-V8 -> 714817.5677 | Y8: =$K8*'Measure CE Results'!DZ9 -> 805974.6593 | Z8: =$K8*'Measure CE Results'!EA9 -> 91157.09153 | AA8: =Y8/Z8 -> 8.841601303 | AB8: =Y8-Z8 -> 714817.5677 | AC8: =$K8*'Measure CE Results'!EB9 -> 664378.9686 | AD8: =$K8*'Measure CE Results'!EC9 -> 124011.7647 | AE8: =AC8/AD8 -> 5.357386617 | AF8: =AC8-AD8 -> 540367.2039 | AG8: =$K8*'Measure CE Results'!ED9 -> 125587.6666 | AH8: =$K8*'Measure CE Results'!EE9 -> 117319.2941 | AI8: =AG8/AH8 -> 1.070477517 | AJ8: =AG8-AH8 -> 8268.372515 | AK8: =$K8*'Measure CE Results'!EF9 -> 700847.5298 | AL8: =$K8*'Measure CE Results'!EG9 -> 125236.2405 | AM8: =AK8/AL8 -> 5.596203838 | AN8: =AK8-AL8 -> 575611.2893 | AO8: =$K8*'Measure CE Results'!EH9 -> 2217.706092 | AP8: =$K8*'Measure CE Results'!$EJ9 -> 11100934.19 | AQ8: =$K8*'Measure CE Results'!EI9 -> 124011.7647 | AR8: =AQ8/AO8 -> 55.91893585 | AS8: =AQ8/AP8 -> 0.01117129087
A9: YIESO - ARCHETYPERetrofitRetrofitPRESCRIPTIVE LIGHTINRESCRIPTIVE LIGHTINGARCHETYPE - PRESCRIPTIVE LIGHTINGHISTORICAL PERFORMANSTORICAL PERFORMANCEPLighting_Interior_GeneralNND | B9: Yes | C9: IESO - ARCHETYPE | D9: Retrofit | E9: Lighting | F9: PRESCRIPTIVE LIGHTING | G9: ARCHETYPE - PRESCRIPTIVE LIGHTING | H9: HISTORICAL PERFORMANCE | I9: PSP-Business-Commercial-Lighting_Interior_General | J9: 2017 | K9: 24 | L9: 5270.5 | M9: 0 | N9: No | O9: No | P9: Dx | Q9: =VLOOKUP($A9,OFFSET('Formatted Measure List'!$A$1,4,0,10000,33),MATCH($Q$6,OFFSET('Formatted Measure List'!$A$1,4,0,1,33),0),FALSE) -> 0.777 | R9: =VLOOKUP($A9,OFFSET('Formatted Measure List'!$A$1,4,0,10000,33),MATCH($R$6,OFFSET('Formatted Measure List'!$A$1,4,0,1,33),0),FALSE) -> 0.767 | S9: 126492 | T9: 0 | U9: =$K9*'Measure CE Results'!DX10 -> 852130.6519 | V9: =$K9*'Measure CE Results'!DY10 -> 89369.69758 | W9: 9.534894657 | X9: 762760.9544 | Y9: =$K9*'Measure CE Results'!DZ10 -> 852130.6519 | Z9: =$K9*'Measure CE Results'!EA10 -> 89369.69758 | AA9: 9.534894657 | AB9: 762760.9544 | AC9: =$K9*'Measure CE Results'!EB10 -> 704514.6144 | AD9: =$K9*'Measure CE Results'!EC10 -> 121580.1615 | AE9: 5.794651083 | AF9: 582934.4529 | AG9: =$K9*'Measure CE Results'!ED10 -> 123154.6442 | AH9: =$K9*'Measure CE Results'!EE10 -> 115018.9158 | AI9: 1.070733829 | AJ9: 8135.728358 | AK9: =$K9*'Measure CE Results'!EF10 -> 740983.1756 | AL9: =$K9*'Measure CE Results'!EG10 -> 122803.5345 | AM9: 6.033891276 | AN9: 618179.6411 | AO9: =$K9*'Measure CE Results'!EH10 -> 2174.221659 | AP9: =$K9*'Measure CE Results'!$EJ10 -> 10883268.81 | AQ9: =$K9*'Measure CE Results'!EI10 -> 121580.1615 | AR9: 55.91893585 | AS9: 0.01117129087
A10: YIESO - ARCHETYPERetrofitRetrofitPRESCRIPTIVE LIGHTINRESCRIPTIVE LIGHTINGARCHETYPE - PRESCRIPTIVE LIGHTINGHISTORICAL PERFORMANSTORICAL PERFORMANCEPLighting_Interior_GeneralNND | B10: Yes | C10: IESO - ARCHETYPE | D10: Retrofit | E10: Lighting | F10: PRESCRIPTIVE LIGHTING | G10: ARCHETYPE - PRESCRIPTIVE LIGHTING | H10: HISTORICAL PERFORMANCE | I10: PSP-Business-Commercial-Lighting_Interior_General | J10: 2018 | K10: 26 | L10: 5270.5 | M10: 0 | N10: No | O10: No | P10: Dx | Q10: =VLOOKUP($A10,OFFSET('Formatted Measure List'!$A$1,4,0,10000,33),MATCH($Q$6,OFFSET('Formatted Measure List'!$A$1,4,0,1,33),0),FALSE) -> 0.777 | R10: =VLOOKUP($A10,OFFSET('Formatted Measure List'!$A$1,4,0,10000,33),MATCH($R$6,OFFSET('Formatted Measure List'!$A$1,4,0,1,33),0),FALSE) -> 0.767 | S10: 137033 | T10: 0 | U10: =$K10*'Measure CE Results'!DX11 -> 930654.6129 | V10: =$K10*'Measure CE Results'!DY11 -> 94918.79645 | W10: 9.80474519 | X10: 835735.8164 | Y10: =$K10*'Measure CE Results'!DZ11 -> 930654.6129 | Z10: =$K10*'Measure CE Results'!EA11 -> 94918.79645 | AA10: 9.80474519 | AB10: 835735.8164 | AC10: =$K10*'Measure CE Results'!EB11 -> 769757.2728 | AD10: =$K10*'Measure CE Results'!EC11 -> 129129.2565 | AE10: 5.961137653 | AF10: 640628.0164 | AG10: =$K10*'Measure CE Results'!ED11 -> 130832.3066 | AH10: =$K10*'Measure CE Results'!EE11 -> 122160.6132 | AI10: 1.070986001 | AJ10: 8671.693391 | AK10: =$K10*'Measure CE Results'!EF11 -> 809264.8808 | AL10: =$K10*'Measure CE Results'!EG11 -> 130452.5264 | AM10: 6.203520185 | AN10: 678812.3544 | AO10: =$K10*'Measure CE Results'!EH11 -> 2309.22235 | AP10: =$K10*'Measure CE Results'!$EJ11 -> 11559027.33 | AQ10: =$K10*'Measure CE Results'!EI11 -> 129129.2565 | AR10: 55.91893585 | AS10: 0.01117129087
A11: YIESO - ARCHETYPERetrofitRetrofitPRESCRIPTIVE LIGHTINRESCRIPTIVE LIGHTINGARCHETYPE - PRESCRIPTIVE LIGHTINGHISTORICAL PERFORMANSTORICAL PERFORMANCEPLighting_Interior_GeneralNND | B11: Yes | C11: IESO - ARCHETYPE | D11: Retrofit | E11: Lighting | F11: PRESCRIPTIVE LIGHTING | G11: ARCHETYPE - PRESCRIPTIVE LIGHTING | H11: HISTORICAL PERFORMANCE | I11: PSP-Business-Commercial-Lighting_Interior_General | J11: 2019 | K11: 28 | L11: 5270.5 | M11: 0 | N11: No | O11: No | P11: Dx | Q11: =VLOOKUP($A11,OFFSET('Formatted Measure List'!$A$1,4,0,10000,33),MATCH($Q$6,OFFSET('Formatted Measure List'!$A$1,4,0,1,33),0),FALSE) -> 0.777 | R11: =VLOOKUP($A11,OFFSET('Formatted Measure List'!$A$1,4,0,10000,33),MATCH($R$6,OFFSET('Formatted Measure List'!$A$1,4,0,1,33),0),FALSE) -> 0.767 | S11: 147574 | T11: 0 | U11: =$K11*'Measure CE Results'!DX12 -> 1015081.567 | V11: =$K11*'Measure CE Results'!DY12 -> 100215.9239 | W11: 10.12894486 | X11: 914865.6434 | Y11: =$K11*'Measure CE Results'!DZ12 -> 1015081.567 | Z11: =$K11*'Measure CE Results'!EA12 -> 100215.9239 | AA11: 10.12894486 | AB11: 914865.6434 | AC11: =$K11*'Measure CE Results'!EB12 -> 840132.969 | AD11: =$K11*'Measure CE Results'!EC12 -> 136335.5649 | AE11: 6.162243649 | AF11: 703797.4041 | AG11: =$K11*'Measure CE Results'!ED12 -> 138165.6001 | AH11: =$K11*'Measure CE Results'!EE12 -> 128978.023 | AI11: 1.071233664 | AJ11: 9187.577162 | AK11: =$K11*'Measure CE Results'!EF12 -> 882679.6237 | AL11: =$K11*'Measure CE Results'!EG12 -> 137757.5023 | AM11: 6.407488588 | AN11: 744922.1214 | AO11: =$K11*'Measure CE Results'!EH12 -> 2438.092979 | AP11: =$K11*'Measure CE Results'!$EJ12 -> 12204101.25 | AQ11: =$K11*'Measure CE Results'!EI12 -> 136335.5649 | AR11: 55.91893585 | AS11: 0.01117129087
A12: YIESO - ARCHETYPERetrofitRetrofitPRESCRIPTIVE LIGHTINRESCRIPTIVE LIGHTINGARCHETYPE - PRESCRIPTIVE LIGHTINGHISTORICAL PERFORMANSTORICAL PERFORMANCEPLighting_Interior_GeneralNND | B12: Yes | C12: IESO - ARCHETYPE | D12: Retrofit | E12: Lighting | F12: PRESCRIPTIVE LIGHTING | G12: ARCHETYPE - PRESCRIPTIVE LIGHTING | H12: HISTORICAL PERFORMANCE | I12: PSP-Business-Commercial-Lighting_Interior_General | J12: 2020 | K12: 30 | L12: 5270.5 | M12: 0 | N12: No | O12: No | P12: Dx | Q12: =VLOOKUP($A12,OFFSET('Formatted Measure List'!$A$1,4,0,10000,33),MATCH($Q$6,OFFSET('Formatted Measure List'!$A$1,4,0,1,33),0),FALSE) -> 0.777 | R12: =VLOOKUP($A12,OFFSET('Formatted Measure List'!$A$1,4,0,10000,33),MATCH($R$6,OFFSET('Formatted Measure List'!$A$1,4,0,1,33),0),FALSE) -> 0.767 | S12: 158115 | T12: 0 | U12: =$K12*'Measure CE Results'!DX13 -> 1093131.041 | V12: =$K12*'Measure CE Results'!DY13 -> 105268.8276 | W12: 10.38418557 | X12: 987862.2132 | Y12: =$K12*'Measure CE Results'!DZ13 -> 1093131.041 | Z12: =$K12*'Measure CE Results'!EA13 -> 105268.8276 | AA12: 10.38418557 | AB12: 987862.2132 | AC12: =$K12*'Measure CE Results'!EB13 -> 904963.0296 | AD12: =$K12*'Measure CE Results'!EC13 -> 143209.627 | AE12: 6.319149408 | AF12: 761753.4026 | AG12: =$K12*'Measure CE Results'!ED13 -> 145162.2374 | AH12: =$K12*'Measure CE Results'!EE13 -> 135481.1166 | AI12: 1.071457344 | AJ12: 9681.120801 | AK12: =$K12*'Measure CE Results'!EF13 -> 950548.7311 | AL12: =$K12*'Measure CE Results'!EG13 -> 144726.8053 | AM12: 6.56788305 | AN12: 805821.9258 | AO12: =$K12*'Measure CE Results'!EH13 -> 2561.022037 | AP12: =$K12*'Measure CE Results'!$EJ13 -> 12819434.09 | AQ12: =$K12*'Measure CE Results'!EI13 -> 143209.627 | AR12: 55.91893585 | AS12: 0.01117129087
A13: YIESO - ARCHETYPERetrofitRetrofitPRESCRIPTIVE NON-LIGRIPTIVE NON-LIGHTINGARCHETYPE - PRESCRIPTIVE NON-LIGHTINGHISTORICAL PERFORMANSTORICAL PERFORMANCEPl-Miscellaneous_EquipmentNND | B13: Yes | C13: IESO - ARCHETYPE | D13: Retrofit | E13: Non-Lighting | F13: PRESCRIPTIVE NON-LIGHTING | G13: ARCHETYPE - PRESCRIPTIVE NON-LIGHTING | H13: HISTORICAL PERFORMANCE | I13: PSP-Business-Commercial-Miscellaneous_Equipment | J13: 2015 | K13: 0 | L13: 3923.6 | M13: 0 | N13: No | O13: No | P13: Dx | Q13: =VLOOKUP($A13,OFFSET('Formatted Measure List'!$A$1,4,0,10000,33),MATCH($Q$6,OFFSET('Formatted Measure List'!$A$1,4,0,1,33),0),FALSE) -> 0.682 | R13: =VLOOKUP($A13,OFFSET('Formatted Measure List'!$A$1,4,0,10000,33),MATCH($R$6,OFFSET('Formatted Measure List'!$A$1,4,0,1,33),0),FALSE) -> 0.692 | S13: 0 | T13: 0 | U13: =$K13*'Measure CE Results'!DX14 -> 0 | V13: =$K13*'Measure CE Results'!DY14 -> 0 | X13: 0 | Y13: =$K13*'Measure CE Results'!DZ14 -> 0 | Z13: =$K13*'Measure CE Results'!EA14 -> 0 | AB13: 0 | AC13: =$K13*'Measure CE Results'!EB14 -> 0 | AD13: =$K13*'Measure CE Results'!EC14 -> 0 | AF13: 0 | AG13: =$K13*'Measure CE Results'!ED14 -> 0 | AH13: =$K13*'Measure CE Results'!EE14 -> 0 | AJ13: 0 | AK13: =$K13*'Measure CE Results'!EF14 -> 0 | AL13: =$K13*'Measure CE Results'!EG14 -> 0 | AN13: 0 | AO13: =$K13*'Measure CE Results'!EH14 -> 0 | AP13: =$K13*'Measure CE Results'!$EJ14 -> 0 | AQ13: =$K13*'Measure CE Results'!EI14 -> 0
A14: YIESO - ARCHETYPERetrofitRetrofitPRESCRIPTIVE NON-LIGRIPTIVE NON-LIGHTINGARCHETYPE - PRESCRIPTIVE NON-LIGHTINGHISTORICAL PERFORMANSTORICAL PERFORMANCEPl-Miscellaneous_EquipmentNND | B14: Yes | C14: IESO - ARCHETYPE | D14: Retrofit | E14: Non-Lighting | F14: PRESCRIPTIVE NON-LIGHTING | G14: ARCHETYPE - PRESCRIPTIVE NON-LIGHTING | H14: HISTORICAL PERFORMANCE | I14: PSP-Business-Commercial-Miscellaneous_Equipment | J14: 2016 | K14: 10 | L14: 3923.6 | M14: 0 | N14: No | O14: No | P14: Dx | Q14: =VLOOKUP($A14,OFFSET('Formatted Measure List'!$A$1,4,0,10000,33),MATCH($Q$6,OFFSET('Formatted Measure List'!$A$1,4,0,1,33),0),FALSE) -> 0.682 | R14: =VLOOKUP($A14,OFFSET('Formatted Measure List'!$A$1,4,0,10000,33),MATCH($R$6,OFFSET('Formatted Measure List'!$A$1,4,0,1,33),0),FALSE) -> 0.692 | S14: 39236 | T14: 0 | U14: =$K14*'Measure CE Results'!DX15 -> 121634.2512 | V14: =$K14*'Measure CE Results'!DY15 -> 512268.3867 | W14: 0.2374424313 | X14: -390634.1355 | Y14: =$K14*'Measure CE Results'!DZ15 -> 121634.2512 | Z14: =$K14*'Measure CE Results'!EA15 -> 512268.3867 | AA14: 0.2374424313 | AB14: -390634.1355 | AC14: =$K14*'Measure CE Results'!EB15 -> 105768.9141 | AD14: =$K14*'Measure CE Results'!EC15 -> 38466.66667 | AE14: 2.749625149 | AF14: 67302.24741 | AG14: =$K14*'Measure CE Results'!ED15 -> 38650.35952 | AH14: =$K14*'Measure CE Results'!EE15 -> 751126.6667 | AI14: 0.05145651357 | AJ14: -712476.3071 | AK14: =$K14*'Measure CE Results'!EF15 -> 105768.9141 | AL14: =$K14*'Measure CE Results'!EG15 -> 38591.94519 | AM14: 2.74069922 | AN14: 67176.96889 | AO14: =$K14*'Measure CE Results'!EH15 -> 523.1440843 | AP14: =$K14*'Measure CE Results'!$EJ15 -> 1248082.015 | AQ14: =$K14*'Measure CE Results'!EI15 -> 38466.66667 | AR14: 73.52977472 | AS14: 0.03082062413
A15: YIESO - ARCHETYPERetrofitRetrofitPRESCRIPTIVE NON-LIGRIPTIVE NON-LIGHTINGARCHETYPE - PRESCRIPTIVE NON-LIGHTINGHISTORICAL PERFORMANSTORICAL PERFORMANCEPl-Miscellaneous_EquipmentNND | B15: Yes | C15: IESO - ARCHETYPE | D15: Retrofit | E15: Non-Lighting | F15: PRESCRIPTIVE NON-LIGHTING | G15: ARCHETYPE - PRESCRIPTIVE NON-LIGHTING | H15: HISTORICAL PERFORMANCE | I15: PSP-Business-Commercial-Miscellaneous_Equipment | J15: 2017 | K15: 12 | L15: 3923.6 | M15: 0 | N15: No | O15: No | P15: Dx | Q15: =VLOOKUP($A15,OFFSET('Formatted Measure List'!$A$1,4,0,10000,33),MATCH($Q$6,OFFSET('Formatted Measure List'!$A$1,4,0,1,33),0),FALSE) -> 0.682 | R15: =VLOOKUP($A15,OFFSET('Formatted Measure List'!$A$1,4,0,10000,33),MATCH($R$6,OFFSET('Formatted Measure List'!$A$1,4,0,1,33),0),FALSE) -> 0.692 | S15: 47083.2 | T15: 0 | U15: =$K15*'Measure CE Results'!DX16 -> 154324.3545 | V15: =$K15*'Measure CE Results'!DY16 -> 602668.6902 | W15: 0.2560683126 | X15: -448344.3357 | Y15: =$K15*'Measure CE Results'!DZ16 -> 154324.3545 | Z15: =$K15*'Measure CE Results'!EA16 -> 602668.6902 | AA15: 0.2560683126 | AB15: -448344.3357 | AC15: =$K15*'Measure CE Results'!EB16 -> 134195.0909 | AD15: =$K15*'Measure CE Results'!EC16 -> 45254.90196 | AE15: 2.965316133 | AF15: 88940.18894 | AG15: =$K15*'Measure CE Results'!ED16 -> 45475.18374 | AH15: =$K15*'Measure CE Results'!EE16 -> 883678.4314 | AI15: 0.05146123536 | AJ15: -838203.2476 | AK15: =$K15*'Measure CE Results'!EF16 -> 134195.0909 | AL15: =$K15*'Measure CE Results'!EG16 -> 45405.13413 | AM15: 2.955504778 | AN15: 88789.95677 | AO15: =$K15*'Measure CE Results'!EH16 -> 615.4636286 | AP15: =$K15*'Measure CE Results'!$EJ16 -> 1468331.782 | AQ15: =$K15*'Measure CE Results'!EI16 -> 45254.90196 | AR15: 73.52977472 | AS15: 0.03082062413
A16: YIESO - ARCHETYPERetrofitRetrofitPRESCRIPTIVE NON-LIGRIPTIVE NON-LIGHTINGARCHETYPE - PRESCRIPTIVE NON-LIGHTINGHISTORICAL PERFORMANSTORICAL PERFORMANCEPl-Miscellaneous_EquipmentNND | B16: Yes | C16: IESO - ARCHETYPE | D16: Retrofit | E16: Non-Lighting | F16: PRESCRIPTIVE NON-LIGHTING | G16: ARCHETYPE - PRESCRIPTIVE NON-LIGHTING | H16: HISTORICAL PERFORMANCE | I16: PSP-Business-Commercial-Miscellaneous_Equipment | J16: 2018 | K16: 14 | L16: 3923.6 | M16: 0 | N16: No | O16: No | P16: Dx | Q16: =VLOOKUP($A16,OFFSET('Formatted Measure List'!$A$1,4,0,10000,33),MATCH($Q$6,OFFSET('Formatted Measure List'!$A$1,4,0,1,33),0),FALSE) -> 0.682 | R16: =VLOOKUP($A16,OFFSET('Formatted Measure List'!$A$1,4,0,10000,33),MATCH($R$6,OFFSET('Formatted Measure List'!$A$1,4,0,1,33),0),FALSE) -> 0.692 | S16: 54930.4 | T16: 0 | U16: =$K16*'Measure CE Results'!DX17 -> 180719.0224 | V16: =$K16*'Measure CE Results'!DY17 -> 689326.9332 | W16: 0.2621673602 | X16: -508607.9108 | Y16: =$K16*'Measure CE Results'!DZ17 -> 180719.0224 | Z16: =$K16*'Measure CE Results'!EA17 -> 689326.9332 | AA16: 0.2621673602 | AB16: -508607.9108 | AC16: =$K16*'Measure CE Results'!EB17 -> 157146.976 | AD16: =$K16*'Measure CE Results'!EC17 -> 51762.14277 | AE16: 3.035944179 | AF16: 105384.8332 | AG16: =$K16*'Measure CE Results'!ED17 -> 52018.83846 | AH16: =$K16*'Measure CE Results'!EE17 -> 1010743.304 | AI16: 0.0514659244 | AJ16: -958724.4654 | AK16: =$K16*'Measure CE Results'!EF17 -> 157146.976 | AL16: =$K16*'Measure CE Results'!EG17 -> 51937.20923 | AM16: 3.025710821 | AN16: 105209.7668 | AO16: =$K16*'Measure CE Results'!EH17 -> 703.9616667 | AP16: =$K16*'Measure CE Results'!$EJ17 -> 1679464.457 | AQ16: =$K16*'Measure CE Results'!EI17 -> 51762.14277 | AR16: 73.52977472 | AS16: 0.03082062413
A17: YIESO - ARCHETYPERetrofitRetrofitPRESCRIPTIVE NON-LIGRIPTIVE NON-LIGHTINGARCHETYPE - PRESCRIPTIVE NON-LIGHTINGHISTORICAL PERFORMANSTORICAL PERFORMANCEPl-Miscellaneous_EquipmentNND | B17: Yes | C17: IESO - ARCHETYPE | D17: Retrofit | E17: Non-Lighting | F17: PRESCRIPTIVE NON-LIGHTING | G17: ARCHETYPE - PRESCRIPTIVE NON-LIGHTING | H17: HISTORICAL PERFORMANCE | I17: PSP-Business-Commercial-Miscellaneous_Equipment | J17: 2019 | K17: 16 | L17: 3923.6 | M17: 0 | N17: No | O17: No | P17: Dx | Q17: =VLOOKUP($A17,OFFSET('Formatted Measure List'!$A$1,4,0,10000,33),MATCH($Q$6,OFFSET('Formatted Measure List'!$A$1,4,0,1,33),0),FALSE) -> 0.682 | R17: =VLOOKUP($A17,OFFSET('Formatted Measure List'!$A$1,4,0,10000,33),MATCH($R$6,OFFSET('Formatted Measure List'!$A$1,4,0,1,33),0),FALSE) -> 0.692 | S17: 62777.6 | T17: 0 | U17: =$K17*'Measure CE Results'!DX18 -> 207630.3141 | V17: =$K17*'Measure CE Results'!DY18 -> 772355.1073 | W17: 0.2688275279 | X17: -564724.7931 | Y17: =$K17*'Measure CE Results'!DZ18 -> 207630.3141 | Z17: =$K17*'Measure CE Results'!EA18 -> 772355.1073 | AA17: 0.2688275279 | AB17: -564724.7931 | AC17: =$K17*'Measure CE Results'!EB18 -> 180548.0992 | AD17: =$K17*'Measure CE Results'!EC18 -> 57996.79862 | AE17: 3.113070092 | AF17: 122551.3006 | AG17: =$K17*'Measure CE Results'!ED18 -> 58289.68086 | AH17: =$K17*'Measure CE Results'!EE18 -> 1132485.495 | AI17: 0.05147057613 | AJ17: -1074195.814 | AK17: =$K17*'Measure CE Results'!EF18 -> 180548.0992 | AL17: =$K17*'Measure CE Results'!EG18 -> 58196.54431 | AM17: 3.102385225 | AN17: 122351.5549 | AO17: =$K17*'Measure CE Results'!EH18 -> 788.7525677 | AP17: =$K17*'Measure CE Results'!$EJ18 -> 1881752.893 | AQ17: =$K17*'Measure CE Results'!EI18 -> 57996.79862 | AR17: 73.52977472 | AS17: 0.03082062413
A18: YIESO - ARCHETYPERetrofitRetrofitPRESCRIPTIVE NON-LIGRIPTIVE NON-LIGHTINGARCHETYPE - PRESCRIPTIVE NON-LIGHTINGHISTORICAL PERFORMANSTORICAL PERFORMANCEPl-Miscellaneous_EquipmentNND | B18: Yes | C18: IESO - ARCHETYPE | D18: Retrofit | E18: Non-Lighting | F18: PRESCRIPTIVE NON-LIGHTING | G18: ARCHETYPE - PRESCRIPTIVE NON-LIGHTING | H18: HISTORICAL PERFORMANCE | I18: PSP-Business-Commercial-Miscellaneous_Equipment | J18: 2020 | K18: 18 | L18: 3923.6 | M18: 0 | N18: No | O18: No | P18: Dx | Q18: =VLOOKUP($A18,OFFSET('Formatted Measure List'!$A$1,4,0,10000,33),MATCH($Q$6,OFFSET('Formatted Measure List'!$A$1,4,0,1,33),0),FALSE) -> 0.682 | R18: =VLOOKUP($A18,OFFSET('Formatted Measure List'!$A$1,4,0,10000,33),MATCH($R$6,OFFSET('Formatted Measure List'!$A$1,4,0,1,33),0),FALSE) -> 0.692 | S18: 70624.8 | T18: 0 | U18: =$K18*'Measure CE Results'!DX19 -> 234058.587 | V18: =$K18*'Measure CE Results'!DY19 -> 851862.2507 | W18: 0.2747610741 | X18: -617803.6637 | Y18: =$K18*'Measure CE Results'!DZ19 -> 234058.587 | Z18: =$K18*'Measure CE Results'!EA19 -> 851862.2507 | AA18: 0.2747610741 | AB18: -617803.6637 | AC18: =$K18*'Measure CE Results'!EB19 -> 203529.2061 | AD18: =$K18*'Measure CE Results'!EC19 -> 63967.0573 | AE18: 3.181781603 | AF18: 139562.1488 | AG18: =$K18*'Measure CE Results'!ED19 -> 64295.51968 | AH18: =$K18*'Measure CE Results'!EE19 -> 1249064.884 | AI18: 0.05147492378 | AJ18: -1184769.364 | AK18: =$K18*'Measure CE Results'!EF19 -> 203529.2061 | AL18: =$K18*'Measure CE Results'!EG19 -> 64191.06864 | AM18: 3.170677952 | AN18: 139338.1374 | AO18: =$K18*'Measure CE Results'!EH19 -> 869.947685 | AP18: =$K18*'Measure CE Results'!$EJ19 -> 2075462.749 | AQ18: =$K18*'Measure CE Results'!EI19 -> 63967.0573 | AR18: 73.52977472 | AS18: 0.03082062413
A19: YIESO - ARCHETYPERetrofitRetrofitENGINEERED LIGHTINGENGINEERED LIGHTINGARCHETYPE - ENGINEERED LIGHTINGHISTORICAL PERFORMANSTORICAL PERFORMANCEPLighting_Interior_GeneralNND | B19: Yes | C19: IESO - ARCHETYPE | D19: Retrofit | E19: Lighting | F19: ENGINEERED LIGHTING | G19: ARCHETYPE - ENGINEERED LIGHTING | H19: HISTORICAL PERFORMANCE | I19: PSP-Business-Commercial-Lighting_Interior_General | J19: 2015 | K19: 0 | L19: 5187.5 | M19: 0 | N19: No | O19: No | P19: Dx | Q19: =VLOOKUP($A19,OFFSET('Formatted Measure List'!$A$1,4,0,10000,33),MATCH($Q$6,OFFSET('Formatted Measure List'!$A$1,4,0,1,33),0),FALSE) -> 0.731 | R19: =VLOOKUP($A19,OFFSET('Formatted Measure List'!$A$1,4,0,10000,33),MATCH($R$6,OFFSET('Formatted Measure List'!$A$1,4,0,1,33),0),FALSE) -> 0.708 | S19: 0 | T19: 0 | U19: =$K19*'Measure CE Results'!DX20 -> 0 | V19: =$K19*'Measure CE Results'!DY20 -> 0 | X19: 0 | Y19: =$K19*'Measure CE Results'!DZ20 -> 0 | Z19: =$K19*'Measure CE Results'!EA20 -> 0 | AB19: 0 | AC19: =$K19*'Measure CE Results'!EB20 -> 0 | AD19: =$K19*'Measure CE Results'!EC20 -> 0 | AF19: 0 | AG19: =$K19*'Measure CE Results'!ED20 -> 0 | AH19: =$K19*'Measure CE Results'!EE20 -> 0 | AJ19: 0 | AK19: =$K19*'Measure CE Results'!EF20 -> 0 | AL19: =$K19*'Measure CE Results'!EG20 -> 0 | AN19: 0 | AO19: =$K19*'Measure CE Results'!EH20 -> 0 | AP19: =$K19*'Measure CE Results'!$EJ20 -> 0 | AQ19: =$K19*'Measure CE Results'!EI20 -> 0
A20: YIESO - ARCHETYPERetrofitRetrofitENGINEERED LIGHTINGENGINEERED LIGHTINGARCHETYPE - ENGINEERED LIGHTINGHISTORICAL PERFORMANSTORICAL PERFORMANCEPLighting_Interior_GeneralNND | B20: Yes | C20: IESO - ARCHETYPE | D20: Retrofit | E20: Lighting | F20: ENGINEERED LIGHTING | G20: ARCHETYPE - ENGINEERED LIGHTING | H20: HISTORICAL PERFORMANCE | I20: PSP-Business-Commercial-Lighting_Interior_General | J20: 2016 | K20: 6 | L20: 5187.5 | M20: 0 | N20: No | O20: No | P20: Dx | Q20: =VLOOKUP($A20,OFFSET('Formatted Measure List'!$A$1,4,0,10000,33),MATCH($Q$6,OFFSET('Formatted Measure List'!$A$1,4,0,1,33),0),FALSE) -> 0.731 | R20: =VLOOKUP($A20,OFFSET('Formatted Measure List'!$A$1,4,0,10000,33),MATCH($R$6,OFFSET('Formatted Measure List'!$A$1,4,0,1,33),0),FALSE) -> 0.708 | S20: 31125 | T20: 0 | U20: =$K20*'Measure CE Results'!DX21 -> 191763.5563 | V20: =$K20*'Measure CE Results'!DY21 -> 69236.02 | W20: 2.769707968 | X20: 122527.5363 | Y20: =$K20*'Measure CE Results'!DZ21 -> 191763.5563 | Z20: =$K20*'Measure CE Results'!EA21 -> 69236.02 | AA20: 2.769707968 | AB20: 122527.5363 | AC20: =$K20*'Measure CE Results'!EB21 -> 158285.2346 | AD20: =$K20*'Measure CE Results'!EC21 -> 30514.70588 | AE20: 5.187178773 | AF20: 127770.5287 | AG20: =$K20*'Measure CE Results'!ED21 -> 30956.693 | AH20: =$K20*'Measure CE Results'!EE21 -> 94714.11765 | AI20: 0.3268434925 | AJ20: -63757.42465 | AK20: =$K20*'Measure CE Results'!EF21 -> 166750.9185 | AL20: =$K20*'Measure CE Results'!EG21 -> 30837.79847 | AM20: 5.407354831 | AN20: 135913.12 | AO20: =$K20*'Measure CE Results'!EH21 -> 523.0051743 | AP20: =$K20*'Measure CE Results'!$EJ21 -> 3154874.362 | AQ20: =$K20*'Measure CE Results'!EI21 -> 30514.70588 | AR20: 58.34494071 | AS20: 0.009672241231
A21: YIESO - ARCHETYPERetrofitRetrofitENGINEERED LIGHTINGENGINEERED LIGHTINGARCHETYPE - ENGINEERED LIGHTINGHISTORICAL PERFORMANSTORICAL PERFORMANCEPLighting_Interior_GeneralNND | B21: Yes | C21: IESO - ARCHETYPE | D21: Retrofit | E21: Lighting | F21: ENGINEERED LIGHTING | G21: ARCHETYPE - ENGINEERED LIGHTING | H21: HISTORICAL PERFORMANCE | I21: PSP-Business-Commercial-Lighting_Interior_General | J21: 2017 | K21: 8 | L21: 5187.5 | M21: 0 | N21: No | O21: No | P21: Dx | Q21: =VLOOKUP($A21,OFFSET('Formatted Measure List'!$A$1,4,0,10000,33),MATCH($Q$6,OFFSET('Formatted Measure List'!$A$1,4,0,1,33),0),FALSE) -> 0.731 | R21: =VLOOKUP($A21,OFFSET('Formatted Measure List'!$A$1,4,0,10000,33),MATCH($R$6,OFFSET('Formatted Measure List'!$A$1,4,0,1,33),0),FALSE) -> 0.708 | S21: 41500 | T21: 0 | U21: =$K21*'Measure CE Results'!DX22 -> 271422.2907 | V21: =$K21*'Measure CE Results'!DY22 -> 90504.60131 | W21: 2.998988856 | X21: 180917.6894 | Y21: =$K21*'Measure CE Results'!DZ22 -> 271422.2907 | Z21: =$K21*'Measure CE Results'!EA22 -> 90504.60131 | AA21: 2.998988856 | AB21: 180917.6894 | AC21: =$K21*'Measure CE Results'!EB22 -> 224731.8047 | AD21: =$K21*'Measure CE Results'!EC22 -> 39888.50442 | AE21: 5.633999268 | AF21: 184843.3003 | AG21: =$K21*'Measure CE Results'!ED22 -> 40476.30502 | AH21: =$K21*'Measure CE Results'!EE22 -> 123809.3041 | AI21: 0.3269245822 | AJ21: -83332.99909 | AK21: =$K21*'Measure CE Results'!EF22 -> 236019.3832 | AL21: =$K21*'Measure CE Results'!EG22 -> 40318.18666 | AM21: 5.85391861 | AN21: 195701.1966 | AO21: =$K21*'Measure CE Results'!EH22 -> 683.6668944 | AP21: =$K21*'Measure CE Results'!$EJ22 -> 4124018.774 | AQ21: =$K21*'Measure CE Results'!EI22 -> 39888.50442 | AR21: 58.34494071 | AS21: 0.009672241231
A22: YIESO - ARCHETYPERetrofitRetrofitENGINEERED LIGHTINGENGINEERED LIGHTINGARCHETYPE - ENGINEERED LIGHTINGHISTORICAL PERFORMANSTORICAL PERFORMANCEPLighting_Interior_GeneralNND | B22: Yes | C22: IESO - ARCHETYPE | D22: Retrofit | E22: Lighting | F22: ENGINEERED LIGHTING | G22: ARCHETYPE - ENGINEERED LIGHTING | H22: HISTORICAL PERFORMANCE | I22: PSP-Business-Commercial-Lighting_Interior_General | J22: 2018 | K22: 10 | L22: 5187.5 | M22: 0 | N22: No | O22: No | P22: Dx | Q22: =VLOOKUP($A22,OFFSET('Formatted Measure List'!$A$1,4,0,10000,33),MATCH($Q$6,OFFSET('Formatted Measure List'!$A$1,4,0,1,33),0),FALSE) -> 0.731 | R22: =VLOOKUP($A22,OFFSET('Formatted Measure List'!$A$1,4,0,10000,33),MATCH($R$6,OFFSET('Formatted Measure List'!$A$1,4,0,1,33),0),FALSE) -> 0.708 | S22: 51875 | T22: 0 | U22: =$K22*'Measure CE Results'!DX23 -> 342066.2285 | V22: =$K22*'Measure CE Results'!DY23 -> 110912.5016 | W22: 3.084108857 | X22: 231153.7269 | Y22: =$K22*'Measure CE Results'!DZ23 -> 342066.2285 | Z22: =$K22*'Measure CE Results'!EA23 -> 110912.5016 | AA22: 3.084108857 | AB22: 231153.7269 | AC22: =$K22*'Measure CE Results'!EB23 -> 283339.4212 | AD22: =$K22*'Measure CE Results'!EC23 -> 48882.9711 | AE22: 5.796280684 | AF22: 234456.4501 | AG22: =$K22*'Measure CE Results'!ED23 -> 49616.00994 | AH22: =$K22*'Measure CE Results'!EE23 -> 151727.0884 | AI22: 0.3270082519 | AJ22: -102111.0784 | AK22: =$K22*'Measure CE Results'!EF23 -> 297448.8943 | AL22: =$K22*'Measure CE Results'!EG23 -> 49418.82249 | AM22: 6.01893933 | AN22: 248030.0719 | AO22: =$K22*'Measure CE Results'!EH23 -> 837.8270765 | AP22: =$K22*'Measure CE Results'!$EJ23 -> 5053944.576 | AQ22: =$K22*'Measure CE Results'!EI23 -> 48882.9711 | AR22: 58.34494071 | AS22: 0.009672241231
A23: YIESO - ARCHETYPERetrofitRetrofitENGINEERED LIGHTINGENGINEERED LIGHTINGARCHETYPE - ENGINEERED LIGHTINGHISTORICAL PERFORMANSTORICAL PERFORMANCEPLighting_Interior_GeneralNND | B23: Yes | C23: IESO - ARCHETYPE | D23: Retrofit | E23: Lighting | F23: ENGINEERED LIGHTING | G23: ARCHETYPE - ENGINEERED LIGHTING | H23: HISTORICAL PERFORMANCE | I23: PSP-Business-Commercial-Lighting_Interior_General | J23: 2019 | K23: 12 | L23: 5187.5 | M23: 0 | N23: No | O23: No | P23: Dx | Q23: =VLOOKUP($A23,OFFSET('Formatted Measure List'!$A$1,4,0,10000,33),MATCH($Q$6,OFFSET('Formatted Measure List'!$A$1,4,0,1,33),0),FALSE) -> 0.731 | R23: =VLOOKUP($A23,OFFSET('Formatted Measure List'!$A$1,4,0,10000,33),MATCH($R$6,OFFSET('Formatted Measure List'!$A$1,4,0,1,33),0),FALSE) -> 0.708 | S23: 62250 | T23: 0 | U23: =$K23*'Measure CE Results'!DX24 -> 417102.3502 | V23: =$K23*'Measure CE Results'!DY24 -> 130485.296 | W23: 3.19654676 | X23: 286617.0542 | Y23: =$K23*'Measure CE Results'!DZ24 -> 417102.3502 | Z23: =$K23*'Measure CE Results'!EA24 -> 130485.296 | AA23: 3.19654676 | AB23: 286617.0542 | AC23: =$K23*'Measure CE Results'!EB24 -> 345766.3281 | AD23: =$K23*'Measure CE Results'!EC24 -> 57509.37777 | AE23: 6.012346881 | AF23: 288256.9503 | AG23: =$K23*'Measure CE Results'!ED24 -> 58386.75546 | AH23: =$K23*'Measure CE Results'!EE24 -> 178502.4569 | AI23: 0.3270921671 | AJ23: -120115.7015 | AK23: =$K23*'Measure CE Results'!EF24 -> 362697.6958 | AL23: =$K23*'Measure CE Results'!EG24 -> 58150.74086 | AM23: 6.237198194 | AN23: 304546.955 | AO23: =$K23*'Measure CE Results'!EH24 -> 985.6789136 | AP23: =$K23*'Measure CE Results'!$EJ24 -> 5945817.148 | AQ23: =$K23*'Measure CE Results'!EI24 -> 57509.37777 | AR23: 58.34494071 | AS23: 0.009672241231
A24: YIESO - ARCHETYPERetrofitRetrofitENGINEERED LIGHTINGENGINEERED LIGHTINGARCHETYPE - ENGINEERED LIGHTINGHISTORICAL PERFORMANSTORICAL PERFORMANCEPLighting_Interior_GeneralNND | B24: Yes | C24: IESO - ARCHETYPE | D24: Retrofit | E24: Lighting | F24: ENGINEERED LIGHTING | G24: ARCHETYPE - ENGINEERED LIGHTING | H24: HISTORICAL PERFORMANCE | I24: PSP-Business-Commercial-Lighting_Interior_General | J24: 2020 | K24: 14 | L24: 5187.5 | M24: 0 | N24: No | O24: No | P24: Dx | Q24: =VLOOKUP($A24,OFFSET('Formatted Measure List'!$A$1,4,0,10000,33),MATCH($Q$6,OFFSET('Formatted Measure List'!$A$1,4,0,1,33),0),FALSE) -> 0.731 | R24: =VLOOKUP($A24,OFFSET('Formatted Measure List'!$A$1,4,0,10000,33),MATCH($R$6,OFFSET('Formatted Measure List'!$A$1,4,0,1,33),0),FALSE) -> 0.708 | S24: 72625 | T24: 0 | U24: =$K24*'Measure CE Results'!DX25 -> 489685.9938 | V24: =$K24*'Measure CE Results'!DY25 -> 149247.8876 | W24: 3.281024621 | X24: 340438.1062 | Y24: =$K24*'Measure CE Results'!DZ25 -> 489685.9938 | Z24: =$K24*'Measure CE Results'!EA25 -> 149247.8876 | AA24: 3.281024621 | AB24: 340438.1062 | AC24: =$K24*'Measure CE Results'!EB25 -> 406060.6452 | AD24: =$K24*'Measure CE Results'!EC25 -> 65778.70006 | AE24: 6.173132714 | AF24: 340281.9452 | AG24: =$K24*'Measure CE Results'!ED25 -> 66797.30211 | AH24: =$K24*'Measure CE Results'!EE25 -> 204169.4769 | AI24: 0.3271659561 | AJ24: -137372.1748 | AK24: =$K24*'Measure CE Results'!EF25 -> 425813.9077 | AL24: =$K24*'Measure CE Results'!EG25 -> 66523.29816 | AM24: 6.400974086 | AN24: 359290.6095 | AO24: =$K24*'Measure CE Results'!EH25 -> 1127.410522 | AP24: =$K24*'Measure CE Results'!$EJ25 -> 6800771.248 | AQ24: =$K24*'Measure CE Results'!EI25 -> 65778.70006 | AR24: 58.34494071 | AS24: 0.009672241231
A25: YIESO - ARCHETYPERetrofitRetrofitENGINEERED NON-LIGHTINEERED NON-LIGHTINGARCHETYPE - ENGINEERED NON-LIGHTINGHISTORICAL PERFORMANSTORICAL PERFORMANCEPl-Miscellaneous_EquipmentNND | B25: Yes | C25: IESO - ARCHETYPE | D25: Retrofit | E25: Non-Lighting | F25: ENGINEERED NON-LIGHTING | G25: ARCHETYPE - ENGINEERED NON-LIGHTING | H25: HISTORICAL PERFORMANCE | I25: PSP-Business-Commercial-Miscellaneous_Equipment | J25: 2015 | K25: 0 | L25: 7833.36 | M25: 0 | N25: No | O25: No | P25: Dx | Q25: =VLOOKUP($A25,OFFSET('Formatted Measure List'!$A$1,4,0,10000,33),MATCH($Q$6,OFFSET('Formatted Measure List'!$A$1,4,0,1,33),0),FALSE) -> 0.701 | R25: =VLOOKUP($A25,OFFSET('Formatted Measure List'!$A$1,4,0,10000,33),MATCH($R$6,OFFSET('Formatted Measure List'!$A$1,4,0,1,33),0),FALSE) -> 0.682 | S25: 0 | T25: 0 | U25: =$K25*'Measure CE Results'!DX26 -> 0 | V25: =$K25*'Measure CE Results'!DY26 -> 0 | X25: 0 | Y25: =$K25*'Measure CE Results'!DZ26 -> 0 | Z25: =$K25*'Measure CE Results'!EA26 -> 0 | AB25: 0 | AC25: =$K25*'Measure CE Results'!EB26 -> 0 | AD25: =$K25*'Measure CE Results'!EC26 -> 0 | AF25: 0 | AG25: =$K25*'Measure CE Results'!ED26 -> 0 | AH25: =$K25*'Measure CE Results'!EE26 -> 0 | AJ25: 0 | AK25: =$K25*'Measure CE Results'!EF26 -> 0 | AL25: =$K25*'Measure CE Results'!EG26 -> 0 | AN25: 0 | AO25: =$K25*'Measure CE Results'!EH26 -> 0 | AP25: =$K25*'Measure CE Results'!$EJ26 -> 0 | AQ25: =$K25*'Measure CE Results'!EI26 -> 0
A26: YIESO - ARCHETYPERetrofitRetrofitENGINEERED NON-LIGHTINEERED NON-LIGHTINGARCHETYPE - ENGINEERED NON-LIGHTINGHISTORICAL PERFORMANSTORICAL PERFORMANCEPl-Miscellaneous_EquipmentNND | B26: Yes | C26: IESO - ARCHETYPE | D26: Retrofit | E26: Non-Lighting | F26: ENGINEERED NON-LIGHTING | G26: ARCHETYPE - ENGINEERED NON-LIGHTING | H26: HISTORICAL PERFORMANCE | I26: PSP-Business-Commercial-Miscellaneous_Equipment | J26: 2016 | K26: 14 | L26: 7833.36 | M26: 0 | N26: No | O26: No | P26: Dx | Q26: =VLOOKUP($A26,OFFSET('Formatted Measure List'!$A$1,4,0,10000,33),MATCH($Q$6,OFFSET('Formatted Measure List'!$A$1,4,0,1,33),0),FALSE) -> 0.701 | R26: =VLOOKUP($A26,OFFSET('Formatted Measure List'!$A$1,4,0,10000,33),MATCH($R$6,OFFSET('Formatted Measure List'!$A$1,4,0,1,33),0),FALSE) -> 0.682 | S26: 109667.04 | T26: 0 | U26: =$K26*'Measure CE Results'!DX27 -> 202130.7286 | V26: =$K26*'Measure CE Results'!DY27 -> 279196.4655 | W26: 0.7239730929 | X26: -77065.73683 | Y26: =$K26*'Measure CE Results'!DZ27 -> 202130.7286 | Z26: =$K26*'Measure CE Results'!EA27 -> 279196.4655 | AA26: 0.7239730929 | AB26: -77065.73683 | AC26: =$K26*'Measure CE Results'!EB27 -> 175765.851 | AD26: =$K26*'Measure CE Results'!EC27 -> 107516.7059 | AE26: 1.634777122 | AF26: 68249.14511 | AG26: =$K26*'Measure CE Results'!ED27 -> 107916.6699 | AH26: =$K26*'Measure CE Results'!EE27 -> 398283.1176 | AI26: 0.2709546679 | AJ26: -290366.4478 | AK26: =$K26*'Measure CE Results'!EF27 -> 175765.851 | AL26: =$K26*'Measure CE Results'!EG27 -> 107797.0806 | AM26: 1.630525149 | AN26: 67968.77036 | AO26: =$K26*'Measure CE Results'!EH27 -> 707.6267297 | AP26: =$K26*'Measure CE Results'!$EJ27 -> 2717513.763 | AQ26: =$K26*'Measure CE Results'!EI27 -> 107516.7059 | AR26: 151.9398595 | AS26: 0.03956436481
A27: YIESO - ARCHETYPERetrofitRetrofitENGINEERED NON-LIGHTINEERED NON-LIGHTINGARCHETYPE - ENGINEERED NON-LIGHTINGHISTORICAL PERFORMANSTORICAL PERFORMANCEPl-Miscellaneous_EquipmentNND | B27: Yes | C27: IESO - ARCHETYPE | D27: Retrofit | E27: Non-Lighting | F27: ENGINEERED NON-LIGHTING | G27: ARCHETYPE - ENGINEERED NON-LIGHTING | H27: HISTORICAL PERFORMANCE | I27: PSP-Business-Commercial-Miscellaneous_Equipment | J27: 2017 | K27: 16 | L27: 7833.36 | M27: 0 | N27: No | O27: No | P27: Dx | Q27: =VLOOKUP($A27,OFFSET('Formatted Measure List'!$A$1,4,0,10000,33),MATCH($Q$6,OFFSET('Formatted Measure List'!$A$1,4,0,1,33),0),FALSE) -> 0.701 | R27: =VLOOKUP($A27,OFFSET('Formatted Measure List'!$A$1,4,0,10000,33),MATCH($R$6,OFFSET('Formatted Measure List'!$A$1,4,0,1,33),0),FALSE) -> 0.682 | S27: 125333.76 | T27: 0 | U27: =$K27*'Measure CE Results'!DX28 -> 242019.7699 | V27: =$K27*'Measure CE Results'!DY28 -> 312825.1714 | W27: 0.7736582348 | X27: -70805.40149 | Y27: =$K27*'Measure CE Results'!DZ28 -> 242019.7699 | Z27: =$K27*'Measure CE Results'!EA28 -> 312825.1714 | AA27: 0.7736582348 | AB27: -70805.40149 | AC27: =$K27*'Measure CE Results'!EB28 -> 210451.9738 | AD27: =$K27*'Measure CE Results'!EC28 -> 120466.8973 | AE27: 1.746969321 | AF27: 89985.07648 | AG27: =$K27*'Measure CE Results'!ED28 -> 120923.6887 | AH27: =$K27*'Measure CE Results'!EE28 -> 446255.594 | AI27: 0.2709740569 | AJ27: -325331.9053 | AK27: =$K27*'Measure CE Results'!EF28 -> 210451.9738 | AL27: =$K27*'Measure CE Results'!EG28 -> 120787.1081 | AM27: 1.742338045 | AN27: 89664.86572 | AO27: =$K27*'Measure CE Results'!EH28 -> 792.8590809 | AP27: =$K27*'Measure CE Results'!$EJ28 -> 3044833.347 | AQ27: =$K27*'Measure CE Results'!EI28 -> 120466.8973 | AR27: 151.9398595 | AS27: 0.03956436481
A28: YIESO - ARCHETYPERetrofitRetrofitENGINEERED NON-LIGHTINEERED NON-LIGHTINGARCHETYPE - ENGINEERED NON-LIGHTINGHISTORICAL PERFORMANSTORICAL PERFORMANCEPl-Miscellaneous_EquipmentNND | B28: Yes | C28: IESO - ARCHETYPE | D28: Retrofit | E28: Non-Lighting | F28: ENGINEERED NON-LIGHTING | G28: ARCHETYPE - ENGINEERED NON-LIGHTING | H28: HISTORICAL PERFORMANCE | I28: PSP-Business-Commercial-Miscellaneous_Equipment | J28: 2018 | K28: 18 | L28: 7833.36 | M28: 0 | N28: No | O28: No | P28: Dx | Q28: =VLOOKUP($A28,OFFSET('Formatted Measure List'!$A$1,4,0,10000,33),MATCH($Q$6,OFFSET('Formatted Measure List'!$A$1,4,0,1,33),0),FALSE) -> 0.701 | R28: =VLOOKUP($A28,OFFSET('Formatted Measure List'!$A$1,4,0,10000,33),MATCH($R$6,OFFSET('Formatted Measure List'!$A$1,4,0,1,33),0),FALSE) -> 0.682 | S28: 141000.48 | T28: 0 | U28: =$K28*'Measure CE Results'!DX29 -> 273657.4055 | V28: =$K28*'Measure CE Results'!DY29 -> 345027.7626 | W28: 0.7931460455 | X28: -71370.35711 | Y28: =$K28*'Measure CE Results'!DZ29 -> 273657.4055 | Z28: =$K28*'Measure CE Results'!EA29 -> 345027.7626 | AA28: 0.7931460455 | AB28: -71370.35711 | AC28: =$K28*'Measure CE Results'!EB29 -> 237962.9613 | AD28: =$K28*'Measure CE Results'!EC29 -> 132867.9015 | AE28: 1.790974032 | AF28: 105095.0598 | AG28: =$K28*'Measure CE Results'!ED29 -> 133381.1925 | AH28: =$K28*'Measure CE Results'!EE29 -> 492193.6699 | AI28: 0.2709933115 | AJ28: -358812.4774 | AK28: =$K28*'Measure CE Results'!EF29 -> 237962.9613 | AL28: =$K28*'Measure CE Results'!EG29 -> 133227.7185 | AM28: 1.786137029 | AN28: 104735.2428 | AO28: =$K28*'Measure CE Results'!EH29 -> 874.4769274 | AP28: =$K28*'Measure CE Results'!$EJ29 -> 3358272.074 | AQ28: =$K28*'Measure CE Results'!EI29 -> 132867.9015 | AR28: 151.9398595 | AS28: 0.03956436481
A29: YIESO - ARCHETYPERetrofitRetrofitENGINEERED NON-LIGHTINEERED NON-LIGHTINGARCHETYPE - ENGINEERED NON-LIGHTINGHISTORICAL PERFORMANSTORICAL PERFORMANCEPl-Miscellaneous_EquipmentNND | B29: Yes | C29: IESO - ARCHETYPE | D29: Retrofit | E29: Non-Lighting | F29: ENGINEERED NON-LIGHTING | G29: ARCHETYPE - ENGINEERED NON-LIGHTING | H29: HISTORICAL PERFORMANCE | I29: PSP-Business-Commercial-Miscellaneous_Equipment | J29: 2019 | K29: 20 | L29: 7833.36 | M29: 0 | N29: No | O29: No | P29: Dx | Q29: =VLOOKUP($A29,OFFSET('Formatted Measure List'!$A$1,4,0,10000,33),MATCH($Q$6,OFFSET('Formatted Measure List'!$A$1,4,0,1,33),0),FALSE) -> 0.701 | R29: =VLOOKUP($A29,OFFSET('Formatted Measure List'!$A$1,4,0,10000,33),MATCH($R$6,OFFSET('Formatted Measure List'!$A$1,4,0,1,33),0),FALSE) -> 0.682 | S29: 156667.2 | T29: 0 | U29: =$K29*'Measure CE Results'!DX30 -> 306250.4178 | V29: =$K29*'Measure CE Results'!DY30 -> 375847.2359 | W29: 0.814826846 | X29: -69596.8181 | Y29: =$K29*'Measure CE Results'!DZ30 -> 306250.4178 | Z29: =$K29*'Measure CE Results'!EA30 -> 375847.2359 | AA29: 0.814826846 | AB29: -69596.8181 | AC29: =$K29*'Measure CE Results'!EB30 -> 266304.7111 | AD29: =$K29*'Measure CE Results'!EC30 -> 144736.2761 | AE29: 1.839930654 | AF29: 121568.435 | AG29: =$K29*'Measure CE Results'!ED30 -> 145305.658 | AH29: =$K29*'Measure CE Results'!EE30 -> 536158.6818 | AI29: 0.2710124129 | AJ29: -390853.0237 | AK29: =$K29*'Measure CE Results'!EF30 -> 266304.7111 | AL29: =$K29*'Measure CE Results'!EG30 -> 145135.4128 | AM29: 1.834870663 | AN29: 121169.2983 | AO29: =$K29*'Measure CE Results'!EH30 -> 952.5892456 | AP29: =$K29*'Measure CE Results'!$EJ30 -> 3658248.447 | AQ29: =$K29*'Measure CE Results'!EI30 -> 144736.2761 | AR29: 151.9398595 | AS29: 0.03956436481
A30: YIESO - ARCHETYPERetrofitRetrofitENGINEERED NON-LIGHTINEERED NON-LIGHTINGARCHETYPE - ENGINEERED NON-LIGHTINGHISTORICAL PERFORMANSTORICAL PERFORMANCEPl-Miscellaneous_EquipmentNND | B30: Yes | C30: IESO - ARCHETYPE | D30: Retrofit | E30: Non-Lighting | F30: ENGINEERED NON-LIGHTING | G30: ARCHETYPE - ENGINEERED NON-LIGHTING | H30: HISTORICAL PERFORMANCE | I30: PSP-Business-Commercial-Miscellaneous_Equipment | J30: 2020 | K30: 22 | L30: 7833.36 | M30: 0 | N30: No | O30: No | P30: Dx | Q30: =VLOOKUP($A30,OFFSET('Formatted Measure List'!$A$1,4,0,10000,33),MATCH($Q$6,OFFSET('Formatted Measure List'!$A$1,4,0,1,33),0),FALSE) -> 0.701 | R30: =VLOOKUP($A30,OFFSET('Formatted Measure List'!$A$1,4,0,10000,33),MATCH($R$6,OFFSET('Formatted Measure List'!$A$1,4,0,1,33),0),FALSE) -> 0.682 | S30: 172333.92 | T30: 0 | U30: =$K30*'Measure CE Results'!DX31 -> 337802.5149 | V30: =$K30*'Measure CE Results'!DY31 -> 405325.4505 | W30: 0.8334105704 | X30: -67522.93561 | Y30: =$K30*'Measure CE Results'!DZ31 -> 337802.5149 | Z30: =$K30*'Measure CE Results'!EA31 -> 405325.4505 | AA30: 0.8334105704 | AB30: -67522.93561 | AC30: =$K30*'Measure CE Results'!EB31 -> 293741.3173 | AD30: =$K30*'Measure CE Results'!EC31 -> 156088.1409 | AE30: 1.881893881 | AF30: 137653.1764 | AG30: =$K30*'Measure CE Results'!ED31 -> 156712.5028 | AH30: =$K30*'Measure CE Results'!EE31 -> 578210.3431 | AI30: 0.2710302656 | AJ30: -421497.8402 | AK30: =$K30*'Measure CE Results'!EF31 -> 293741.3173 | AL30: =$K30*'Measure CE Results'!EG31 -> 156525.8186 | AM30: 1.876631727 | AN30: 137215.4987 | AO30: =$K30*'Measure CE Results'!EH31 -> 1027.302128 | AP30: =$K30*'Measure CE Results'!$EJ31 -> 3945169.894 | AQ30: =$K30*'Measure CE Results'!EI31 -> 156088.1409 | AR30: 151.9398595 | AS30: 0.03956436481
A31: YIESO - ARCHETYPERetrofitRetrofitCUSTOM LIGHTINGCUSTOM LIGHTINGARCHETYPE - CUSTOM LIGHTINGHISTORICAL PERFORMANSTORICAL PERFORMANCEPLighting_Interior_GeneralNND | B31: Yes | C31: IESO - ARCHETYPE | D31: Retrofit | E31: Lighting | F31: CUSTOM LIGHTING | G31: ARCHETYPE - CUSTOM LIGHTING | H31: HISTORICAL PERFORMANCE | I31: PSP-Business-Commercial-Lighting_Interior_General | J31: 2015 | K31: 0 | L31: 4690.04 | M31: 0 | N31: No | O31: No | P31: Dx | Q31: =VLOOKUP($A31,OFFSET('Formatted Measure List'!$A$1,4,0,10000,33),MATCH($Q$6,OFFSET('Formatted Measure List'!$A$1,4,0,1,33),0),FALSE) -> 0.68 | R31: =VLOOKUP($A31,OFFSET('Formatted Measure List'!$A$1,4,0,10000,33),MATCH($R$6,OFFSET('Formatted Measure List'!$A$1,4,0,1,33),0),FALSE) -> 0.731 | S31: 0 | T31: 0 | U31: =$K31*'Measure CE Results'!DX32 -> 0 | V31: =$K31*'Measure CE Results'!DY32 -> 0 | X31: 0 | Y31: =$K31*'Measure CE Results'!DZ32 -> 0 | Z31: =$K31*'Measure CE Results'!EA32 -> 0 | AB31: 0 | AC31: =$K31*'Measure CE Results'!EB32 -> 0 | AD31: =$K31*'Measure CE Results'!EC32 -> 0 | AF31: 0 | AG31: =$K31*'Measure CE Results'!ED32 -> 0 | AH31: =$K31*'Measure CE Results'!EE32 -> 0 | AJ31: 0 | AK31: =$K31*'Measure CE Results'!EF32 -> 0 | AL31: =$K31*'Measure CE Results'!EG32 -> 0 | AN31: 0 | AO31: =$K31*'Measure CE Results'!EH32 -> 0 | AP31: =$K31*'Measure CE Results'!$EJ32 -> 0 | AQ31: =$K31*'Measure CE Results'!EI32 -> 0
A32: YIESO - ARCHETYPERetrofitRetrofitCUSTOM LIGHTINGCUSTOM LIGHTINGARCHETYPE - CUSTOM LIGHTINGHISTORICAL PERFORMANSTORICAL PERFORMANCEPLighting_Interior_GeneralNND | B32: Yes | C32: IESO - ARCHETYPE | D32: Retrofit | E32: Lighting | F32: CUSTOM LIGHTING | G32: ARCHETYPE - CUSTOM LIGHTING | H32: HISTORICAL PERFORMANCE | I32: PSP-Business-Commercial-Lighting_Interior_General | J32: 2016 | K32: 22 | L32: 4690.04 | M32: 0 | N32: No | O32: No | P32: Dx | Q32: =VLOOKUP($A32,OFFSET('Formatted Measure List'!$A$1,4,0,10000,33),MATCH($Q$6,OFFSET('Formatted Measure List'!$A$1,4,0,1,33),0),FALSE) -> 0.68 | R32: =VLOOKUP($A32,OFFSET('Formatted Measure List'!$A$1,4,0,10000,33),MATCH($R$6,OFFSET('Formatted Measure List'!$A$1,4,0,1,33),0),FALSE) -> 0.731 | S32: 103180.88 | T32: 0 | U32: =$K32*'Measure CE Results'!DX33 -> 394013.4301 | V32: =$K32*'Measure CE Results'!DY33 -> 734963.3867 | W32: 0.5360993993 | X32: -340949.9566 | Y32: =$K32*'Measure CE Results'!DZ33 -> 394013.4301 | Z32: =$K32*'Measure CE Results'!EA33 -> 734963.3867 | AA32: 0.5360993993 | AB32: -340949.9566 | AC32: =$K32*'Measure CE Results'!EB33 -> 310506.0005 | AD32: =$K32*'Measure CE Results'!EC33 -> 101157.7255 | AE32: 3.06952335 | AF32: 209348.275 | AG32: =$K32*'Measure CE Results'!ED33 -> 102230.4845 | AH32: =$K32*'Measure CE Results'!EE33 -> 1080828.51 | AI32: 0.09458529595 | AJ32: -978598.0253 | AK32: =$K32*'Measure CE Results'!EF33 -> 342620.374 | AL32: =$K32*'Measure CE Results'!EG33 -> 101887.2016 | AM32: 3.362742019 | AN32: 240733.1724 | AO32: =$K32*'Measure CE Results'!EH33 -> 732.2563153 | AP32: =$K32*'Measure CE Results'!$EJ33 -> 7608387.201 | AQ32: =$K32*'Measure CE Results'!EI33 -> 101157.7255 | AR32: 138.1452415 | AS32: 0.01329555434
A33: YIESO - ARCHETYPERetrofitRetrofitCUSTOM LIGHTINGCUSTOM LIGHTINGARCHETYPE - CUSTOM LIGHTINGHISTORICAL PERFORMANSTORICAL PERFORMANCEPLighting_Interior_GeneralNND | B33: Yes | C33: IESO - ARCHETYPE | D33: Retrofit | E33: Lighting | F33: CUSTOM LIGHTING | G33: ARCHETYPE - CUSTOM LIGHTING | H33: HISTORICAL PERFORMANCE | I33: PSP-Business-Commercial-Lighting_Interior_General | J33: 2017 | K33: 24 | L33: 4690.04 | M33: 0 | N33: No | O33: No | P33: Dx | Q33: =VLOOKUP($A33,OFFSET('Formatted Measure List'!$A$1,4,0,10000,33),MATCH($Q$6,OFFSET('Formatted Measure List'!$A$1,4,0,1,33),0),FALSE) -> 0.68 | R33: =VLOOKUP($A33,OFFSET('Formatted Measure List'!$A$1,4,0,10000,33),MATCH($R$6,OFFSET('Formatted Measure List'!$A$1,4,0,1,33),0),FALSE) -> 0.731 | S33: 112560.96 | T33: 0 | U33: =$K33*'Measure CE Results'!DX34 -> 447312.4234 | V33: =$K33*'Measure CE Results'!DY34 -> 786057.098 | W33: 0.5690584367 | X33: -338744.6746 | Y33: =$K33*'Measure CE Results'!DZ34 -> 447312.4234 | Z33: =$K33*'Measure CE Results'!EA34 -> 786057.098 | AA33: 0.5690584367 | AB33: -338744.6746 | AC33: =$K33*'Measure CE Results'!EB34 -> 353933.4627 | AD33: =$K33*'Measure CE Results'!EC34 -> 108190.0807 | AE33: 3.271403998 | AF33: 245743.3819 | AG33: =$K33*'Measure CE Results'!ED34 -> 109358.701 | AH33: =$K33*'Measure CE Results'!EE34 -> 1155966.321 | AI33: 0.09460370861 | AJ33: -1046607.62 | AK33: =$K33*'Measure CE Results'!EF34 -> 388967.3247 | AL33: =$K33*'Measure CE Results'!EG34 -> 108984.7425 | AM33: 3.569007146 | AN33: 279982.5822 | AO33: =$K33*'Measure CE Results'!EH34 -> 783.1618345 | AP33: =$K33*'Measure CE Results'!$EJ34 -> 8137312.514 | AQ33: =$K33*'Measure CE Results'!EI34 -> 108190.0807 | AR33: 138.1452415 | AS33: 0.01329555434
A34: YIESO - ARCHETYPERetrofitRetrofitCUSTOM LIGHTINGCUSTOM LIGHTINGARCHETYPE - CUSTOM LIGHTINGHISTORICAL PERFORMANSTORICAL PERFORMANCEPLighting_Interior_GeneralNND | B34: Yes | C34: IESO - ARCHETYPE | D34: Retrofit | E34: Lighting | F34: CUSTOM LIGHTING | G34: ARCHETYPE - CUSTOM LIGHTING | H34: HISTORICAL PERFORMANCE | I34: PSP-Business-Commercial-Lighting_Interior_General | J34: 2018 | K34: 26 | L34: 4690.04 | M34: 0 | N34: No | O34: No | P34: Dx | Q34: =VLOOKUP($A34,OFFSET('Formatted Measure List'!$A$1,4,0,10000,33),MATCH($Q$6,OFFSET('Formatted Measure List'!$A$1,4,0,1,33),0),FALSE) -> 0.68 | R34: =VLOOKUP($A34,OFFSET('Formatted Measure List'!$A$1,4,0,10000,33),MATCH($R$6,OFFSET('Formatted Measure List'!$A$1,4,0,1,33),0),FALSE) -> 0.731 | S34: 121941.04 | T34: 0 | U34: =$K34*'Measure CE Results'!DX35 -> 490579.0176 | V34: =$K34*'Measure CE Results'!DY35 -> 834864.5649 | W34: 0.5876150913 | X34: -344285.5474 | Y34: =$K34*'Measure CE Results'!DZ35 -> 490579.0176 | Z34: =$K34*'Measure CE Results'!EA35 -> 834864.5649 | AA34: 0.5876150913 | AB34: -344285.5474 | AC34: =$K34*'Measure CE Results'!EB35 -> 388637.0995 | AD34: =$K34*'Measure CE Results'!EC35 -> 114907.7655 | AE34: 3.382165669 | AF34: 273729.334 | AG34: =$K34*'Measure CE Results'!ED35 -> 116171.6566 | AH34: =$K34*'Measure CE Results'!EE35 -> 1227742.007 | AI34: 0.09462220558 | AJ34: -1111570.351 | AK34: =$K34*'Measure CE Results'!EF35 -> 426590.4501 | AL34: =$K34*'Measure CE Results'!EG35 -> 115767.2115 | AM34: 3.684898727 | AN34: 310823.2386 | AO34: =$K34*'Measure CE Results'!EH35 -> 831.7895301 | AP34: =$K34*'Measure CE Results'!$EJ35 -> 8642570.481 | AQ34: =$K34*'Measure CE Results'!EI35 -> 114907.7655 | AR34: 138.1452415 | AS34: 0.01329555434
A35: YIESO - ARCHETYPERetrofitRetrofitCUSTOM LIGHTINGCUSTOM LIGHTINGARCHETYPE - CUSTOM LIGHTINGHISTORICAL PERFORMANSTORICAL PERFORMANCEPLighting_Interior_GeneralNND | B35: Yes | C35: IESO - ARCHETYPE | D35: Retrofit | E35: Lighting | F35: CUSTOM LIGHTING | G35: ARCHETYPE - CUSTOM LIGHTING | H35: HISTORICAL PERFORMANCE | I35: PSP-Business-Commercial-Lighting_Interior_General | J35: 2019 | K35: 28 | L35: 4690.04 | M35: 0 | N35: No | O35: No | P35: Dx | Q35: =VLOOKUP($A35,OFFSET('Formatted Measure List'!$A$1,4,0,10000,33),MATCH($Q$6,OFFSET('Formatted Measure List'!$A$1,4,0,1,33),0),FALSE) -> 0.68 | R35: =VLOOKUP($A35,OFFSET('Formatted Measure List'!$A$1,4,0,10000,33),MATCH($R$6,OFFSET('Formatted Measure List'!$A$1,4,0,1,33),0),FALSE) -> 0.731 | S35: 131321.12 | T35: 0 | U35: =$K35*'Measure CE Results'!DX36 -> 536245.0792 | V35: =$K35*'Measure CE Results'!DY36 -> 881455.8001 | W35: 0.6083629822 | X35: -345210.7208 | Y35: =$K35*'Measure CE Results'!DZ36 -> 536245.0792 | Z35: =$K35*'Measure CE Results'!EA36 -> 881455.8001 | AA35: 0.6083629822 | AB35: -345210.7208 | AC35: =$K35*'Measure CE Results'!EB36 -> 425427.2299 | AD35: =$K35*'Measure CE Results'!EC36 -> 121320.4161 | AE35: 3.506641699 | AF35: 304106.8138 | AG35: =$K35*'Measure CE Results'!ED36 -> 122678.3107 | AH35: =$K35*'Measure CE Results'!EE36 -> 1296258.529 | AI35: 0.09464031126 | AJ35: -1173580.219 | AK35: =$K35*'Measure CE Results'!EF36 -> 466300.0689 | AL35: =$K35*'Measure CE Results'!EG36 -> 122243.7844 | AM35: 3.814509434 | AN35: 344056.2845 | AO35: =$K35*'Measure CE Results'!EH36 -> 878.209157 | AP35: =$K35*'Measure CE Results'!$EJ36 -> 9124885.877 | AQ35: =$K35*'Measure CE Results'!EI36 -> 121320.4161 | AR35: 138.1452415 | AS35: 0.01329555434
A36: YIESO - ARCHETYPERetrofitRetrofitCUSTOM LIGHTINGCUSTOM LIGHTINGARCHETYPE - CUSTOM LIGHTINGHISTORICAL PERFORMANSTORICAL PERFORMANCEPLighting_Interior_GeneralNND | B36: Yes | C36: IESO - ARCHETYPE | D36: Retrofit | E36: Lighting | F36: CUSTOM LIGHTING | G36: ARCHETYPE - CUSTOM LIGHTING | H36: HISTORICAL PERFORMANCE | I36: PSP-Business-Commercial-Lighting_Interior_General | J36: 2020 | K36: 30 | L36: 4690.04 | M36: 0 | N36: No | O36: No | P36: Dx | Q36: =VLOOKUP($A36,OFFSET('Formatted Measure List'!$A$1,4,0,10000,33),MATCH($Q$6,OFFSET('Formatted Measure List'!$A$1,4,0,1,33),0),FALSE) -> 0.68 | R36: =VLOOKUP($A36,OFFSET('Formatted Measure List'!$A$1,4,0,10000,33),MATCH($R$6,OFFSET('Formatted Measure List'!$A$1,4,0,1,33),0),FALSE) -> 0.731 | S36: 140701.2 | T36: 0 | U36: =$K36*'Measure CE Results'!DX37 -> 579457.1538 | V36: =$K36*'Measure CE Results'!DY37 -> 925898.9496 | W36: 0.6258319594 | X36: -346441.7958 | Y36: =$K36*'Measure CE Results'!DZ37 -> 579457.1538 | Z36: =$K36*'Measure CE Results'!EA37 -> 925898.9496 | AA36: 0.6258319594 | AB36: -346441.7958 | AC36: =$K36*'Measure CE Results'!EB37 -> 460083.4584 | AD36: =$K36*'Measure CE Results'!EC37 -> 127437.4118 | AE36: 3.61026995 | AF36: 332646.0466 | AG36: =$K36*'Measure CE Results'!ED37 -> 128885.7778 | AH36: =$K36*'Measure CE Results'!EE37 -> 1361616.102 | AI36: 0.09465647296 | AJ36: -1232730.325 | AK36: =$K36*'Measure CE Results'!EF37 -> 503875.7859 | AL36: =$K36*'Measure CE Results'!EG37 -> 128422.3007 | AM36: 3.923584793 | AN36: 375453.4853 | AO36: =$K36*'Measure CE Results'!EH37 -> 922.4886103 | AP36: =$K36*'Measure CE Results'!$EJ37 -> 9584964.157 | AQ36: =$K36*'Measure CE Results'!EI37 -> 127437.4118 | AR36: 138.1452415 | AS36: 0.01329555434
A37: YIESO - ARCHETYPERetrofitRetrofitCUSTOM NON-LIGHTINGCUSTOM NON-LIGHTINGARCHETYPE - CUSTOM NON-LIGHTINGHISTORICAL PERFORMANSTORICAL PERFORMANCEPl-Miscellaneous_EquipmentNND | B37: Yes | C37: IESO - ARCHETYPE | D37: Retrofit | E37: Non-Lighting | F37: CUSTOM NON-LIGHTING | G37: ARCHETYPE - CUSTOM NON-LIGHTING | H37: HISTORICAL PERFORMANCE | I37: PSP-Business-Commercial-Miscellaneous_Equipment | J37: 2015 | K37: 0 | L37: 17310.06 | M37: 0 | N37: No | O37: No | P37: Dx | Q37: =VLOOKUP($A37,OFFSET('Formatted Measure List'!$A$1,4,0,10000,33),MATCH($Q$6,OFFSET('Formatted Measure List'!$A$1,4,0,1,33),0),FALSE) -> 0.656 | R37: =VLOOKUP($A37,OFFSET('Formatted Measure List'!$A$1,4,0,10000,33),MATCH($R$6,OFFSET('Formatted Measure List'!$A$1,4,0,1,33),0),FALSE) -> 0.65 | S37: 0 | T37: 0 | U37: =$K37*'Measure CE Results'!DX38 -> 0 | V37: =$K37*'Measure CE Results'!DY38 -> 0 | X37: 0 | Y37: =$K37*'Measure CE Results'!DZ38 -> 0 | Z37: =$K37*'Measure CE Results'!EA38 -> 0 | AB37: 0 | AC37: =$K37*'Measure CE Results'!EB38 -> 0 | AD37: =$K37*'Measure CE Results'!EC38 -> 0 | AF37: 0 | AG37: =$K37*'Measure CE Results'!ED38 -> 0 | AH37: =$K37*'Measure CE Results'!EE38 -> 0 | AJ37: 0 | AK37: =$K37*'Measure CE Results'!EF38 -> 0 | AL37: =$K37*'Measure CE Results'!EG38 -> 0 | AN37: 0 | AO37: =$K37*'Measure CE Results'!EH38 -> 0 | AP37: =$K37*'Measure CE Results'!$EJ38 -> 0 | AQ37: =$K37*'Measure CE Results'!EI38 -> 0
A38: YIESO - ARCHETYPERetrofitRetrofitCUSTOM NON-LIGHTINGCUSTOM NON-LIGHTINGARCHETYPE - CUSTOM NON-LIGHTINGHISTORICAL PERFORMANSTORICAL PERFORMANCEPl-Miscellaneous_EquipmentNND | B38: Yes | C38: IESO - ARCHETYPE | D38: Retrofit | E38: Non-Lighting | F38: CUSTOM NON-LIGHTING | G38: ARCHETYPE - CUSTOM NON-LIGHTING | H38: HISTORICAL PERFORMANCE | I38: PSP-Business-Commercial-Miscellaneous_Equipment | J38: 2016 | K38: 8 | L38: 17310.06 | M38: 0 | N38: No | O38: No | P38: Dx | Q38: =VLOOKUP($A38,OFFSET('Formatted Measure List'!$A$1,4,0,10000,33),MATCH($Q$6,OFFSET('Formatted Measure List'!$A$1,4,0,1,33),0),FALSE) -> 0.656 | R38: =VLOOKUP($A38,OFFSET('Formatted Measure List'!$A$1,4,0,10000,33),MATCH($R$6,OFFSET('Formatted Measure List'!$A$1,4,0,1,33),0),FALSE) -> 0.65 | S38: 138480.48 | T38: 0 | U38: =$K38*'Measure CE Results'!DX39 -> 606263.4734 | V38: =$K38*'Measure CE Results'!DY39 -> 134866.7056 | W38: 4.49527903 | X38: 471396.7679 | Y38: =$K38*'Measure CE Results'!DZ39 -> 606263.4734 | Z38: =$K38*'Measure CE Results'!EA39 -> 134866.7056 | AA38: 4.49527903 | AB38: 471396.7679 | AC38: =$K38*'Measure CE Results'!EB39 -> 527185.6291 | AD38: =$K38*'Measure CE Results'!EC39 -> 135765.1765 | AE38: 3.883069597 | AF38: 391420.4526 | AG38: =$K38*'Measure CE Results'!ED39 -> 137300.8707 | AH38: =$K38*'Measure CE Results'!EE39 -> 205589.4902 | AI38: 0.6678399298 | AJ38: -68288.61949 | AK38: =$K38*'Measure CE Results'!EF39 -> 527185.6291 | AL38: =$K38*'Measure CE Results'!EG39 -> 136772.5919 | AM38: 3.854468368 | AN38: 390413.0372 | AO38: =$K38*'Measure CE Results'!EH39 -> 1804.756989 | AP38: =$K38*'Measure CE Results'!$EJ39 -> 10434115.11 | AQ38: =$K38*'Measure CE Results'!EI39 -> 135765.1765 | AR38: 75.22629212 | AS38: 0.01301166175
A39: YIESO - ARCHETYPERetrofitRetrofitCUSTOM NON-LIGHTINGCUSTOM NON-LIGHTINGARCHETYPE - CUSTOM NON-LIGHTINGHISTORICAL PERFORMANSTORICAL PERFORMANCEPl-Miscellaneous_EquipmentNND | B39: Yes | C39: IESO - ARCHETYPE | D39: Retrofit | E39: Non-Lighting | F39: CUSTOM NON-LIGHTING | G39: ARCHETYPE - CUSTOM NON-LIGHTING | H39: HISTORICAL PERFORMANCE | I39: PSP-Business-Commercial-Miscellaneous_Equipment | J39: 2017 | K39: 10 | L39: 17310.06 | M39: 0 | N39: No | O39: No | P39: Dx | Q39: =VLOOKUP($A39,OFFSET('Formatted Measure List'!$A$1,4,0,10000,33),MATCH($Q$6,OFFSET('Formatted Measure List'!$A$1,4,0,1,33),0),FALSE) -> 0.656 | R39: =VLOOKUP($A39,OFFSET('Formatted Measure List'!$A$1,4,0,10000,33),MATCH($R$6,OFFSET('Formatted Measure List'!$A$1,4,0,1,33),0),FALSE) -> 0.65 | S39: 173100.6 | T39: 0 | U39: =$K39*'Measure CE Results'!DX40 -> 788351.9743 | V39: =$K39*'Measure CE Results'!DY40 -> 165277.8255 | W39: 4.769859309 | X39: 623074.1489 | Y39: =$K39*'Measure CE Results'!DZ40 -> 788351.9743 | Z39: =$K39*'Measure CE Results'!EA40 -> 165277.8255 | AA39: 4.769859309 | AB39: 623074.1489 | AC39: =$K39*'Measure CE Results'!EB40 -> 685523.4559 | AD39: =$K39*'Measure CE Results'!EC40 -> 166378.8927 | AE39: 4.120254947 | AF39: 519144.5632 | AG39: =$K39*'Measure CE Results'!ED40 -> 168297.2074 | AH39: =$K39*'Measure CE Results'!EE40 -> 251947.9047 | AI39: 0.6679841517 | AJ39: -83650.69729 | AK39: =$K39*'Measure CE Results'!EF40 -> 685523.4559 | AL39: =$K39*'Measure CE Results'!EG40 -> 167637.3071 | AM39: 4.089325149 | AN39: 517886.1488 | AO39: =$K39*'Measure CE Results'!EH40 -> 2211.711997 | AP39: =$K39*'Measure CE Results'!$EJ40 -> 12786905.77 | AQ39: =$K39*'Measure CE Results'!EI40 -> 166378.8927 | AR39: 75.22629212 | AS39: 0.01301166175
A40: YIESO - ARCHETYPERetrofitRetrofitCUSTOM NON-LIGHTINGCUSTOM NON-LIGHTINGARCHETYPE - CUSTOM NON-LIGHTINGHISTORICAL PERFORMANSTORICAL PERFORMANCEPl-Miscellaneous_EquipmentNND | B40: Yes | C40: IESO - ARCHETYPE | D40: Retrofit | E40: Non-Lighting | F40: CUSTOM NON-LIGHTING | G40: ARCHETYPE - CUSTOM NON-LIGHTING | H40: HISTORICAL PERFORMANCE | I40: PSP-Business-Commercial-Miscellaneous_Equipment | J40: 2018 | K40: 12 | L40: 17310.06 | M40: 0 | N40: No | O40: No | P40: Dx | Q40: =VLOOKUP($A40,OFFSET('Formatted Measure List'!$A$1,4,0,10000,33),MATCH($Q$6,OFFSET('Formatted Measure List'!$A$1,4,0,1,33),0),FALSE) -> 0.656 | R40: =VLOOKUP($A40,OFFSET('Formatted Measure List'!$A$1,4,0,10000,33),MATCH($R$6,OFFSET('Formatted Measure List'!$A$1,4,0,1,33),0),FALSE) -> 0.65 | S40: 207720.72 | T40: 0 | U40: =$K40*'Measure CE Results'!DX41 -> 951828.914 | V40: =$K40*'Measure CE Results'!DY41 -> 194444.5005 | W40: 4.895118717 | X40: 757384.4134 | Y40: =$K40*'Measure CE Results'!DZ41 -> 951828.914 | Z40: =$K40*'Measure CE Results'!EA41 -> 194444.5005 | AA40: 4.895118717 | AB40: 757384.4134 | AC40: =$K40*'Measure CE Results'!EB41 -> 827677.3165 | AD40: =$K40*'Measure CE Results'!EC41 -> 195739.8738 | AE40: 4.22845535 | AF40: 631937.4427 | AG40: =$K40*'Measure CE Results'!ED41 -> 198039.1668 | AH40: =$K40*'Measure CE Results'!EE41 -> 296409.2996 | AI40: 0.6681273733 | AJ40: -98370.13283 | AK40: =$K40*'Measure CE Results'!EF41 -> 827677.3165 | AL40: =$K40*'Measure CE Results'!EG41 -> 197248.21 | AM40: 4.196120799 | AN40: 630429.1065 | AO40: =$K40*'Measure CE Results'!EH41 -> 2602.014114 | AP40: =$K40*'Measure CE Results'!$EJ41 -> 15043418.55 | AQ40: =$K40*'Measure CE Results'!EI41 -> 195739.8738 | AR40: 75.22629212 | AS40: 0.01301166175
A41: YIESO - ARCHETYPERetrofitRetrofitCUSTOM NON-LIGHTINGCUSTOM NON-LIGHTINGARCHETYPE - CUSTOM NON-LIGHTINGHISTORICAL PERFORMANSTORICAL PERFORMANCEPl-Miscellaneous_EquipmentNND | B41: Yes | C41: IESO - ARCHETYPE | D41: Retrofit | E41: Non-Lighting | F41: CUSTOM NON-LIGHTING | G41: ARCHETYPE - CUSTOM NON-LIGHTING | H41: HISTORICAL PERFORMANCE | I41: PSP-Business-Commercial-Miscellaneous_Equipment | J41: 2019 | K41: 14 | L41: 17310.06 | M41: 0 | N41: No | O41: No | P41: Dx | Q41: =VLOOKUP($A41,OFFSET('Formatted Measure List'!$A$1,4,0,10000,33),MATCH($Q$6,OFFSET('Formatted Measure List'!$A$1,4,0,1,33),0),FALSE) -> 0.656 | R41: =VLOOKUP($A41,OFFSET('Formatted Measure List'!$A$1,4,0,10000,33),MATCH($R$6,OFFSET('Formatted Measure List'!$A$1,4,0,1,33),0),FALSE) -> 0.65 | S41: 242340.84 | T41: 0 | U41: =$K41*'Measure CE Results'!DX42 -> 1120091.648 | V41: =$K41*'Measure CE Results'!DY42 -> 222403.8405 | W41: 5.036296342 | X41: 897687.8077 | Y41: =$K41*'Measure CE Results'!DZ42 -> 1120091.648 | Z41: =$K41*'Measure CE Results'!EA42 -> 222403.8405 | AA41: 5.036296342 | AB41: 897687.8077 | AC41: =$K41*'Measure CE Results'!EB42 -> 973992.7375 | AD41: =$K41*'Measure CE Results'!EC42 -> 223885.4766 | AE41: 4.350406076 | AF41: 750107.261 | AG41: =$K41*'Measure CE Results'!ED42 -> 226563.557 | AH41: =$K41*'Measure CE Results'!EE42 -> 339030.2446 | AI41: 0.6682694555 | AJ41: -112466.6877 | AK41: =$K41*'Measure CE Results'!EF42 -> 973992.7375 | AL41: =$K41*'Measure CE Results'!EG42 -> 225642.2973 | AM41: 4.316534396 | AN41: 748350.4402 | AO41: =$K41*'Measure CE Results'!EH42 -> 2976.159934 | AP41: =$K41*'Measure CE Results'!$EJ42 -> 17206524.49 | AQ41: =$K41*'Measure CE Results'!EI42 -> 223885.4766 | AR41: 75.22629212 | AS41: 0.01301166175
